Workbook

Sheet Data
A1: Financial Returns Data spreadsheet | K1: Ann Geometrics | AM1: Land Returns by State workbook | AP1: =SUM(AO2:CC2) -> 32 | AQ1: Total rate of return - Cap Gain plus rental income less taxes mixed time definition | AX1: By convention, use the ERS data of publication as the year for this sheet. | BE1: Select states in Ave 1 with logicals in AO2:CC2 | CC1: =SUM(AO2:CB2) -> 32 | CD1: NCREIF | CE1: =COUNT(CE2:CQ2) -> 6
A2: Return Matrix | B2: Stock Indexes | G2: MSCI equity Indexes | L2: REITS | P2: Interest Rates | R2: Treasury Series | AA2: CDs | AC2: Corporate Bonds | AE2: Comm Paper | AF2: Municipal bonds | AG2: Mortgages | AH2: Commodity indexes | AJ2: Inflation Ref | AL2: US Return rates (cont) | AM2: States land returns - from Land return by state | AN2: States land returns - from Land return by state | AO2: 1 | AQ2: 1 | AR2: 1 | AS2: 1 | AU2: 1 | AV2: 1 | AW2: 1 | AX2: 1 | AY2: 1 | AZ2: 1 | BA2: 1 | BB2: 1 | BC2: 1 | BE2: 1 | BF2: 1 | BG2: 1 | BH2: 1 | BI2: 1 | BJ2: 1 | BM2: 1 | BN2: 1 | BO2: 1 | BP2: 1 | BQ2: 1 | BR2: 1 | BS2: 1 | BU2: 1 | BV2: 1 | BW2: 1 | BY2: 1 | BZ2: 1 | CB2: 1 | CH2: 1 | CI2: 1 | CJ2: 1 | CM2: 1 | CP2: 1 | CQ2: 1
A3: Year | B3: S&P500 | C3: Dow Jones | D3: NASDAQ | E3: NYSE | F3: Wilshire5000 | G3: EAFE | H3: EUROPE | I3: PACIFIC | J3: North America | K3: MSCIUSA | L3: All REITS | M3: Equity REITS | N3: Mortgage REITS | O3: Composite REITS | P3: BBALibor | Q3: ED3M | R3: TCM1Y | S3: TCM3Y | T3: TCM5Y | U3: TCM7Y | V3: TCM10Y | W3: TCM20Y | X3: TCM30Y | Y3: TBSM3M | Z3: TBSM6M | AA3: CD3M | AB3: CD6M | AC3: AAA | AD3: BAA | AE3: CP3M | AF3: Muni20 | AG3: Mort30F | AH3: SPGSI | AI3: FedFunds | AJ3: CPI | AK3: PPI | AL3: Gold | AM3: ="US Ag "&AP1&" States" -> US Ag 32 States | AN3: US Ave Farm (all) | AO3: Alabama | AP3: Arizona | AQ3: Arkansas | AR3: California | AS3: Colorado | AT3: Delaware | AU3: Florida | AV3: Georgia | AW3: Idaho | AX3: Illinois | AY3: Indiana | AZ3: Iowa | BA3: Kansas | BB3: Kentucky | BC3: Louisiana | BD3: Maryland | BE3: Michigan | BF3: Minnesota | BG3: Mississippi | BH3: Missouri | BI3: Montana | BJ3: Nebraska | BK3: New Jersey | BL3: New Mexico | BM3: New York | BN3: North Carolina | BO3: North Dakota | BP3: Ohio | BQ3: Oklahoma | BR3: Oregon | BS3: Pennsylvania | BT3: South Carolina | BU3: South Dakota | BV3: Tennessee | BW3: Texas | BX3: Utah | BY3: Virginia | BZ3: Washington | CA3: West Virginia | CB3: Wisconsin | CC3: Wyoming | CD3: NCREIFCustom | CE3: NCREIF Total Farmland | CF3: NCREIF Annual Cropland | CG3: NCREIF Permanent Cropland | CH3: NCREIF Pacific West | CI3: NCREIF Pacific Northwest | CJ3: NCREIF Mountain | CK3: NCREIF Lake States | CL3: NCREIF Corn Belt | CM3: NCREIF Delta States | CN3: NCREIF Southeast | CO3: NCREIF Lake States Annual Cropland | CP3: NCREIF Leased Permanent and Annual Cropland | CQ3: NCREIF Annual - Commodity | CR3: Pasture/Ranchland
A4: 1960 | B4: 0.04397472489 | C4: -0.09812544303 | R4: 0.03626666667 | S4: 0.03980833333 | T4: 0.0409 | W4: 0.04059166667 | Y4: 0.02883333333 | Z4: 0.03211666667 | AC4: 0.0441 | AD4: 0.05189166667 | AF4: 0.03515 | AI4: 0.03215833333 | AJ4: 0.01350915512 | AK4: 0.006329135052
A5: 1961 | B5: 0.2080587399 | C5: 0.1714656366 | R5: 0.02980833333 | S5: 0.03535 | T5: 0.03750833333 | W5: 0.03923333333 | Y5: 0.02354166667 | Z5: 0.02591666667 | AC5: 0.0435 | AD5: 0.05075 | AF5: 0.03453333333 | AI5: 0.01955 | AJ5: 0.006686751762 | AK5: -0.00315956029
A6: 1962 | B6: -0.1256757365 | C6: -0.1143523249 | R6: 0.03100833333 | S6: 0.03471666667 | T6: 0.03701666667 | W6: 0.03993333333 | Y6: 0.02773333333 | Z6: 0.02899166667 | AC6: 0.04325 | AD6: 0.0502 | AF6: 0.03154166667 | AI6: 0.02708333333 | AJ6: 0.01225383772 | AK6: 0
A7: 1963 | B7: 0.1730339751 | C7: 0.1570601069 | R7: 0.03356666667 | S7: 0.03669166667 | T7: 0.03829166667 | W7: 0.04050833333 | Y7: 0.03159166667 | Z7: 0.03258333333 | AC7: 0.04259166667 | AD7: 0.04855833333 | AF7: 0.0317 | AI7: 0.03178333333 | AJ7: 0.01632422799 | AK7: 0
A8: 1964 | B8: 0.1219510016 | C8: 0.1359367543 | R8: 0.03845833333 | S8: 0.04030833333 | T8: 0.04068333333 | W8: 0.0419 | Y8: 0.03546666667 | Z8: 0.03681666667 | AC8: 0.04405833333 | AD8: 0.04828333333 | AF8: 0.03206666667 | AI8: 0.03496666667 | AJ8: 0.01191065103 | AK8: 0.00315956029
A9: 1965 | B9: 0.08674585502 | C9: 0.1033793759 | R9: 0.04144166667 | S9: 0.042175 | T9: 0.042475 | W9: 0.04266666667 | Y9: 0.03949166667 | Z9: 0.04053333333 | AA9: 0.04344166667 | AB9: 0.04425833333 | AC9: 0.04493333333 | AD9: 0.04865833333 | AF9: 0.03260833333 | AI9: 0.04075 | AJ9: 0.01901800584 | AK9: 0.03411183451
A10: 1966 | B10: -0.1403084511 | C10: -0.2099991213 | R10: 0.05203333333 | S10: 0.0523 | T10: 0.05104166667 | W10: 0.047675 | Y10: 0.048625 | Z10: 0.05060833333 | AA10: 0.05483333333 | AB10: 0.05628333333 | AC10: 0.0513 | AD10: 0.05665 | AF10: 0.03808333333 | AI10: 0.05111666667 | AJ10: 0.03304299379 | AK10: 0.0151288816
A11: 1967 | B11: 0.183088929 | C11: 0.1414703947 | E11: 0.08817033208 | R11: 0.04885 | S11: 0.05039166667 | T11: 0.051075 | W11: 0.0501 | Y11: 0.04306666667 | Z11: 0.04620833333 | AA11: 0.05020833333 | AB11: 0.05211666667 | AC11: 0.05506666667 | AD11: 0.06228333333 | AF11: 0.039375 | AI11: 0.0422 | AJ11: 0.03228014881 | AK11: 0.01194044037
A12: 1968 | B12: 0.07381175923 | C12: 0.04186884446 | E12: 0.1222804728 | R12: 0.05690833333 | S12: 0.05685 | T12: 0.05698333333 | W12: 0.05454166667 | Y12: 0.05338333333 | Z12: 0.05471666667 | AA12: 0.05859166667 | AB12: 0.06003333333 | AC12: 0.06175 | AD12: 0.06935833333 | AF12: 0.04445 | AI12: 0.05659166667 | AJ12: 0.04598511324 | AK12: 0.02635584471 | AL12: 0.1616029164
A13: 1969 | B13: -0.1206033 | C13: -0.1648026766 | E13: -0.2053851232 | G13: 0 | H13: 0 | I13: 0 | J13: 0 | K13: 0 | R13: 0.071225 | S13: 0.07016666667 | T13: 0.06933333333 | U13: 0.07145 | V13: 0.06670833333 | W13: 0.06326666667 | Y13: 0.06666666667 | Z13: 0.06860833333 | AA13: 0.07760833333 | AB13: 0.078925 | AC13: 0.07029166667 | AD13: 0.07813333333 | AF13: 0.05715 | AI13: 0.08204166667 | AJ13: 0.0573144566 | AK13: 0.04796405921 | AL13: -0.1553279386 | AM13: =SUMPRODUCT(AO13:CC13,$AO$2:$CC$2)/$AP$1 -> 0.1290908559 | AN13: =AVERAGE(AO13:CC13) -> 0.1264556573 | AO13: 0.1946623886 | AP13: 0.05856774096 | AQ13: 0.1706469812 | AR13: 0.0176171759 | AS13: 0.0851922918 | AT13: 0.1023934451 | AU13: 0.05522192901 | AV13: 0.2652896985 | AW13: 0.07289910914 | AX13: 0.1052999283 | AY13: 0.07018564987 | AZ13: 0.1210660351 | BA13: 0.05849333877 | BB13: 0.1420439315 | BC13: 0.09993408236 | BD13: 0.09363909311 | BE13: 0.1250556826 | BF13: 0.156379575 | BG13: 0.2059719456 | BH13: 0.1744599412 | BI13: 0.06006834075 | BJ13: 0.08119870616 | BK13: 0.1140567087 | BM13: 0.1534281968 | BN13: 0.1438230936 | BO13: 0.183325324 | BP13: 0.08824723945 | BQ13: 0.05405742474 | BR13: 0.1089347189 | BS13: 0.1413093815 | BT13: 0.1926387109 | BU13: 0.1168625096 | BV13: 0.1830080661 | BW13: 0.2370730827 | BX13: 0.05669594262 | BY13: 0.1173471187 | BZ13: 0.1491666535 | CA13: 0.1828716055 | CB13: 0.1926378475
A14: 1970 | B14: 0.0009771457267 | C14: 0.04697990714 | E14: 0.1018930352 | G14: -0.1384395561 | H14: -0.1290792885 | I14: -0.1470604966 | J14: 0.08508128846 | K14: 0.08624606279 | R14: 0.068975 | S14: 0.07286666667 | T14: 0.07375833333 | U14: 0.07375 | V14: 0.07348333333 | W14: 0.068625 | Y14: 0.06391666667 | Z14: 0.06508333333 | AA14: 0.07564166667 | AB14: 0.076575 | AC14: 0.0804 | AD14: 0.09105 | AF14: 0.063275 | AI14: 0.07183333333 | AJ14: 0.05420681784 | AK14: 0.02179922834 | AL14: 0.06254620512 | AM14: =SUMPRODUCT(AO14:CC14,$AO$2:$CC$2)/$AP$1 -> 0.1115940345 | AN14: =AVERAGE(AO14:CC14) -> 0.1102525755 | AO14: 0.1652885364 | AP14: 0.07252721017 | AQ14: 0.1395065442 | AR14: -0.00430277992 | AS14: 0.05995708552 | AT14: 0.1344505983 | AU14: 0.1283153597 | AV14: 0.1919817499 | AW14: 0.08947446628 | AX14: 0.05038765708 | AY14: 0.04143298504 | AZ14: 0.1018653988 | BA14: 0.001502791122 | BB14: 0.1561545294 | BC14: 0.1269933984 | BD14: 0.126191423 | BE14: 0.07865205481 | BF14: 0.1239447197 | BG14: 0.1741545347 | BH14: 0.1235564517 | BI14: 0.09419156697 | BJ14: 0.05895782238 | BK14: 0.1307023861 | BM14: 0.1440291899 | BN14: 0.05784546347 | BO14: 0.1297009977 | BP14: 0.1103158316 | BQ14: 0.08365784462 | BR14: 0.0911848798 | BS14: 0.1693090608 | BT14: 0.07377879418 | BU14: 0.0900276251 | BV14: 0.1398789602 | BW14: 0.1913458127 | BX14: 0.05459473481 | BY14: 0.1684740203 | BZ14: 0.1103513703 | CA14: 0.1365961931 | CB14: 0.1828731766
A15: 1971 | B15: 0.1024370931 | C15: 0.05935464673 | E15: 0.0919563903 | F15: 0.1167242743 | G15: 0.2322552845 | H15: 0.2074955937 | I15: 0.2888054356 | J15: 0.09267711453 | K15: 0.09537322782 | L15: 0 | M15: 0 | N15: 0 | O15: 0 | Q15: 0.06625 | R15: 0.0488 | S15: 0.05654166667 | T15: 0.059875 | U15: 0.06178333333 | V15: 0.06159166667 | W15: 0.0612 | Y15: 0.043325 | Z15: 0.04511666667 | AA15: 0.05005 | AB15: 0.05216666667 | AC15: 0.07386666667 | AD15: 0.08563333333 | AF15: 0.05474166667 | AG15: 0.07551111111 | AI15: 0.046625 | AJ15: 0.03214120921 | AK15: 0.03963530686 | AL15: 0.1495614106 | AM15: 0.1108518764 | AN15: 0.1135274294 | AO15: 0.21421257 | AP15: 0.1137326262 | AQ15: 0.06898350028 | AR15: -0.006459596876 | AS15: 0.1116274837 | AT15: 0.1522833044 | AU15: 0.07115075571 | AV15: 0.1904760274 | AW15: 0.09772002292 | AX15: 0.0635479256 | AY15: 0.1033301014 | AZ15: 0.07533600795 | BA15: 0.03866208443 | BB15: 0.1430699345 | BC15: 0.1512989163 | BD15: 0.09395978708 | BE15: 0.06708183569 | BF15: 0.09769857971 | BG15: 0.1047783029 | BH15: 0.1426003982 | BI15: 0.07257062532 | BJ15: 0.1551980816 | BK15: 0.03970686453 | BM15: 0.104540686 | BN15: 0.179774166 | BO15: 0.1029936358 | BP15: 0.09810391192 | BQ15: 0.0678695767 | BR15: 0.149692095 | BS15: 0.07563868226 | BT15: 0.1224837376 | BU15: 0.09066184239 | BV15: 0.1095711647 | BW15: 0.2086708756 | BX15: 0.1950350563 | BY15: 0.1475007133 | BZ15: 0.06700936374 | CA15: 0.163108326 | CB15: 0.1823497746
A16: 1972 | B16: 0.1452534864 | C16: 0.1361117497 | E16: 0.0837256575 | F16: 0.1637893087 | G16: 0.2872896395 | H16: 0.1107385514 | I16: 0.7046478912 | J16: 0.1327464016 | K16: 0.1248929092 | L16: 0.1060924044 | M16: 0.07705605628 | N16: 0.1148424983 | O16: 0.1060924044 | Q16: 0.05466666667 | R16: 0.0496 | S16: 0.05720833333 | T16: 0.05981666667 | U16: 0.06145 | V16: 0.0621 | W16: 0.0601 | Y16: 0.040725 | Z16: 0.04484166667 | AA16: 0.04665833333 | AB16: 0.05015 | AC16: 0.07213333333 | AD16: 0.08155 | AF16: 0.052575 | AG16: 0.07384166667 | AI16: 0.04434166667 | AJ16: 0.03349595443 | AK16: 0.06275584503 | AL16: 0.3851747814 | AM16: 0.1422760321 | AN16: 0.1417538261 | AO16: 0.1267647174 | AP16: 0.1594780973 | AQ16: 0.239642303 | AR16: 0.05936843665 | AS16: 0.154422214 | AT16: 0.05707120801 | AU16: 0.08118804806 | AV16: 0.2310901821 | AW16: 0.1263458557 | AX16: 0.1101885211 | AY16: 0.09724475654 | AZ16: 0.1342922345 | BA16: 0.09486369667 | BB16: 0.1840184901 | BC16: 0.1461553517 | BD16: 0.08361657116 | BE16: 0.1581955813 | BF16: 0.1170280087 | BG16: 0.1263583808 | BH16: 0.1961384814 | BI16: 0.102023695 | BJ16: 0.2232810803 | BK16: 0.08108549849 | BM16: 0.1783224177 | BN16: 0.1273810009 | BO16: 0.1225194424 | BP16: 0.1115127486 | BQ16: 0.08082737234 | BR16: 0.1640388409 | BS16: 0.09434412462 | BT16: 0.1909263394 | BU16: 0.100902124 | BV16: 0.1682396361 | BW16: 0.2357730651 | BX16: 0.1857251151 | BY16: 0.1744305229 | BZ16: 0.1284040306 | CA16: 0.2176633632 | CB16: 0.157527665
A17: 1973 | B17: -0.1907431965 | C17: -0.1812632934 | E17: -0.1948548814 | F17: -0.2070861144 | G17: -0.184137987 | H17: -0.1175843605 | I17: -0.2571773019 | J17: -0.1935672134 | K17: -0.2074681675 | L17: -0.317683107 | M17: -0.1686453658 | N17: -0.450331187 | O17: -0.317683107 | Q17: 0.09420833333 | R17: 0.07311666667 | S17: 0.06955 | T17: 0.06866666667 | U17: 0.06858333333 | V17: 0.068425 | W17: 0.07116666667 | Y17: 0.07031666667 | Z17: 0.07199166667 | AA17: 0.08415833333 | AB17: 0.08310833333 | AC17: 0.07440833333 | AD17: 0.08240833333 | AF17: 0.05189166667 | AG17: 0.080725 | AI17: 0.087275 | AJ17: 0.08563788516 | AK17: 0.1426141072 | AL17: 0.5127327385 | AM17: 0.1877347496 | AN17: 0.1796081405 | AO17: 0.2093963953 | AP17: 0.08671774193 | AQ17: 0.2151763241 | AR17: 0.0412191316 | AS17: 0.2106134945 | AT17: 0.1721942393 | AU17: 0.1656725502 | AV17: 0.2149672591 | AW17: 0.1532014331 | AX17: 0.1403809886 | AY17: 0.1985192719 | AZ17: 0.2022336914 | BA17: 0.1661724412 | BB17: 0.1845940539 | BC17: 0.1161421741 | BD17: 0.1666050696 | BE17: 0.2412498123 | BF17: 0.1875741949 | BG17: 0.2196982939 | BH17: 0.2090422918 | BI17: 0.1405028994 | BJ17: 0.2711859077 | BK17: 0.09224658085 | BM17: 0.1470384194 | BN17: 0.2141545282 | BO17: 0.187893607 | BP17: 0.2004211311 | BQ17: 0.1443927759 | BR17: 0.1470973 | BS17: 0.1932512175 | BT17: 0.1285501818 | BU17: 0.158801537 | BV17: 0.2101115749 | BW17: 0.2483370642 | BX17: 0.1127233102 | BY17: 0.1813749379 | BZ17: 0.2142775216 | CA17: 0.2381683687 | CB17: 0.2728177641
A18: 1974 | B18: -0.3526557928 | C18: -0.3227230267 | E18: -0.2329297932 | F18: -0.332938664 | G18: -0.2956802201 | H18: -0.3127417421 | I18: -0.2663611359 | J18: -0.3546484354 | K18: -0.3690625293 | L18: -0.5487291122 | M18: -0.2408370031 | N18: -0.6037613313 | O18: -0.5487291122 | Q18: 0.1125583333 | R18: 0.08181666667 | S18: 0.078225 | T18: 0.07801666667 | U18: 0.07714166667 | V18: 0.075575 | W18: 0.08054166667 | Y18: 0.0783 | Z18: 0.07935833333 | AA18: 0.1024416667 | AB18: 0.09975 | AC18: 0.08565833333 | AD18: 0.09496666667 | AF18: 0.06173333333 | AG18: 0.09218333333 | AI18: 0.105025 | AJ18: 0.1141768291 | AK18: 0.189678395 | AL18: 0.5435308079 | AM18: 0.2950245994 | AN18: 0.2866280981 | AO18: 0.3097472092 | AP18: 0.2374324258 | AQ18: 0.2856188959 | AR18: 0.1313531123 | AS18: 0.307468446 | AT18: 0.2917137792 | AU18: 0.3208390962 | AV18: 0.3660189241 | AW18: 0.2902370425 | AX18: 0.3276541524 | AY18: 0.2697573594 | AZ18: 0.3615065659 | BA18: 0.2944836225 | BB18: 0.2560286459 | BC18: 0.2270534111 | BD18: 0.1784856918 | BE18: 0.2176494352 | BF18: 0.3376976132 | BG18: 0.359427183 | BH18: 0.3912189998 | BI18: 0.287945883 | BJ18: 0.3898970334 | BK18: 0.1864480507 | BM18: 0.2944450545 | BN18: 0.2450773139 | BO18: 0.4345247241 | BP18: 0.2914626205 | BQ18: 0.2170427798 | BR18: 0.1845879132 | BS18: 0.2826831371 | BT18: 0.2928009376 | BU18: 0.3470283748 | BV18: 0.2700639378 | BW18: 0.360088431 | BX18: 0.2233249931 | BY18: 0.32376305 | BZ18: 0.1971745648 | CA18: 0.3275027695 | CB18: 0.2612426472
A19: 1975 | B19: 0.2742092819 | C19: 0.3244843141 | E19: 0.2692384649 | F19: 0.3240497166 | G19: 0.2715765755 | H19: 0.3125535246 | I19: 0.205686935 | J19: 0.2465628191 | K19: 0.2662312285 | L19: 0.3099571676 | M19: 0.1764668843 | N19: 0.3420646763 | O19: 0.3099571676 | Q19: 0.06954166667 | R19: 0.06758333333 | S19: 0.0749 | T19: 0.07765833333 | U19: 0.07895 | V19: 0.079875 | W19: 0.08191666667 | Y19: 0.05775 | Z19: 0.06088333333 | AA19: 0.06436666667 | AB19: 0.06889166667 | AC19: 0.08825833333 | AD19: 0.1061 | AF19: 0.07050833333 | AG19: 0.09024166667 | AI19: 0.05824166667 | AJ19: 0.06886441108 | AK19: 0.04103139668 | AL19: -0.2771095093 | AM19: 0.1974237219 | AN19: 0.1869891672 | AO19: 0.1675892662 | AP19: 0.03726501677 | AQ19: 0.1155117028 | AR19: 0.1594104839 | AS19: 0.1044457345 | AT19: 0.2283031028 | AU19: 0.1358894608 | AV19: 0.1973197649 | AW19: 0.2187301956 | AX19: 0.2352248017 | AY19: 0.2955006542 | AZ19: 0.291180925 | BA19: 0.1944285392 | BB19: 0.1852378171 | BC19: 0.1547676598 | BD19: 0.09858902459 | BE19: 0.1055640675 | BF19: 0.3530151747 | BG19: 0.2111667815 | BH19: 0.1182914796 | BI19: 0.1920809015 | BJ19: 0.305143641 | BK19: 0.1449301412 | BM19: 0.1862436034 | BN19: 0.118965333 | BO19: 0.4414687386 | BP19: 0.1797448308 | BQ19: 0.1653860931 | BR19: 0.1112709071 | BS19: 0.2009078983 | BT19: 0.1640030635 | BU19: 0.2967735054 | BV19: 0.1907852251 | BW19: 0.1271057598 | BX19: 0.1115428984 | BY19: 0.1579014944 | BZ19: 0.2060903208 | CA19: 0.1903851729 | CB19: 0.1944163405
A20: 1976 | B20: 0.1752001291 | C20: 0.1643883682 | E20: 0.03541166189 | F20: 0.2373281863 | G20: -0.003589133916 | H20: -0.1147640679 | I20: 0.1683777116 | J20: 0.1475152382 | K20: 0.1713480082 | L20: 0.3985998253 | M20: 0.38925884 | N20: 0.4168248235 | O20: 0.3985998253 | Q20: 0.05635833333 | R20: 0.05874166667 | S20: 0.06770833333 | T20: 0.07179166667 | U20: 0.07423333333 | V20: 0.07611666667 | W20: 0.07863333333 | Y20: 0.04974166667 | Z20: 0.052525 | AA20: 0.05268333333 | AB20: 0.05624166667 | AC20: 0.08434166667 | AD20: 0.09746666667 | AF20: 0.06641666667 | AG20: 0.08855 | AI20: 0.05045 | AJ20: 0.04913268858 | AK20: 0.04583453634 | AL20: -0.03931260539 | AM20: 0.2240946595 | AN20: 0.2202861335 | AO20: 0.2299042257 | AP20: 0.1276121486 | AQ20: 0.2124739099 | AR20: 0.1033270856 | AS20: 0.1957288334 | AT20: 0.1764611811 | AU20: 0.1273548285 | AV20: 0.1462728477 | AW20: 0.1763504702 | AX20: 0.3140303668 | AY20: 0.3075272048 | AZ20: 0.3543659498 | BA20: 0.2986823468 | BB20: 0.2710754826 | BC20: 0.1768581127 | BD20: 0.2231047536 | BE20: 0.1458580505 | BF20: 0.313718525 | BG20: 0.1696991759 | BH20: 0.2331832724 | BI20: 0.2227159354 | BJ20: 0.4117408198 | BK20: 0.1668071228 | BM20: 0.1248828139 | BN20: 0.1871661566 | BO20: 0.3006005783 | BP20: 0.2517269182 | BQ20: 0.1598792869 | BR20: 0.2199284795 | BS20: 0.1363946787 | BT20: 0.1513749286 | BU20: 0.2045670003 | BV20: 0.1910085401 | BW20: 0.2586599734 | BX20: 0.2199401533 | BY20: 0.1814712638 | BZ20: 0.3221999253 | CA20: 0.354829814 | CB20: 0.2216760449
A21: 1977 | B21: -0.1221897157 | C21: -0.1895738287 | E21: -0.1158649975 | F21: -0.02857337244 | G21: 0.1363951932 | H21: 0.1624555896 | I21: 0.1008632386 | J21: -0.1200760887 | K21: -0.1301444733 | L21: 0.1745958342 | M21: 0.2023221386 | N21: 0.1640251064 | O21: 0.1745958342 | Q21: 0.06156666667 | R21: 0.06088333333 | S21: 0.06685833333 | T21: 0.0699 | U21: 0.0723 | V21: 0.07419166667 | W21: 0.07670833333 | X21: 0.07749090909 | Y21: 0.05269166667 | Z21: 0.055275 | AA21: 0.05640833333 | AB21: 0.05919166667 | AC21: 0.08024166667 | AD21: 0.08969166667 | AF21: 0.056825 | AG21: 0.08848333333 | AI21: 0.055375 | AJ21: 0.06464553596 | AK21: 0.0575139062 | AL21: 0.1806650922 | AM21: 0.2441042814 | AN21: 0.2255392045 | AO21: 0.1856665658 | AP21: 0.1599319423 | AQ21: 0.2075200771 | AR21: 0.08218806101 | AS21: 0.2002203734 | AT21: 0.1521001614 | AU21: 0.148463418 | AV21: 0.2176028994 | AW21: 0.2141555168 | AX21: 0.4237530426 | AY21: 0.4056304452 | AZ21: 0.4327634859 | BA21: 0.282998972 | BB21: 0.2730543471 | BC21: 0.2196847355 | BD21: 0.07537369918 | BE21: 0.3212923273 | BF21: 0.341590296 | BG21: 0.2148374335 | BH21: 0.2795841959 | BI21: 0.1984668155 | BJ21: 0.2776023409 | BK21: 0.05416161775 | BM21: 0.1024994826 | BN21: 0.1703356161 | BO21: 0.2388999204 | BP21: 0.3475229092 | BQ21: 0.1598395128 | BR21: 0.2083124076 | BS21: 0.2297412279 | BT21: 0.2108377755 | BU21: 0.2660885372 | BV21: 0.2266914484 | BW21: 0.2044225107 | BX21: 0.207053647 | BY21: 0.1577862318 | BZ21: 0.2929263636 | CA21: 0.125233129 | CB21: 0.2791954878
A22: 1978 | B22: 0.01056439928 | C22: -0.03202816237 | E22: 0.1250111434 | F22: 0.09002615166 | G22: 0.2539749632 | H22: 0.1624740613 | I22: 0.3720107078 | J22: 0.05906774693 | K22: 0.004049219051 | L22: -0.01654129523 | M22: 0.09835575791 | N22: -0.10502056 | O22: -0.01654129523 | Q22: 0.0878 | R22: 0.0834 | S22: 0.08289166667 | T22: 0.083175 | U22: 0.08356666667 | V22: 0.0841 | W22: 0.08484166667 | X22: 0.08485 | Y22: 0.07188333333 | Z22: 0.07583333333 | AA22: 0.08221666667 | AB22: 0.08614166667 | AC22: 0.08725 | AD22: 0.09488333333 | AF22: 0.06024166667 | AG22: 0.0968 | AI22: 0.07930833333 | AJ22: 0.08607460877 | AK22: 0.0936609216 | AL22: 0.2588342981 | AM22: 0.1849922747 | AN22: 0.1749978071 | AO22: 0.1656183115 | AP22: 0.1454497572 | AQ22: 0.1876263108 | AR22: 0.2265225594 | AS22: 0.09799846859 | AT22: 0.110990699 | AU22: 0.1552625998 | AV22: 0.234938459 | AW22: 0.1729036768 | AX22: 0.1620476849 | AY22: 0.2007602758 | AZ22: 0.1192875883 | BA22: 0.1516762774 | BB22: 0.2151538691 | BC22: 0.2785267623 | BD22: 0.1829609408 | BE22: 0.1625126653 | BF22: 0.1983924692 | BG22: 0.301720906 | BH22: 0.2427157066 | BI22: 0.1481001919 | BJ22: 0.1015931166 | BK22: 0.08296181891 | BM22: 0.06070512445 | BN22: 0.1344256059 | BO22: 0.1643581593 | BP22: 0.1635183485 | BQ22: 0.1601974151 | BR22: 0.2573020873 | BS22: 0.1394731374 | BT22: 0.131855223 | BU22: 0.2355506132 | BV22: 0.2404828608 | BW22: 0.2283784106 | BX22: 0.1501439909 | BY22: 0.1481621238 | BZ22: 0.1968378391 | CA22: 0.100799258 | CB22: 0.2670031656
A23: 1979 | B23: 0.1160821484 | C23: 0.04101079657 | E23: 0.1585567842 | F23: 0.2297442353 | G23: 0.01797297956 | H23: 0.08050026888 | I23: -0.05967192106 | J23: 0.16424108 | K23: 0.0783914563 | L23: 0.2664025584 | M23: 0.3064367636 | N23: 0.1532612333 | O23: 0.2664025584 | Q23: 0.12005 | R23: 0.10665 | S23: 0.09715 | T23: 0.09518333333 | U23: 0.09478333333 | V23: 0.094425 | W23: 0.09330833333 | X23: 0.092925 | Y23: 0.1006916667 | Z23: 0.100575 | AA23: 0.11225 | AB23: 0.1143833333 | AC23: 0.09629166667 | AD23: 0.1069 | AF23: 0.06516666667 | AG23: 0.1124916667 | AI23: 0.1119416667 | AJ23: 0.1244698419 | AK23: 0.1373069248 | AL23: 0.783656562 | AM23: 0.2309261698 | AN23: 0.2307865979 | AO23: 0.2672748511 | AP23: 0.3222373106 | AQ23: 0.3288765278 | AR23: 0.3211291504 | AS23: 0.2114194237 | AT23: 0.1411768404 | AU23: 0.1879443099 | AV23: 0.1930878779 | AW23: 0.1753572024 | AX23: 0.1875607902 | AY23: 0.2236397266 | AZ23: 0.2216357239 | BA23: 0.295619962 | BB23: 0.2560436792 | BC23: 0.2702516632 | BD23: 0.1599327427 | BE23: 0.1465780521 | BF23: 0.2440718314 | BG23: 0.2669294298 | BH23: 0.2061765932 | BI23: 0.140588212 | BJ23: 0.3724309413 | BK23: 0.1364169575 | BM23: 0.156079666 | BN23: 0.3007481001 | BO23: 0.2247078348 | BP23: 0.2581831392 | BQ23: 0.1559519733 | BR23: 0.2654157244 | BS23: 0.1584606961 | BT23: 0.2272999216 | BU23: 0.1899542314 | BV23: 0.2147327864 | BW23: 0.2426063448 | BX23: 0.3129505944 | BY23: 0.2349661385 | BZ23: 0.2217736143 | CA23: 0.3110255176 | CB23: 0.2494412363
A24: 1980 | B24: 0.2293131037 | C24: 0.1392382206 | E24: 0.1239813056 | F24: 0.2903101949 | G24: 0.1740642491 | H24: 0.07266921708 | I24: 0.2874969512 | J24: 0.2009861458 | K24: 0.2076573278 | L24: 0.2470120763 | M24: 0.2180837879 | N24: 0.1552742204 | O24: 0.2470120763 | Q24: 0.1406 | R24: 0.1204833333 | S24: 0.1154833333 | T24: 0.1147833333 | U24: 0.114325 | V24: 0.1146 | W24: 0.1138583333 | X24: 0.1129833333 | Y24: 0.1143416667 | Z24: 0.1136416667 | AA24: 0.1306666667 | AB24: 0.129925 | AC24: 0.1193833333 | AD24: 0.1366833333 | AF24: 0.08594166667 | AG24: 0.1384166667 | AI24: 0.1335583333 | AJ24: 0.1164817993 | AK24: 0.1175165466 | AL24: 0.1678684871 | AM24: 0.2171326163 | AN24: 0.2204361657 | AO24: 0.2704478753 | AP24: 0.3728038105 | AQ24: 0.2470227151 | AR24: 0.2245773866 | AS24: 0.2342310892 | AT24: 0.2274152933 | AU24: 0.214680505 | AV24: 0.202089888 | AW24: 0.2328394433 | AX24: 0.1422599882 | AY24: 0.2223433706 | AZ24: 0.2393691404 | BA24: 0.2576487193 | BB24: 0.1844351896 | BC24: 0.2978830178 | BD24: 0.2602047309 | BE24: 0.1757229873 | BF24: 0.2593487719 | BG24: 0.2614874975 | BH24: 0.3111741838 | BI24: 0.2261872902 | BJ24: 0.2980432829 | BK24: 0.09512363383 | BM24: 0.113058328 | BN24: 0.190405209 | BO24: 0.2309447768 | BP24: 0.2091942963 | BQ24: 0.2177466314 | BR24: 0.2127228702 | BS24: 0.1666283286 | BT24: 0.201130373 | BU24: 0.1997796924 | BV24: 0.1789020015 | BW24: 0.2257136685 | BX24: 0.3397585699 | BY24: 0.1392049745 | BZ24: 0.1368039025 | CA24: 0.1523303297 | CB24: 0.2253466993
A25: 1981 | B25: -0.102369511 | C25: -0.09686740825 | E25: -0.06796465658 | F25: -0.04016604173 | G25: -0.04970149596 | H25: -0.1718788895 | I25: 0.05858800665 | J25: -0.1064424741 | K25: -0.09763248195 | L25: 0.08227683944 | M25: 0.05827654452 | N25: 0.06831957114 | O25: 0.08227683944 | Q25: 0.16825 | R25: 0.1477833333 | S25: 0.1443916667 | T25: 0.1423583333 | U25: 0.1406083333 | V25: 0.1391083333 | W25: 0.1371833333 | X25: 0.1344166667 | Y25: 0.14025 | Z25: 0.1379916667 | AA25: 0.1591083333 | AB25: 0.157725 | AC25: 0.1417083333 | AD25: 0.1604416667 | AF25: 0.1132666667 | AG25: 0.1671666667 | AI25: 0.1637833333 | AJ25: 0.08537037078 | AK25: 0.05193274874 | AL25: -0.271965067 | AM25: 0.1637224548 | AN25: 0.1507265529 | AO25: 0.2097126851 | AP25: 0.1062301894 | AQ25: 0.198683382 | AR25: 0.2408256254 | AS25: 0.1540083101 | AT25: 0.1031016647 | AU25: 0.1441364742 | AV25: 0.128667358 | AW25: 0.1490262331 | AX25: 0.1153357229 | AY25: 0.1388565316 | AZ25: 0.1373767851 | BA25: 0.1400473915 | BB25: 0.1106835288 | BC25: 0.1945025094 | BD25: 0.1468573488 | BE25: 0.1914828475 | BF25: 0.2295067559 | BG25: 0.3128964779 | BH25: 0.1622296605 | BI25: 0.09569946289 | BJ25: 0.2318505706 | BK25: 0.03612867846 | BM25: 0.1113651251 | BN25: 0.131599873 | BO25: 0.1382840213 | BP25: 0.1017226406 | BQ25: 0.1278346903 | BR25: 0.186125667 | BS25: 0.08647291453 | BT25: 0.1164349238 | BU25: 0.1838464347 | BV25: 0.1362336267 | BW25: 0.1665726705 | BX25: 0.0846015625 | BY25: 0.1220877624 | BZ25: 0.2653445663 | CA25: 0.04586264135 | CB25: 0.1961002481
A26: 1982 | B26: 0.137684324 | C26: 0.1789826555 | E26: 0.1880950222 | F26: 0.1727126977 | G26: -0.04738906566 | H26: 0.0002331274052 | I26: -0.0880768795 | J26: 0.1225994307 | K26: 0.1408956448 | L26: 0.2749308599 | M26: 0.1955741978 | N26: 0.3963790202 | O26: 0.2749308599 | Q26: 0.1313166667 | R26: 0.12275 | S26: 0.1292166667 | T26: 0.1300583333 | U26: 0.1305666667 | V26: 0.1300166667 | W26: 0.1291666667 | X26: 0.1276166667 | Y26: 0.1061416667 | Z26: 0.1106583333 | AA26: 0.1227083333 | AB26: 0.1257166667 | AC26: 0.137875 | AD26: 0.1611333333 | AF26: 0.1165916667 | AG26: 0.1596083333 | AI26: 0.1225833333 | AJ26: 0.03754351246 | AK26: 0.01706012275 | AL26: 0.08057340715 | AM26: 0.05371039695 | AN26: 0.05022427739 | AO26: 0.01642877803 | AP26: 0.08461305422 | AQ26: 0.08731901705 | AR26: 0.1215815073 | AS26: 0.07203646256 | AT26: -0.04077640152 | AU26: -0.01844166429 | AV26: -0.002634485142 | AW26: 0.1234888447 | AX26: -0.02486359927 | AY26: -0.05889462496 | AZ26: 0.001954482127 | BA26: 0.09764019429 | BB26: 0.07641027256 | BC26: 0.009960000691 | BD26: -0.04160994467 | BE26: 0.02707163962 | BF26: 0.04476777785 | BG26: 0.003306718068 | BH26: 0.02411366103 | BI26: 0.1077037504 | BJ26: 0.08812392499 | BK26: 0.05126282852 | BM26: 0.09912820283 | BN26: 0.003488119299 | BO26: 0.1053711949 | BP26: -0.06079411967 | BQ26: 0.1359709323 | BR26: 0.1027668417 | BS26: -0.01753097347 | BT26: 0.04191217582 | BU26: 0.1186806102 | BV26: 0.01591865943 | BW26: 0.2323750627 | BX26: 0.0536111843 | BY26: 0.0159355734 | BZ26: 0.1250182209 | CA26: 0.09100121896 | CB26: 0.04533172027
A27: 1983 | B27: 0.1593177075 | C27: 0.1845487292 | E27: 0.1188527451 | F27: 0.2106520634 | G27: 0.1899067955 | H27: 0.1597957222 | I27: 0.2151499621 | J27: 0.1616373812 | K27: 0.1536500487 | L27: 0.2268874719 | M27: 0.2672465556 | N27: 0.1561192329 | O27: 0.2268874719 | Q27: 0.09606666667 | R27: 0.095725 | S27: 0.1044666667 | T27: 0.1079583333 | U27: 0.1102 | V27: 0.11105 | W27: 0.113425 | X27: 0.1117833333 | Y27: 0.08610833333 | Z27: 0.087325 | AA27: 0.09066666667 | AB27: 0.09270833333 | AC27: 0.1204166667 | AD27: 0.1355416667 | AF27: 0.09505833333 | AG27: 0.1322333333 | AI27: 0.09086666667 | AJ27: 0.03717153211 | AK27: 0.01775194546 | AL27: -0.1350688104 | AM27: 0.01521044803 | AN27: 0.01163386195 | AO27: -0.01738491832 | AP27: -0.01101742185 | AQ27: -0.06239466584 | AR27: 0.03356750988 | AS27: 0.03875910713 | AT27: 0.05379308914 | AU27: 0.04836264169 | AV27: 0.04887781284 | AW27: 0.009020671098 | AX27: -0.03825867181 | AY27: -0.05183929459 | AZ27: -0.04590210517 | BA27: 0.04237197861 | BB27: 0.04256211916 | BC27: -0.005944887773 | BD27: -0.08665714334 | BE27: -0.005273122744 | BF27: -0.02934767056 | BG27: -0.03345140676 | BH27: -0.01882542048 | BI27: -0.01670055851 | BJ27: 0.04504431805 | BK27: -0.008314000507 | BM27: 0.02825512843 | BN27: 0.04526964327 | BO27: 0.02747860066 | BP27: -0.02292286582 | BQ27: 0.03593328105 | BR27: 0.04679826635 | BS27: 0.0204998005 | BT27: 0.0005463386677 | BU27: 0.05548663213 | BV27: 0.01362773628 | BW27: 0.08538684882 | BX27: -0.03494456044 | BY27: 0.05804234835 | BZ27: 0.08513133733 | CA27: -0.01314050991 | CB27: 0.02450414366 | CC27: 0.07835434923
A28: 1984 | B28: 0.01390876503 | C28: -0.03805819194 | E28: 0.09529105746 | F28: 0.03026365764 | G28: 0.04898313685 | H28: -0.02807249013 | I28: 0.110348996 | J28: 0.001187413557 | K28: 0.01004969659 | L28: 0.1381547347 | M28: 0.1900191517 | N28: 0.07012755509 | O28: 0.1381547347 | Q28: 0.1078416667 | R28: 0.108875 | S28: 0.118925 | T28: 0.1224083333 | U28: 0.1240333333 | V28: 0.1243833333 | W28: 0.1247666667 | X28: 0.1239166667 | Y28: 0.095225 | Z28: 0.09755833333 | AA28: 0.10365 | AB28: 0.1067583333 | AC28: 0.1270916667 | AD28: 0.1419 | AF28: 0.1010083333 | AG28: 0.1386 | AI28: 0.10225 | AJ28: 0.03963786176 | AK28: 0.01166193975 | AL28: -0.194998783 | AM28: 0.07688117641 | AN28: 0.0754750255 | AO28: 0.03700819769 | AP28: 0.1947271757 | AQ28: 0.04623411848 | AR28: 0.07574798393 | AS28: 0.1465930247 | AT28: 0.04054561199 | AU28: 0.06198913503 | AV28: 0.03448796156 | AW28: 0.08416282713 | AX28: 0.05990238688 | AY28: 0.07922251912 | AZ28: -0.02904978695 | BA28: 0.08082668757 | BB28: 0.03167432167 | BC28: 0.09702981729 | BD28: 0.07735162043 | BE28: 0.06077534637 | BF28: 0.02500137135 | BG28: 0.1155717455 | BH28: 0.09442756548 | BI28: 0.1771705362 | BJ28: 0.01991971044 | BK28: -0.05332246785 | BL28: 0.1543522685 | BM28: 0.07325067166 | BN28: 0.1159867252 | BO28: 0.07894657942 | BP28: 0.04555962013 | BQ28: 0.09867382033 | BR28: 0.1215828141 | BS28: 0.06442808523 | BT28: 0.01449110885 | BU28: 0.09736896783 | BV28: 0.0506432367 | BW28: 0.1907583537 | BX28: 0.04917701125 | BY28: 0.02974853719 | BZ28: 0.1493557668 | CA28: 0.04735102965 | CB28: 0.04519899723 | CC28: 0.109605042
A29: 1985 | B29: 0.2337543615 | C29: 0.2441818289 | D29: 0.2728054368 | E29: 0.1631062356 | F29: 0.2815658454 | G29: 0.4250651192 | H29: 0.5498970064 | I29: 0.3181310461 | J29: 0.2320549024 | K29: 0.2408953112 | L29: 0.05751321001 | M29: 0.1747626707 | N29: -0.05344782244 | O29: 0.05751321001 | Q29: 0.08328333333 | R29: 0.08425833333 | S29: 0.096425 | T29: 0.1012916667 | U29: 0.1050916667 | V29: 0.1062333333 | W29: 0.1097166667 | X29: 0.1078916667 | Y29: 0.07479166667 | Z29: 0.07651666667 | AA29: 0.080475 | AB29: 0.08245833333 | AC29: 0.1137333333 | AD29: 0.12715 | AF29: 0.09104166667 | AG29: 0.1235166667 | AH29: -0.1080130828 | AI29: 0.08100833333 | AJ29: 0.03721359634 | AK29: 0.00096571712 | AL29: 0.007358476705 | AM29: -0.04689879738 | AN29: -0.04082655284 | AO29: 0.006745504481 | AP29: 0.06781728187 | AQ29: 0.0001902985437 | AR29: -0.02704740197 | AS29: 0.07147761337 | AT29: -0.09312976756 | AU29: -0.001556595557 | AV29: 0.003045199384 | AW29: 0.01520733444 | AX29: -0.18348381 | AY29: -0.120803539 | AZ29: -0.1975046558 | BA29: -0.0799519621 | BB29: -0.03154924291 | BC29: 0.02189504238 | BD29: 0.008286692342 | BE29: -0.08095533356 | BF29: -0.1442003107 | BG29: -0.04511306331 | BH29: -0.1361667991 | BI29: 0.03746620286 | BJ29: -0.1426232099 | BK29: -0.0001305767047 | BL29: 0.02311743571 | BM29: 0.0009695045351 | BN29: -0.0399439965 | BO29: -0.09501699798 | BP29: -0.136444221 | BQ29: -0.1030712189 | BR29: -0.01818849083 | BS29: -0.08750547909 | BT29: 0.005099723107 | BU29: -0.1391617018 | BV29: -0.03881639749 | BW29: 0.183511734 | BX29: -0.06217720818 | BY29: 0.01921231875 | BZ29: 0.07758264917 | CA29: -0.1044508381 | CB29: -0.08896049062 | CC29: -0.01755989266
A30: 1986 | B30: 0.1364556909 | C30: 0.2036227748 | D30: 0.07097492299 | E30: 0.2454776263 | F30: 0.1479968143 | G30: 0.511622832 | H30: 0.3383512775 | I30: 0.6514721589 | J30: 0.1237890001 | K30: 0.1258797111 | L30: 0.1754299391 | M30: 0.175277856 | N30: 0.1757534503 | O30: 0.1754299391 | P30: 0.06770833333 | Q30: 0.06764166667 | R30: 0.064625 | S30: 0.07064166667 | T30: 0.07310833333 | U30: 0.07553333333 | V30: 0.076825 | W30: 0.0785 | X30: 0.07798333333 | Y30: 0.05978333333 | Z30: 0.0603 | AA30: 0.06518333333 | AB30: 0.065075 | AC30: 0.09020833333 | AD30: 0.1039083333 | AF30: 0.07318333333 | AG30: 0.101225 | AH30: -0.04943714817 | AI30: 0.06805 | AJ30: 0.01180222506 | AK30: -0.03837165286 | AL30: 0.1942619972 | AM30: -0.02396986012 | AN30: -0.01849305142 | AO30: 0.04714274462 | AP30: 0.04049490923 | AQ30: -0.0761412401 | AR30: -0.02127679198 | AS30: -0.04635567926 | AT30: 0.09083128285 | AU30: -0.003500044178 | AV30: 0.001364972796 | AW30: -0.05291291868 | AX30: -0.03956934453 | AY30: -0.06777715959 | AZ30: -0.1116268679 | BA30: -0.03606545146 | BB30: 0.03348901874 | BC30: -0.1137227399 | BD30: -0.05623317095 | BE30: -0.05047741482 | BF30: -0.1586078034 | BG30: -0.03896745238 | BH30: 0.01834104869 | BI30: 0.1071095363 | BJ30: -0.02806162004 | BK30: 0.01834056104 | BL30: -0.05079356841 | BM30: 0.05270468867 | BN30: -0.02915412324 | BO30: -0.03186627943 | BP30: -0.009868342021 | BQ30: -0.05636187741 | BR30: 0.03191298767 | BS30: -0.05161458934 | BT30: 0.002834368228 | BU30: -0.01433467297 | BV30: 0.03144966105 | BW30: -0.09188961643 | BX30: -0.02989256941 | BY30: 0.08913122452 | BZ30: 0.00752957778 | CA30: 0.04081675934 | CB30: -0.05705895562 | CC30: -0.04757815601
A31: 1987 | B31: 0.02007221196 | C31: 0.02232282116 | D31: -0.0540688139 | E31: -0.07984940375 | F31: 0.02266879981 | G31: 0.2085141386 | H31: 0.01416095664 | I31: 0.3282277306 | J31: 0.01305819932 | K31: 0.006077451319 | L31: -0.1128166539 | M31: -0.03707729207 | N31: -0.1703955315 | O31: -0.1128166539 | P31: 0.07223958333 | Q31: 0.07115 | R31: 0.06764166667 | S31: 0.07668333333 | T31: 0.07935 | U31: 0.082175 | V31: 0.08384166667 | W31: 0.08620290847 | X31: 0.0858 | Y31: 0.05775 | Z31: 0.0603 | AA31: 0.06860833333 | AB31: 0.069975 | AC31: 0.09375833333 | AD31: 0.1057583333 | AF31: 0.07639166667 | AG31: 0.1019583333 | AH31: 0.006502521557 | AI31: 0.066575 | AJ31: 0.04240918193 | AK31: 0.04414645235 | AL31: 0.2181993937 | AM31: 0.006739451086 | AN31: 0.01948991418 | AO31: 0.01752395115 | AP31: 0.2046062181 | AQ31: -0.006774355178 | AR31: -0.05642974665 | AS31: 0.1401192289 | AT31: 0.02956144457 | AU31: 0.07869414531 | AV31: 0.07645860904 | AW31: -0.02899626423 | AX31: -0.008629299807 | AY31: -0.02760536113 | AZ31: -0.01103950787 | BA31: 0.0287232255 | BB31: -0.01634284926 | BC31: -0.1855700392 | BD31: 0.01370242602 | BE31: -0.05898146271 | BF31: -0.08422637452 | BG31: -0.06842028097 | BH31: 0.005745800532 | BI31: -0.01400518809 | BJ31: 0.07096838323 | BK31: 0.2460891553 | BL31: 0.03976582751 | BM31: 0.163580681 | BN31: 0.02725757407 | BO31: -0.01664071718 | BP31: 0.01617743924 | BQ31: -0.01009162546 | BR31: 0.04894566779 | BS31: 0.1698308347 | BT31: -0.05720796361 | BU31: -0.04172287314 | BV31: 0.03404538393 | BW31: -0.02312108641 | BX31: -0.01472855198 | BY31: 0.00807216213 | BZ31: 0.003952305684 | CA31: 0.05931016232 | CB31: -0.01583592565 | CC31: 0.06232532858
A32: 1988 | B32: 0.1169012411 | C32: 0.1120125731 | D32: 0.1432803698 | E32: 0.1450608968 | F32: 0.1649298141 | G32: 0.2363505605 | H32: 0.1198711512 | I32: 0.2941768217 | J32: 0.1117252748 | K32: 0.1100571975 | L32: 0.1075568111 | M32: 0.1265042596 | N32: 0.07048869455 | O32: 0.1075568111 | P32: 0.08044270833 | Q32: 0.07904166667 | R32: 0.076525 | S32: 0.08256666667 | T32: 0.08471666667 | U32: 0.08708333333 | V32: 0.08845833333 | W32: 0.09021896238 | X32: 0.08959166667 | Y32: 0.066675 | Z32: 0.06913333333 | AA32: 0.077275 | AB32: 0.079025 | AC32: 0.0971 | AD32: 0.1083 | AF32: 0.0768 | AG32: 0.1035333333 | AH32: 0.08625092068 | AI32: 0.07568333333 | AJ32: 0.04317217187 | AK32: 0.04503575291 | AL32: -0.1487120846 | AM32: 0.1187284138 | AN32: 0.1124547074 | AO32: 0.05885278188 | AP32: 0.06157925569 | AQ32: 0.1203879571 | AR32: 0.06042195249 | AS32: 0.1299741981 | AT32: 0.07902570343 | AU32: 0.1488118961 | AV32: 0.07540956179 | AW32: 0.1457891599 | AX32: 0.1549830327 | AY32: 0.1490389263 | AZ32: 0.2844474202 | BA32: 0.2121934741 | BB32: 0.06962810574 | BC32: 0.07045247562 | BD32: 0.1437219288 | BE32: 0.0774056633 | BF32: 0.2583060208 | BG32: 0.07637335748 | BH32: 0.1385419686 | BI32: 0.1502149543 | BJ32: 0.2427285145 | BK32: 0.06840113564 | BL32: 0.2191992764 | BM32: 0.05733683177 | BN32: 0.0269169637 | BO32: 0.1262106773 | BP32: 0.1411981947 | BQ32: 0.07846435383 | BR32: 0.09351894829 | BS32: 0.04056210118 | BT32: 0.1303440147 | BU32: 0.1928774836 | BV32: 0.1066412411 | BW32: 0.05454725175 | BX32: -0.01766048605 | BY32: 0.06519075301 | BZ32: 0.07617272855 | CA32: 0.1049042091 | CB32: 0.1157102909 | CC32: 0.02181872374
A33: 1989 | B33: 0.240987148 | C33: 0.2386820735 | D33: 0.1761054829 | E33: 0.08547917512 | F33: 0.256499145 | G33: 0.0881971791 | H33: 0.2263484862 | I33: 0.01927991262 | J33: 0.234899728 | K33: 0.2383494926 | L33: -0.01830215168 | M33: 0.08472912909 | N33: -0.173214429 | O33: -0.01830215168 | P33: 0.0925525 | Q33: 0.09250833333 | R33: 0.08535 | S33: 0.085575 | T33: 0.08504166667 | U33: 0.08520833333 | V33: 0.08498333333 | W33: 0.08483640651 | X33: 0.08449166667 | Y33: 0.08111666667 | Z33: 0.08030833333 | AA33: 0.09085 | AB33: 0.09080833333 | AC33: 0.092575 | AD33: 0.101775 | AF33: 0.0723 | AG33: 0.103075 | AH33: 0.09042348204 | AI33: 0.09216666667 | AJ33: 0.04535190125 | AK33: 0.03603993648 | AL33: -0.02332199761 | AM33: 0.1247892124 | AN33: 0.1253670637 | AO33: 0.09640231338 | AP33: 0.1253524142 | AQ33: 0.1205071541 | AR33: 0.1529038309 | AS33: 0.1510739482 | AT33: 0.1795175588 | AU33: 0.08389689531 | AV33: 0.1578141859 | AW33: 0.1479480193 | AX33: 0.1567089448 | AY33: 0.1359531471 | AZ33: 0.2329078377 | BA33: 0.1560064578 | BB33: 0.07289724888 | BC33: 0.08102792963 | BD33: 0.1385959015 | BE33: 0.03904022529 | BF33: 0.1374047492 | BG33: 0.09288258502 | BH33: 0.1493959199 | BI33: 0.1514040724 | BJ33: 0.2242724668 | BK33: 0.2500562755 | BL33: 0.08788533151 | BM33: 0.08005768547 | BN33: 0.1050374736 | BO33: 0.06877169663 | BP33: 0.1307718347 | BQ33: 0.1468256255 | BR33: 0.08371634634 | BS33: 0.2394254372 | BT33: 0.1670621196 | BU33: 0.07596338124 | BV33: 0.07173511358 | BW33: 0.03174688612 | BX33: 0.04353719045 | BY33: 0.1898321039 | BZ33: 0.1480098858 | CA33: 0.102767522 | CB33: 0.08091339495 | CC33: 0.05202049976
A34: 1990 | B34: -0.06784146088 | C34: -0.04437416992 | D34: -0.1960738379 | E34: 0.0330061393 | F34: -0.0642369075 | G34: -0.2837642962 | H34: -0.06678301827 | I34: -0.4300922633 | J34: -0.06601134468 | K34: -0.05755845693 | L34: -0.1904956778 | M34: -0.1666655379 | N34: -0.2029481289 | O34: -0.1904956778 | P34: 0.08288 | Q34: 0.082475 | R34: 0.078825 | S34: 0.08254166667 | T34: 0.0837 | U34: 0.08516666667 | V34: 0.0855 | W34: 0.08663037273 | X34: 0.08608333333 | Y34: 0.07493333333 | Z34: 0.07453333333 | AA34: 0.081475 | AB34: 0.08170833333 | AC34: 0.09321666667 | AD34: 0.10355 | AF34: 0.07274166667 | AG34: 0.1015083333 | AH34: -0.02227512767 | AI34: 0.08099166667 | AJ34: 0.06067119518 | AK34: 0.0492114829 | AL34: -0.08255569428 | AM34: 0.09494044836 | AN34: 0.08617338419 | AO34: 0.09158775037 | AP34: 0.09479539383 | AQ34: 0.05898203441 | AR34: 0.1166257141 | AS34: 0.1368154744 | AT34: 0.1093182342 | AU34: 0.1279245061 | AV34: 0.07627417353 | AW34: 0.2083144387 | AX34: 0.06690853426 | AY34: 0.0632349564 | AZ34: 0.07524980835 | BA34: 0.1582226774 | BB34: 0.1141317201 | BC34: 0.01705464333 | BD34: 0.02644672121 | BE34: 0.04338802277 | BF34: 0.1503775963 | BG34: 0.07792112068 | BH34: 0.1061790443 | BI34: 0.2664385639 | BJ34: 0.1294669186 | BK34: 0.1129215358 | BL34: 0.05259905975 | BM34: -0.01204962224 | BN34: 0.01358877212 | BO34: 0.07409061947 | BP34: 0.02833513163 | BQ34: 0.03291383776 | BR34: 0.162784783 | BS34: 0.007513595616 | BT34: 0.04693084196 | BU34: 0.1440126484 | BV34: 0.06248878105 | BW34: 0.0387677575 | BX34: -0.01922366145 | BY34: 0.2116146963 | BZ34: 0.1823393638 | CA34: -0.06394035305 | CB34: 0.006596284969 | CC34: 0.1351666321
A35: 1991 | B35: 0.2335429268 | C35: 0.1849632657 | D35: 0.4500719277 | E35: 0.1871597705 | F35: 0.2945941961 | G35: 0.09700483399 | H35: 0.09500817374 | I35: 0.09816196661 | J35: 0.2291876438 | K35: 0.2403260269 | L35: 0.3051221699 | M35: 0.305248353 | N35: 0.2763722502 | O35: 0.3051221699 | P35: 0.05831083333 | Q35: 0.05949166667 | R35: 0.05858333333 | S35: 0.068125 | T35: 0.0737 | U35: 0.07675 | V35: 0.07858333333 | W35: 0.08106622699 | X35: 0.08135833333 | Y35: 0.05375 | Z35: 0.05440833333 | AA35: 0.05835 | AB35: 0.0591 | AC35: 0.08769166667 | AD35: 0.09801666667 | AF35: 0.0692 | AG35: 0.09216666667 | AH35: -0.06424714335 | AI35: 0.056875 | AJ35: 0.0293706868 | AK35: -0.02387155127 | AL35: -0.04121447547 | AM35: 0.08826653674 | AN35: 0.09193676154 | AO35: 0.005895710644 | AP35: 0.2111562229 | AQ35: 0.126103311 | AR35: 0.1372056349 | AS35: 0.2877691113 | AT35: 0.009719885336 | AU35: 0.05181025769 | AV35: 0.04359106571 | AW35: 0.09029742833 | AX35: 0.0947263172 | AY35: 0.08700712368 | AZ35: 0.1224922073 | BA35: 0.1057283929 | BB35: 0.02461798895 | BC35: 0.05142718682 | BD35: -0.04781453149 | BE35: 0.1044255396 | BF35: 0.1504506509 | BG35: 0.09673594059 | BH35: 0.1106821826 | BI35: 0.1083569409 | BJ35: 0.08874994201 | BK35: 0.156107656 | BL35: 0.187990019 | BM35: 0.09999016497 | BN35: 0.04109364244 | BO35: 0.1179592907 | BP35: 0.08522118829 | BQ35: 0.05871337003 | BR35: 0.1230553118 | BS35: 0.01478585847 | BT35: 0.1221566306 | BU35: 0.08707616463 | BV35: 0.06329018666 | BW35: 0.04841653183 | BX35: 0.09338651227 | BY35: -0.0852292821 | BZ35: 0.1637186572 | CA35: 0.08622240371 | CB35: 0.1183651576 | CC35: 0.1259532492 | CD35: =SUMPRODUCT($CE$2:$CQ$2,CE35:CQ35)/$CE$1 -> 0.08346270309 | CE35: 0.08878665131 | CF35: 0.1033047074 | CG35: 0.06208700881 | CH35: 0.07705377401 | CI35: 0.04744169512 | CJ35: 0.08188576574 | CL35: 0.1419747062 | CM35: 0.07098926486 | CN35: 0.06252711474 | CP35: 0.09691974022 | CQ35: 0.1264859786
A36: 1992 | B36: 0.04367485858 | C36: 0.04090277894 | D36: 0.1436975888 | E36: 0.06718783242 | F36: 0.08603755767 | G36: -0.1495142943 | H36: -0.0763404131 | I36: -0.2146822495 | J36: 0.02923427431 | K36: 0.04080046742 | L36: 0.1148936007 | M36: 0.1361870054 | N36: 0.01900201948 | O36: 0.1148936007 | P36: 0.03702 | Q36: 0.03769166667 | R36: 0.03889166667 | S36: 0.05306666667 | T36: 0.06188333333 | U36: 0.06630833333 | V36: 0.0701 | W36: 0.07491394987 | X36: 0.07666666667 | Y36: 0.03431666667 | Z36: 0.03546666667 | AA36: 0.03681666667 | AB36: 0.03764166667 | AC36: 0.0814 | AD36: 0.08976666667 | AF36: 0.06441666667 | AG36: 0.08424166667 | AH36: 0.005468977263 | AI36: 0.03521666667 | AJ36: 0.02923559376 | AK36: 0.01456128512 | AL36: -0.0773050032 | AM36: 0.07678820395 | AN36: 0.07796573634 | AO36: 0.1145467396 | AP36: 0.1689956338 | AQ36: 0.03086966922 | AR36: 0.07373294499 | AS36: 0.04914079339 | AT36: -0.036370205 | AU36: -0.01246978102 | AV36: -0.032732466 | AW36: 0.1563135414 | AX36: 0.1080211969 | AY36: 0.08111581849 | AZ36: 0.09189889335 | BA36: 0.1325535002 | BB36: 0.07448605583 | BC36: 0.0611351011 | BD36: 0.07392660572 | BE36: 0.04456340002 | BF36: 0.06472411957 | BG36: 0.04546227767 | BH36: 0.08805212704 | BI36: 0.1421469482 | BJ36: 0.1042377644 | BK36: 0.05831093296 | BL36: 0.07506320923 | BM36: 0.06174162288 | BN36: 0.07431186061 | BO36: 0.01514016333 | BP36: 0.0993300198 | BQ36: 0.09064990247 | BR36: 0.1444074612 | BS36: 0.07969882382 | BT36: 0.05553687975 | BU36: 0.03833136692 | BV36: 0.06534356247 | BW36: 0.05212200143 | BX36: 0.1081197775 | BY36: 0.1199955783 | BZ36: 0.1227989449 | CA36: 0.2195719719 | CB36: 0.07555257376 | CC36: 0.01621785762 | CD36: =SUMPRODUCT($CE$2:$CQ$2,CE36:CQ36)/$CE$1 -> 0.0625391368 | CE36: 0.06339257009 | CF36: 0.06649192653 | CG36: 0.05312074476 | CH36: 0.07701336942 | CI36: 0.04358349666 | CJ36: 0.04520809896 | CL36: 0.06644341952 | CM36: 0.07622635506 | CN36: 0.04094902638 | CP36: 0.06732114826 | CQ36: 0.06588235242
A37: 1993 | B37: 0.06817394897 | C37: 0.1285928298 | D37: 0.137585502 | E37: 0.09901359516 | F37: 0.1070079625 | G37: 0.266152781 | H37: 0.2339642123 | I37: 0.2954271677 | J37: 0.0720577057 | K37: 0.06781452986 | L37: 0.1701406604 | M37: 0.1794384859 | N37: 0.1358316096 | O37: 0.1701406604 | P37: 0.03233166667 | Q37: 0.03243333333 | R37: 0.03434166667 | S37: 0.04443333333 | T37: 0.051475 | U37: 0.05545 | V37: 0.05873333333 | W37: 0.06283333333 | X37: 0.06598333333 | Y37: 0.029975 | Z37: 0.031225 | AA37: 0.03174166667 | AB37: 0.0328 | AC37: 0.07219166667 | AD37: 0.0793 | AF37: 0.055975 | AG37: 0.073025 | AH37: -0.0332717133 | AI37: 0.030225 | AJ37: 0.02772180293 | AK37: 0.008467451099 | AL37: 0.1352248984 | AM37: 0.1028851405 | AN37: 0.099440755 | AO37: 0.1011889017 | AP37: 0.120642368 | AQ37: 0.1395727753 | AR37: 0.06288448033 | AS37: 0.1965508447 | AT37: 0.1223141431 | AU37: 0.02705905839 | AV37: 0.1342341078 | AW37: 0.1031435815 | AX37: 0.06195362673 | AY37: 0.1065330821 | AZ37: 0.1239662344 | BA37: 0.1199729908 | BB37: 0.1327170042 | BC37: 0.09968288463 | BD37: 0.1657911147 | BE37: 0.04588450913 | BF37: 0.08973081602 | BG37: 0.08771095937 | BH37: 0.1309729752 | BI37: 0.1847662128 | BJ37: 0.1004399991 | BK37: 0.03422363099 | BL37: -0.01952487165 | BM37: 0.1036303165 | BN37: 0.1041342906 | BO37: 0.1286908685 | BP37: 0.0804069865 | BQ37: 0.1063452536 | BR37: 0.21050643 | BS37: 0.001145309629 | BT37: 0.008867849238 | BU37: 0.02194264066 | BV37: 0.1338271833 | BW37: 0.09939273906 | BX37: 0.1369945863 | BY37: 0.01352718389 | BZ37: 0.1272755653 | CA37: 0.02929904754 | CB37: 0.112534685 | CC37: 0.1861385898 | CD37: 0.08485854904 | CE37: 0.08494684638 | CF37: 0.07851159135 | CG37: 0.1074497629 | CH37: 0.1152839133 | CI37: 0.06854706955 | CJ37: 0.0854846805 | CL37: 0.08306914933 | CM37: 0.07963736305 | CN37: 0.04606963459 | CP37: 0.08331098072 | CQ37: 0.07688728717
A38: 1994 | B38: -0.01551256099 | C38: 0.0211643928 | D38: -0.03249978593 | E38: -0.04271977157 | F38: -0.0007410152247 | G38: 0.06053188721 | H38: 0.001183844714 | I38: 0.1119269305 | J38: -0.01104700834 | K38: -0.008588896538 | L38: 0.008023156968 | M38: 0.0312148619 | N38: -0.2784222883 | O38: 0.008023156968 | P38: 0.04563916667 | Q38: 0.04678333333 | R38: 0.0531 | S38: 0.06264166667 | T38: 0.06683333333 | U38: 0.06901666667 | V38: 0.0708 | W38: 0.07486666667 | X38: 0.0737 | Y38: 0.04246666667 | Z38: 0.046325 | AA38: 0.04629166667 | AB38: 0.04955833333 | AC38: 0.079625 | AD38: 0.086225 | AF38: 0.0618 | AG38: 0.08400833333 | AH38: -0.007641186181 | AI38: 0.04201666667 | AJ38: 0.02564243061 | AK38: 0.02744454992 | AL38: -0.01051688839 | AM38: 0.1186602909 | AN38: 0.1547324107 | AO38: 0.1550779998 | AP38: 1.608077956 | AQ38: 0.1104035771 | AR38: 0.04246069121 | AS38: 0.2399042243 | AT38: 0.0683398995 | AU38: 0.02872860397 | AV38: 0.0486647208 | AW38: 0.2551140219 | AX38: 0.1309768689 | AY38: 0.1262350302 | AZ38: 0.1241086248 | BA38: 0.203574765 | BB38: 0.1017391339 | BC38: 0.07849805262 | BD38: 0.06389634836 | BE38: 0.09636498366 | BF38: 0.06012286026 | BG38: 0.1345450307 | BH38: 0.1383333999 | BI38: 0.238265822 | BJ38: 0.1741310938 | BK38: 0.003265488149 | BL38: 0.0914712852 | BM38: 0.03868634186 | BN38: 0.0440178813 | BO38: 0.1262562134 | BP38: 0.1071310262 | BQ38: 0.1214626812 | BR38: 0.2420767838 | BS38: 0.05331651069 | BT38: 0.07692085561 | BU38: 0.1159352371 | BV38: 0.03536078394 | BW38: 0.09901253789 | BX38: 0.4296286603 | BY38: -0.00747534184 | BZ38: 0.2503466602 | CA38: 0.05056662324 | CB38: 0.08375248971 | CD38: 0.09716122242 | CE38: 0.09348446472 | CF38: 0.1010550944 | CG38: 0.06844583872 | CH38: 0.08261531162 | CI38: 0.1251375135 | CJ38: 0.08433966385 | CK38: 0.07003229543 | CL38: 0.1340410459 | CM38: 0.08081432451 | CN38: 0.0696929859 | CP38: 0.09766119251 | CQ38: 0.1123993285 | CR38: 0.011436783
A39: 1995 | B39: 0.2934950483 | C39: 0.2885749035 | D39: 0.3358888288 | E39: 0.2841329128 | F39: 0.3104019944 | G39: 0.09002666213 | H39: 0.172890405 | I39: 0.01743520013 | J39: 0.2900595836 | K39: 0.298160075 | L39: 0.1681296247 | M39: 0.1420799787 | N39: 0.4911393894 | O39: 0.1681296247 | P39: 0.0599 | Q39: 0.05968333333 | R39: 0.05948333333 | S39: 0.06263333333 | T39: 0.06390833333 | U39: 0.06503333333 | V39: 0.0658 | W39: 0.06960833333 | X39: 0.06884166667 | Y39: 0.0549 | Z39: 0.05565833333 | AA39: 0.05916666667 | AB39: 0.05980833333 | AC39: 0.0759 | AD39: 0.08200833333 | AF39: 0.05953333333 | AG39: 0.07923333333 | AH39: 0.1117548013 | AI39: 0.05836666667 | AJ39: 0.02500130221 | AK39: 0.03069707911 | AL39: 0.0212599141 | AM39: 0.100284622 | AN39: 0.09286150638 | AO39: 0.1556837831 | AP39: 0.0614969706 | AQ39: 0.09699501833 | AR39: 0.02555807824 | AS39: 0.1161508084 | AT39: 0.05989593291 | AU39: 0.03420210227 | AV39: 0.1236650667 | AW39: 0.1127733026 | AX39: 0.1336310557 | AY39: 0.1257495522 | AZ39: 0.1143021313 | BA39: 0.08795093138 | BB39: 0.1311030566 | BC39: 0.1083768241 | BD39: 0.026817528 | BE39: 0.1231558283 | BF39: 0.1001260124 | BG39: 0.09556280136 | BH39: 0.100736298 | BI39: 0.1164812791 | BJ39: 0.08544932592 | BK39: 0.006419790823 | BM39: 0.02376922345 | BN39: 0.1023761608 | BO39: 0.1277332261 | BP39: 0.1517280189 | BQ39: 0.07457244667 | BR39: 0.1765882216 | BS39: 0.02900393273 | BT39: 0.1357082812 | BU39: 0.08239521103 | BV39: 0.09627455856 | BW39: 0.03680100146 | BX39: 0.04338904312 | BY39: 0.09935501548 | BZ39: 0.1191254157 | CA39: 0.07876329952 | CB39: 0.1017322143 | CD39: 0.08484726043 | CE39: 0.09657465022 | CF39: 0.1022683072 | CG39: 0.07807334064 | CH39: 0.1022487604 | CI39: 0.04685149661 | CJ39: 0.07884749764 | CK39: 0.1273445696 | CL39: 0.1402882076 | CM39: 0.07461694722 | CN39: 0.052887785 | CO39: 0.1369335753 | CP39: 0.09967255226 | CQ39: 0.1068463084 | CR39: 0.01008840654
A40: 1996 | B40: 0.1845163658 | C40: 0.2312286578 | D40: 0.2046236686 | E40: 0.1919407735 | F40: 0.1926843438 | G40: 0.04303610858 | H40: 0.1697332824 | I40: -0.09910360539 | J40: 0.195606579 | K40: 0.1935534959 | L40: 0.3056709338 | M40: 0.3020779551 | N40: 0.4112071345 | O40: 0.3056709338 | P40: 0.05447083333 | Q40: 0.0544 | R40: 0.055125 | S40: 0.0599 | T40: 0.06176666667 | U40: 0.06339166667 | V40: 0.06438333333 | W40: 0.068225 | X40: 0.06700833333 | Y40: 0.05005833333 | Z40: 0.05080833333 | AA40: 0.0539 | AB40: 0.05465 | AC40: 0.0737 | AD40: 0.08055833333 | AF40: 0.057575 | AG40: 0.07809166667 | AH40: 0.04033206201 | AI40: 0.05298333333 | AJ40: 0.0332298945 | AK40: 0.02668918226 | AL40: -0.04876435405 | AM40: 0.08798704573 | AN40: 0.0809812306 | AO40: 0.07904578926 | AP40: 0.07292703787 | AQ40: 0.0646007899 | AR40: 0.1018311037 | AS40: 0.1037949663 | AT40: 0.06665257805 | AU40: 0.02881272104 | AV40: 0.1072370174 | AW40: 0.1074159317 | AX40: 0.08885348578 | AY40: 0.1203700608 | AZ40: 0.1332596429 | BA40: 0.05838051048 | BB40: 0.08089692308 | BC40: 0.121265769 | BD40: 0.0143053585 | BE40: 0.09233652611 | BF40: 0.1429844657 | BG40: 0.07104399039 | BH40: 0.1139707067 | BI40: 0.06917537943 | BJ40: 0.08334940606 | BK40: 0.01327444471 | BM40: -0.00421465381 | BN40: 0.1024276894 | BO40: 0.09800802471 | BP40: 0.07052241849 | BQ40: 0.01619307142 | BR40: 0.1469538989 | BS40: 0.03626298341 | BT40: 0.03363170206 | BU40: 0.05326613585 | BV40: 0.1659216637 | BW40: 0.04585792047 | BX40: 0.05671062186 | BY40: 0.08610075189 | BZ40: 0.1160442646 | CA40: 0.08518078698 | CB40: 0.1136161084 | CD40: 0.09334833261 | CE40: 0.09802888754 | CF40: 0.1041539428 | CG40: 0.07906426788 | CH40: 0.09324856968 | CI40: 0.0872878204 | CJ40: 0.08748216225 | CK40: 0.1066856798 | CL40: 0.1384175729 | CM40: 0.08420698001 | CN40: 0.05561080739 | CO40: 0.1336336083 | CP40: 0.0996796769 | CQ40: 0.1081847864 | CR40: 0.01010954321
A41: 1997 | B41: 0.2700895857 | C41: 0.2040963107 | D41: 0.1958581751 | E41: 0.2146686508 | F41: 0.2722111524 | G41: 0.0023757783 | H41: 0.1953755577 | I41: -0.3052019989 | J41: 0.2668838185 | K41: 0.2755871283 | L41: 0.1727837401 | M41: 0.1844874706 | N41: 0.0375194603 | O41: 0.1727837401 | P41: 0.05668916667 | Q41: 0.05660833333 | R41: 0.0563 | S41: 0.06101666667 | T41: 0.062225 | U41: 0.06324166667 | V41: 0.063525 | W41: 0.06684166667 | X41: 0.06605833333 | Y41: 0.05060833333 | Z41: 0.05176666667 | AA41: 0.05615833333 | AB41: 0.05724166667 | AC41: 0.07261666667 | AD41: 0.07865 | AE41: 0.05515833333 | AF41: 0.055225 | AG41: 0.07563333333 | AH41: -0.1620224215 | AI41: 0.0546 | AJ41: 0.01682806928 | AK41: -0.01797625585 | AL41: -0.2452700148 | AM41: 0.07442255664 | AN41: 0.06968827231 | AO41: 0.05742841327 | AP41: 0.07431665011 | AQ41: 0.09632225276 | AR41: 0.0625626013 | AS41: 0.08830156607 | AT41: 0.03123214112 | AU41: 0.03344031224 | AV41: 0.07967784928 | AW41: 0.1028700716 | AX41: 0.08631994912 | AY41: 0.1190852432 | AZ41: 0.1601007302 | BA41: 0.04638517322 | BB41: 0.08178027014 | BC41: 0.03689235681 | BD41: 0.02517073025 | BE41: 0.1051993915 | BF41: 0.1154288199 | BG41: 0.1043985224 | BH41: 0.09781113803 | BI41: 0.03254931688 | BJ41: 0.04768286571 | BK41: -0.0006953753706 | BM41: 0.003793404582 | BN41: 0.06979474132 | BO41: 0.08995346334 | BP41: 0.06850230691 | BQ41: 0.05829296021 | BR41: 0.08252656814 | BS41: 0.01869275195 | BT41: 0.04775139904 | BU41: 0.07526805249 | BV41: 0.1051389723 | BW41: 0.04318946194 | BX41: 0.06866797245 | BY41: 0.03782629261 | BZ41: 0.1052801275 | CA41: 0.08987729028 | CB41: 0.06902586542 | CD41: 0.09117113217 | CE41: 0.08797283927 | CF41: 0.1027679253 | CG41: 0.05288839329 | CH41: 0.07894614114 | CI41: 0.08843240255 | CJ41: 0.08344775794 | CK41: 0.1367829471 | CL41: 0.1392574843 | CM41: 0.08803908387 | CN41: -0.01020230455 | CO41: 0.1345374246 | CP41: 0.09390970027 | CQ41: 0.1142517072 | CR41: 0.01016406912
A42: 1998 | B42: 0.2364039638 | C42: 0.1492701251 | D42: 0.3338305761 | E42: 0.1620181523 | F42: 0.2104307878 | G42: 0.1674663222 | H42: 0.2352928695 | I42: 0.01149869332 | J42: 0.2398881584 | K42: 0.2530103193 | L42: -0.2085343985 | M42: -0.192398505 | N42: -0.3455720702 | O42: -0.2085343985 | P42: 0.05550833333 | Q42: 0.055 | R42: 0.05051666667 | S42: 0.051375 | T42: 0.0515 | U42: 0.05279166667 | V42: 0.05264166667 | W42: 0.05718333333 | X42: 0.05578333333 | Y42: 0.04776666667 | Z42: 0.04828333333 | AA42: 0.05466666667 | AB42: 0.05444166667 | AC42: 0.06531666667 | AD42: 0.072225 | AE42: 0.05371666667 | AF42: 0.05090833333 | AG42: 0.06953333333 | AH42: -0.2532756557 | AI42: 0.05353333333 | AJ42: 0.015941478 | AK42: -0.03205402629 | AL42: 0.01013068173 | AM42: 0.09134845101 | AN42: 0.08362248839 | AO42: 0.08456695435 | AP42: 0.1047032901 | AQ42: 0.1398653492 | AR42: 0.06537411787 | AS42: 0.112595104 | AT42: 0.0489417601 | AU42: 0.02879374613 | AV42: 0.09166920442 | AW42: 0.1220373849 | AX42: 0.1171852341 | AY42: 0.1417900199 | AZ42: 0.1152479322 | BA42: 0.06975924167 | BB42: 0.1111249172 | BC42: 0.06514755667 | BD42: 0.02225258101 | BE42: 0.1192424395 | BF42: 0.1201121536 | BG42: 0.1302753498 | BH42: 0.09401944343 | BI42: 0.05140527959 | BJ42: 0.1130183839 | BK42: -0.01393816453 | BM42: 0.03899050093 | BN42: 0.05720867125 | BO42: 0.09788328896 | BP42: 0.1071012389 | BQ42: 0.08570719082 | BR42: 0.0484334018 | BS42: 0.044132056 | BT42: 0.07271144106 | BU42: 0.09840078671 | BV42: 0.1221802752 | BW42: 0.1017458535 | BX42: 0.04929324247 | BY42: 0.03625820035 | BZ42: 0.09601706886 | CA42: 0.05416246473 | CB42: 0.09586208674 | CD42: 0.07914304842 | CE42: 0.07238492756 | CF42: 0.07729790439 | CG42: 0.06217969528 | CH42: 0.1037120971 | CI42: 0.04663261447 | CJ42: 0.08087509382 | CK42: 0.07277482046 | CL42: 0.04083780486 | CM42: 0.0984601964 | CN42: 0.03171018479 | CO42: 0.06939864895 | CP42: 0.07728002674 | CQ42: 0.06789826201 | CR42: 0.01000801569
A43: 1999 | B43: 0.1783641094 | C43: 0.2249118637 | D43: 0.6183443513 | E43: 0.03484394474 | F43: 0.2116251868 | G43: 0.2252707639 | H43: 0.1320933411 | I43: 0.4457478642 | J43: 0.1980890406 | K43: 0.1894374042 | L43: -0.06695151034 | M43: -0.04730109056 | N43: -0.4037286313 | O43: -0.06695151034 | P43: 0.0530275 | Q43: 0.053575 | R43: 0.050775 | S43: 0.05485 | T43: 0.05540833333 | U43: 0.05776666667 | V43: 0.05636666667 | W43: 0.0619 | X43: 0.05865833333 | Y43: 0.04638333333 | Z43: 0.04745 | AA43: 0.0533 | AB43: 0.054575 | AC43: 0.07041666667 | AD43: 0.07870833333 | AE43: 0.05215833333 | AF43: 0.054275 | AG43: 0.074525 | AH43: 0.4223978931 | AI43: 0.0497 | AJ43: 0.02641209954 | AK43: 0.03990952623 | AL43: -0.02996309405 | AM43: 0.09771532174 | AN43: 0.09430210477 | AO43: 0.06241962963 | AP43: 0.1160474561 | AQ43: 0.1207002298 | AR43: 0.09333294835 | AS43: 0.08180385112 | AT43: 0.1055716014 | AU43: 0.05997221815 | AV43: 0.1081512498 | AW43: 0.1293897926 | AX43: 0.08208764235 | AY43: 0.09244448299 | AZ43: 0.08615443992 | BA43: 0.08648971865 | BB43: 0.1070162288 | BC43: 0.09841072676 | BD43: 0.04854975197 | BE43: 0.1565255311 | BF43: 0.1202449923 | BG43: 0.1245509428 | BH43: 0.109481967 | BI43: 0.1020234287 | BJ43: 0.1150270987 | BK43: 0.04205712957 | BM43: 0.05693913406 | BN43: 0.09282292354 | BO43: 0.06820854752 | BP43: 0.09978103765 | BQ43: 0.04005252867 | BR43: 0.09317807322 | BS43: 0.09117478968 | BT43: 0.09455532197 | BU43: 0.06213906204 | BV43: 0.1039795145 | BW43: 0.1066474397 | BX43: 0.07424882116 | BY43: 0.09773853724 | BZ43: 0.0770547956 | CA43: 0.06986170838 | CB43: 0.2009467927 | CD43: 0.06209612583 | CE43: 0.06950553136 | CF43: 0.06404435945 | CG43: 0.07724241996 | CH43: 0.1120291771 | CI43: -0.03958434052 | CJ43: 0.1007918756 | CK43: 0.02715317231 | CL43: 0.01402520681 | CM43: 0.08080824594 | CN43: 0.08978376397 | CO43: 0.06798647885 | CP43: 0.07099168232 | CQ43: 0.04754011455 | CR43: 0.010101645
A44: 2000 | B44: -0.1069082312 | C44: -0.06366042438 | D44: -0.4990447971 | E44: 0.06523317794 | F44: -0.1154352231 | G44: -0.1649442731 | H44: -0.1015757944 | I44: -0.3066839313 | J44: -0.1367969362 | K44: -0.1456727552 | L44: 0.2302400099 | M44: 0.2340073134 | N44: 0.1480799163 | O44: 0.2302400099 | P44: 0.06439083333 | Q44: 0.064825 | R44: 0.06108333333 | S44: 0.06216666667 | T44: 0.061525 | U44: 0.061975 | V44: 0.06029166667 | W44: 0.0623 | X44: 0.059425 | Y44: 0.05816666667 | Z44: 0.05898333333 | AA44: 0.06455833333 | AB44: 0.06583333333 | AC44: 0.076225 | AD44: 0.08364166667 | AE44: 0.06326666667 | AF44: 0.05709166667 | AG44: 0.08025 | AH44: 0.09514717595 | AI44: 0.06235833333 | AJ44: 0.03378306124 | AK44: 0.06365785177 | AL44: -0.04191625653 | AM44: 0.09674490066 | AN44: 0.09368689558 | AO44: 0.0672056129 | AP44: 0.1067589408 | AQ44: 0.117364649 | AR44: 0.09261289659 | AS44: 0.08675304974 | AT44: 0.1009646063 | AU44: 0.07528612989 | AV44: 0.09955765287 | AW44: 0.1159080808 | AX44: 0.06055773182 | AY44: 0.07976204829 | AZ44: 0.07369071726 | BA44: 0.08831834305 | BB44: 0.1025523894 | BC44: 0.07688740561 | BD44: 0.1009461876 | BE44: 0.1276036 | BF44: 0.1152922793 | BG44: 0.1288059821 | BH44: 0.1045057762 | BI44: 0.1085896127 | BJ44: 0.1181708715 | BK44: 0.04049055931 | BM44: 0.07841772347 | BN44: 0.1080047883 | BO44: 0.08317949945 | BP44: 0.08856016995 | BQ44: 0.03970010318 | BR44: 0.1033704341 | BS44: 0.08065219328 | BT44: 0.07622489562 | BU44: 0.08337774148 | BV44: 0.1016909443 | BW44: 0.09237291351 | BX44: 0.06743084217 | BY44: 0.08563128538 | BZ44: 0.111114226 | CA44: 0.06513607477 | CB44: 0.2003399696 | CD44: 0.06320321699 | CE44: 0.0697951975 | CF44: 0.0855132467 | CG44: 0.046693533 | CH44: 0.1088823683 | CI44: -0.05640210387 | CJ44: 0.0639217824 | CK44: -0.02556925396 | CL44: 0.0566058521 | CM44: 0.09972951664 | CN44: 0.03365823804 | CO44: 0.001249037193 | CP44: 0.08488751272 | CQ44: 0.0782002257 | CR44: 0.009242969164
A45: 2001 | B45: -0.1397528534 | C45: -0.07369563312 | D45: -0.2363941751 | E45: -0.1373017225 | F45: -0.1163079934 | G45: -0.2563265516 | H45: -0.2386432036 | I45: -0.3039470367 | J45: -0.1461321849 | K45: -0.1418756111 | L45: 0.1441178489 | M45: 0.1304395681 | N45: 0.5729152724 | O45: 0.1441178489 | P45: 0.03719166667 | Q45: 0.03726666667 | R45: 0.03480833333 | S45: 0.04080833333 | T45: 0.04550833333 | U45: 0.04876666667 | V45: 0.050175 | W45: 0.05630833333 | X45: 0.05493333333 | Y45: 0.03388333333 | Z45: 0.03334166667 | AA45: 0.03686666667 | AB45: 0.03640833333 | AC45: 0.070825 | AD45: 0.079475 | AE45: 0.03635833333 | AF45: 0.051525 | AG45: 0.07008333333 | AH45: -0.3126493552 | AI45: 0.038875 | AJ45: 0.01590942647 | AK45: -0.06131318481 | AL45: 0.01607927937 | AM45: 0.09186935403 | AN45: 0.09015035484 | AO45: 0.06582251056 | AP45: 0.1190592698 | AQ45: 0.1029730554 | AR45: 0.08800186865 | AS45: 0.1012427414 | AT45: 0.0933884031 | AU45: 0.05169900621 | AV45: 0.1114757379 | AW45: 0.1000713884 | AX45: 0.05562741076 | AY45: 0.07690530766 | AZ45: 0.07864584903 | BA45: 0.08152625363 | BB45: 0.09565628399 | BC45: 0.1034836395 | BD45: 0.06515367586 | BE45: 0.1108617208 | BF45: 0.1108046779 | BG45: 0.1136001813 | BH45: 0.09200454374 | BI45: 0.1052929323 | BJ45: 0.0998431384 | BK45: 0.06477484557 | BM45: 0.07425169122 | BN45: 0.1083469465 | BO45: 0.08330187868 | BP45: 0.08448552298 | BQ45: 0.03933524118 | BR45: 0.09933204973 | BS45: 0.07555241778 | BT45: 0.0733430084 | BU45: 0.09393269286 | BV45: 0.07135036503 | BW45: 0.1022954083 | BX45: 0.09831027118 | BY45: 0.07977195649 | BZ45: 0.1095047434 | CA45: 0.06201503583 | CB45: 0.1728201672 | CD45: 0.02132080799 | CE45: 0.02013451435 | CF45: 0.06081626446 | CG45: -0.03504572517 | CH45: -0.01970064216 | CI45: -0.06114451327 | CJ45: 0.05428608522 | CK45: 0.0195192743 | CL45: 0.03576113766 | CM45: 0.07084984115 | CN45: 0.06684354905 | CO45: 0.03575606353 | CP45: 0.03038804873 | CQ45: 0.05324602825 | CR45: 0.009551133666
A46: 2002 | B46: -0.2661289198 | C46: -0.1834801312 | D46: -0.3787212384 | E46: -0.2282325269 | F46: -0.2339268567 | G46: -0.1925734154 | H46: -0.2244776083 | I46: -0.1101586237 | J46: -0.2694394462 | K46: -0.2740370471 | L46: 0.0508411128 | M46: 0.03749604559 | N46: 0.2706031581 | O46: 0.0508411128 | P46: 0.01756166667 | Q46: 0.017575 | R46: 0.02001666667 | S46: 0.031 | T46: 0.03815 | U46: 0.04304166667 | V46: 0.04610833333 | W46: 0.0543 | X46: 0.05438333333 | Y46: 0.016025 | Z46: 0.01673333333 | AA46: 0.01725833333 | AB46: 0.01805833333 | AC46: 0.06491666667 | AD46: 0.07801666667 | AE46: 0.01700833333 | AF46: 0.050375 | AG46: 0.06505 | AH46: 0.42299807 | AI46: 0.01666666667 | AJ46: 0.02450011187 | AK46: 0.03678575682 | AL46: 0.1850367363 | AM46: 0.08894929652 | AN46: 0.0880308912 | AO46: 0.05705998581 | AP46: 0.1521411375 | AQ46: 0.09986727212 | AR46: 0.08494902834 | AS46: 0.09732286462 | AT46: 0.1008600474 | AU46: 0.05877755144 | AV46: 0.1025608204 | AW46: 0.08758182978 | AX46: 0.0684436018 | AY46: 0.08226984752 | AZ46: 0.08821083004 | BA46: 0.07965013851 | BB46: 0.07666352148 | BC46: 0.09153435789 | BD46: 0.06225309337 | BE46: 0.1021169146 | BF46: 0.1199599137 | BG46: 0.0980960669 | BH46: 0.09649748449 | BI46: 0.09965192872 | BJ46: 0.09789979969 | BK46: 0.06158802511 | BM46: 0.07345843491 | BN46: 0.09544491412 | BO46: 0.08332733269 | BP46: 0.0758155847 | BQ46: 0.05413989974 | BR46: 0.09932398352 | BS46: 0.08796290257 | BT46: 0.06934363884 | BU46: 0.0900204773 | BV46: 0.0685665427 | BW46: 0.08797257998 | BX46: 0.0816338123 | BY46: 0.07395144247 | BZ46: 0.1402215475 | CA46: 0.05900751345 | CB46: 0.1270580886 | CD46: 0.07717923826 | CE46: 0.06863155298 | CF46: 0.07250701424 | CG46: 0.0626510237 | CH46: 0.08309818152 | CI46: 0.07166905822 | CJ46: 0.1054231957 | CK46: 0.04347539375 | CL46: 0.0878706202 | CM46: 0.06531469975 | CN46: 0.01249956121 | CO46: 0.06513383302 | CP46: 0.06499328002 | CQ46: 0.07257701441 | CR46: 0.009360656688
A47: 2003 | B47: 0.2341261887 | C47: 0.2257183868 | D47: 0.4055175212 | E47: 0.2968909665 | F47: 0.2751213475 | G47: 0.3021959792 | H47: 0.2985513708 | I47: 0.3100316178 | J47: 0.2450820691 | K47: 0.2372902662 | L47: 0.3254571111 | M47: 0.3157862295 | N47: 0.4535549991 | O47: 0.3254571111 | P47: 0.01203033333 | Q47: 0.01170833333 | R47: 0.01244166667 | S47: 0.02106666667 | T47: 0.02968333333 | U47: 0.035225 | V47: 0.04015 | W47: 0.049575 | X47: 0.05427409055 | Y47: 0.01010833333 | Z47: 0.01054166667 | AA47: 0.01150833333 | AB47: 0.011675 | AC47: 0.05666666667 | AD47: 0.06765833333 | AE47: 0.01128333333 | AF47: 0.04748333333 | AG47: 0.05821666667 | AH47: 0.02586116005 | AI47: 0.011275 | AJ47: 0.0201477003 | AK47: 0.04846763554 | AL47: 0.2038037236 | AM47: 0.0862164135 | AN47: 0.0843227437 | AO47: 0.05420066102 | AP47: 0.1036998915 | AQ47: 0.1050667854 | AR47: 0.08130941823 | AS47: 0.09571955248 | AT47: 0.09311504947 | AU47: 0.07821972781 | AV47: 0.09464253795 | AW47: 0.08500986473 | AX47: 0.07532811686 | AY47: 0.07977834332 | AZ47: 0.09737347342 | BA47: 0.08084390437 | BB47: 0.06834645636 | BC47: 0.08847890295 | BD47: 0.04657420459 | BE47: 0.1020475029 | BF47: 0.1147424545 | BG47: 0.1026068331 | BH47: 0.09910612997 | BI47: 0.09568032441 | BJ47: 0.08679743527 | BK47: 0.05765470112 | BM47: 0.07034533561 | BN47: 0.08328530828 | BO47: 0.09169127045 | BP47: 0.07501655953 | BQ47: 0.0525528882 | BR47: 0.0973774648 | BS47: 0.06586385209 | BT47: 0.09212428014 | BU47: 0.09714888839 | BV47: 0.06612819611 | BW47: 0.06943669967 | BX47: 0.07283626789 | BY47: 0.07668224421 | BZ47: 0.1354371188 | CA47: 0.06365737744 | CB47: 0.09266098093 | CD47: 0.1149846608 | CE47: 0.09682254546 | CF47: 0.08707364569 | CG47: 0.106047386 | CH47: 0.09711394813 | CI47: 0.2554341389 | CJ47: 0.07315824252 | CK47: 0.0269461635 | CL47: 0.107057179 | CM47: 0.08314830439 | CN47: 0.01233215507 | CO47: 0.0337702158 | CP47: 0.08778411902 | CQ47: 0.09326921184 | CR47: 0.009238367094
A48: 2004 | B48: 0.08611762807 | C48: 0.0309947196 | D48: 0.08240018039 | E48: 0.07894751803 | F48: 0.1174218292 | G48: 0.1620439453 | H48: 0.1642429224 | I48: 0.1586004278 | J48: 0.08946573175 | K48: 0.08436217852 | L48: 0.265509358 | M48: 0.274425818 | N48: 0.169177508 | O48: 0.265509358 | P48: 0.01543608333 | Q48: 0.0158 | R48: 0.01886666667 | S48: 0.0278 | T48: 0.03429166667 | U48: 0.03868333333 | V48: 0.04274166667 | W48: 0.05046666667 | X48: 0.04998156405 | Y48: 0.01371666667 | Z48: 0.01575 | AA48: 0.01563333333 | AB48: 0.01735833333 | AC48: 0.05628333333 | AD48: 0.06393333333 | AE48: 0.01519166667 | AF48: 0.046775 | AG48: 0.05835833333 | AH48: 0.242539751 | AI48: 0.01349166667 | AJ48: 0.032876768 | AK48: 0.07390313807 | AL48: 0.08279089948 | AM48: 0.09161352447 | AN48: 0.1087789148 | AO48: 0.06812675885 | AP48: 0.09896045468 | AQ48: 0.1638895513 | AR48: 0.07793791353 | AS48: 0.1018959343 | AT48: 0.5337015903 | AU48: 0.01851474002 | AV48: 0.08065905633 | AW48: 0.09251541052 | AX48: 0.09433756394 | AY48: 0.1034856183 | AZ48: 0.1415757853 | BA48: 0.07375115094 | BB48: 0.07148646161 | BC48: 0.08144115591 | BD48: 0.3565475399 | BE48: 0.09975793681 | BF48: 0.1627772392 | BG48: 0.09298259999 | BH48: 0.09527855826 | BI48: 0.07004103905 | BJ48: 0.1116374192 | BK48: 0.1859802756 | BM48: 0.05638919857 | BN48: 0.06204927268 | BO48: 0.1477576982 | BP48: 0.08364055821 | BQ48: 0.07994209402 | BR48: 0.1081650706 | BS48: 0.03050109794 | BT48: 0.05612725811 | BU48: 0.09331410607 | BV48: 0.05355373919 | BW48: 0.06343498575 | BX48: -0.003167529134 | BY48: 0.1571199415 | BZ48: 0.09734757548 | CA48: 0.08259530544 | CB48: 0.0963255513 | CD48: 0.1534635763 | CE48: 0.2049517255 | CF48: 0.1736447662 | CG48: 0.2351059567 | CH48: 0.2608012016 | CI48: 0.07677269809 | CJ48: 0.1036630973 | CK48: 0.003449261784 | CL48: 0.2156615169 | CM48: 0.1248726815 | CN48: 0.2931658645 | CO48: -0.002479871949 | CP48: 0.1866556263 | CQ48: 0.168016153 | CR48: 0.009730905854
A49: 2005 | B49: 0.02956873588 | C49: -0.006093827795 | D49: 0.01364168015 | E49: 0.134010979 | F49: 0.06187058675 | G49: 0.1031389509 | H49: 0.06336534875 | I49: 0.1871956609 | J49: 0.04875696239 | K49: 0.03728533284 | L49: 0.07962564873 | M49: 0.1147815133 | N49: -0.2638043792 | O49: 0.07962564873 | P49: 0.03458733333 | Q49: 0.0353 | R49: 0.03618333333 | S49: 0.03925 | T49: 0.04045833333 | U49: 0.04151666667 | V49: 0.0429 | W49: 0.04645833333 | X49: 0.04220031533 | Y49: 0.03146666667 | Z49: 0.033925 | AA49: 0.03511666667 | AB49: 0.03723333333 | AC49: 0.05235 | AD49: 0.06064166667 | AE49: 0.03439166667 | AF49: 0.043975 | AG49: 0.05870833333 | AH49: 0.3143534951 | AI49: 0.03213333333 | AJ49: 0.03284030365 | AK49: 0.08178246148 | AL49: 0.1431123046 | AM49: 0.207390527 | AN49: 0.2202144443 | AO49: 0.1254995161 | AP49: 0.4886588767 | AQ49: 0.1774471521 | AR49: 0.351871456 | AS49: 0.2406579004 | AT49: 0.3997897851 | AU49: 0.653433686 | AV49: 0.3658849405 | AW49: 0.3028686645 | AX49: 0.2879718933 | AY49: 0.1219796502 | AZ49: 0.2405817387 | BA49: 0.2010608007 | BB49: 0.2640607636 | BC49: 0.1382905526 | BD49: 0.3445374726 | BE49: 0.07461862946 | BF49: 0.1902199372 | BG49: 0.1681044061 | BH49: 0.1555963981 | BI49: 0.2379832816 | BJ49: 0.1811659568 | BK49: 0.1554638851 | BM49: 0.08679043796 | BN49: 0.1870211047 | BO49: 0.1688175927 | BP49: 0.09898252161 | BQ49: 0.2168680744 | BR49: 0.1466075658 | BS49: 0.1273229427 | BT49: 0.1183287088 | BU49: 0.2335689718 | BV49: 0.1515165717 | BW49: 0.2148736458 | BX49: 0.1722270639 | BY49: 0.2328313188 | BZ49: 0.1423122789 | CA49: 0.2728606725 | CB49: 0.1496865127 | CD49: =SUMPRODUCT($CE$2:$CQ$2,CE49:CQ49)/$CE$1 -> 0.1819585154 | CE49: 0.3389902735 | CF49: 0.2360006856 | CG49: 0.4314822004 | CH49: 0.5569666026 | CI49: -0.08585081591 | CJ49: 0.1112500429 | CK49: 0.09586718068 | CL49: 0.2026256 | CM49: 0.1240408711 | CN49: 0.4934562812 | CO49: 0.09014084035 | CP49: 0.2219312416 | CQ49: 0.1634131502 | CR49: 0.0100444723
A50: 2006 | B50: 0.1276843566 | C50: 0.1508983709 | D50: 0.09094673963 | E50: 0.13246247 | F50: 0.1465211443 | G50: 0.2108393485 | H50: 0.2640777397 | I50: 0.09924928917 | J50: 0.125266242 | K50: 0.1238479365 | L50: 0.2952882036 | M50: 0.3005539143 | N50: 0.1766725596 | O50: 0.2928138216 | P50: 0.05130008333 | Q50: 0.05165 | R50: 0.049325 | S50: 0.04769166667 | T50: 0.04745 | U50: 0.04755 | V50: 0.04791666667 | W50: 0.049925 | X50: 0.04873333333 | Y50: 0.04726666667 | Z50: 0.048025 | AA50: 0.05153333333 | AB50: 0.05233333333 | AC50: 0.055875 | AD50: 0.06479166667 | AE50: 0.05064166667 | AF50: 0.04400833333 | AG50: 0.06408333333 | AH50: -0.06062186803 | AI50: 0.04964166667 | AJ50: 0.02492651488 | AK50: 0.01582504114 | AL50: 0.2107871146 | AM50: 0.1484152591 | AN50: 0.1528603929 | AO50: 0.03932878811 | AP50: 0.3414614313 | AQ50: 0.126497982 | AR50: 0.08401194132 | AS50: 0.1805463243 | AT50: 0.2286425339 | AU50: 0.1051008035 | AV50: 0.2239466493 | AW50: 0.3733537199 | AX50: 0.1490618847 | AY50: 0.1117663948 | AZ50: 0.1384557382 | BA50: 0.117532468 | BB50: 0.1143939736 | BC50: 0.09027509088 | BD50: 0.1242425521 | BE50: 0.1126833 | BF50: 0.1714547695 | BG50: 0.1184861835 | BH50: 0.1249348729 | BI50: 0.533403859 | BJ50: 0.1849191933 | BK50: 0.1495402093 | BM50: 0.07062351819 | BN50: 0.07325184967 | BO50: 0.1908003907 | BP50: 0.1080700164 | BQ50: 0.09466212081 | BR50: 0.1102270059 | BS50: 0.1021188631 | BT50: 0.08664801207 | BU50: 0.1826833985 | BV50: 0.08427978695 | BW50: 0.2090901499 | BX50: 0.2227355007 | BY50: 0.1708356848 | BZ50: 0.1238397179 | CA50: 0.05899679359 | CB50: 0.1286518499 | CD50: 0.1641087427 | CE50: 0.2114882169 | CF50: 0.1416046713 | CG50: 0.2736747373 | CH50: 0.2461501939 | CI50: 0.1130488268 | CJ50: 0.08738196662 | CK50: 0.2168443753 | CL50: 0.1020205281 | CM50: 0.2293604016 | CN50: 0.3307298781 | CO50: 0.2537425399 | CP50: 0.1603921868 | CQ50: 0.1483188808 | CR50: 0.01025160937
A51: 2007 | B51: 0.03468716042 | C51: 0.06233912756 | D51: 0.09360028473 | E51: -0.01398979109 | F51: 0.05460224474 | G51: 0.08271191577 | H51: 0.1039702758 | I51: 0.03458739349 | J51: 0.05522751749 | K51: 0.04005360839 | L51: -0.1963955745 | M51: -0.1706903814 | N51: -0.550762668 | O51: -0.1964016502 | P51: 0.052498 | Q51: 0.05280833333 | R51: 0.04521666667 | S51: 0.043375 | T51: 0.04425 | U51: 0.04504166667 | V51: 0.04629166667 | W51: 0.04908333333 | X51: 0.04834166667 | Y51: 0.04353333333 | Z51: 0.0443 | AA51: 0.05268333333 | AB51: 0.05226666667 | AC51: 0.05555833333 | AD51: 0.064825 | AE51: 0.0513 | AF51: 0.04395833333 | AG51: 0.06336666667 | AH51: 0.3535005837 | AI51: 0.05019166667 | AJ51: 0.0402664488 | AK51: 0.07557342649 | AL51: 0.2432194657 | AM51: 0.1397347913 | AN51: 0.1313051112 | AO51: 0.06265956298 | AP51: 0.08144400497 | AQ51: 0.1602730173 | AR51: 0.1343642355 | AS51: 0.1316196676 | AT51: 0.03440122073 | AU51: 0.06378335973 | AV51: 0.1551797247 | AW51: 0.1564565872 | AX51: 0.1490045104 | AY51: 0.1468112563 | AZ51: 0.1929982702 | BA51: 0.1675993124 | BB51: 0.05064567773 | BC51: 0.1316867902 | BD51: 0.01597772429 | BE51: 0.1316198027 | BF51: 0.1866052932 | BG51: 0.1484611152 | BH51: 0.1691553137 | BI51: 0.1782497134 | BJ51: 0.1536609106 | BK51: 0.08723640104 | BM51: 0.08481530987 | BN51: 0.07514282291 | BO51: 0.1720485257 | BP51: 0.1007095122 | BQ51: 0.1307342086 | BR51: 0.2056507056 | BS51: 0.1364178533 | BT51: 0.1145843636 | BU51: 0.1632524738 | BV51: 0.1110712726 | BW51: 0.1766588796 | BX51: 0.1601081456 | BY51: 0.1111361536 | BZ51: 0.1443784091 | CA51: 0.1556341559 | CB51: 0.1886630737 | CD51: 0.1571592643 | CE51: 0.159034605 | CF51: 0.1712402579 | CG51: 0.1502425931 | CH51: 0.1282036879 | CI51: 0.1712355436 | CJ51: 0.1546048365 | CK51: 0.188387638 | CL51: 0.1856240631 | CM51: 0.1551110199 | CN51: 0.190124251 | CO51: 0.1999819837 | CP51: 0.1698615712 | CQ51: 0.1639389269 | CR51: 0.01075632551
A52: 2008 | B52: -0.4858909696 | C52: -0.4130502566 | D52: -0.5198763162 | E52: -0.563296342 | F52: -0.4657542002 | G52: -0.5993938687 | H52: -0.6577551738 | I52: -0.4766637863 | J52: -0.4982826999 | K52: -0.4873725423 | L52: -0.4673788701 | M52: -0.4736524612 | N52: -0.3755579533 | O52: -0.4754556675 | P52: 0.02665266667 | Q52: 0.03203333333 | R52: 0.018225 | S52: 0.02235833333 | T52: 0.02798333333 | U52: 0.0317 | V52: 0.03666666667 | W52: 0.043625 | X52: 0.04279166667 | Y52: 0.01365 | Z52: 0.01618333333 | AA52: 0.02965 | AB52: 0.03135833333 | AC52: 0.05631666667 | AD52: 0.07446666667 | AE52: 0.02639166667 | AF52: 0.04860833333 | AG52: 0.060725 | AH52: -0.5930934658 | AI52: 0.019275 | AJ52: -0.0002223047334 | AK52: -0.04407007832 | AL52: 0.01591960972 | AM52: 0.1018309471 | AN52: 0.09224593487 | AO52: 0.05947881106 | AP52: 0.1261112174 | AQ52: 0.122327254 | AR52: 0.1046793532 | AS52: 0.0433007297 | AT52: -0.03179371452 | AU52: 0.03834116069 | AV52: -0.0009207841557 | AW52: 0.03909999191 | AX52: 0.161126765 | AY52: 0.1530821423 | AZ52: 0.2065510967 | BA52: 0.07908758958 | BB52: 0.06165287828 | BC52: 0.08702965191 | BD52: -0.05451337619 | BE52: 0.05323930236 | BF52: 0.1345040126 | BG52: 0.09476193411 | BH52: 0.08892033785 | BI52: 0.1113267251 | BJ52: 0.2153584121 | BK52: -0.02930830877 | BL52: 0.114491181 | BM52: 0.08144166017 | BN52: 0.03588218717 | BO52: 0.2279054899 | BP52: 0.1058143999 | BQ52: 0.08786058394 | BR52: 0.1432188651 | BS52: 0.03006732289 | BT52: 0.05562116077 | BU52: 0.2345731161 | BV52: 0.07734338501 | BW52: 0.1398615618 | BX52: 0.08276762895 | BY52: 0.02427585672 | BZ52: 0.1422306969 | CA52: 0.09182894279 | CB52: 0.07516781707 | CC52: 0.1682882915 | CD52: 0.1830213535 | CE52: 0.1583671479 | CF52: 0.1572681628 | CG52: 0.1604647258 | CH52: 0.1250230578 | CI52: 0.2945882583 | CJ52: 0.2416279337 | CK52: 0.4378979377 | CL52: 0.1765374964 | CM52: 0.1397243267 | CN52: -0.02332498867 | CO52: 0.1337938114 | CP52: 0.1335773195 | CQ52: 0.1635872252 | CR52: 0.0126113038
A53: 2009 | B53: 0.2106913288 | C53: 0.1724341295 | D53: 0.3638619808 | E53: 0.2813191986 | F53: 0.2491160122 | G53: 0.2448835032 | H53: 0.2718591752 | I53: 0.1918440457 | J53: 0.2333553154 | K53: 0.2167487111 | L53: 0.2425334316 | M53: 0.2467836276 | N53: 0.2201781402 | O53: 0.2453035899 | P53: 0.003342166667 | Q53: 0.009375 | R53: 0.004708333333 | S53: 0.01426666667 | T53: 0.02190833333 | U53: 0.02805833333 | V53: 0.03256666667 | W53: 0.041075 | X53: 0.04069166667 | Y53: 0.0015 | Z53: 0.002791666667 | AA53: 0.005558333333 | AB53: 0.00875 | AC53: 0.05313333333 | AD53: 0.07295833333 | AE53: 0.004216666667 | AF53: 0.04620833333 | AG53: 0.050425 | AH53: 0.3688109973 | AI53: 0.0016 | AJ53: 0.02775254206 | AK53: 0.04126660017 | AL53: 0.3296176348 | AM53: -0.01011754469 | AN53: -0.01752060038 | AO53: -0.005539118999 | AP53: 0.01527642437 | AQ53: 0.008485779209 | AR53: 0.04591005019 | AS53: -0.0008027319257 | AT53: -0.128519055 | AU53: -0.0506015147 | AV53: -0.04780269085 | AW53: -0.0744483693 | AX53: 0.009070279042 | AY53: -0.004002167979 | AZ53: -0.004729518333 | BA53: 0.0287735463 | BB53: 0.009281204048 | BC53: -0.0008699757837 | BD53: -0.07189276708 | BE53: -0.04151222524 | BF53: -0.01602443901 | BG53: 0.01080159078 | BH53: -0.02721304155 | BI53: -0.1898043435 | BJ53: 0.04079948666 | BK53: -0.100915294 | BL53: -0.03907466343 | BM53: 0.02767078589 | BN53: -0.04357900426 | BO53: 0.04476577327 | BP53: -0.0311803393 | BQ53: 0.02282230552 | BR53: -0.01331881218 | BS53: 0.001567723292 | BT53: 0.003823105644 | BU53: 0.001030917988 | BV53: -0.03644631972 | BW53: 0.005972100891 | BX53: -0.01052153743 | BY53: -0.04454132199 | BZ53: 0.07335838945 | CA53: -0.05014734098 | CB53: -0.02165542798 | CC53: -0.0126120575 | CD53: 0.06095229174 | CE53: 0.06324636054 | CF53: 0.06647676571 | CG53: 0.06050059416 | CH53: 0.05585754038 | CI53: 0.007965547783 | CJ53: 0.06817154584 | CK53: 0.1411228477 | CL53: 0.05843522164 | CM53: 0.09478543603 | CN53: 0.04701093189 | CO53: 0.03157480514 | CP53: 0.06934608206 | CQ53: 0.06958759837 | CR53: 0.01214848098
A54: 2010 | B54: 0.1202904579 | C54: 0.1045651323 | D54: 0.1562367608 | E54: 0.1675191113 | F54: 0.1585099847 | G54: 0.04788091114 | H54: 0.01014858915 | I54: 0.1229043746 | J54: 0.1279486367 | K54: 0.1238201651 | L54: 0.2435748292 | M54: 0.2464456724 | N54: 0.2037277839 | O54: 0.2434466506 | P54: 0.002734 | Q54: 0.005275 | R54: 0.003183333333 | S54: 0.01105 | T54: 0.019275 | U54: 0.02616666667 | V54: 0.03214166667 | W54: 0.0403 | X54: 0.04250833333 | Y54: 0.001366666667 | Z54: 0.001941666667 | AA54: 0.003116666667 | AB54: 0.004408333333 | AC54: 0.04943333333 | AD54: 0.06038333333 | AE54: 0.0029 | AF54: 0.04293333333 | AG54: 0.04688333333 | AH54: 0.2985148852 | AI54: 0.00175 | AJ54: 0.01427554798 | AK54: 0.06309868665 | AL54: 0.2033120602 | AM54: 0.05110627815 | AN54: 0.03776410526 | AO54: 0.03841181471 | AP54: 0.005219897895 | AQ54: 0.06735254428 | AR54: 0.03597812136 | AS54: 0.02462334978 | AT54: -0.08118777451 | AU54: -0.02798172949 | AV54: -0.0449048394 | AW54: 0.007733859577 | AX54: 0.09211547323 | AY54: 0.08073130372 | AZ54: 0.1852699131 | BA54: 0.08493970803 | BB54: 0.02284634616 | BC54: 0.07809540284 | BD54: -0.04889879869 | BE54: -0.03101328345 | BF54: 0.05971783391 | BG54: 0.06937879657 | BH54: 0.08466639482 | BI54: 0.03592928551 | BJ54: 0.158626679 | BK54: -0.05401903807 | BL54: 0.005375728439 | BM54: 0.004218779343 | BN54: -0.009316138412 | BO54: 0.1165559001 | BP54: 0.03113110967 | BQ54: 0.0659442058 | BR54: 0.08965698114 | BS54: -0.01217081908 | BT54: 0.01677833581 | BU54: 0.1158345299 | BV54: 0.08105179737 | BW54: 0.06471176654 | BX54: 0.02170054403 | BY54: -0.04639691063 | BZ54: 0.106494349 | CA54: -0.005448132669 | CB54: 0.005168375866 | CC54: 0.05340665232 | CD54: 0.08185241479 | CE54: 0.08805988217 | CF54: 0.09362629199 | CG54: 0.08374981526 | CH54: 0.1195612445 | CI54: 0.007528759555 | CJ54: 0.07754652799 | CK54: 0.01497426239 | CL54: 0.1432093934 | CM54: 0.09516228572 | CN54: -0.05041361084 | CO54: 0.04601717516 | CP54: 0.07435797234 | CQ54: 0.1169576986 | CR54: 0.01165037253
A55: 2011 | B55: -3.180610996e-05 | C55: 0.05380983802 | D55: -0.0181518177 | E55: -0.03764206429 | F55: 0.00976379559 | G55: -0.1603963996 | H55: -0.1486970834 | I55: -0.1771640465 | J55: -0.01573650529 | K55: -0.001124695514 | L55: 0.07024855524 | M55: 0.07958461651 | N55: -0.02445303551 | O55: 0.07050238837 | P55: 0.002327416667 | Q55: 0.004191666667 | R55: 0.001816666667 | S55: 0.0075 | T55: 0.015225 | U55: 0.021625 | V55: 0.02785833333 | W55: 0.03620833333 | X55: 0.03910833333 | Y55: 0.000525 | Z55: 0.0009583333333 | AA55: 0.003033333333 | AB55: 0.004216666667 | AC55: 0.04639166667 | AD55: 0.05664166667 | AE55: 0.002116666667 | AF55: 0.0451 | AG55: 0.044425 | AH55: 0.008237504215 | AI55: 0.001016666667 | AJ55: 0.03016121142 | AK55: 0.05187298927 | AL55: 0.1649764392 | AM55: 0.09634164331 | AN55: 0.07876087658 | AO55: 0.03565486558 | AP55: 0.001371120496 | AQ55: 0.08208106303 | AR55: 0.04245095645 | AS55: 0.08153930451 | AT55: -0.004165673764 | AU55: 0.01302618325 | AV55: 0.01209222263 | AW55: 0.04701307011 | AX55: 0.1906644252 | AY55: 0.2123345904 | AZ55: 0.2889511892 | BA55: 0.2378445826 | BB55: 0.03307209483 | BC55: 0.1276702008 | BD55: -0.01082357304 | BE55: 0.08570223321 | BF55: 0.1709992869 | BG55: 0.1158989934 | BH55: 0.1071303027 | BI55: 0.06793586501 | BJ55: 0.327116345 | BK55: -0.03404231541 | BL55: 0.03083046028 | BM55: 0.003019442848 | BN55: 0.00178105382 | BO55: 0.2185401257 | BP55: 0.08804581243 | BQ55: 0.02238886357 | BR55: 0.04166938262 | BS55: -0.01350562188 | BT55: 0.02164804232 | BU55: 0.2153476857 | BV55: 0.007771995218 | BW55: 0.06567436296 | BX55: 0.008576739525 | BY55: -0.04829739155 | BZ55: 0.1166898595 | CA55: 0.01943039221 | CB55: 0.08462924036 | CC55: 0.1134381614 | CD55: 0.1423867805 | CE55: 0.1515721657 | CF55: 0.1510338047 | CG55: 0.1552669005 | CH55: 0.1612434709 | CI55: 0.03191627689 | CJ55: 0.1465443732 | CK55: 0.0473748011 | CL55: 0.2487601438 | CM55: 0.1702141891 | CN55: 0.1012098803 | CO55: 0.07942611784 | CP55: 0.1498108867 | CQ55: 0.1945914862 | CR55: 0.01160969998
A56: 2012 | B56: 0.1258014103 | C56: 0.07005394968 | D56: 0.1476043114 | E56: 0.1264117782 | F56: 0.1488621658 | G56: 0.1271101622 | H56: 0.1410693759 | I56: 0.1040679221 | J56: 0.1213771642 | K56: 0.1268362505 | L56: 0.1835263827 | M56: 0.1798251929 | N56: 0.1813791152 | O56: 0.1800472884 | P56: 0.00236175 | Q56: 0.0042 | R56: 0.00175 | S56: 0.003816666667 | T56: 0.007608333333 | U56: 0.01219166667 | V56: 0.018025 | W56: 0.02544166667 | X56: 0.02920833333 | Y56: 0.0008583333333 | Z56: 0.001341666667 | AA56: 0.002825 | AB56: 0.004366666667 | AC56: 0.03673333333 | AD56: 0.04935 | AE56: 0.002041666667 | AF56: 0.03729166667 | AG56: 0.036475 | AH56: 0.02199108119 | AI56: 0.0014 | AJ56: 0.01744204901 | AK56: 0.008472515172 | AL56: 0.02694635855 | AM56: 0.1276535979 | AN56: 0.1009796334 | AO56: 0.04295252191 | AP56: 0.07007114945 | AQ56: 0.135341195 | AR56: 0.0524740943 | AS56: 0.1264177145 | AT56: 0.01022496164 | AU56: -0.01297126596 | AV56: -0.04217455758 | AW56: 0.09464558659 | AX56: 0.1795603185 | AY56: 0.1773847401 | AZ56: 0.2469585999 | BA56: 0.2611592657 | BB56: 0.07901509156 | BC56: 0.1084481347 | BD56: -0.008048270657 | BE56: 0.1080324983 | BF56: 0.2532109621 | BG56: 0.07895774574 | BH56: 0.1487894453 | BI56: 0.08790573359 | BJ56: 0.3741578576 | BK56: -0.04056940522 | BL56: -0.06349126062 | BM56: 0.0886015635 | BN56: 0.07941149452 | BO56: 0.3149968862 | BP56: 0.1356407114 | BQ56: 0.1547005937 | BR56: 0.1227590531 | BS56: 0.02768479185 | BT56: 0.02293503358 | BU56: 0.2652591197 | BV56: 0.02129569578 | BW56: 0.02526413175 | BX56: 0.01937372705 | BY56: 0.04144054281 | BZ56: 0.2265983125 | CA56: -0.01838738152 | CB56: 0.08099655365 | CC56: 0.063141282 | CD56: 0.1876304374 | CE56: 0.1857541377 | CF56: 0.1740570311 | CG56: 0.2079515273 | CH56: 0.1697771399 | CI56: 0.1786242868 | CJ56: 0.1742816535 | CK56: 0.1393985475 | CL56: 0.2481702505 | CM56: 0.2104496118 | CN56: 0.1301225134 | CO56: 0.1561483911 | CP56: 0.1744449732 | CQ56: 0.2182049592 | CR56: 0.01182835026
A57: 2013 | B57: 0.2592922065 | C57: 0.2350674711 | D57: 0.3244005576 | E57: 0.1138881747 | F57: 0.2855867777 | G57: 0.1775241456 | H57: 0.1962240254 | I57: 0.1419068042 | J57: 0.2436670245 | K57: 0.2612203944 | L57: 0.03158208459 | M57: 0.02815719316 | N57: -0.01979506878 | O57: 0.02313555626 | P57: 0.001885083333 | Q57: 0.003358333333 | R57: 0.001316666667 | S57: 0.005433333333 | T57: 0.011725 | U57: 0.017375 | V57: 0.02350833333 | W57: 0.03119166667 | X57: 0.03448333333 | Y57: 0.0005833333333 | Z57: 0.0008833333333 | AA57: 0.001858733006 | AB57: 0.002024350322 | AC57: 0.04235 | AD57: 0.05101666667 | AE57: 0.001408333333 | AF57: 0.04270833333 | AG57: 0.04024166667 | AH57: -0.08190267701 | AI57: 0.001075 | AJ57: 0.01501509087 | AK57: 0.002478316014 | AL57: -0.3215348719 | AM57: 0.1218373652 | AN57: 0.1028622267 | AO57: 0.01788191216 | AP57: 0.0677164356 | AQ57: 0.1285858632 | AR57: 0.07167586742 | AS57: 0.2570790763 | AT57: 0.01144979892 | AU57: 0.01466424956 | AV57: 0.01128174047 | AW57: 0.148938782 | AX57: 0.1694728465 | AY57: 0.1537003144 | AZ57: 0.2036186191 | BA57: 0.1957403956 | BB57: 0.1087157175 | BC57: 0.0979214863 | BD57: -0.005574923766 | BE57: 0.1480638625 | BF57: 0.2088079313 | BG57: 0.1707323496 | BH57: 0.1531845608 | BI57: 0.07679717854 | BJ57: 0.1935777401 | BK57: 0.03897202247 | BL57: 0.00604280296 | BM57: -0.01051253692 | BN57: 0.06628387636 | BO57: 0.4196455522 | BP57: 0.1402687872 | BQ57: 0.1064104929 | BR57: 0.07114871677 | BS57: 0.0191470317 | BT57: -0.05459449604 | BU57: 0.3221441877 | BV57: 0.04878753463 | BW57: -0.02467466147 | BX57: 0.2165773616 | BY57: -0.003075258009 | BZ57: 0.1858066891 | CA57: -0.005739721594 | CB57: 0.02697478147 | CC57: 0.0437063271 | CD57: 0.2001751441 | CE57: 0.2091050861 | CF57: 0.1672136333 | CG57: 0.297708231 | CH57: 0.3205009107 | CI57: 0.1660783145 | CJ57: 0.2464253949 | CK57: 0.1428234939 | CL57: 0.130499186 | CM57: 0.1540152782 | CN57: 0.1434294455 | CO57: 0.1782827458 | CP57: 0.1567802942 | CQ57: 0.1572506719 | CR57: 0.01238264988
A58: 2014 | B58: 0.1078731002 | C58: 0.07249800366 | D58: 0.1257083308 | E58: 0.055568837 | F58: 0.1196550413 | G58: -0.07629244031 | H58: -0.08977471027 | I58: -0.05325062182 | J58: 0.09773230167 | K58: 0.1052683387 | L58: 0.2401765677 | M58: 0.247075621 | N58: 0.1645181886 | O58: 0.2408167829 | P58: 0.00155075 | Q58: 0.002791666667 | R58: 0.001208333333 | S58: 0.008958333333 | T58: 0.01640833333 | U58: 0.021425 | V58: 0.02540833333 | W58: 0.03074166667 | X58: 0.0334 | Y58: 0.000325 | Z58: 0.0006416666667 | AA58: 0.001858733006 | AB58: 0.002024350322 | AC58: 0.041625 | AD58: 0.04854166667 | AE58: 0.001241666667 | AF58: 0.042325 | AG58: 0.0416 | AH58: -0.4680321223 | AI58: 0.0008916666667 | AJ58: 0.006509977956 | AK58: -0.02506396866 | AL58: -0.01725134562 | AM58: 0.09480442722 | AN58: 0.08173021511 | AO58: 0.06630711004 | AP58: 0.007967440025 | AQ58: 0.09989064013 | AR58: 0.06281962053 | AS58: 0.1025093119 | AT58: 0.005914912103 | AU58: 0.02738122721 | AV58: 0.03081526665 | AW58: 0.1247159861 | AX58: 0.09241908005 | AY58: 0.07660986266 | AZ58: 0.09691393978 | BA58: 0.1987259591 | BB58: 0.09188318051 | BC58: 0.08114367843 | BD58: 0.02750702533 | BE58: 0.1192177417 | BF58: 0.14880785 | BG58: 0.09504402765 | BH58: 0.1028967351 | BI58: 0.1374175097 | BJ58: 0.09041906031 | BK58: 0.02027610475 | BL58: 0.0749880303 | BM58: 0.01512525227 | BN58: 0.05849595424 | BO58: 0.1836035559 | BP58: 0.1252216389 | BQ58: 0.07611193988 | BR58: 0.1031498574 | BS58: 0.02400493002 | BT58: 0.04309700866 | BU58: 0.2269516031 | BV58: 0.04952077841 | BW58: 0.0986254813 | BX58: 0.04620750507 | BY58: 0.02365232262 | BZ58: 0.1116910901 | CA58: 0.02234166426 | CB58: 0.09164947925 | CC58: 0.06889745811 | CD58: 0.09549443137 | CE58: 0.1263134728 | CF58: 0.06304190493 | CG58: 0.2112160903 | CH58: 0.2298452763 | CI58: 0.1042084862 | CJ58: 0.06135444931 | CK58: 0.01806445601 | CL58: 0.02748570854 | CM58: 0.05896963135 | CN58: 0.05685841683 | CO58: 0.06836415429 | CP58: 0.07092827439 | CQ58: 0.04766047073 | CR58: 0.01222155903
A59: 2015 | B59: -0.007292541897 | C59: -0.02258600723 | D59: 0.0557153604 | E59: -0.08975014471 | F59: 0.006677078001 | G59: -0.03357929126 | H59: -0.05463221207 | I59: 0.004351626384 | J59: -0.02401948906 | K59: -0.007679316714 | L59: 0.02263850318 | M59: 0.02786057406 | N59: -0.09295000906 | O59: 0.02029836105 | P59: 0.00201175 | Q59: 0.004658333333 | R59: 0.003216666667 | S59: 0.01025833333 | T59: 0.01529166667 | U59: 0.01889166667 | V59: 0.02135833333 | W59: 0.02546666667 | X59: 0.02840833333 | Y59: 0.000525 | Z59: 0.001633333333 | AC59: 0.03886666667 | AD59: 0.04999166667 | AE59: 0.002266666667 | AF59: 0.036575 | AG59: 0.03843333333 | AH59: -0.2593125717 | AI59: 0.001325 | AJ59: 0.006366935496 | AK59: -0.07098906124 | AL59: -0.1098292932 | AM59: 0.05050630746 | AN59: 0.04723302364 | AO59: 0.03479664646 | AP59: 0.003529702468 | AQ59: 0.06494645289 | AR59: 0.08555823379 | AS59: 0.0872366605 | AT59: 0.01551971872 | AU59: 0.02944172047 | AV59: 0.05535564354 | AW59: 0.1090068473 | AX59: 0.01675494151 | AY59: 0.001735285976 | AZ59: -0.0534219914 | BA59: 0.005637932216 | BB59: 0.1012287999 | BC59: 0.08067535837 | BD59: 0.03008691938 | BE59: 0.03690520541 | BF59: 0.02377593301 | BG59: 0.07293923102 | BH59: 0.0142606457 | BI59: 0.03855859153 | BJ59: 0.007343103138 | BK59: 0.04276496862 | BL59: 0.06689791042 | BM59: 0.05220776463 | BN59: -0.002475386241 | BO59: 0.05946171077 | BP59: 0.06999115121 | BQ59: 0.05210358978 | BR59: 0.09416061139 | BS59: 0.03659704038 | BT59: 0.03270918986 | BU59: 0.1098874883 | BV59: 0.05182374329 | BW59: 0.09160839255 | BX59: 0.04973965725 | BY59: 0.01729735809 | BZ59: 0.08463243692 | CA59: 0.02464592027 | CB59: 0.0861706964 | CC59: 0.05445814338 | CD59: 0.06940365016 | CE59: 0.1035403063 | CF59: 0.05180113689 | CG59: 0.1699728033 | CH59: 0.1846970734 | CI59: 0.002317835292 | CJ59: 0.1050760465 | CK59: 0.01554522325 | CL59: 0.001432849464 | CM59: 0.03192650993 | CN59: 0.1017656344 | CO59: 0.01172223081 | CP59: 0.05815024567 | CQ59: 0.0342541902 | CR59: 0.01446901163
A60: 2016 | B60: 0.09107409028 | C60: 0.1258835843 | D60: 0.07234931638 | E60: 0.1527980959 | F60: 0.1254436506 | G60: -0.0189872421 | H60: -0.034455413 | I60: 0.01481298904 | J60: 0.0938576405 | K60: 0.0881459505 | L60: 0.08876887159 | M60: 0.08277028418 | N60: 0.2057915059 | O60: 0.08961122226 | P60: 0.004965666667 | Q60: 0.008558333333 | R60: 0.006141666667 | S60: 0.01005833333 | T60: 0.01338333333 | U60: 0.01636666667 | V60: 0.01841666667 | W60: 0.02225 | X60: 0.025975 | Y60: 0.003175 | Z60: 0.004558333333 | AC60: 0.03665833333 | AD60: 0.047175 | AE60: 0.006441666667 | AF60: 0.03144444444 | AG60: 0.03670833333 | AH60: 0.2749715083 | AI60: 0.00395 | AJ60: 0.02030053187 | AK60: 0.02529055966 | AL60: 0.07313275249 | AM60: 0.03373803563 | AN60: 0.0327366599 | AO60: 0.06299524259 | AP60: 0.004671203622 | AQ60: 0.05825581852 | AR60: 0.05131721 | AS60: 0.04850769846 | AT60: 0.03844441353 | AU60: 0.04125557244 | AV60: 0.1093347598 | AW60: 0.08797079176 | AX60: -0.002511358178 | AY60: 0.01171464113 | AZ60: -0.01685606507 | BA60: -0.04272586975 | BB60: 0.06393411532 | BC60: 0.07475218545 | BD60: 0.03928108726 | BE60: 0.01367146544 | BF60: 0.02564603021 | BG60: 0.07743497017 | BH60: 0.003990182983 | BI60: 0.04323321294 | BJ60: -0.01876085438 | BK60: -0.02351456216 | BL60: 0.07661601036 | BM60: 0.01368583439 | BN60: -0.006144730627 | BO60: -0.04975007812 | BP60: 0.02667241547 | BQ60: 0.02371294946 | BR60: 0.1017188418 | BS60: 0.05769433212 | BT60: 0.03244192556 | BU60: -0.03410354298 | BV60: 0.06900161705 | BW60: 0.0232229016 | BX60: 0.04536318953 | BY60: 0.01954268786 | BZ60: 0.09322643411 | CA60: -0.01163901073 | CB60: 0.04797772822 | CC60: 0.06092165878 | CD60: 0.06305888171 | CE60: 0.07088558576 | CF60: 0.04713103237 | CG60: 0.1012873675 | CH60: 0.1093617917 | CI60: 0.0879684522 | CJ60: 0.09747679778 | CK60: 0.0462599787 | CL60: -0.04556242316 | CM60: 0.02766277757 | CN60: 0.07808707397 | CO60: 0.05487732967 | CP60: 0.0499908229 | CQ60: 0.005892648091 | CR60: 0.01295877081
A61: 2017 | B61: 0.1774762111 | C61: 0.2237898161 | D61: 0.2487444636 | E61: 0.1748991197 | F61: 0.1905872074 | G61: 0.1970531689 | H61: 0.1999214289 | I61: 0.1953095076 | J61: 0.175307534 | K61: 0.1781441418 | L61: 0.08862684194 | M61: 0.08318153528 | N61: 0.1805598342 | O61: 0.08887130053 | P61: 0.01113741667 | Q61: 0.01276666667 | R61: 0.01200833333 | S61: 0.015775 | T61: 0.0191 | U61: 0.02159166667 | V61: 0.0233 | W61: 0.026525 | X61: 0.02895 | Y61: 0.009308333333 | Z61: 0.01049166667 | AC61: 0.03743333333 | AD61: 0.0444 | AE61: 0.011525 | AG61: 0.03979166667 | AH61: 0.1426695891 | AI61: 0.01001666667 | AJ61: 0.02107564725 | AK61: 0.04213887413 | AL61: 0.08849569569 | AM61: 0.03747005074 | AN61: 0.03684586747 | AO61: 0.04466403659 | AP61: 0.02035588348 | AQ61: 0.06197508404 | AR61: 0.06515506715 | AS61: 0.05739967915 | AT61: -0.004097455273 | AU61: 0.0267766568 | AV61: 0.03344970834 | AW61: 0.08517514995 | AX61: 0.008704117411 | AY61: -0.03125999655 | AZ61: 0.01830415231 | BA61: -0.008615792677 | BB61: 0.07195011781 | BC61: 0.0728409577 | BD61: 0.03109187781 | BE61: 0.01841140278 | BF61: 0.04549691457 | BG61: 0.06862382585 | BH61: 0.03067309733 | BI61: 0.02817237122 | BJ61: -0.03333508733 | BK61: 0.005593502516 | BL61: 0.0908238058 | BM61: 0.02937898224 | BN61: 0.02363018439 | BO61: 0.01988574508 | BP61: 0.03197242552 | BQ61: 0.05507401228 | BR61: 0.09805727688 | BS61: 0.009314174227 | BT61: 0.0468714505 | BU61: -0.03545178909 | BV61: 0.03943682814 | BW61: 0.0629626758 | BX61: 0.05941909617 | BY61: 0.03498065063 | BZ61: 0.0966880507 | CA61: 0.01888849576 | CB61: 0.0685509445 | CC61: 0.0426922857 | CD61: 0.06122298825 | CE61: 0.06192520868 | CF61: 0.04753302148 | CG61: 0.08135619572 | CH61: 0.08037399787 | CI61: 0.1251801616 | CJ61: 0.03789788057 | CK61: -0.03357285361 | CL61: 0.02132600146 | CM61: 0.04114748313 | CN61: 0.06524358951 | CO61: -0.01023857508 | CP61: 0.0527099489 | CQ61: 0.03002845744 | CR61: 0.01295949112
A62: 2018 | B62: -0.06440263421 | C62: -0.05794987128 | D62: -0.03961218008 | E62: -0.08334037647 | F62: -0.05407620579 | G62: -0.1759705638 | H62: -0.1895611648 | I62: -0.1540246246 | J62: -0.07319764345 | K62: -0.06537463392 | L62: -0.04187017339 | M62: -0.04128608075 | N62: -0.02555545637 | O62: -0.04014593766 | P62: 0.02022416667 | Q62: 0.02366666667 | R62: 0.02331666667 | S62: 0.026275 | T62: 0.02748333333 | U62: 0.02850833333 | V62: 0.0291 | W62: 0.03018333333 | X62: 0.031125 | Y62: 0.01939166667 | Z62: 0.02095833333 | AC62: 0.0393 | AD62: 0.048 | AE62: 0.02188333333 | AG62: 0.04556666667 | AH62: -0.1126568851 | AI62: 0.01831666667 | AJ62: 0.01982596922 | AK62: 0.02366080678 | AL62: -0.0111737449 | AM62: 0.03976456096 | AN62: 0.03897117929 | AO62: 0.05730326913 | AP62: 0.01734553179 | AQ62: 0.05498731592 | AR62: 0.06944935475 | AS62: 0.04729233952 | AT62: 0.03200466721 | AU62: 0.02745708241 | AV62: 0.02852348164 | AW62: 0.0872141661 | AX62: 0.03728810294 | AY62: 0.01276907317 | AZ62: 0.007546787495 | BA62: 0.05162541558 | BB62: 0.05802664701 | BC62: 0.06343453741 | BD62: 0.04405022636 | BE62: 0.005332140732 | BF62: 0.0341495092 | BG62: 0.07090158933 | BH62: 0.01517076054 | BI62: 0.03840650102 | BJ62: 0.02392302987 | BK62: 0.004934221162 | BL62: 0.06215838372 | BM62: 0.03184955339 | BN62: 0.02526712443 | BO62: 0.02059932292 | BP62: 0.04552491212 | BQ62: 0.04186721678 | BR62: 0.07638553188 | BS62: 0.07004604375 | BT62: 0.04686708505 | BU62: 0.008203849939 | BV62: 0.04876130626 | BW62: 0.04021690189 | BX62: 0.05187886174 | BY62: 0.01542902093 | BZ62: 0.06023469482 | CA62: 0.01000936139 | CB62: -0.00272063203 | CC62: 0.05610406169 | CD62: 0.06640941941 | CE62: 0.06737786409 | CF62: 0.05917990336 | CG62: 0.08234928511 | CH62: 0.08663889154 | CI62: 0.08855281261 | CJ62: 0.0433579983 | CK62: 0.002277477589 | CL62: 0.02644774255 | CM62: 0.06996658588 | CN62: 0.07404233359 | CO62: 0.02591010413 | CP62: 0.06049447004 | CQ62: 0.04944575807 | CR62: 0.01432763102
A63: 2019 | B63: 0.2536966092 | C63: 0.201620743 | D63: 0.3017750739 | E63: 0.101585572 | F63: 0.2701600451 | G63: 0.1691946517 | H63: 0.1825928691 | I63: 0.1476793135 | J63: 0.2533517984 | K63: 0.2551980387 | L63: 0.2473958714 | M63: 0.252025406 | N63: 0.1933510884 | O63: 0.2484814029 | P63: 0.0222605 | Q63: 0.023375 | R63: 0.02053333333 | S63: 0.01940833333 | T63: 0.019575 | U63: 0.02049166667 | V63: 0.02144166667 | W63: 0.02403333333 | X63: 0.025825 | Y63: 0.02060833333 | Z63: 0.02053333333 | AC63: 0.033875 | AD63: 0.04375833333 | AE63: 0.022075 | AG63: 0.03913333333 | AH63: -0.04793245762 | AI63: 0.02158333333 | AJ63: 0.02293035311 | AK63: -0.01000008333 | AL63: 0.167990577 | AM63: 0.04236146665 | AN63: 0.04165996755 | AO63: 0.06389500891 | AP63: 0.03041957938 | AQ63: 0.07403705149 | AR63: 0.0948283601 | AS63: 0.08084664628 | AT63: 0.0650947043 | AU63: 0.04477688875 | AV63: -0.03201669352 | AW63: 0.1112532712 | AX63: 0.02682010984 | AY63: 0.01050700363 | AZ63: 0.01038842859 | BA63: 0.0489519168 | BB63: 0.05467823386 | BC63: 0.06977695295 | BD63: 0.01502786554 | BE63: 0.004476286187 | BF63: -0.01344101565 | BG63: 0.08124293662 | BH63: 0.03329314249 | BI63: 0.06673694549 | BJ63: 0.01562804259 | BK63: -0.01968494617 | BL63: 0.04863971269 | BM63: 0.04040570216 | BN63: 0.02941475808 | BO63: 0.04424273867 | BP63: 0.03703150175 | BQ63: 0.01722557142 | BR63: 0.09075555049 | BS63: 0.03880582552 | BT63: 0.04379558494 | BU63: 0.01783710625 | BV63: 0.04616021605 | BW63: 0.01868413993 | BX63: 0.06035984239 | BY63: -0.006258100348 | BZ63: 0.08917450312 | CA63: 0.02789654588 | CB63: 0.04540790323 | CC63: 0.08094284759 | CD63: 0.04179136675 | CE63: 0.0481139389 | CF63: 0.04396391674 | CG63: 0.05480920122 | CH63: 0.05478826636 | CI63: 0.02420142676 | CJ63: 0.04669568691 | CK63: 0.04113646512 | CL63: 0.03783459042 | CM63: 0.03672502302 | CN63: 0.08954494633 | CO63: 0.05148499041 | CP63: 0.04468202418 | CQ63: 0.04365577325 | CR63: 0.01319283107
A64: 2020 | B64: 0.1506496039 | C64: 0.06995980082 | D64: 0.3621428821 | E64: 0.05592776512 | F64: 0.1890847369 | G64: 0.05286684359 | H64: 0.03093408468 | I64: 0.08858175058 | J64: 0.1687305134 | K64: 0.1758362775 | L64: -0.06039306296 | M64: -0.05257379013 | N64: -0.2078544832 | O64: -0.06161633032 | P64: 0.005580783467 | Q64: 0.006033333333 | R64: 0.003791666667 | S64: 0.004283333333 | T64: 0.0054 | U64: 0.007266666667 | V64: 0.008941666667 | W64: 0.01353333333 | X64: 0.01561666667 | Y64: 0.00365 | Z64: 0.003716666667 | AC64: 0.02476666667 | AD64: 0.036025 | AE64: 0.005541666667 | AG64: 0.03080833333 | AH64: 0.1030198154 | AI64: 0.003758333333 | AJ64: 0.01296511866 | AK64: 0.007509422022 | AL64: 0.2282725873 | AM64: 0.03294416298 | AN64: 0.03219384401 | AO64: 0.04820953995 | AP64: 0.03507041522 | AQ64: 0.06004000098 | AR64: 0.04127669787 | AS64: 0.06393005196 | AT64: 0.005116038451 | AU64: 0.02736356004 | AV64: 0.06164668186 | AW64: 0.09225666558 | AX64: 0.02249341181 | AY64: 0.01079522466 | AZ64: 0.002238703605 | BA64: -0.02990329694 | BB64: 0.060381319 | BC64: 0.05462460846 | BD64: 0.0002355078748 | BE64: 0.000810472001 | BF64: 0.01096935368 | BG64: 0.06630909933 | BH64: 0.03955827434 | BI64: 0.03778292493 | BJ64: 0.005970828257 | BK64: -0.006343520728 | BL64: 0.09170632194 | BM64: 0.03552015956 | BN64: 0.01701321136 | BO64: 0.01857780151 | BP64: 0.03368079078 | BQ64: 0.01165735359 | BR64: 0.07657129675 | BS64: 0.02464393046 | BT64: 0.02935372711 | BU64: -0.01581488648 | BV64: 0.04402142824 | BW64: 0.05563178504 | BX64: 0.0423567716 | BY64: -0.008781122858 | BZ64: 0.08045033687 | CA64: 0.01415477446 | CB64: 0.004287009003 | CC64: 0.05408435323 | CD64: 0.02551410214 | CE64: 0.03082974718 | CF64: 0.04204050055 | CG64: 0.01273002664 | CH64: 0.025733704 | CI64: -0.02423192379 | CJ64: 0.0316139807 | CK64: 0.06131596773 | CL64: 0.04361617359 | CM64: 0.04111536185 | CN64: 0.0527167516 | CO64: 0.0502780508 | CP64: 0.04354260969 | CQ64: 0.03531088037 | CR64: 0.01325394179
A65: 2021 | B65: 0.2381719475 | C65: 0.1716605302 | D65: 0.1938310883 | E65: 0.1459630462 | F65: 0.236629983 | G65: 0.08415315788 | H65: 0.1288453046 | I65: 0.002377448231 | J65: 0.2243781353 | K65: 0.2250376527 | L65: 0.3355984944 | M65: 0.3457036042 | N65: 0.1452723277 | O65: 0.3366105659 | P65: 0.0004349596148 | Q65: 0.001783333333 | R65: 0.001041666667 | S65: 0.0046 | T65: 0.00855 | U65: 0.011925 | V65: 0.014425 | W65: 0.019775 | X65: 0.020525 | Y65: 0.0004416666667 | Z65: 0.0006416666667 | AC65: 0.02703333333 | AD65: 0.033925 | AE65: 0.001141666667 | AG65: 0.029875 | AH65: 0.3697128541 | AI65: 0.0008 | AJ65: 0.06930757423 | AK65: 0.1853841938 | AL65: -0.03727084989 | AM65: 0.08731868269 | AN65: 0.08075254394 | AO65: 0.03796198313 | AP65: 0.04141362144 | AQ65: 0.06365654767 | AR65: 0.1096365905 | AS65: 0.06795557161 | AT65: 0.005648738858 | AU65: 0.04184950014 | AV65: 0.08310416135 | AW65: 0.1558911387 | AX65: 0.09089028083 | AY65: 0.1045072805 | AZ65: 0.101201193 | BA65: 0.1446583008 | BB65: 0.06399695568 | BC65: 0.05004838049 | BD65: 0.0791409591 | BE65: 0.0575980053 | BF65: 0.1105377455 | BG65: 0.07470734875 | BH65: 0.1116854622 | BI65: 0.06567459936 | BJ65: 0.151469743 | BK65: 0.0463101548 | BL65: 0.09921391031 | BM65: 0.07633519318 | BN65: 0.04468488098 | BO65: 0.08782337711 | BP65: 0.0759105929 | BQ65: 0.07226223881 | BR65: 0.126748497 | BS65: 0.0878222848 | BT65: 0.05333968669 | BU65: 0.1296891198 | BV65: 0.0592167737 | BW65: 0.06806884641 | BX65: 0.06173593791 | BY65: 0.0256195226 | BZ65: 0.1271367361 | CA65: 0.03451371808 | CB65: 0.125848994 | CC65: 0.09533972835 | CD65: 0.08698183486 | CE65: 0.07834702024 | CF65: 0.1106294078 | CG65: 0.03061614658 | CH65: 0.03628439114 | CI65: 0.09407797333 | CJ65: 0.05764264324 | CK65: 0.1543202822 | CL65: 0.1877033738 | CM65: 0.1020611607 | CN65: 0.03276878398 | CO65: 0.1516356954 | CP65: 0.1020344512 | CQ65: 0.1297903896 | CR65: 0.01360698444
A66: 2022 | B66: -0.2162029957 | C66: -0.09191252454 | D66: -0.4019716899 | E66: -0.03813631016 | F66: -0.2112339898 | G66: -0.1837598351 | H66: -0.1896944834 | I66: -0.1694525269 | J66: -0.2293062735 | K66: -0.2326262397 | L66: -0.2890748147 | M66: -0.2869948083 | N66: -0.3093861082 | O66: -0.2879859242 | P66: 0.01165929136 | R66: 0.02793333333 | S66: 0.03046666667 | T66: 0.02999166667 | U66: 0.03006666667 | V66: 0.02951666667 | W66: 0.03299166667 | X66: 0.03115 | Y66: 0.02021666667 | Z66: 0.02436666667 | AC66: 0.04074166667 | AD66: 0.050725 | AE66: 0.022275 | AG66: 0.0547 | AH66: -0.02881875103 | AI66: 0.01683333333 | AJ66: 0.06214345132 | AK66: 0.06636183986 | AL66: 0.003968812171 | AM66: 0.1458910479 | AN66: 0.135253707 | AO66: 0.1208085916 | AP66: 0.07961089208 | AQ66: 0.112702286 | AR66: 0.1394431509 | AS66: 0.1538102427 | AT66: 0.07357129712 | AU66: 0.1130076623 | AV66: 0.1196011026 | AW66: 0.161539696 | AX66: 0.1394010507 | AY66: 0.1420128841 | AZ66: 0.2036077212 | BA66: 0.234974794 | BB66: 0.1441396489 | BC66: 0.09995702183 | BD66: 0.09828811276 | BE66: 0.1325168739 | BF66: 0.1851784642 | BG66: 0.1135008519 | BH66: 0.1669820002 | BI66: 0.1519179251 | BJ66: 0.2137836065 | BK66: 0.05364160801 | BL66: 0.1322446592 | BM66: 0.1107270922 | BN66: 0.1052277095 | BO66: 0.1521069997 | BP66: 0.1346456479 | BQ66: 0.149483149 | BR66: 0.1666098935 | BS66: 0.1059021568 | BT66: 0.1165032528 | BU66: 0.1917186752 | BV66: 0.1238530543 | BW66: 0.1596876911 | BX66: 0.1065850645 | BY66: 0.09489371211 | BZ66: 0.1726340022 | CA66: 0.09784400599 | CB66: 0.1521381748 | CC66: 0.1185995621 | CD66: 0.1016884793 | CE66: 0.09469383188 | CF66: 0.1443007047 | CG66: 0.02196065745 | CH66: 0.02780381597 | CI66: 0.04497142131 | CJ66: 0.08863002806 | CK66: 0.1644165388 | CL66: 0.2799448632 | CM66: 0.1312844185 | CN66: 0.08212081606 | CO66: 0.1681679069 | CP66: 0.1313270347 | CQ66: 0.1861141574 | CR66: 0.01400242101
A67: 2023 | B67: 0.2169685151 | C67: 0.1284228454 | D67: 0.3606288119 | E67: 0.05535479538 | F67: 5.516518855 | G67: 0.1400513706 | H67: 0.1542590489 | I67: 0.1139365653 | J67: 0.2187500373 | K67: 0.2235314753 | L67: 0.108700673 | M67: 0.1075643948 | N67: 0.1427818229 | O67: 0.1090435484 | P67: 0.04851893749 | R67: 0.05080833333 | S67: 0.043 | T67: 0.04056666667 | U67: 0.04024166667 | V67: 0.039575 | W67: 0.04254166667 | X67: 0.04091666667 | Y67: 0.05068333333 | Z67: 0.050675 | AC67: 0.0481 | AD67: 0.05860833333 | AE67: 0.051775 | AG67: 0.06798333333 | AH67: -0.02881875103 | AI67: 0.05024166667 | AJ67: 0.03269136358 | AK67: 0.06636183986 | AL67: 0.1197276203 | AM67: 0.09618786335 | AN67: 0.08916441743 | AO67: 0.04343657078 | AP67: 0.05406776526 | AQ67: 0.06846301559 | AR67: 0.05527069138 | AS67: 0.1017025399 | AT67: 0.03918154059 | AU67: 0.1255799898 | AV67: 0.1266339657 | AW67: 0.09348102181 | AX67: 0.08582825897 | AY67: 0.08996928893 | AZ67: 0.0905414682 | BA67: 0.1551381635 | BB67: 0.1254368425 | BC67: 0.05382983274 | BD67: 0.02306240121 | BE67: 0.1140459838 | BF67: 0.1082885364 | BG67: 0.07785458704 | BH67: 0.09678377869 | BI67: 0.05677597596 | BJ67: 0.1407136435 | BK67: 0.1145434142 | BL67: 0.06827122913 | BM67: 0.08200332621 | BN67: 0.04967947605 | BO67: 0.1433976763 | BP67: 0.1069600626 | BQ67: 0.1098745726 | BR67: 0.07760076565 | BS67: 0.05502795671 | BT67: 0.07877307684 | BU67: 0.1320619779 | BV67: 0.1216871603 | BW67: 0.06921033583 | BX67: 0.05467559983 | BY67: 0.08398450294 | BZ67: 0.1041798775 | CA67: 0.06863189185 | CB67: 0.1325697812 | CC67: 0.07652256849 | CD67: 0.08184091968 | CE67: 0.04960741938 | CF67: 0.102117854 | CG67: -0.02877329752 | CH67: -0.0306348302 | CI67: 0.06387070022 | CJ67: 0.1371317952 | CK67: 0.1072265311 | CL67: 0.1175924171 | CM67: 0.1128849511 | CN67: 0.0731313086 | CO67: 0.1073595735 | CP67: 0.09290962761 | CQ67: 0.1148832741 | CR67: 0.015
A68: 2024 | B68: 0.2095232695 | C68: 0.1211614032 | D68: 0.2518574254 | E68: 0.1193212029 | F68: 0.2034919303 | G68: 0.01140365867 | H68: -0.008689789714 | I68: 0.03516228795 | J68: 0.2052611856 | K68: 0.2102655351 | L68: 0.04241426329 | M68: 0.04804943755 | N68: 0.003576363142 | O68: 0.04636401686 | P68: 0.05270073526 | R68: 0.04685833333 | S68: 0.042175 | T68: 0.04125833333 | U68: 0.04163333333 | V68: 0.04208333333 | W68: 0.045 | X68: 0.04405833333 | Y68: 0.04966666667 | Z68: 0.04805 | AC68: 0.05044166667 | AD68: 0.05753333333 | AE68: 0.05050833333 | AG68: 0.06755833333 | AH68: -0.08788475915 | AI68: 0.05143333333 | AJ68: 0.02855434913 | AK68: -0.03163550624 | AL68: 0.2676561676 | AM68: 0.07444470301 | AN68: 0.06602123493 | AO68: 0.0809317581 | AP68: 0.04083676521 | AQ68: 0.07035756663 | AR68: 0.04426693737 | AS68: 0.006544733281 | AT68: 0.01841227687 | AU68: 0.1058305435 | AV68: 0.08097072745 | AW68: 0.06433813964 | AX68: 0.0550474667 | AY68: 0.05991554401 | AZ68: 0.06592078784 | BA68: 0.08942437513 | BB68: 0.1109424544 | BC68: 0.07370479039 | BD68: 0.03760178111 | BE68: 0.1030369806 | BF68: 0.06163440007 | BG68: 0.06678550685 | BH68: 0.06417575024 | BI68: 0.01725227389 | BJ68: 0.08830650332 | BK68: -0.006841863835 | BL68: 0.04266719961 | BM68: 0.07527900557 | BN68: 0.08292644109 | BO68: 0.09177395805 | BP68: 0.1111227486 | BQ68: 0.09665036654 | BR68: 0.1001600373 | BS68: 0.02624466356 | BT68: 0.06430527365 | BU68: 0.08741913434 | BV68: 0.1264224007 | BW68: 0.04654910811 | BX68: 0.04905278518 | BY68: 0.08629171298 | BZ68: 0.09637346951 | CA68: 0.04247304799 | CB68: 0.04563021052 | CC68: 0.03613287018 | CD68: 0.02851107507 | CE68: -0.0103142929 | CF68: 0.05664145023 | CG68: -0.1018462208 | CH68: -0.09940188785 | CI68: 0.02865908393 | CJ68: 0.08680983565 | CK68: 0.03112393929 | CL68: 0.01710893059 | CM68: 0.06599827757 | CN68: 0.03702246175 | CO68: 0.0421796363 | CP68: 0.03822384308 | CQ68: 0.05077729807 | CR68: 0.015

Sheet Farmland Correlation Periods
AI1: Enter Holding period length
AI2: 5 | AJ2: =IF(AI2=1,"(year)","(years)") -> (years)
AI4: US Ag (32 states) -- correlation with…. | AR4: ="Rolling Geometric "&AI2& " year returns" -> Rolling Geometric 5 year returns | AV4: US Ag (32 states) -- correlation with…. | BC4: ="Non-overlapping "&AI2& " year returns" -> Non-overlapping 5 year returns
AI6: Graph Summary Data | AZ6: Graph Summary Data
C7: =MATCH(C$13,Data!$A$3:$CC$3,0) -> 39 | AJ7: 1 | AK7: 2 | AL7: 3 | AM7: 4 | AN7: 5 | AO7: 6 | AP7: 7 | AQ7: 8 | AR7: 9 | AS7: 10 | AT7: 11 | AU7: 12 | AV7: 13 | AW7: 14 | BA7: 1 | BB7: 2 | BC7: 3 | BD7: 4 | BE7: 5 | BF7: 6 | BG7: 7 | BH7: 8 | BI7: 9 | BJ7: 10 | BK7: 11 | BL7: 12 | BM7: 13 | BN7: 14
AJ8: =RANK(AJ73,$AJ$73:$AW$73) -> 7 | AK8: 4 | AL8: 2 | AM8: 3 | AN8: 5 | AO8: 13 | AP8: 14 | AQ8: 10 | AR8: 11 | AS8: 1 | AT8: 8 | AU8: 9 | AV8: 6 | AW8: 12 | BA8: =RANK(BA73,$BA$73:$BN$73) -> 8 | BB8: 4 | BC8: 2 | BD8: 3 | BE8: 5 | BF8: 13 | BG8: 14 | BH8: 10 | BI8: 12 | BJ8: 1 | BK8: 9 | BL8: 7 | BM8: 6 | BN8: 11
AJ9: =OFFSET($AI$72,0,MATCH(AJ7,$AJ$8:$AW$8,0)) -> US Ave Farm (all) | AK9: PPI | AL9: CPI | AM9: Gold | AN9: TBSM3M | AO9: TCM10Y | AP9: AAA | AQ9: BAA | AR9: Mort30F | AS9: Equity REITS | AT9: Composite REITS | AU9: EAFE | AV9: S&P500 | AW9: Dow Jones | BA9: =OFFSET($AZ$72,0,MATCH(BA7,$BA$8:$BN$8,0)) -> US Ave Farm (all) | BB9: PPI | BC9: CPI | BD9: Gold | BE9: TBSM3M | BF9: TCM10Y | BG9: Mort30F | BH9: AAA | BI9: BAA | BJ9: Equity REITS | BK9: EAFE | BL9: Composite REITS | BM9: S&P500 | BN9: Dow Jones
AJ10: =OFFSET($AI$73,0,MATCH(AJ7,$AJ$8:$AW$8,0)) -> 0.99415102 | AK10: 0.7917137948 | AL10: 0.7405002821 | AM10: 0.5401279508 | AN10: 0.3036778717 | AO10: 0.2300480029 | AP10: 0.1927542828 | AQ10: 0.1853803721 | AR10: 0.1773481947 | AS10: 0.04192587549 | AT10: -0.1315199548 | AU10: -0.2022805532 | AV10: -0.4291306549 | AW10: -0.5739476683 | BA10: =OFFSET($AZ$73,0,MATCH(BA7,$BA$8:$BN$8,0)) -> 0.9951324378 | BB10: =OFFSET($AZ$73,0,MATCH(BB7,$BA$8:$BN$8,0)) -> 0.7867312833 | BC10: 0.782877849 | BD10: 0.5670603939 | BE10: 0.3352651289 | BF10: 0.2313184546 | BG10: 0.1910734252 | BH10: 0.1892858719 | BI10: 0.1732928839 | BJ10: -0.04540967626 | BK10: -0.1539568518 | BL10: -0.2287576075 | BM10: -0.5969379537 | BN10: -0.721540901
C11: These are only places asset displayed are changeable | AJ11: Time Interval for Holding period.
S12: Simple ave rolling | AI12: Geometric | AZ12: ="Nonoverlapping "&AI2&" year holding periods" -> Nonoverlapping 5 year holding periods
C13: US Ag 32 States | D13: AAA | E13: Gold | F13: PPI | G13: CPI | H13: TBSM3M | I13: S&P500 | J13: Dow Jones | K13: Equity REITS | L13: Composite REITS | M13: US Ave Farm (all) | N13: BAA | O13: Mort30F | P13: TCM10Y | Q13: EAFE | S13: =C13 -> US Ag 32 States | T13: =D13 -> AAA | U13: Gold | V13: PPI | W13: CPI | X13: TBSM3M | Y13: S&P500 | Z13: Dow Jones | AA13: Equity REITS | AB13: Composite REITS | AC13: US Ave Farm (all) | AD13: BAA | AE13: Mort30F | AF13: TCM10Y | AG13: EAFE | AI13: =C13 -> US Ag 32 States | AJ13: =D13 -> AAA | AK13: Gold | AL13: PPI | AM13: CPI | AN13: TBSM3M | AO13: S&P500 | AP13: Dow Jones | AQ13: Equity REITS | AR13: Composite REITS | AS13: US Ave Farm (all) | AT13: BAA | AU13: Mort30F | AV13: TCM10Y | AW13: EAFE | AZ13: =C13 -> US Ag 32 States | BA13: =D13 -> AAA | BB13: Gold | BC13: PPI | BD13: CPI | BE13: TBSM3M | BF13: S&P500 | BG13: Dow Jones | BH13: Equity REITS | BI13: Composite REITS | BJ13: US Ave Farm (all) | BK13: BAA | BL13: Mort30F | BM13: TCM10Y | BN13: EAFE
B14: 1970 | C14: =VLOOKUP($B14,retdat,MATCH(C$13,Data!$A$3:$CC$3,0),0) -> 0.1115940345 | D14: =VLOOKUP($B14,retdat,MATCH(D$13,Data!$A$3:$CC$3,0),0) -> 0.0804 | E14: =VLOOKUP($B14,retdat,MATCH(E$13,Data!$A$3:$CC$3,0),0) -> 0.06254620512 | F14: =VLOOKUP($B14,retdat,MATCH(F$13,Data!$A$3:$CC$3,0),0) -> 0.02179922834 | G14: =VLOOKUP($B14,retdat,MATCH(G$13,Data!$A$3:$CC$3,0),0) -> 0.05420681784 | H14: =VLOOKUP($B14,retdat,MATCH(H$13,Data!$A$3:$CC$3,0),0) -> 0.06391666667 | I14: =VLOOKUP($B14,retdat,MATCH(I$13,Data!$A$3:$CC$3,0),0) -> 0.0009771457267 | J14: =VLOOKUP($B14,retdat,MATCH(J$13,Data!$A$3:$CC$3,0),0) -> 0.04697990714 | K14: =VLOOKUP($B14,retdat,MATCH(K$13,Data!$A$3:$CC$3,0),0) -> 0 | L14: =VLOOKUP($B14,retdat,MATCH(L$13,Data!$A$3:$CC$3,0),0) -> 0 | M14: =VLOOKUP($B14,retdat,MATCH(M$13,Data!$A$3:$CC$3,0),0) -> 0.1102525755 | N14: =VLOOKUP($B14,retdat,MATCH(N$13,Data!$A$3:$CC$3,0),0) -> 0.09105 | O14: =VLOOKUP($B14,retdat,MATCH(O$13,Data!$A$3:$CC$3,0),0) -> 0 | P14: =VLOOKUP($B14,retdat,MATCH(P$13,Data!$A$3:$CC$3,0),0) -> 0.07348333333 | Q14: =VLOOKUP($B14,retdat,MATCH(Q$13,Data!$A$3:$CC$3,0),0) -> -0.1384395561 | AY14: 1 | AZ14: =IF(TRUNC($AY14/$AI$2)-$AY14/$AI$2 = 0,AI14,"") ->  | BA14: =IF(TRUNC($AY14/$AI$2)-$AY14/$AI$2 = 0,AJ14,"") ->  | BB14: =IF(TRUNC($AY14/$AI$2)-$AY14/$AI$2 = 0,AK14,"") ->  | BC14: =IF(TRUNC($AY14/$AI$2)-$AY14/$AI$2 = 0,AL14,"") ->  | BD14: =IF(TRUNC($AY14/$AI$2)-$AY14/$AI$2 = 0,AM14,"") ->  | BE14: =IF(TRUNC($AY14/$AI$2)-$AY14/$AI$2 = 0,AN14,"") ->  | BF14: =IF(TRUNC($AY14/$AI$2)-$AY14/$AI$2 = 0,AO14,"") ->  | BG14: =IF(TRUNC($AY14/$AI$2)-$AY14/$AI$2 = 0,AP14,"") ->  | BH14: =IF(TRUNC($AY14/$AI$2)-$AY14/$AI$2 = 0,AQ14,"") ->  | BI14: =IF(TRUNC($AY14/$AI$2)-$AY14/$AI$2 = 0,AR14,"") ->  | BJ14: =IF(TRUNC($AY14/$AI$2)-$AY14/$AI$2 = 0,AS14,"") ->  | BK14: =IF(TRUNC($AY14/$AI$2)-$AY14/$AI$2 = 0,AT14,"") ->  | BL14: =IF(TRUNC($AY14/$AI$2)-$AY14/$AI$2 = 0,AU14,"") ->  | BM14: =IF(TRUNC($AY14/$AI$2)-$AY14/$AI$2 = 0,AV14,"") ->  | BN14: =IF(TRUNC($AY14/$AI$2)-$AY14/$AI$2 = 0,AW14,"") -> 
B15: 1971 | C15: =VLOOKUP($B15,retdat,MATCH(C$13,Data!$A$3:$CC$3,0),0) -> 0.1108518764 | D15: =VLOOKUP($B15,retdat,MATCH(D$13,Data!$A$3:$CC$3,0),0) -> 0.07386666667 | E15: =VLOOKUP($B15,retdat,MATCH(E$13,Data!$A$3:$CC$3,0),0) -> 0.1495614106 | F15: =VLOOKUP($B15,retdat,MATCH(F$13,Data!$A$3:$CC$3,0),0) -> 0.03963530686 | G15: =VLOOKUP($B15,retdat,MATCH(G$13,Data!$A$3:$CC$3,0),0) -> 0.03214120921 | H15: =VLOOKUP($B15,retdat,MATCH(H$13,Data!$A$3:$CC$3,0),0) -> 0.043325 | I15: =VLOOKUP($B15,retdat,MATCH(I$13,Data!$A$3:$CC$3,0),0) -> 0.1024370931 | J15: =VLOOKUP($B15,retdat,MATCH(J$13,Data!$A$3:$CC$3,0),0) -> 0.05935464673 | K15: =VLOOKUP($B15,retdat,MATCH(K$13,Data!$A$3:$CC$3,0),0) -> 0 | L15: =VLOOKUP($B15,retdat,MATCH(L$13,Data!$A$3:$CC$3,0),0) -> 0 | M15: =VLOOKUP($B15,retdat,MATCH(M$13,Data!$A$3:$CC$3,0),0) -> 0.1135274294 | N15: =VLOOKUP($B15,retdat,MATCH(N$13,Data!$A$3:$CC$3,0),0) -> 0.08563333333 | O15: =VLOOKUP($B15,retdat,MATCH(O$13,Data!$A$3:$CC$3,0),0) -> 0.07551111111 | P15: =VLOOKUP($B15,retdat,MATCH(P$13,Data!$A$3:$CC$3,0),0) -> 0.06159166667 | Q15: =VLOOKUP($B15,retdat,MATCH(Q$13,Data!$A$3:$CC$3,0),0) -> 0.2322552845 | AY15: 2
B16: 1972 | C16: =VLOOKUP($B16,retdat,MATCH(C$13,Data!$A$3:$CC$3,0),0) -> 0.1422760321 | D16: =VLOOKUP($B16,retdat,MATCH(D$13,Data!$A$3:$CC$3,0),0) -> 0.07213333333 | E16: =VLOOKUP($B16,retdat,MATCH(E$13,Data!$A$3:$CC$3,0),0) -> 0.3851747814 | F16: =VLOOKUP($B16,retdat,MATCH(F$13,Data!$A$3:$CC$3,0),0) -> 0.06275584503 | G16: =VLOOKUP($B16,retdat,MATCH(G$13,Data!$A$3:$CC$3,0),0) -> 0.03349595443 | H16: =VLOOKUP($B16,retdat,MATCH(H$13,Data!$A$3:$CC$3,0),0) -> 0.040725 | I16: =VLOOKUP($B16,retdat,MATCH(I$13,Data!$A$3:$CC$3,0),0) -> 0.1452534864 | J16: =VLOOKUP($B16,retdat,MATCH(J$13,Data!$A$3:$CC$3,0),0) -> 0.1361117497 | K16: =VLOOKUP($B16,retdat,MATCH(K$13,Data!$A$3:$CC$3,0),0) -> 0.07705605628 | L16: =VLOOKUP($B16,retdat,MATCH(L$13,Data!$A$3:$CC$3,0),0) -> 0.1060924044 | M16: =VLOOKUP($B16,retdat,MATCH(M$13,Data!$A$3:$CC$3,0),0) -> 0.1417538261 | N16: =VLOOKUP($B16,retdat,MATCH(N$13,Data!$A$3:$CC$3,0),0) -> 0.08155 | O16: =VLOOKUP($B16,retdat,MATCH(O$13,Data!$A$3:$CC$3,0),0) -> 0.07384166667 | P16: =VLOOKUP($B16,retdat,MATCH(P$13,Data!$A$3:$CC$3,0),0) -> 0.0621 | Q16: =VLOOKUP($B16,retdat,MATCH(Q$13,Data!$A$3:$CC$3,0),0) -> 0.2872896395 | S16: =AVERAGE(C14:C16) -> 0.121573981 | T16: =AVERAGE(D14:D16) -> 0.07546666667 | U16: 0.1990941324 | V16: 0.04139679341 | W16: 0.03994799383 | X16: 0.04932222222 | Y16: 0.08288924171 | Z16: 0.08081543452 | AA16: 0.02568535209 | AB16: 0.0353641348 | AC16: 0.1218446103 | AD16: 0.08607777778 | AE16: 0.04978425926 | AF16: 0.065725 | AG16: 0.1270351226 | AI16: =GEOMEAN(C93:OFFSET(C93,$AI$2-1,0))-1 -> 0.1675464861 | AJ16: =GEOMEAN(D93:OFFSET(D93,$AI$2-1,0))-1 -> 0.07728163166 | AK16: =GEOMEAN(E93:OFFSET(E93,$AI$2-1,0))-1 -> 0.3162319152 | AL16: =GEOMEAN(F93:OFFSET(F93,$AI$2-1,0))-1 -> 0.08943631997 | AM16: =GEOMEAN(G93:OFFSET(G93,$AI$2-1,0))-1 -> 0.06346344551 | AN16: =GEOMEAN(H93:OFFSET(H93,$AI$2-1,0))-1 -> 0.05921231477 | AO16: =GEOMEAN(I93:OFFSET(I93,$AI$2-1,0))-1 -> -0.07916833448 | AP16: =GEOMEAN(J93:OFFSET(J93,$AI$2-1,0))-1 -> -0.06918736624 | AQ16: =GEOMEAN(K93:OFFSET(K93,$AI$2-1,0))-1 -> -0.07429644378 | AR16: =GEOMEAN(L93:OFFSET(L93,$AI$2-1,0))-1 -> -0.1937996725 | AS16: =GEOMEAN(M93:OFFSET(M93,$AI$2-1,0))-1 -> 0.1646010984 | AT16: =GEOMEAN(N93:OFFSET(N93,$AI$2-1,0))-1 -> 0.08710949778 | AU16: =GEOMEAN(O93:OFFSET(O93,$AI$2-1,0))-1 -> 0.06393030402 | AV16: =GEOMEAN(P93:OFFSET(P93,$AI$2-1,0))-1 -> 0.06821972052 | AW16: =GEOMEAN(Q93:OFFSET(Q93,$AI$2-1,0))-1 -> -0.04718219851 | AY16: 3
B17: 1973 | C17: =VLOOKUP($B17,retdat,MATCH(C$13,Data!$A$3:$CC$3,0),0) -> 0.1877347496 | D17: =VLOOKUP($B17,retdat,MATCH(D$13,Data!$A$3:$CC$3,0),0) -> 0.07440833333 | E17: =VLOOKUP($B17,retdat,MATCH(E$13,Data!$A$3:$CC$3,0),0) -> 0.5127327385 | F17: =VLOOKUP($B17,retdat,MATCH(F$13,Data!$A$3:$CC$3,0),0) -> 0.1426141072 | G17: =VLOOKUP($B17,retdat,MATCH(G$13,Data!$A$3:$CC$3,0),0) -> 0.08563788516 | H17: =VLOOKUP($B17,retdat,MATCH(H$13,Data!$A$3:$CC$3,0),0) -> 0.07031666667 | I17: =VLOOKUP($B17,retdat,MATCH(I$13,Data!$A$3:$CC$3,0),0) -> -0.1907431965 | J17: =VLOOKUP($B17,retdat,MATCH(J$13,Data!$A$3:$CC$3,0),0) -> -0.1812632934 | K17: =VLOOKUP($B17,retdat,MATCH(K$13,Data!$A$3:$CC$3,0),0) -> -0.1686453658 | L17: =VLOOKUP($B17,retdat,MATCH(L$13,Data!$A$3:$CC$3,0),0) -> -0.317683107 | M17: =VLOOKUP($B17,retdat,MATCH(M$13,Data!$A$3:$CC$3,0),0) -> 0.1796081405 | N17: =VLOOKUP($B17,retdat,MATCH(N$13,Data!$A$3:$CC$3,0),0) -> 0.08240833333 | O17: =VLOOKUP($B17,retdat,MATCH(O$13,Data!$A$3:$CC$3,0),0) -> 0.080725 | P17: =VLOOKUP($B17,retdat,MATCH(P$13,Data!$A$3:$CC$3,0),0) -> 0.068425 | Q17: =VLOOKUP($B17,retdat,MATCH(Q$13,Data!$A$3:$CC$3,0),0) -> -0.184137987 | S17: =AVERAGE(C15:C17) -> 0.1469542194 | T17: =AVERAGE(D15:D17) -> 0.07346944444 | U17: 0.3491563102 | V17: 0.0816684197 | W17: 0.05042501627 | X17: 0.05145555556 | Y17: 0.01898246098 | Z17: 0.004734367668 | AA17: -0.03052976983 | AB17: -0.0705302342 | AC17: 0.144963132 | AD17: 0.08319722222 | AE17: 0.07669259259 | AF17: 0.06403888889 | AG17: 0.1118023123 | AI17: =GEOMEAN(C94:OFFSET(C94,$AI$2-1,0))-1 -> 0.1850440966 | AJ17: =GEOMEAN(D94:OFFSET(D94,$AI$2-1,0))-1 -> 0.07884422238 | AK17: =GEOMEAN(E94:OFFSET(E94,$AI$2-1,0))-1 -> 0.2186454029 | AL17: =GEOMEAN(F94:OFFSET(F94,$AI$2-1,0))-1 -> 0.09350683332 | AM17: =GEOMEAN(G94:OFFSET(G94,$AI$2-1,0))-1 -> 0.06640439372 | AN17: =GEOMEAN(H94:OFFSET(H94,$AI$2-1,0))-1 -> 0.05798157816 | AO17: =GEOMEAN(I94:OFFSET(I94,$AI$2-1,0))-1 -> -0.03362971819 | AP17: =GEOMEAN(J94:OFFSET(J94,$AI$2-1,0))-1 -> -0.02437265629 | AQ17: =GEOMEAN(K94:OFFSET(K94,$AI$2-1,0))-1 -> -0.04371383317 | AR17: =GEOMEAN(L94:OFFSET(L94,$AI$2-1,0))-1 -> -0.1490689143 | AS17: =GEOMEAN(M94:OFFSET(M94,$AI$2-1,0))-1 -> 0.1802722291 | AT17: =GEOMEAN(N94:OFFSET(N94,$AI$2-1,0))-1 -> 0.09009221428 | AU17: =GEOMEAN(O94:OFFSET(O94,$AI$2-1,0))-1 -> 0.08247464921 | AV17: =GEOMEAN(P94:OFFSET(P94,$AI$2-1,0))-1 -> 0.06948876695 | AW17: =GEOMEAN(Q94:OFFSET(Q94,$AI$2-1,0))-1 -> 0.02996203341 | AY17: 4
B18: 1974 | C18: =VLOOKUP($B18,retdat,MATCH(C$13,Data!$A$3:$CC$3,0),0) -> 0.2950245994 | D18: =VLOOKUP($B18,retdat,MATCH(D$13,Data!$A$3:$CC$3,0),0) -> 0.08565833333 | E18: =VLOOKUP($B18,retdat,MATCH(E$13,Data!$A$3:$CC$3,0),0) -> 0.5435308079 | F18: =VLOOKUP($B18,retdat,MATCH(F$13,Data!$A$3:$CC$3,0),0) -> 0.189678395 | G18: =VLOOKUP($B18,retdat,MATCH(G$13,Data!$A$3:$CC$3,0),0) -> 0.1141768291 | H18: =VLOOKUP($B18,retdat,MATCH(H$13,Data!$A$3:$CC$3,0),0) -> 0.0783 | I18: =VLOOKUP($B18,retdat,MATCH(I$13,Data!$A$3:$CC$3,0),0) -> -0.3526557928 | J18: =VLOOKUP($B18,retdat,MATCH(J$13,Data!$A$3:$CC$3,0),0) -> -0.3227230267 | K18: =VLOOKUP($B18,retdat,MATCH(K$13,Data!$A$3:$CC$3,0),0) -> -0.2408370031 | L18: =VLOOKUP($B18,retdat,MATCH(L$13,Data!$A$3:$CC$3,0),0) -> -0.5487291122 | M18: =VLOOKUP($B18,retdat,MATCH(M$13,Data!$A$3:$CC$3,0),0) -> 0.2866280981 | N18: =VLOOKUP($B18,retdat,MATCH(N$13,Data!$A$3:$CC$3,0),0) -> 0.09496666667 | O18: =VLOOKUP($B18,retdat,MATCH(O$13,Data!$A$3:$CC$3,0),0) -> 0.09218333333 | P18: =VLOOKUP($B18,retdat,MATCH(P$13,Data!$A$3:$CC$3,0),0) -> 0.075575 | Q18: =VLOOKUP($B18,retdat,MATCH(Q$13,Data!$A$3:$CC$3,0),0) -> -0.2956802201 | S18: 0.208345127 | T18: 0.0774 | U18: 0.4804794426 | V18: 0.1316827824 | W18: 0.07777022289 | X18: 0.06311388889 | Y18: -0.1327151676 | Z18: -0.1226248568 | AA18: -0.1108087709 | AB18: -0.2534399383 | AC18: 0.2026633549 | AD18: 0.08630833333 | AE18: 0.08225 | AF18: 0.0687 | AG18: -0.06417618919 | AI18: =GEOMEAN(C95:OFFSET(C95,$AI$2-1,0))-1 -> 0.2082763673 | AJ18: =GEOMEAN(D95:OFFSET(D95,$AI$2-1,0))-1 -> 0.08094076866 | AK18: =GEOMEAN(E95:OFFSET(E95,$AI$2-1,0))-1 -> 0.1756751472 | AL18: =GEOMEAN(F95:OFFSET(F95,$AI$2-1,0))-1 -> 0.09480782582 | AM18: =GEOMEAN(G95:OFFSET(G95,$AI$2-1,0))-1 -> 0.06989260549 | AN18: =GEOMEAN(H95:OFFSET(H95,$AI$2-1,0))-1 -> 0.05927975 | AO18: =GEOMEAN(I95:OFFSET(I95,$AI$2-1,0))-1 -> -0.02119727776 | AP18: =GEOMEAN(J95:OFFSET(J95,$AI$2-1,0))-1 -> -0.00575077716 | AQ18: =GEOMEAN(K95:OFFSET(K95,$AI$2-1,0))-1 -> 0.02127924803 | AR18: =GEOMEAN(L95:OFFSET(L95,$AI$2-1,0))-1 -> -0.09001741021 | AS18: =GEOMEAN(M95:OFFSET(M95,$AI$2-1,0))-1 -> 0.2020826807 | AT18: =GEOMEAN(N95:OFFSET(N95,$AI$2-1,0))-1 -> 0.09245830751 | AU18: =GEOMEAN(O95:OFFSET(O95,$AI$2-1,0))-1 -> 0.08508667522 | AV18: =GEOMEAN(P95:OFFSET(P95,$AI$2-1,0))-1 -> 0.07239949019 | AW18: =GEOMEAN(Q95:OFFSET(Q95,$AI$2-1,0))-1 -> -0.01288268683 | AY18: 5 | AZ18: 0.2082763673 | BA18: 0.08094076866 | BB18: 0.1756751472 | BC18: 0.09480782582 | BD18: 0.06989260549 | BE18: 0.05927975 | BF18: -0.02119727776 | BG18: -0.00575077716 | BH18: 0.02127924803 | BI18: -0.09001741021 | BJ18: 0.2020826807 | BK18: 0.09245830751 | BL18: 0.08508667522 | BM18: 0.07239949019 | BN18: -0.01288268683
B19: 1975 | C19: =VLOOKUP($B19,retdat,MATCH(C$13,Data!$A$3:$CC$3,0),0) -> 0.1974237219 | D19: =VLOOKUP($B19,retdat,MATCH(D$13,Data!$A$3:$CC$3,0),0) -> 0.08825833333 | E19: =VLOOKUP($B19,retdat,MATCH(E$13,Data!$A$3:$CC$3,0),0) -> -0.2771095093 | F19: =VLOOKUP($B19,retdat,MATCH(F$13,Data!$A$3:$CC$3,0),0) -> 0.04103139668 | G19: =VLOOKUP($B19,retdat,MATCH(G$13,Data!$A$3:$CC$3,0),0) -> 0.06886441108 | H19: =VLOOKUP($B19,retdat,MATCH(H$13,Data!$A$3:$CC$3,0),0) -> 0.05775 | I19: =VLOOKUP($B19,retdat,MATCH(I$13,Data!$A$3:$CC$3,0),0) -> 0.2742092819 | J19: =VLOOKUP($B19,retdat,MATCH(J$13,Data!$A$3:$CC$3,0),0) -> 0.3244843141 | K19: =VLOOKUP($B19,retdat,MATCH(K$13,Data!$A$3:$CC$3,0),0) -> 0.1764668843 | L19: =VLOOKUP($B19,retdat,MATCH(L$13,Data!$A$3:$CC$3,0),0) -> 0.3099571676 | M19: =VLOOKUP($B19,retdat,MATCH(M$13,Data!$A$3:$CC$3,0),0) -> 0.1869891672 | N19: =VLOOKUP($B19,retdat,MATCH(N$13,Data!$A$3:$CC$3,0),0) -> 0.1061 | O19: =VLOOKUP($B19,retdat,MATCH(O$13,Data!$A$3:$CC$3,0),0) -> 0.09024166667 | P19: =VLOOKUP($B19,retdat,MATCH(P$13,Data!$A$3:$CC$3,0),0) -> 0.079875 | Q19: =VLOOKUP($B19,retdat,MATCH(Q$13,Data!$A$3:$CC$3,0),0) -> 0.2715765755 | S19: 0.2267276903 | T19: 0.082775 | U19: 0.2597180124 | V19: 0.1244412996 | W19: 0.08955970844 | X19: 0.06878888889 | Y19: -0.08972990245 | Z19: -0.05983400202 | AA19: -0.0776718282 | AB19: -0.1854850172 | AC19: 0.217741802 | AD19: 0.09449166667 | AE19: 0.08771666667 | AF19: 0.074625 | AG19: -0.06941387719 | AI19: =GEOMEAN(C96:OFFSET(C96,$AI$2-1,0))-1 -> 0.2290892643 | AJ19: =GEOMEAN(D96:OFFSET(D96,$AI$2-1,0))-1 -> 0.0825708334 | AK19: =GEOMEAN(E96:OFFSET(E96,$AI$2-1,0))-1 -> 0.1387064143 | AL19: =GEOMEAN(F96:OFFSET(F96,$AI$2-1,0))-1 -> 0.09372568226 | AM19: =GEOMEAN(G96:OFFSET(G96,$AI$2-1,0))-1 -> 0.07626554501 | AN19: =GEOMEAN(H96:OFFSET(H96,$AI$2-1,0))-1 -> 0.06170462593 | AO19: =GEOMEAN(I96:OFFSET(I96,$AI$2-1,0))-1 -> -0.07189956342 | AP19: =GEOMEAN(J96:OFFSET(J96,$AI$2-1,0))-1 -> -0.07070469845 | AQ19: =GEOMEAN(K96:OFFSET(K96,$AI$2-1,0))-1 -> 0.04400124044 | AR19: =GEOMEAN(L96:OFFSET(L96,$AI$2-1,0))-1 -> -0.07901513659 | AS19: =GEOMEAN(M96:OFFSET(M96,$AI$2-1,0))-1 -> 0.2192290072 | AT19: =GEOMEAN(N96:OFFSET(N96,$AI$2-1,0))-1 -> 0.09409813361 | AU19: =GEOMEAN(O96:OFFSET(O96,$AI$2-1,0))-1 -> 0.08802966593 | AV19: =GEOMEAN(P96:OFFSET(P96,$AI$2-1,0))-1 -> 0.07483023058 | AW19: =GEOMEAN(Q96:OFFSET(Q96,$AI$2-1,0))-1 -> -0.03719266119 | AY19: 6
B20: 1976 | C20: =VLOOKUP($B20,retdat,MATCH(C$13,Data!$A$3:$CC$3,0),0) -> 0.2240946595 | D20: =VLOOKUP($B20,retdat,MATCH(D$13,Data!$A$3:$CC$3,0),0) -> 0.08434166667 | E20: =VLOOKUP($B20,retdat,MATCH(E$13,Data!$A$3:$CC$3,0),0) -> -0.03931260539 | F20: =VLOOKUP($B20,retdat,MATCH(F$13,Data!$A$3:$CC$3,0),0) -> 0.04583453634 | G20: =VLOOKUP($B20,retdat,MATCH(G$13,Data!$A$3:$CC$3,0),0) -> 0.04913268858 | H20: =VLOOKUP($B20,retdat,MATCH(H$13,Data!$A$3:$CC$3,0),0) -> 0.04974166667 | I20: =VLOOKUP($B20,retdat,MATCH(I$13,Data!$A$3:$CC$3,0),0) -> 0.1752001291 | J20: =VLOOKUP($B20,retdat,MATCH(J$13,Data!$A$3:$CC$3,0),0) -> 0.1643883682 | K20: =VLOOKUP($B20,retdat,MATCH(K$13,Data!$A$3:$CC$3,0),0) -> 0.38925884 | L20: =VLOOKUP($B20,retdat,MATCH(L$13,Data!$A$3:$CC$3,0),0) -> 0.3985998253 | M20: =VLOOKUP($B20,retdat,MATCH(M$13,Data!$A$3:$CC$3,0),0) -> 0.2202861335 | N20: =VLOOKUP($B20,retdat,MATCH(N$13,Data!$A$3:$CC$3,0),0) -> 0.09746666667 | O20: =VLOOKUP($B20,retdat,MATCH(O$13,Data!$A$3:$CC$3,0),0) -> 0.08855 | P20: =VLOOKUP($B20,retdat,MATCH(P$13,Data!$A$3:$CC$3,0),0) -> 0.07611666667 | Q20: =VLOOKUP($B20,retdat,MATCH(Q$13,Data!$A$3:$CC$3,0),0) -> -0.003589133916 | S20: 0.2388476603 | T20: 0.08608611111 | U20: 0.07570289774 | V20: 0.09218144268 | W20: 0.07739130958 | X20: 0.06193055556 | Y20: 0.03225120608 | Z20: 0.05538321854 | AA20: 0.1082962404 | AB20: 0.05327596023 | AC20: 0.2313011329 | AD20: 0.09951111111 | AE20: 0.090325 | AF20: 0.07718888889 | AG20: -0.009230926168 | AI20: =GEOMEAN(C97:OFFSET(C97,$AI$2-1,0))-1 -> 0.2285211469 | AJ20: =GEOMEAN(D97:OFFSET(D97,$AI$2-1,0))-1 -> 0.08514639458 | AK20: =GEOMEAN(E97:OFFSET(E97,$AI$2-1,0))-1 -> 0.09762259677 | AL20: =GEOMEAN(F97:OFFSET(F97,$AI$2-1,0))-1 -> 0.08418908967 | AM20: =GEOMEAN(G97:OFFSET(G97,$AI$2-1,0))-1 -> 0.07635212175 | AN20: =GEOMEAN(H97:OFFSET(H97,$AI$2-1,0))-1 -> 0.06201525628 | AO20: =GEOMEAN(I97:OFFSET(I97,$AI$2-1,0))-1 -> -0.02973469056 | AP20: =GEOMEAN(J97:OFFSET(J97,$AI$2-1,0))-1 -> -0.03905742931 | AQ20: =GEOMEAN(K97:OFFSET(K97,$AI$2-1,0))-1 -> 0.1038049987 | AR20: =GEOMEAN(L97:OFFSET(L97,$AI$2-1,0))-1 -> -0.009153240223 | AS20: =GEOMEAN(M97:OFFSET(M97,$AI$2-1,0))-1 -> 0.2182744766 | AT20: =GEOMEAN(N97:OFFSET(N97,$AI$2-1,0))-1 -> 0.09660853249 | AU20: =GEOMEAN(O97:OFFSET(O97,$AI$2-1,0))-1 -> 0.09124730874 | AV20: =GEOMEAN(P97:OFFSET(P97,$AI$2-1,0))-1 -> 0.07796567835 | AW20: =GEOMEAN(Q97:OFFSET(Q97,$AI$2-1,0))-1 -> 0.04923754476 | AY20: 7
B21: 1977 | C21: =VLOOKUP($B21,retdat,MATCH(C$13,Data!$A$3:$CC$3,0),0) -> 0.2441042814 | D21: =VLOOKUP($B21,retdat,MATCH(D$13,Data!$A$3:$CC$3,0),0) -> 0.08024166667 | E21: =VLOOKUP($B21,retdat,MATCH(E$13,Data!$A$3:$CC$3,0),0) -> 0.1806650922 | F21: =VLOOKUP($B21,retdat,MATCH(F$13,Data!$A$3:$CC$3,0),0) -> 0.0575139062 | G21: =VLOOKUP($B21,retdat,MATCH(G$13,Data!$A$3:$CC$3,0),0) -> 0.06464553596 | H21: =VLOOKUP($B21,retdat,MATCH(H$13,Data!$A$3:$CC$3,0),0) -> 0.05269166667 | I21: =VLOOKUP($B21,retdat,MATCH(I$13,Data!$A$3:$CC$3,0),0) -> -0.1221897157 | J21: =VLOOKUP($B21,retdat,MATCH(J$13,Data!$A$3:$CC$3,0),0) -> -0.1895738287 | K21: =VLOOKUP($B21,retdat,MATCH(K$13,Data!$A$3:$CC$3,0),0) -> 0.2023221386 | L21: =VLOOKUP($B21,retdat,MATCH(L$13,Data!$A$3:$CC$3,0),0) -> 0.1745958342 | M21: =VLOOKUP($B21,retdat,MATCH(M$13,Data!$A$3:$CC$3,0),0) -> 0.2255392045 | N21: =VLOOKUP($B21,retdat,MATCH(N$13,Data!$A$3:$CC$3,0),0) -> 0.08969166667 | O21: =VLOOKUP($B21,retdat,MATCH(O$13,Data!$A$3:$CC$3,0),0) -> 0.08848333333 | P21: =VLOOKUP($B21,retdat,MATCH(P$13,Data!$A$3:$CC$3,0),0) -> 0.07419166667 | Q21: =VLOOKUP($B21,retdat,MATCH(Q$13,Data!$A$3:$CC$3,0),0) -> 0.1363951932 | S21: 0.2218742209 | T21: 0.08428055556 | U21: -0.04525234084 | V21: 0.04812661307 | W21: 0.06088087854 | X21: 0.05339444444 | Y21: 0.1090732318 | Z21: 0.09976628454 | AA21: 0.2560159543 | AB21: 0.2943842757 | AC21: 0.2109381684 | AD21: 0.09775277778 | AE21: 0.08909166667 | AF21: 0.07672777778 | AG21: 0.1347942116 | AI21: =GEOMEAN(C98:OFFSET(C98,$AI$2-1,0))-1 -> 0.216111608 | AJ21: =GEOMEAN(D98:OFFSET(D98,$AI$2-1,0))-1 -> 0.08726377922 | AK21: =GEOMEAN(E98:OFFSET(E98,$AI$2-1,0))-1 -> 0.1298277205 | AL21: =GEOMEAN(F98:OFFSET(F98,$AI$2-1,0))-1 -> 0.07447089113 | AM21: =GEOMEAN(G98:OFFSET(G98,$AI$2-1,0))-1 -> 0.07833352931 | AN21: =GEOMEAN(H98:OFFSET(H98,$AI$2-1,0))-1 -> 0.06638977016 | AO21: =GEOMEAN(I98:OFFSET(I98,$AI$2-1,0))-1 -> 0.08193876914 | AP21: =GEOMEAN(J98:OFFSET(J98,$AI$2-1,0))-1 -> 0.04721346608 | AQ21: =GEOMEAN(K98:OFFSET(K98,$AI$2-1,0))-1 -> 0.2303906688 | AR21: =GEOMEAN(L98:OFFSET(L98,$AI$2-1,0))-1 -> 0.2179610106 | AS21: =GEOMEAN(M98:OFFSET(M98,$AI$2-1,0))-1 -> 0.207510987 | AT21: =GEOMEAN(N98:OFFSET(N98,$AI$2-1,0))-1 -> 0.09898842561 | AU21: =GEOMEAN(O98:OFFSET(O98,$AI$2-1,0))-1 -> 0.09527564332 | AV21: =GEOMEAN(P98:OFFSET(P98,$AI$2-1,0))-1 -> 0.08171784586 | AW21: =GEOMEAN(Q98:OFFSET(Q98,$AI$2-1,0))-1 -> 0.1294502232 | AY21: 8
B22: 1978 | C22: =VLOOKUP($B22,retdat,MATCH(C$13,Data!$A$3:$CC$3,0),0) -> 0.1849922747 | D22: =VLOOKUP($B22,retdat,MATCH(D$13,Data!$A$3:$CC$3,0),0) -> 0.08725 | E22: =VLOOKUP($B22,retdat,MATCH(E$13,Data!$A$3:$CC$3,0),0) -> 0.2588342981 | F22: =VLOOKUP($B22,retdat,MATCH(F$13,Data!$A$3:$CC$3,0),0) -> 0.0936609216 | G22: =VLOOKUP($B22,retdat,MATCH(G$13,Data!$A$3:$CC$3,0),0) -> 0.08607460877 | H22: =VLOOKUP($B22,retdat,MATCH(H$13,Data!$A$3:$CC$3,0),0) -> 0.07188333333 | I22: =VLOOKUP($B22,retdat,MATCH(I$13,Data!$A$3:$CC$3,0),0) -> 0.01056439928 | J22: =VLOOKUP($B22,retdat,MATCH(J$13,Data!$A$3:$CC$3,0),0) -> -0.03202816237 | K22: =VLOOKUP($B22,retdat,MATCH(K$13,Data!$A$3:$CC$3,0),0) -> 0.09835575791 | L22: =VLOOKUP($B22,retdat,MATCH(L$13,Data!$A$3:$CC$3,0),0) -> -0.01654129523 | M22: =VLOOKUP($B22,retdat,MATCH(M$13,Data!$A$3:$CC$3,0),0) -> 0.1749978071 | N22: =VLOOKUP($B22,retdat,MATCH(N$13,Data!$A$3:$CC$3,0),0) -> 0.09488333333 | O22: =VLOOKUP($B22,retdat,MATCH(O$13,Data!$A$3:$CC$3,0),0) -> 0.0968 | P22: =VLOOKUP($B22,retdat,MATCH(P$13,Data!$A$3:$CC$3,0),0) -> 0.0841 | Q22: =VLOOKUP($B22,retdat,MATCH(Q$13,Data!$A$3:$CC$3,0),0) -> 0.2539749632 | S22: 0.2177304052 | T22: 0.08394444444 | U22: 0.133395595 | V22: 0.06566978805 | W22: 0.0666176111 | X22: 0.05810555556 | Y22: 0.02119160422 | Z22: -0.0190712076 | AA22: 0.2299789122 | AB22: 0.1855514548 | AC22: 0.2069410484 | AD22: 0.09401388889 | AE22: 0.09127777778 | AF22: 0.07813611111 | AG22: 0.1289270075 | AI22: =GEOMEAN(C99:OFFSET(C99,$AI$2-1,0))-1 -> 0.2200888057 | AJ22: =GEOMEAN(D99:OFFSET(D99,$AI$2-1,0))-1 -> 0.0934131365 | AK22: =GEOMEAN(E99:OFFSET(E99,$AI$2-1,0))-1 -> 0.2435879684 | AL22: =GEOMEAN(F99:OFFSET(F99,$AI$2-1,0))-1 -> 0.08981474938 | AM22: =GEOMEAN(G99:OFFSET(G99,$AI$2-1,0))-1 -> 0.08777460427 | AN22: =GEOMEAN(H99:OFFSET(H99,$AI$2-1,0))-1 -> 0.07756390977 | AO22: =GEOMEAN(I99:OFFSET(I99,$AI$2-1,0))-1 -> 0.07420466106 | AP22: =GEOMEAN(J99:OFFSET(J99,$AI$2-1,0))-1 -> 0.01612880695 | AQ22: =GEOMEAN(K99:OFFSET(K99,$AI$2-1,0))-1 -> 0.2389749336 | AR22: =GEOMEAN(L99:OFFSET(L99,$AI$2-1,0))-1 -> 0.2060244116 | AS22: =GEOMEAN(M99:OFFSET(M99,$AI$2-1,0))-1 -> 0.2142406101 | AT22: =GEOMEAN(N99:OFFSET(N99,$AI$2-1,0))-1 -> 0.104999645 | AU22: =GEOMEAN(O99:OFFSET(O99,$AI$2-1,0))-1 -> 0.1047884464 | AV22: =GEOMEAN(P99:OFFSET(P99,$AI$2-1,0))-1 -> 0.08858690309 | AW22: =GEOMEAN(Q99:OFFSET(Q99,$AI$2-1,0))-1 -> 0.1115703773 | AY22: 9
B23: 1979 | C23: =VLOOKUP($B23,retdat,MATCH(C$13,Data!$A$3:$CC$3,0),0) -> 0.2309261698 | D23: =VLOOKUP($B23,retdat,MATCH(D$13,Data!$A$3:$CC$3,0),0) -> 0.09629166667 | E23: =VLOOKUP($B23,retdat,MATCH(E$13,Data!$A$3:$CC$3,0),0) -> 0.783656562 | F23: =VLOOKUP($B23,retdat,MATCH(F$13,Data!$A$3:$CC$3,0),0) -> 0.1373069248 | G23: =VLOOKUP($B23,retdat,MATCH(G$13,Data!$A$3:$CC$3,0),0) -> 0.1244698419 | H23: =VLOOKUP($B23,retdat,MATCH(H$13,Data!$A$3:$CC$3,0),0) -> 0.1006916667 | I23: =VLOOKUP($B23,retdat,MATCH(I$13,Data!$A$3:$CC$3,0),0) -> 0.1160821484 | J23: =VLOOKUP($B23,retdat,MATCH(J$13,Data!$A$3:$CC$3,0),0) -> 0.04101079657 | K23: =VLOOKUP($B23,retdat,MATCH(K$13,Data!$A$3:$CC$3,0),0) -> 0.3064367636 | L23: =VLOOKUP($B23,retdat,MATCH(L$13,Data!$A$3:$CC$3,0),0) -> 0.2664025584 | M23: =VLOOKUP($B23,retdat,MATCH(M$13,Data!$A$3:$CC$3,0),0) -> 0.2307865979 | N23: =VLOOKUP($B23,retdat,MATCH(N$13,Data!$A$3:$CC$3,0),0) -> 0.1069 | O23: =VLOOKUP($B23,retdat,MATCH(O$13,Data!$A$3:$CC$3,0),0) -> 0.1124916667 | P23: =VLOOKUP($B23,retdat,MATCH(P$13,Data!$A$3:$CC$3,0),0) -> 0.094425 | Q23: =VLOOKUP($B23,retdat,MATCH(Q$13,Data!$A$3:$CC$3,0),0) -> 0.01797297956 | S23: 0.2200075753 | T23: 0.08792777778 | U23: 0.4077186508 | V23: 0.09616058421 | W23: 0.09172999556 | X23: 0.07508888889 | Y23: 0.00148561063 | Z23: -0.06019706483 | AA23: 0.2023715534 | AB23: 0.1414856991 | AC23: 0.2104412032 | AD23: 0.09715833333 | AE23: 0.09925833333 | AF23: 0.08423888889 | AG23: 0.1361143786 | AI23: =GEOMEAN(C100:OFFSET(C100,$AI$2-1,0))-1 -> 0.2078091761 | AJ23: =GEOMEAN(D100:OFFSET(D100,$AI$2-1,0))-1 -> 0.1047451211 | AK23: =GEOMEAN(E100:OFFSET(E100,$AI$2-1,0))-1 -> 0.1764962219 | AL23: =GEOMEAN(F100:OFFSET(F100,$AI$2-1,0))-1 -> 0.09108272721 | AM23: =GEOMEAN(G100:OFFSET(G100,$AI$2-1,0))-1 -> 0.09518736284 | AN23: =GEOMEAN(H100:OFFSET(H100,$AI$2-1,0))-1 -> 0.09553578081 | AO23: =GEOMEAN(I100:OFFSET(I100,$AI$2-1,0))-1 -> 0.01785094802 | AP23: =GEOMEAN(J100:OFFSET(J100,$AI$2-1,0))-1 -> -0.03421713685 | AQ23: =GEOMEAN(K100:OFFSET(K100,$AI$2-1,0))-1 -> 0.173344982 | AR23: =GEOMEAN(L100:OFFSET(L100,$AI$2-1,0))-1 -> 0.1457373677 | AS23: =GEOMEAN(M100:OFFSET(M100,$AI$2-1,0))-1 -> 0.2000707355 | AT23: =GEOMEAN(N100:OFFSET(N100,$AI$2-1,0))-1 -> 0.1173996569 | AU23: =GEOMEAN(O100:OFFSET(O100,$AI$2-1,0))-1 -> 0.1203043509 | AV23: =GEOMEAN(P100:OFFSET(P100,$AI$2-1,0))-1 -> 0.1010428962 | AW23: =GEOMEAN(Q100:OFFSET(Q100,$AI$2-1,0))-1 -> 0.1010861063 | AY23: 10 | AZ23: 0.2078091761 | BA23: 0.1047451211 | BB23: 0.1764962219 | BC23: 0.09108272721 | BD23: 0.09518736284 | BE23: 0.09553578081 | BF23: 0.01785094802 | BG23: -0.03421713685 | BH23: 0.173344982 | BI23: 0.1457373677 | BJ23: 0.2000707355 | BK23: 0.1173996569 | BL23: 0.1203043509 | BM23: 0.1010428962 | BN23: 0.1010861063
B24: 1980 | C24: =VLOOKUP($B24,retdat,MATCH(C$13,Data!$A$3:$CC$3,0),0) -> 0.2171326163 | D24: =VLOOKUP($B24,retdat,MATCH(D$13,Data!$A$3:$CC$3,0),0) -> 0.1193833333 | E24: =VLOOKUP($B24,retdat,MATCH(E$13,Data!$A$3:$CC$3,0),0) -> 0.1678684871 | F24: =VLOOKUP($B24,retdat,MATCH(F$13,Data!$A$3:$CC$3,0),0) -> 0.1175165466 | G24: =VLOOKUP($B24,retdat,MATCH(G$13,Data!$A$3:$CC$3,0),0) -> 0.1164817993 | H24: =VLOOKUP($B24,retdat,MATCH(H$13,Data!$A$3:$CC$3,0),0) -> 0.1143416667 | I24: =VLOOKUP($B24,retdat,MATCH(I$13,Data!$A$3:$CC$3,0),0) -> 0.2293131037 | J24: =VLOOKUP($B24,retdat,MATCH(J$13,Data!$A$3:$CC$3,0),0) -> 0.1392382206 | K24: =VLOOKUP($B24,retdat,MATCH(K$13,Data!$A$3:$CC$3,0),0) -> 0.2180837879 | L24: =VLOOKUP($B24,retdat,MATCH(L$13,Data!$A$3:$CC$3,0),0) -> 0.2470120763 | M24: =VLOOKUP($B24,retdat,MATCH(M$13,Data!$A$3:$CC$3,0),0) -> 0.2204361657 | N24: =VLOOKUP($B24,retdat,MATCH(N$13,Data!$A$3:$CC$3,0),0) -> 0.1366833333 | O24: =VLOOKUP($B24,retdat,MATCH(O$13,Data!$A$3:$CC$3,0),0) -> 0.1384166667 | P24: =VLOOKUP($B24,retdat,MATCH(P$13,Data!$A$3:$CC$3,0),0) -> 0.1146 | Q24: =VLOOKUP($B24,retdat,MATCH(Q$13,Data!$A$3:$CC$3,0),0) -> 0.1740642491 | S24: 0.2110170203 | T24: 0.100975 | U24: 0.4034531157 | V24: 0.1161614644 | W24: 0.10900875 | X24: 0.09563888889 | Y24: 0.1186532171 | Z24: 0.04940695161 | AA24: 0.2076254365 | AB24: 0.1656244465 | AC24: 0.2087401902 | AD24: 0.1128222222 | AE24: 0.1159027778 | AF24: 0.09770833333 | AG24: 0.1486707306 | AI24: =GEOMEAN(C101:OFFSET(C101,$AI$2-1,0))-1 -> 0.1683453136 | AJ24: =GEOMEAN(D101:OFFSET(D101,$AI$2-1,0))-1 -> 0.1162894454 | AK24: =GEOMEAN(E101:OFFSET(E101,$AI$2-1,0))-1 -> 0.1558355485 | AL24: =GEOMEAN(F101:OFFSET(F101,$AI$2-1,0))-1 -> 0.08260440162 | AM24: =GEOMEAN(G101:OFFSET(G101,$AI$2-1,0))-1 -> 0.08955380138 | AN24: =GEOMEAN(H101:OFFSET(H101,$AI$2-1,0))-1 -> 0.1064415587 | AO24: =GEOMEAN(I101:OFFSET(I101,$AI$2-1,0))-1 -> 0.07203362467 | AP24: =GEOMEAN(J101:OFFSET(J101,$AI$2-1,0))-1 -> 0.04097017524 | AQ24: =GEOMEAN(K101:OFFSET(K101,$AI$2-1,0))-1 -> 0.1720249535 | AR24: =GEOMEAN(L101:OFFSET(L101,$AI$2-1,0))-1 -> 0.164674892 | AS24: =GEOMEAN(M101:OFFSET(M101,$AI$2-1,0))-1 -> 0.1635841968 | AT24: =GEOMEAN(N101:OFFSET(N101,$AI$2-1,0))-1 -> 0.1316815258 | AU24: =GEOMEAN(O101:OFFSET(O101,$AI$2-1,0))-1 -> 0.1345768853 | AV24: =GEOMEAN(P101:OFFSET(P101,$AI$2-1,0))-1 -> 0.112256246 | AW24: =GEOMEAN(Q101:OFFSET(Q101,$AI$2-1,0))-1 -> 0.06291495491 | AY24: 11
B25: 1981 | C25: =VLOOKUP($B25,retdat,MATCH(C$13,Data!$A$3:$CC$3,0),0) -> 0.1637224548 | D25: =VLOOKUP($B25,retdat,MATCH(D$13,Data!$A$3:$CC$3,0),0) -> 0.1417083333 | E25: =VLOOKUP($B25,retdat,MATCH(E$13,Data!$A$3:$CC$3,0),0) -> -0.271965067 | F25: =VLOOKUP($B25,retdat,MATCH(F$13,Data!$A$3:$CC$3,0),0) -> 0.05193274874 | G25: =VLOOKUP($B25,retdat,MATCH(G$13,Data!$A$3:$CC$3,0),0) -> 0.08537037078 | H25: =VLOOKUP($B25,retdat,MATCH(H$13,Data!$A$3:$CC$3,0),0) -> 0.14025 | I25: =VLOOKUP($B25,retdat,MATCH(I$13,Data!$A$3:$CC$3,0),0) -> -0.102369511 | J25: =VLOOKUP($B25,retdat,MATCH(J$13,Data!$A$3:$CC$3,0),0) -> -0.09686740825 | K25: =VLOOKUP($B25,retdat,MATCH(K$13,Data!$A$3:$CC$3,0),0) -> 0.05827654452 | L25: =VLOOKUP($B25,retdat,MATCH(L$13,Data!$A$3:$CC$3,0),0) -> 0.08227683944 | M25: =VLOOKUP($B25,retdat,MATCH(M$13,Data!$A$3:$CC$3,0),0) -> 0.1507265529 | N25: =VLOOKUP($B25,retdat,MATCH(N$13,Data!$A$3:$CC$3,0),0) -> 0.1604416667 | O25: =VLOOKUP($B25,retdat,MATCH(O$13,Data!$A$3:$CC$3,0),0) -> 0.1671666667 | P25: =VLOOKUP($B25,retdat,MATCH(P$13,Data!$A$3:$CC$3,0),0) -> 0.1391083333 | Q25: =VLOOKUP($B25,retdat,MATCH(Q$13,Data!$A$3:$CC$3,0),0) -> -0.04970149596 | S25: 0.2039270803 | T25: 0.1191277778 | U25: 0.226519994 | V25: 0.1022520734 | W25: 0.108774004 | X25: 0.1184277778 | Y25: 0.08100858038 | Z25: 0.02779386965 | AA25: 0.1942656987 | AB25: 0.1985638247 | AC25: 0.2006497722 | AD25: 0.134675 | AE25: 0.1393583333 | AF25: 0.1160444444 | AG25: 0.04744524422 | AI25: =GEOMEAN(C102:OFFSET(C102,$AI$2-1,0))-1 -> 0.1327637245 | AJ25: =GEOMEAN(D102:OFFSET(D102,$AI$2-1,0))-1 -> 0.1230183362 | AK25: =GEOMEAN(E102:OFFSET(E102,$AI$2-1,0))-1 -> 0.07225639617 | AL25: =GEOMEAN(F102:OFFSET(F102,$AI$2-1,0))-1 -> 0.06714058691 | AM25: =GEOMEAN(G102:OFFSET(G102,$AI$2-1,0))-1 -> 0.0795602016 | AN25: =GEOMEAN(H102:OFFSET(H102,$AI$2-1,0))-1 -> 0.109362817 | AO25: =GEOMEAN(I102:OFFSET(I102,$AI$2-1,0))-1 -> 0.1018845719 | AP25: =GEOMEAN(J102:OFFSET(J102,$AI$2-1,0))-1 -> 0.08386783568 | AQ25: =GEOMEAN(K102:OFFSET(K102,$AI$2-1,0))-1 -> 0.2060365675 | AR25: =GEOMEAN(L102:OFFSET(L102,$AI$2-1,0))-1 -> 0.2173471229 | AS25: =GEOMEAN(M102:OFFSET(M102,$AI$2-1,0))-1 -> 0.129262937 | AT25: =GEOMEAN(N102:OFFSET(N102,$AI$2-1,0))-1 -> 0.1399643561 | AU25: =GEOMEAN(O102:OFFSET(O102,$AI$2-1,0))-1 -> 0.1418147012 | AV25: =GEOMEAN(P102:OFFSET(P102,$AI$2-1,0))-1 -> 0.1177320525 | AW25: =GEOMEAN(Q102:OFFSET(Q102,$AI$2-1,0))-1 -> 0.05182462302 | AY25: 12
B26: 1982 | C26: =VLOOKUP($B26,retdat,MATCH(C$13,Data!$A$3:$CC$3,0),0) -> 0.05371039695 | D26: =VLOOKUP($B26,retdat,MATCH(D$13,Data!$A$3:$CC$3,0),0) -> 0.137875 | E26: =VLOOKUP($B26,retdat,MATCH(E$13,Data!$A$3:$CC$3,0),0) -> 0.08057340715 | F26: =VLOOKUP($B26,retdat,MATCH(F$13,Data!$A$3:$CC$3,0),0) -> 0.01706012275 | G26: =VLOOKUP($B26,retdat,MATCH(G$13,Data!$A$3:$CC$3,0),0) -> 0.03754351246 | H26: =VLOOKUP($B26,retdat,MATCH(H$13,Data!$A$3:$CC$3,0),0) -> 0.1061416667 | I26: =VLOOKUP($B26,retdat,MATCH(I$13,Data!$A$3:$CC$3,0),0) -> 0.137684324 | J26: =VLOOKUP($B26,retdat,MATCH(J$13,Data!$A$3:$CC$3,0),0) -> 0.1789826555 | K26: =VLOOKUP($B26,retdat,MATCH(K$13,Data!$A$3:$CC$3,0),0) -> 0.1955741978 | L26: =VLOOKUP($B26,retdat,MATCH(L$13,Data!$A$3:$CC$3,0),0) -> 0.2749308599 | M26: =VLOOKUP($B26,retdat,MATCH(M$13,Data!$A$3:$CC$3,0),0) -> 0.05022427739 | N26: =VLOOKUP($B26,retdat,MATCH(N$13,Data!$A$3:$CC$3,0),0) -> 0.1611333333 | O26: =VLOOKUP($B26,retdat,MATCH(O$13,Data!$A$3:$CC$3,0),0) -> 0.1596083333 | P26: =VLOOKUP($B26,retdat,MATCH(P$13,Data!$A$3:$CC$3,0),0) -> 0.1300166667 | Q26: =VLOOKUP($B26,retdat,MATCH(Q$13,Data!$A$3:$CC$3,0),0) -> -0.04738906566 | S26: 0.144855156 | T26: 0.1329888889 | U26: -0.007841057573 | V26: 0.06216980604 | W26: 0.07979856085 | X26: 0.1202444444 | Y26: 0.08820930558 | Z26: 0.0737844893 | AA26: 0.1573115101 | AB26: 0.2014065919 | AC26: 0.140462332 | AD26: 0.1527527778 | AE26: 0.1550638889 | AF26: 0.1279083333 | AG26: 0.02565789581 | AI26: =GEOMEAN(C103:OFFSET(C103,$AI$2-1,0))-1 -> 0.1028754995 | AJ26: =GEOMEAN(D103:OFFSET(D103,$AI$2-1,0))-1 -> 0.1292587711 | AK26: =GEOMEAN(E103:OFFSET(E103,$AI$2-1,0))-1 -> -0.08547473962 | AL26: =GEOMEAN(F103:OFFSET(F103,$AI$2-1,0))-1 -> 0.04244507888 | AM26: =GEOMEAN(G103:OFFSET(G103,$AI$2-1,0))-1 -> 0.06275637985 | AN26: =GEOMEAN(H103:OFFSET(H103,$AI$2-1,0))-1 -> 0.1082586748 | AO26: =GEOMEAN(I103:OFFSET(I103,$AI$2-1,0))-1 -> 0.08092769797 | AP26: =GEOMEAN(J103:OFFSET(J103,$AI$2-1,0))-1 -> 0.0668786934 | AQ26: =GEOMEAN(K103:OFFSET(K103,$AI$2-1,0))-1 -> 0.1837325435 | AR26: =GEOMEAN(L103:OFFSET(L103,$AI$2-1,0))-1 -> 0.1916270131 | AS26: =GEOMEAN(M103:OFFSET(M103,$AI$2-1,0))-1 -> 0.09920473079 | AT26: =GEOMEAN(N103:OFFSET(N103,$AI$2-1,0))-1 -> 0.1470839663 | AU26: =GEOMEAN(O103:OFFSET(O103,$AI$2-1,0))-1 -> 0.1471243879 | AV26: =GEOMEAN(P103:OFFSET(P103,$AI$2-1,0))-1 -> 0.123785396 | AW26: =GEOMEAN(Q103:OFFSET(Q103,$AI$2-1,0))-1 -> 0.05815620891 | AY26: 13
B27: 1983 | C27: =VLOOKUP($B27,retdat,MATCH(C$13,Data!$A$3:$CC$3,0),0) -> 0.01521044803 | D27: =VLOOKUP($B27,retdat,MATCH(D$13,Data!$A$3:$CC$3,0),0) -> 0.1204166667 | E27: =VLOOKUP($B27,retdat,MATCH(E$13,Data!$A$3:$CC$3,0),0) -> -0.1350688104 | F27: =VLOOKUP($B27,retdat,MATCH(F$13,Data!$A$3:$CC$3,0),0) -> 0.01775194546 | G27: =VLOOKUP($B27,retdat,MATCH(G$13,Data!$A$3:$CC$3,0),0) -> 0.03717153211 | H27: =VLOOKUP($B27,retdat,MATCH(H$13,Data!$A$3:$CC$3,0),0) -> 0.08610833333 | I27: =VLOOKUP($B27,retdat,MATCH(I$13,Data!$A$3:$CC$3,0),0) -> 0.1593177075 | J27: =VLOOKUP($B27,retdat,MATCH(J$13,Data!$A$3:$CC$3,0),0) -> 0.1845487292 | K27: =VLOOKUP($B27,retdat,MATCH(K$13,Data!$A$3:$CC$3,0),0) -> 0.2672465556 | L27: =VLOOKUP($B27,retdat,MATCH(L$13,Data!$A$3:$CC$3,0),0) -> 0.2268874719 | M27: =VLOOKUP($B27,retdat,MATCH(M$13,Data!$A$3:$CC$3,0),0) -> 0.01163386195 | N27: =VLOOKUP($B27,retdat,MATCH(N$13,Data!$A$3:$CC$3,0),0) -> 0.1355416667 | O27: =VLOOKUP($B27,retdat,MATCH(O$13,Data!$A$3:$CC$3,0),0) -> 0.1322333333 | P27: =VLOOKUP($B27,retdat,MATCH(P$13,Data!$A$3:$CC$3,0),0) -> 0.11105 | Q27: =VLOOKUP($B27,retdat,MATCH(Q$13,Data!$A$3:$CC$3,0),0) -> 0.1899067955 | S27: 0.07754776658 | T27: 0.1333333333 | U27: -0.1088201567 | V27: 0.02891493898 | W27: 0.05336180512 | X27: 0.1108333333 | Y27: 0.06487750684 | Z27: 0.08888799216 | AA27: 0.1736990993 | AB27: 0.1946983904 | AC27: 0.07086156407 | AD27: 0.1523722222 | AE27: 0.1530027778 | AF27: 0.126725 | AG27: 0.03093874461 | AI27: =GEOMEAN(C104:OFFSET(C104,$AI$2-1,0))-1 -> 0.05023554378 | AJ27: =GEOMEAN(D104:OFFSET(D104,$AI$2-1,0))-1 -> 0.1281164934 | AK27: =GEOMEAN(E104:OFFSET(E104,$AI$2-1,0))-1 -> -0.1121211174 | AL27: =GEOMEAN(F104:OFFSET(F104,$AI$2-1,0))-1 -> 0.01973243122 | AM27: =GEOMEAN(G104:OFFSET(G104,$AI$2-1,0))-1 -> 0.04721783849 | AN27: =GEOMEAN(H104:OFFSET(H104,$AI$2-1,0))-1 -> 0.100277732 | AO27: =GEOMEAN(I104:OFFSET(I104,$AI$2-1,0))-1 -> 0.08170760603 | AP27: =GEOMEAN(J104:OFFSET(J104,$AI$2-1,0))-1 -> 0.08584766911 | AQ27: =GEOMEAN(K104:OFFSET(K104,$AI$2-1,0))-1 -> 0.1751902577 | AR27: =GEOMEAN(L104:OFFSET(L104,$AI$2-1,0))-1 -> 0.1529842322 | AS27: =GEOMEAN(M104:OFFSET(M104,$AI$2-1,0))-1 -> 0.04750234681 | AT27: =GEOMEAN(N104:OFFSET(N104,$AI$2-1,0))-1 -> 0.145153366 | AU27: =GEOMEAN(O104:OFFSET(O104,$AI$2-1,0))-1 -> 0.1441057487 | AV27: =GEOMEAN(P104:OFFSET(P104,$AI$2-1,0))-1 -> 0.1220931841 | AW27: =GEOMEAN(Q104:OFFSET(Q104,$AI$2-1,0))-1 -> 0.09996370167 | AY27: 14
B28: 1984 | C28: =VLOOKUP($B28,retdat,MATCH(C$13,Data!$A$3:$CC$3,0),0) -> 0.07688117641 | D28: =VLOOKUP($B28,retdat,MATCH(D$13,Data!$A$3:$CC$3,0),0) -> 0.1270916667 | E28: =VLOOKUP($B28,retdat,MATCH(E$13,Data!$A$3:$CC$3,0),0) -> -0.194998783 | F28: =VLOOKUP($B28,retdat,MATCH(F$13,Data!$A$3:$CC$3,0),0) -> 0.01166193975 | G28: =VLOOKUP($B28,retdat,MATCH(G$13,Data!$A$3:$CC$3,0),0) -> 0.03963786176 | H28: =VLOOKUP($B28,retdat,MATCH(H$13,Data!$A$3:$CC$3,0),0) -> 0.095225 | I28: =VLOOKUP($B28,retdat,MATCH(I$13,Data!$A$3:$CC$3,0),0) -> 0.01390876503 | J28: =VLOOKUP($B28,retdat,MATCH(J$13,Data!$A$3:$CC$3,0),0) -> -0.03805819194 | K28: =VLOOKUP($B28,retdat,MATCH(K$13,Data!$A$3:$CC$3,0),0) -> 0.1900191517 | L28: =VLOOKUP($B28,retdat,MATCH(L$13,Data!$A$3:$CC$3,0),0) -> 0.1381547347 | M28: =VLOOKUP($B28,retdat,MATCH(M$13,Data!$A$3:$CC$3,0),0) -> 0.0754750255 | N28: =VLOOKUP($B28,retdat,MATCH(N$13,Data!$A$3:$CC$3,0),0) -> 0.1419 | O28: =VLOOKUP($B28,retdat,MATCH(O$13,Data!$A$3:$CC$3,0),0) -> 0.1386 | P28: =VLOOKUP($B28,retdat,MATCH(P$13,Data!$A$3:$CC$3,0),0) -> 0.1243833333 | Q28: =VLOOKUP($B28,retdat,MATCH(Q$13,Data!$A$3:$CC$3,0),0) -> 0.04898313685 | S28: 0.0486006738 | T28: 0.1284611111 | U28: -0.08316472873 | V28: 0.01549133598 | W28: 0.03811763544 | X28: 0.095825 | Y28: 0.1036369322 | Z28: 0.1084910643 | AA28: 0.2176133017 | AB28: 0.2133243555 | AC28: 0.04577772161 | AD28: 0.1461916667 | AE28: 0.1434805556 | AF28: 0.1218166667 | AG28: 0.06383362222 | AI28: =GEOMEAN(C105:OFFSET(C105,$AI$2-1,0))-1 -> 0.01393350696 | AJ28: =GEOMEAN(D105:OFFSET(D105,$AI$2-1,0))-1 -> 0.1177503488 | AK28: =GEOMEAN(E105:OFFSET(E105,$AI$2-1,0))-1 -> -0.01973565658 | AL28: =GEOMEAN(F105:OFFSET(F105,$AI$2-1,0))-1 -> 0.001590249315 | AM28: =GEOMEAN(G105:OFFSET(G105,$AI$2-1,0))-1 -> 0.03262007807 | AN28: =GEOMEAN(H105:OFFSET(H105,$AI$2-1,0))-1 -> 0.08429067903 | AO28: =GEOMEAN(I105:OFFSET(I105,$AI$2-1,0))-1 -> 0.1339681743 | AP28: =GEOMEAN(J105:OFFSET(J105,$AI$2-1,0))-1 -> 0.1500498873 | AQ28: =GEOMEAN(K105:OFFSET(K105,$AI$2-1,0))-1 -> 0.2000973012 | AR28: =GEOMEAN(L105:OFFSET(L105,$AI$2-1,0))-1 -> 0.1721819911 | AS28: =GEOMEAN(M105:OFFSET(M105,$AI$2-1,0))-1 -> 0.01470372208 | AT28: =GEOMEAN(N105:OFFSET(N105,$AI$2-1,0))-1 -> 0.1337716506 | AU28: =GEOMEAN(O105:OFFSET(O105,$AI$2-1,0))-1 -> 0.1308755252 | AV28: =GEOMEAN(P105:OFFSET(P105,$AI$2-1,0))-1 -> 0.1095450609 | AW28: =GEOMEAN(Q105:OFFSET(Q105,$AI$2-1,0))-1 -> 0.2069659918 | AY28: 15 | AZ28: 0.01393350696 | BA28: 0.1177503488 | BB28: -0.01973565658 | BC28: 0.001590249315 | BD28: 0.03262007807 | BE28: 0.08429067903 | BF28: 0.1339681743 | BG28: 0.1500498873 | BH28: 0.2000973012 | BI28: 0.1721819911 | BJ28: 0.01470372208 | BK28: 0.1337716506 | BL28: 0.1308755252 | BM28: 0.1095450609 | BN28: 0.2069659918
B29: 1985 | C29: =VLOOKUP($B29,retdat,MATCH(C$13,Data!$A$3:$CC$3,0),0) -> -0.04689879738 | D29: =VLOOKUP($B29,retdat,MATCH(D$13,Data!$A$3:$CC$3,0),0) -> 0.1137333333 | E29: =VLOOKUP($B29,retdat,MATCH(E$13,Data!$A$3:$CC$3,0),0) -> 0.007358476705 | F29: =VLOOKUP($B29,retdat,MATCH(F$13,Data!$A$3:$CC$3,0),0) -> 0.00096571712 | G29: =VLOOKUP($B29,retdat,MATCH(G$13,Data!$A$3:$CC$3,0),0) -> 0.03721359634 | H29: =VLOOKUP($B29,retdat,MATCH(H$13,Data!$A$3:$CC$3,0),0) -> 0.07479166667 | I29: =VLOOKUP($B29,retdat,MATCH(I$13,Data!$A$3:$CC$3,0),0) -> 0.2337543615 | J29: =VLOOKUP($B29,retdat,MATCH(J$13,Data!$A$3:$CC$3,0),0) -> 0.2441818289 | K29: =VLOOKUP($B29,retdat,MATCH(K$13,Data!$A$3:$CC$3,0),0) -> 0.1747626707 | L29: =VLOOKUP($B29,retdat,MATCH(L$13,Data!$A$3:$CC$3,0),0) -> 0.05751321001 | M29: =VLOOKUP($B29,retdat,MATCH(M$13,Data!$A$3:$CC$3,0),0) -> -0.04082655284 | N29: =VLOOKUP($B29,retdat,MATCH(N$13,Data!$A$3:$CC$3,0),0) -> 0.12715 | O29: =VLOOKUP($B29,retdat,MATCH(O$13,Data!$A$3:$CC$3,0),0) -> 0.1235166667 | P29: =VLOOKUP($B29,retdat,MATCH(P$13,Data!$A$3:$CC$3,0),0) -> 0.1062333333 | Q29: =VLOOKUP($B29,retdat,MATCH(Q$13,Data!$A$3:$CC$3,0),0) -> 0.4250651192 | S29: 0.01506427568 | T29: 0.1204138889 | U29: -0.1075697055 | V29: 0.01012653411 | W29: 0.0380076634 | X29: 0.085375 | Y29: 0.135660278 | Z29: 0.1302241221 | AA29: 0.210676126 | AB29: 0.1408518055 | AC29: 0.01542744487 | AD29: 0.1348638889 | AE29: 0.13145 | AF29: 0.1138888889 | AG29: 0.2213183505 | AI29: =GEOMEAN(C106:OFFSET(C106,$AI$2-1,0))-1 -> 0.004728310543 | AJ29: =GEOMEAN(D106:OFFSET(D106,$AI$2-1,0))-1 -> 0.1089454361 | AK29: =GEOMEAN(E106:OFFSET(E106,$AI$2-1,0))-1 -> 0.004051585854 | AL29: =GEOMEAN(F106:OFFSET(F106,$AI$2-1,0))-1 -> 0.006869176832 | AM29: =GEOMEAN(G106:OFFSET(G106,$AI$2-1,0))-1 -> 0.03358678249 | AN29: =GEOMEAN(H106:OFFSET(H106,$AI$2-1,0))-1 -> 0.0746330199 | AO29: =GEOMEAN(I106:OFFSET(I106,$AI$2-1,0))-1 -> 0.1094882175 | AP29: =GEOMEAN(J106:OFFSET(J106,$AI$2-1,0))-1 -> 0.1177194482 | AQ29: =GEOMEAN(K106:OFFSET(K106,$AI$2-1,0))-1 -> 0.1492630345 | AR29: =GEOMEAN(L106:OFFSET(L106,$AI$2-1,0))-1 -> 0.0901854821 | AS29: =GEOMEAN(M106:OFFSET(M106,$AI$2-1,0))-1 -> 0.008693981326 | AT29: =GEOMEAN(N106:OFFSET(N106,$AI$2-1,0))-1 -> 0.1227452313 | AU29: =GEOMEAN(O106:OFFSET(O106,$AI$2-1,0))-1 -> 0.1194007001 | AV29: =GEOMEAN(P106:OFFSET(P106,$AI$2-1,0))-1 -> 0.1003254124 | AW29: =GEOMEAN(Q106:OFFSET(Q106,$AI$2-1,0))-1 -> 0.2657917712 | AY29: 16
B30: 1986 | C30: =VLOOKUP($B30,retdat,MATCH(C$13,Data!$A$3:$CC$3,0),0) -> -0.02396986012 | D30: =VLOOKUP($B30,retdat,MATCH(D$13,Data!$A$3:$CC$3,0),0) -> 0.09020833333 | E30: =VLOOKUP($B30,retdat,MATCH(E$13,Data!$A$3:$CC$3,0),0) -> 0.1942619972 | F30: =VLOOKUP($B30,retdat,MATCH(F$13,Data!$A$3:$CC$3,0),0) -> -0.03837165286 | G30: =VLOOKUP($B30,retdat,MATCH(G$13,Data!$A$3:$CC$3,0),0) -> 0.01180222506 | H30: =VLOOKUP($B30,retdat,MATCH(H$13,Data!$A$3:$CC$3,0),0) -> 0.05978333333 | I30: =VLOOKUP($B30,retdat,MATCH(I$13,Data!$A$3:$CC$3,0),0) -> 0.1364556909 | J30: =VLOOKUP($B30,retdat,MATCH(J$13,Data!$A$3:$CC$3,0),0) -> 0.2036227748 | K30: =VLOOKUP($B30,retdat,MATCH(K$13,Data!$A$3:$CC$3,0),0) -> 0.175277856 | L30: =VLOOKUP($B30,retdat,MATCH(L$13,Data!$A$3:$CC$3,0),0) -> 0.1754299391 | M30: =VLOOKUP($B30,retdat,MATCH(M$13,Data!$A$3:$CC$3,0),0) -> -0.01849305142 | N30: =VLOOKUP($B30,retdat,MATCH(N$13,Data!$A$3:$CC$3,0),0) -> 0.1039083333 | O30: =VLOOKUP($B30,retdat,MATCH(O$13,Data!$A$3:$CC$3,0),0) -> 0.101225 | P30: =VLOOKUP($B30,retdat,MATCH(P$13,Data!$A$3:$CC$3,0),0) -> 0.076825 | Q30: =VLOOKUP($B30,retdat,MATCH(Q$13,Data!$A$3:$CC$3,0),0) -> 0.511622832 | S30: 0.002004172967 | T30: 0.1103444444 | U30: 0.002207230301 | V30: -0.008581331997 | W30: 0.02955122772 | X30: 0.0766 | Y30: 0.1280396058 | Z30: 0.1365821372 | AA30: 0.1800198928 | AB30: 0.1236992946 | AC30: 0.005385140416 | AD30: 0.1243194444 | AE30: 0.1211138889 | AF30: 0.1024805556 | AG30: 0.3285570293 | AI30: =GEOMEAN(C107:OFFSET(C107,$AI$2-1,0))-1 -> 0.02443016406 | AJ30: =GEOMEAN(D107:OFFSET(D107,$AI$2-1,0))-1 -> 0.1042909394 | AK30: =GEOMEAN(E107:OFFSET(E107,$AI$2-1,0))-1 -> 0.000863861818 | AL30: =GEOMEAN(F107:OFFSET(F107,$AI$2-1,0))-1 -> 0.01221061537 | AM30: =GEOMEAN(G107:OFFSET(G107,$AI$2-1,0))-1 -> 0.03478000426 | AN30: =GEOMEAN(H107:OFFSET(H107,$AI$2-1,0))-1 -> 0.07075959553 | AO30: =GEOMEAN(I107:OFFSET(I107,$AI$2-1,0))-1 -> 0.1012480574 | AP30: =GEOMEAN(J107:OFFSET(J107,$AI$2-1,0))-1 -> 0.1036825115 | AQ30: =GEOMEAN(K107:OFFSET(K107,$AI$2-1,0))-1 -> 0.1225192096 | AR30: =GEOMEAN(L107:OFFSET(L107,$AI$2-1,0))-1 -> 0.06810180837 | AS30: =GEOMEAN(M107:OFFSET(M107,$AI$2-1,0))-1 -> 0.02804287038 | AT30: =GEOMEAN(N107:OFFSET(N107,$AI$2-1,0))-1 -> 0.1173058454 | AU30: =GEOMEAN(O107:OFFSET(O107,$AI$2-1,0))-1 -> 0.1136673261 | AV30: =GEOMEAN(P107:OFFSET(P107,$AI$2-1,0))-1 -> 0.09581384768 | AW30: =GEOMEAN(Q107:OFFSET(Q107,$AI$2-1,0))-1 -> 0.2755221511 | AY30: 17
B31: 1987 | C31: =VLOOKUP($B31,retdat,MATCH(C$13,Data!$A$3:$CC$3,0),0) -> 0.006739451086 | D31: =VLOOKUP($B31,retdat,MATCH(D$13,Data!$A$3:$CC$3,0),0) -> 0.09375833333 | E31: =VLOOKUP($B31,retdat,MATCH(E$13,Data!$A$3:$CC$3,0),0) -> 0.2181993937 | F31: =VLOOKUP($B31,retdat,MATCH(F$13,Data!$A$3:$CC$3,0),0) -> 0.04414645235 | G31: =VLOOKUP($B31,retdat,MATCH(G$13,Data!$A$3:$CC$3,0),0) -> 0.04240918193 | H31: =VLOOKUP($B31,retdat,MATCH(H$13,Data!$A$3:$CC$3,0),0) -> 0.05775 | I31: =VLOOKUP($B31,retdat,MATCH(I$13,Data!$A$3:$CC$3,0),0) -> 0.02007221196 | J31: =VLOOKUP($B31,retdat,MATCH(J$13,Data!$A$3:$CC$3,0),0) -> 0.02232282116 | K31: =VLOOKUP($B31,retdat,MATCH(K$13,Data!$A$3:$CC$3,0),0) -> -0.03707729207 | L31: =VLOOKUP($B31,retdat,MATCH(L$13,Data!$A$3:$CC$3,0),0) -> -0.1128166539 | M31: =VLOOKUP($B31,retdat,MATCH(M$13,Data!$A$3:$CC$3,0),0) -> 0.01948991418 | N31: =VLOOKUP($B31,retdat,MATCH(N$13,Data!$A$3:$CC$3,0),0) -> 0.1057583333 | O31: =VLOOKUP($B31,retdat,MATCH(O$13,Data!$A$3:$CC$3,0),0) -> 0.1019583333 | P31: =VLOOKUP($B31,retdat,MATCH(P$13,Data!$A$3:$CC$3,0),0) -> 0.08384166667 | Q31: =VLOOKUP($B31,retdat,MATCH(Q$13,Data!$A$3:$CC$3,0),0) -> 0.2085141386 | S31: -0.02137640214 | T31: 0.09923333333 | U31: 0.1399399559 | V31: 0.002246838871 | W31: 0.03047500111 | X31: 0.06410833333 | Y31: 0.1300940881 | Z31: 0.1567091416 | AA31: 0.1043210782 | AB31: 0.04004216506 | AC31: -0.01327656336 | AD31: 0.1122722222 | AE31: 0.1089 | AF31: 0.08896666667 | AG31: 0.3817340299 | AI31: =GEOMEAN(C108:OFFSET(C108,$AI$2-1,0))-1 -> 0.03338708376 | AJ31: =GEOMEAN(D108:OFFSET(D108,$AI$2-1,0))-1 -> 0.09744284872 | AK31: =GEOMEAN(E108:OFFSET(E108,$AI$2-1,0))-1 -> 0.04031768725 | AL31: =GEOMEAN(F108:OFFSET(F108,$AI$2-1,0))-1 -> 0.0170425072 | AM31: =GEOMEAN(G108:OFFSET(G108,$AI$2-1,0))-1 -> 0.03591497975 | AN31: =GEOMEAN(H108:OFFSET(H108,$AI$2-1,0))-1 -> 0.06798663475 | AO31: =GEOMEAN(I108:OFFSET(I108,$AI$2-1,0))-1 -> 0.1466710199 | AP31: =GEOMEAN(J108:OFFSET(J108,$AI$2-1,0))-1 -> 0.1609309015 | AQ31: =GEOMEAN(K108:OFFSET(K108,$AI$2-1,0))-1 -> 0.1019128615 | AR31: =GEOMEAN(L108:OFFSET(L108,$AI$2-1,0))-1 -> 0.03697421209 | AS31: =GEOMEAN(M108:OFFSET(M108,$AI$2-1,0))-1 -> 0.03740897204 | AT31: =GEOMEAN(N108:OFFSET(N108,$AI$2-1,0))-1 -> 0.1093409354 | AU31: =GEOMEAN(O108:OFFSET(O108,$AI$2-1,0))-1 -> 0.1066295187 | AV31: =GEOMEAN(P108:OFFSET(P108,$AI$2-1,0))-1 -> 0.08802410643 | AW31: =GEOMEAN(Q108:OFFSET(Q108,$AI$2-1,0))-1 -> 0.2849192127 | AY31: 18
B32: 1988 | C32: =VLOOKUP($B32,retdat,MATCH(C$13,Data!$A$3:$CC$3,0),0) -> 0.1187284138 | D32: =VLOOKUP($B32,retdat,MATCH(D$13,Data!$A$3:$CC$3,0),0) -> 0.0971 | E32: =VLOOKUP($B32,retdat,MATCH(E$13,Data!$A$3:$CC$3,0),0) -> -0.1487120846 | F32: =VLOOKUP($B32,retdat,MATCH(F$13,Data!$A$3:$CC$3,0),0) -> 0.04503575291 | G32: =VLOOKUP($B32,retdat,MATCH(G$13,Data!$A$3:$CC$3,0),0) -> 0.04317217187 | H32: =VLOOKUP($B32,retdat,MATCH(H$13,Data!$A$3:$CC$3,0),0) -> 0.066675 | I32: =VLOOKUP($B32,retdat,MATCH(I$13,Data!$A$3:$CC$3,0),0) -> 0.1169012411 | J32: =VLOOKUP($B32,retdat,MATCH(J$13,Data!$A$3:$CC$3,0),0) -> 0.1120125731 | K32: =VLOOKUP($B32,retdat,MATCH(K$13,Data!$A$3:$CC$3,0),0) -> 0.1265042596 | L32: =VLOOKUP($B32,retdat,MATCH(L$13,Data!$A$3:$CC$3,0),0) -> 0.1075568111 | M32: =VLOOKUP($B32,retdat,MATCH(M$13,Data!$A$3:$CC$3,0),0) -> 0.1124547074 | N32: =VLOOKUP($B32,retdat,MATCH(N$13,Data!$A$3:$CC$3,0),0) -> 0.1083 | O32: =VLOOKUP($B32,retdat,MATCH(O$13,Data!$A$3:$CC$3,0),0) -> 0.1035333333 | P32: =VLOOKUP($B32,retdat,MATCH(P$13,Data!$A$3:$CC$3,0),0) -> 0.08845833333 | Q32: =VLOOKUP($B32,retdat,MATCH(Q$13,Data!$A$3:$CC$3,0),0) -> 0.2363505605 | S32: 0.03383266825 | T32: =AVERAGE(D30:D32) -> 0.09368888889 | U32: =AVERAGE(E30:E32) -> 0.08791643541 | V32: =AVERAGE(F30:F32) -> 0.0169368508 | W32: =AVERAGE(G30:G32) -> 0.03246119295 | X32: =AVERAGE(H30:H32) -> 0.06140277778 | Y32: =AVERAGE(I30:I32) -> 0.09114304797 | Z32: =AVERAGE(J30:J32) -> 0.112652723 | AA32: =AVERAGE(K30:K32) -> 0.0882349412 | AB32: =AVERAGE(L30:L32) -> 0.05672336543 | AC32: =AVERAGE(M30:M32) -> 0.03781719005 | AD32: =AVERAGE(N30:N32) -> 0.1059888889 | AE32: =AVERAGE(O30:O32) -> 0.1022388889 | AF32: =AVERAGE(P30:P32) -> 0.08304166667 | AG32: =AVERAGE(Q30:Q32) -> 0.318829177 | AI32: =GEOMEAN(C109:OFFSET(C109,$AI$2-1,0))-1 -> 0.06246180274 | AJ32: =GEOMEAN(D109:OFFSET(D109,$AI$2-1,0))-1 -> 0.09336940729 | AK32: =GEOMEAN(E109:OFFSET(E109,$AI$2-1,0))-1 -> 0.02104554596 | AL32: =GEOMEAN(F109:OFFSET(F109,$AI$2-1,0))-1 -> 0.02666290598 | AM32: =GEOMEAN(G109:OFFSET(G109,$AI$2-1,0))-1 -> 0.04055880367 | AN32: =GEOMEAN(H109:OFFSET(H109,$AI$2-1,0))-1 -> 0.0680147872 | AO32: =GEOMEAN(I109:OFFSET(I109,$AI$2-1,0))-1 -> 0.08415419073 | AP32: =GEOMEAN(J109:OFFSET(J109,$AI$2-1,0))-1 -> 0.1012531825 | AQ32: =GEOMEAN(K109:OFFSET(K109,$AI$2-1,0))-1 -> 0.02877663691 | AR32: =GEOMEAN(L109:OFFSET(L109,$AI$2-1,0))-1 -> -0.0169974816 | AS32: =GEOMEAN(M109:OFFSET(M109,$AI$2-1,0))-1 -> 0.06353160764 | AT32: =GEOMEAN(N109:OFFSET(N109,$AI$2-1,0))-1 -> 0.1046561098 | AU32: =GEOMEAN(O109:OFFSET(O109,$AI$2-1,0))-1 -> 0.102259636 | AV32: =GEOMEAN(P109:OFFSET(P109,$AI$2-1,0))-1 -> 0.08391477235 | AW32: =GEOMEAN(Q109:OFFSET(Q109,$AI$2-1,0))-1 -> 0.1197474296 | AY32: 19
B33: 1989 | C33: =VLOOKUP($B33,retdat,MATCH(C$13,Data!$A$3:$CC$3,0),0) -> 0.1247892124 | D33: =VLOOKUP($B33,retdat,MATCH(D$13,Data!$A$3:$CC$3,0),0) -> 0.092575 | E33: =VLOOKUP($B33,retdat,MATCH(E$13,Data!$A$3:$CC$3,0),0) -> -0.02332199761 | F33: =VLOOKUP($B33,retdat,MATCH(F$13,Data!$A$3:$CC$3,0),0) -> 0.03603993648 | G33: =VLOOKUP($B33,retdat,MATCH(G$13,Data!$A$3:$CC$3,0),0) -> 0.04535190125 | H33: =VLOOKUP($B33,retdat,MATCH(H$13,Data!$A$3:$CC$3,0),0) -> 0.08111666667 | I33: =VLOOKUP($B33,retdat,MATCH(I$13,Data!$A$3:$CC$3,0),0) -> 0.240987148 | J33: =VLOOKUP($B33,retdat,MATCH(J$13,Data!$A$3:$CC$3,0),0) -> 0.2386820735 | K33: =VLOOKUP($B33,retdat,MATCH(K$13,Data!$A$3:$CC$3,0),0) -> 0.08472912909 | L33: =VLOOKUP($B33,retdat,MATCH(L$13,Data!$A$3:$CC$3,0),0) -> -0.01830215168 | M33: =VLOOKUP($B33,retdat,MATCH(M$13,Data!$A$3:$CC$3,0),0) -> 0.1253670637 | N33: =VLOOKUP($B33,retdat,MATCH(N$13,Data!$A$3:$CC$3,0),0) -> 0.101775 | O33: =VLOOKUP($B33,retdat,MATCH(O$13,Data!$A$3:$CC$3,0),0) -> 0.103075 | P33: =VLOOKUP($B33,retdat,MATCH(P$13,Data!$A$3:$CC$3,0),0) -> 0.08498333333 | Q33: =VLOOKUP($B33,retdat,MATCH(Q$13,Data!$A$3:$CC$3,0),0) -> 0.0881971791 | S33: 0.08341902575 | T33: 0.09447777778 | U33: 0.01538843716 | V33: 0.04174071391 | W33: 0.04364441835 | X33: 0.06851388889 | Y33: 0.125986867 | Z33: 0.1243391559 | AA33: 0.05805203222 | AB33: -0.007853998161 | AC33: 0.08577056174 | AD33: 0.1052777778 | AE33: 0.1028555556 | AF33: 0.08576111111 | AG33: 0.1776872927 | AI33: =GEOMEAN(C110:OFFSET(C110,$AI$2-1,0))-1 -> 0.08584474688 | AJ33: =GEOMEAN(D110:OFFSET(D110,$AI$2-1,0))-1 -> 0.09286414777 | AK33: =GEOMEAN(E110:OFFSET(E110,$AI$2-1,0))-1 -> -0.02283143764 | AL33: =GEOMEAN(F110:OFFSET(F110,$AI$2-1,0))-1 -> 0.02974054641 | AM33: =GEOMEAN(G110:OFFSET(G110,$AI$2-1,0))-1 -> 0.04414751988 | AN33: =GEOMEAN(H110:OFFSET(H110,$AI$2-1,0))-1 -> 0.06679596957 | AO33: =GEOMEAN(I110:OFFSET(I110,$AI$2-1,0))-1 -> 0.1020756447 | AP33: =GEOMEAN(J110:OFFSET(J110,$AI$2-1,0))-1 -> 0.09781731072 | AQ33: =GEOMEAN(K110:OFFSET(K110,$AI$2-1,0))-1 -> 0.05058600963 | AR33: =GEOMEAN(L110:OFFSET(L110,$AI$2-1,0))-1 -> 0.003796123578 | AS33: =GEOMEAN(M110:OFFSET(M110,$AI$2-1,0))-1 -> 0.08645369983 | AT33: =GEOMEAN(N110:OFFSET(N110,$AI$2-1,0))-1 -> 0.103474453 | AU33: =GEOMEAN(O110:OFFSET(O110,$AI$2-1,0))-1 -> 0.1004402711 | AV33: =GEOMEAN(P110:OFFSET(P110,$AI$2-1,0))-1 -> 0.0842685234 | AW33: =GEOMEAN(Q110:OFFSET(Q110,$AI$2-1,0))-1 -> 0.05020261138 | AY33: 20 | AZ33: 0.08584474688 | BA33: 0.09286414777 | BB33: -0.02283143764 | BC33: 0.02974054641 | BD33: 0.04414751988 | BE33: 0.06679596957 | BF33: 0.1020756447 | BG33: 0.09781731072 | BH33: 0.05058600963 | BI33: 0.003796123578 | BJ33: 0.08645369983 | BK33: 0.103474453 | BL33: 0.1004402711 | BM33: 0.0842685234 | BN33: 0.05020261138
B34: 1990 | C34: =VLOOKUP($B34,retdat,MATCH(C$13,Data!$A$3:$CC$3,0),0) -> 0.09494044836 | D34: =VLOOKUP($B34,retdat,MATCH(D$13,Data!$A$3:$CC$3,0),0) -> 0.09321666667 | E34: =VLOOKUP($B34,retdat,MATCH(E$13,Data!$A$3:$CC$3,0),0) -> -0.08255569428 | F34: =VLOOKUP($B34,retdat,MATCH(F$13,Data!$A$3:$CC$3,0),0) -> 0.0492114829 | G34: =VLOOKUP($B34,retdat,MATCH(G$13,Data!$A$3:$CC$3,0),0) -> 0.06067119518 | H34: =VLOOKUP($B34,retdat,MATCH(H$13,Data!$A$3:$CC$3,0),0) -> 0.07493333333 | I34: =VLOOKUP($B34,retdat,MATCH(I$13,Data!$A$3:$CC$3,0),0) -> -0.06784146088 | J34: =VLOOKUP($B34,retdat,MATCH(J$13,Data!$A$3:$CC$3,0),0) -> -0.04437416992 | K34: =VLOOKUP($B34,retdat,MATCH(K$13,Data!$A$3:$CC$3,0),0) -> -0.1666655379 | L34: =VLOOKUP($B34,retdat,MATCH(L$13,Data!$A$3:$CC$3,0),0) -> -0.1904956778 | M34: =VLOOKUP($B34,retdat,MATCH(M$13,Data!$A$3:$CC$3,0),0) -> 0.08617338419 | N34: =VLOOKUP($B34,retdat,MATCH(N$13,Data!$A$3:$CC$3,0),0) -> 0.10355 | O34: =VLOOKUP($B34,retdat,MATCH(O$13,Data!$A$3:$CC$3,0),0) -> 0.1015083333 | P34: =VLOOKUP($B34,retdat,MATCH(P$13,Data!$A$3:$CC$3,0),0) -> 0.0855 | Q34: =VLOOKUP($B34,retdat,MATCH(Q$13,Data!$A$3:$CC$3,0),0) -> -0.2837642962 | S34: 0.1128193582 | T34: 0.09429722222 | U34: -0.08486325884 | V34: 0.04342905743 | W34: 0.0497317561 | X34: 0.07424166667 | Y34: 0.09668230939 | Z34: 0.1021068255 | AA34: 0.01485595028 | AB34: -0.03374700613 | AC34: 0.1079983851 | AD34: 0.1045416667 | AE34: 0.1027055556 | AF34: 0.08631388889 | AG34: 0.01359448113 | AI34: =GEOMEAN(C111:OFFSET(C111,$AI$2-1,0))-1 -> 0.1005515125 | AJ34: =GEOMEAN(D111:OFFSET(D111,$AI$2-1,0))-1 -> 0.09038326373 | AK34: =GEOMEAN(E111:OFFSET(E111,$AI$2-1,0))-1 -> -0.07564787562 | AL34: =GEOMEAN(F111:OFFSET(F111,$AI$2-1,0))-1 -> 0.0238378653 | AM34: =GEOMEAN(G111:OFFSET(G111,$AI$2-1,0))-1 -> 0.04149496564 | AN34: =GEOMEAN(H111:OFFSET(H111,$AI$2-1,0))-1 -> 0.06202677013 | AO34: =GEOMEAN(I111:OFFSET(I111,$AI$2-1,0))-1 -> 0.1071290994 | AP34: =GEOMEAN(J111:OFFSET(J111,$AI$2-1,0))-1 -> 0.1017790168 | AQ34: =GEOMEAN(K111:OFFSET(K111,$AI$2-1,0))-1 -> 0.0859336503 | AR34: =GEOMEAN(L111:OFFSET(L111,$AI$2-1,0))-1 -> 0.05072610565 | AS34: =GEOMEAN(M111:OFFSET(M111,$AI$2-1,0))-1 -> 0.09864055855 | AT34: =GEOMEAN(N111:OFFSET(N111,$AI$2-1,0))-1 -> 0.1002641 | AU34: =GEOMEAN(O111:OFFSET(O111,$AI$2-1,0))-1 -> 0.09687884138 | AV34: =GEOMEAN(P111:OFFSET(P111,$AI$2-1,0))-1 -> 0.08150505708 | AW34: =GEOMEAN(Q111:OFFSET(Q111,$AI$2-1,0))-1 -> -0.02105982848 | AY34: 21
B35: 1991 | C35: =VLOOKUP($B35,retdat,MATCH(C$13,Data!$A$3:$CC$3,0),0) -> 0.08826653674 | D35: =VLOOKUP($B35,retdat,MATCH(D$13,Data!$A$3:$CC$3,0),0) -> 0.08769166667 | E35: =VLOOKUP($B35,retdat,MATCH(E$13,Data!$A$3:$CC$3,0),0) -> -0.04121447547 | F35: =VLOOKUP($B35,retdat,MATCH(F$13,Data!$A$3:$CC$3,0),0) -> -0.02387155127 | G35: =VLOOKUP($B35,retdat,MATCH(G$13,Data!$A$3:$CC$3,0),0) -> 0.0293706868 | H35: =VLOOKUP($B35,retdat,MATCH(H$13,Data!$A$3:$CC$3,0),0) -> 0.05375 | I35: =VLOOKUP($B35,retdat,MATCH(I$13,Data!$A$3:$CC$3,0),0) -> 0.2335429268 | J35: =VLOOKUP($B35,retdat,MATCH(J$13,Data!$A$3:$CC$3,0),0) -> 0.1849632657 | K35: =VLOOKUP($B35,retdat,MATCH(K$13,Data!$A$3:$CC$3,0),0) -> 0.305248353 | L35: =VLOOKUP($B35,retdat,MATCH(L$13,Data!$A$3:$CC$3,0),0) -> 0.3051221699 | M35: =VLOOKUP($B35,retdat,MATCH(M$13,Data!$A$3:$CC$3,0),0) -> 0.09193676154 | N35: =VLOOKUP($B35,retdat,MATCH(N$13,Data!$A$3:$CC$3,0),0) -> 0.09801666667 | O35: =VLOOKUP($B35,retdat,MATCH(O$13,Data!$A$3:$CC$3,0),0) -> 0.09216666667 | P35: =VLOOKUP($B35,retdat,MATCH(P$13,Data!$A$3:$CC$3,0),0) -> 0.07858333333 | Q35: =VLOOKUP($B35,retdat,MATCH(Q$13,Data!$A$3:$CC$3,0),0) -> 0.09700483399 | S35: 0.1026653992 | T35: 0.09116111111 | U35: -0.04903072245 | V35: 0.02045995604 | W35: 0.04513126108 | X35: 0.06993333333 | Y35: 0.1355628713 | Z35: 0.1264237231 | AA35: 0.07443731475 | AB35: 0.03210811346 | AC35: 0.1011590698 | AD35: 0.1011138889 | AE35: 0.09891666667 | AF35: 0.08302222222 | AG35: -0.03285409436 | AI35: =GEOMEAN(C112:OFFSET(C112,$AI$2-1,0))-1 -> 0.09741653205 | AJ35: =GEOMEAN(D112:OFFSET(D112,$AI$2-1,0))-1 -> 0.08538650961 | AK35: =GEOMEAN(E112:OFFSET(E112,$AI$2-1,0))-1 -> -0.02087411622 | AL35: =GEOMEAN(F112:OFFSET(F112,$AI$2-1,0))-1 -> 0.01657010673 | AM35: =GEOMEAN(G112:OFFSET(G112,$AI$2-1,0))-1 -> 0.03839141859 | AN35: =GEOMEAN(H112:OFFSET(H112,$AI$2-1,0))-1 -> 0.05461605216 | AO35: =GEOMEAN(I112:OFFSET(I112,$AI$2-1,0))-1 -> 0.09729577615 | AP35: =GEOMEAN(J112:OFFSET(J112,$AI$2-1,0))-1 -> 0.1050451298 | AQ35: =GEOMEAN(K112:OFFSET(K112,$AI$2-1,0))-1 -> 0.09595262792 | AR35: =GEOMEAN(L112:OFFSET(L112,$AI$2-1,0))-1 -> 0.06234097871 | AS35: =GEOMEAN(M112:OFFSET(M112,$AI$2-1,0))-1 -> 0.0960579755 | AT35: =GEOMEAN(N112:OFFSET(N112,$AI$2-1,0))-1 -> 0.09444492457 | AU35: =GEOMEAN(O112:OFFSET(O112,$AI$2-1,0))-1 -> 0.09074576641 | AV35: =GEOMEAN(P112:OFFSET(P112,$AI$2-1,0))-1 -> 0.07553243033 | AW35: =GEOMEAN(Q112:OFFSET(Q112,$AI$2-1,0))-1 -> -0.01638521732 | AY35: 22
B36: 1992 | C36: =VLOOKUP($B36,retdat,MATCH(C$13,Data!$A$3:$CC$3,0),0) -> 0.07678820395 | D36: =VLOOKUP($B36,retdat,MATCH(D$13,Data!$A$3:$CC$3,0),0) -> 0.0814 | E36: =VLOOKUP($B36,retdat,MATCH(E$13,Data!$A$3:$CC$3,0),0) -> -0.0773050032 | F36: =VLOOKUP($B36,retdat,MATCH(F$13,Data!$A$3:$CC$3,0),0) -> 0.01456128512 | G36: =VLOOKUP($B36,retdat,MATCH(G$13,Data!$A$3:$CC$3,0),0) -> 0.02923559376 | H36: =VLOOKUP($B36,retdat,MATCH(H$13,Data!$A$3:$CC$3,0),0) -> 0.03431666667 | I36: =VLOOKUP($B36,retdat,MATCH(I$13,Data!$A$3:$CC$3,0),0) -> 0.04367485858 | J36: =VLOOKUP($B36,retdat,MATCH(J$13,Data!$A$3:$CC$3,0),0) -> 0.04090277894 | K36: =VLOOKUP($B36,retdat,MATCH(K$13,Data!$A$3:$CC$3,0),0) -> 0.1361870054 | L36: =VLOOKUP($B36,retdat,MATCH(L$13,Data!$A$3:$CC$3,0),0) -> 0.1148936007 | M36: =VLOOKUP($B36,retdat,MATCH(M$13,Data!$A$3:$CC$3,0),0) -> 0.07796573634 | N36: =VLOOKUP($B36,retdat,MATCH(N$13,Data!$A$3:$CC$3,0),0) -> 0.08976666667 | O36: =VLOOKUP($B36,retdat,MATCH(O$13,Data!$A$3:$CC$3,0),0) -> 0.08424166667 | P36: =VLOOKUP($B36,retdat,MATCH(P$13,Data!$A$3:$CC$3,0),0) -> 0.0701 | Q36: =VLOOKUP($B36,retdat,MATCH(Q$13,Data!$A$3:$CC$3,0),0) -> -0.1495142943 | S36: 0.08666506301 | T36: 0.08743611111 | U36: -0.06702505765 | V36: 0.01330040558 | W36: 0.03975915858 | X36: 0.05433333333 | Y36: 0.06979210818 | Z36: 0.06049729157 | AA36: 0.09158994017 | AB36: 0.07650669758 | AC36: 0.08535862736 | AD36: 0.09711111111 | AE36: 0.09263888889 | AF36: 0.07806111111 | AG36: -0.1120912522 | AI36: =GEOMEAN(C113:OFFSET(C113,$AI$2-1,0))-1 -> 0.09621796301 | AJ36: =GEOMEAN(D113:OFFSET(D113,$AI$2-1,0))-1 -> 0.08280126414 | AK36: =GEOMEAN(E113:OFFSET(E113,$AI$2-1,0))-1 -> -0.01832003521 | AL36: =GEOMEAN(F113:OFFSET(F113,$AI$2-1,0))-1 -> 0.01487770959 | AM36: =GEOMEAN(G113:OFFSET(G113,$AI$2-1,0))-1 -> 0.0344459022 | AN36: =GEOMEAN(H113:OFFSET(H113,$AI$2-1,0))-1 -> 0.04696532983 | AO36: =GEOMEAN(I113:OFFSET(I113,$AI$2-1,0))-1 -> 0.04764051786 | AP36: =GEOMEAN(J113:OFFSET(J113,$AI$2-1,0))-1 -> 0.06318092708 | AQ36: =GEOMEAN(K113:OFFSET(K113,$AI$2-1,0))-1 -> 0.0849190987 | AR36: =GEOMEAN(L113:OFFSET(L113,$AI$2-1,0))-1 -> 0.0679783979 | AS36: =GEOMEAN(M113:OFFSET(M113,$AI$2-1,0))-1 -> 0.1017193003 | AT36: =GEOMEAN(N113:OFFSET(N113,$AI$2-1,0))-1 -> 0.09133802564 | AU36: =GEOMEAN(O113:OFFSET(O113,$AI$2-1,0))-1 -> 0.08694871086 | AV36: =GEOMEAN(P113:OFFSET(P113,$AI$2-1,0))-1 -> 0.07270565285 | AW36: =GEOMEAN(Q113:OFFSET(Q113,$AI$2-1,0))-1 -> -0.02143816417 | AY36: 23
B37: 1993 | C37: =VLOOKUP($B37,retdat,MATCH(C$13,Data!$A$3:$CC$3,0),0) -> 0.1028851405 | D37: =VLOOKUP($B37,retdat,MATCH(D$13,Data!$A$3:$CC$3,0),0) -> 0.07219166667 | E37: =VLOOKUP($B37,retdat,MATCH(E$13,Data!$A$3:$CC$3,0),0) -> 0.1352248984 | F37: =VLOOKUP($B37,retdat,MATCH(F$13,Data!$A$3:$CC$3,0),0) -> 0.008467451099 | G37: =VLOOKUP($B37,retdat,MATCH(G$13,Data!$A$3:$CC$3,0),0) -> 0.02772180293 | H37: =VLOOKUP($B37,retdat,MATCH(H$13,Data!$A$3:$CC$3,0),0) -> 0.029975 | I37: =VLOOKUP($B37,retdat,MATCH(I$13,Data!$A$3:$CC$3,0),0) -> 0.06817394897 | J37: =VLOOKUP($B37,retdat,MATCH(J$13,Data!$A$3:$CC$3,0),0) -> 0.1285928298 | K37: =VLOOKUP($B37,retdat,MATCH(K$13,Data!$A$3:$CC$3,0),0) -> 0.1794384859 | L37: =VLOOKUP($B37,retdat,MATCH(L$13,Data!$A$3:$CC$3,0),0) -> 0.1701406604 | M37: =VLOOKUP($B37,retdat,MATCH(M$13,Data!$A$3:$CC$3,0),0) -> 0.099440755 | N37: =VLOOKUP($B37,retdat,MATCH(N$13,Data!$A$3:$CC$3,0),0) -> 0.0793 | O37: =VLOOKUP($B37,retdat,MATCH(O$13,Data!$A$3:$CC$3,0),0) -> 0.073025 | P37: =VLOOKUP($B37,retdat,MATCH(P$13,Data!$A$3:$CC$3,0),0) -> 0.05873333333 | Q37: =VLOOKUP($B37,retdat,MATCH(Q$13,Data!$A$3:$CC$3,0),0) -> 0.266152781 | S37: 0.08931329374 | T37: 0.08042777778 | U37: 0.005568473243 | V37: -0.0002809383507 | W37: 0.02877602783 | X37: 0.03934722222 | Y37: 0.1151305781 | Z37: 0.1181529581 | AA37: 0.2069579481 | AB37: 0.1967188103 | AC37: 0.08978108429 | AD37: 0.08902777778 | AE37: 0.08314444444 | AF37: 0.06913888889 | AG37: 0.07121444023 | AI37: =GEOMEAN(C114:OFFSET(C114,$AI$2-1,0))-1 -> 0.09728596175 | AJ37: =GEOMEAN(D114:OFFSET(D114,$AI$2-1,0))-1 -> 0.07934898338 | AK37: =GEOMEAN(E114:OFFSET(E114,$AI$2-1,0))-1 -> 0.002954526467 | AL37: =GEOMEAN(F114:OFFSET(F114,$AI$2-1,0))-1 -> 0.01127044752 | AM37: =GEOMEAN(G114:OFFSET(G114,$AI$2-1,0))-1 -> 0.02739278621 | AN37: =GEOMEAN(H114:OFFSET(H114,$AI$2-1,0))-1 -> 0.04303348898 | AO37: =GEOMEAN(I114:OFFSET(I114,$AI$2-1,0))-1 -> 0.1185806033 | AP37: =GEOMEAN(J114:OFFSET(J114,$AI$2-1,0))-1 -> 0.1286818328 | AQ37: =GEOMEAN(K114:OFFSET(K114,$AI$2-1,0))-1 -> 0.1555075559 | AR37: =GEOMEAN(L114:OFFSET(L114,$AI$2-1,0))-1 -> 0.1492561633 | AS37: =GEOMEAN(M114:OFFSET(M114,$AI$2-1,0))-1 -> 0.1030727401 | AT37: =GEOMEAN(N114:OFFSET(N114,$AI$2-1,0))-1 -> 0.08704370585 | AU37: =GEOMEAN(O114:OFFSET(O114,$AI$2-1,0))-1 -> 0.08251659915 | AV37: =GEOMEAN(P114:OFFSET(P114,$AI$2-1,0))-1 -> 0.06878351566 | AW37: =GEOMEAN(Q114:OFFSET(Q114,$AI$2-1,0))-1 -> 0.06430108539 | AY37: 24
B38: 1994 | C38: =VLOOKUP($B38,retdat,MATCH(C$13,Data!$A$3:$CC$3,0),0) -> 0.1186602909 | D38: =VLOOKUP($B38,retdat,MATCH(D$13,Data!$A$3:$CC$3,0),0) -> 0.079625 | E38: =VLOOKUP($B38,retdat,MATCH(E$13,Data!$A$3:$CC$3,0),0) -> -0.01051688839 | F38: =VLOOKUP($B38,retdat,MATCH(F$13,Data!$A$3:$CC$3,0),0) -> 0.02744454992 | G38: =VLOOKUP($B38,retdat,MATCH(G$13,Data!$A$3:$CC$3,0),0) -> 0.02564243061 | H38: =VLOOKUP($B38,retdat,MATCH(H$13,Data!$A$3:$CC$3,0),0) -> 0.04246666667 | I38: =VLOOKUP($B38,retdat,MATCH(I$13,Data!$A$3:$CC$3,0),0) -> -0.01551256099 | J38: =VLOOKUP($B38,retdat,MATCH(J$13,Data!$A$3:$CC$3,0),0) -> 0.0211643928 | K38: =VLOOKUP($B38,retdat,MATCH(K$13,Data!$A$3:$CC$3,0),0) -> 0.0312148619 | L38: =VLOOKUP($B38,retdat,MATCH(L$13,Data!$A$3:$CC$3,0),0) -> 0.008023156968 | M38: =VLOOKUP($B38,retdat,MATCH(M$13,Data!$A$3:$CC$3,0),0) -> 0.1547324107 | N38: =VLOOKUP($B38,retdat,MATCH(N$13,Data!$A$3:$CC$3,0),0) -> 0.086225 | O38: =VLOOKUP($B38,retdat,MATCH(O$13,Data!$A$3:$CC$3,0),0) -> 0.08400833333 | P38: =VLOOKUP($B38,retdat,MATCH(P$13,Data!$A$3:$CC$3,0),0) -> 0.0708 | Q38: =VLOOKUP($B38,retdat,MATCH(Q$13,Data!$A$3:$CC$3,0),0) -> 0.06053188721 | S38: 0.09944454514 | T38: 0.07773888889 | U38: 0.01580100227 | V38: 0.01682442871 | W38: 0.02753327577 | X38: 0.03558611111 | Y38: 0.03211208219 | Z38: 0.06355333385 | AA38: 0.1156134511 | AB38: 0.097685806 | AC38: 0.1107129673 | AD38: 0.08509722222 | AE38: 0.080425 | AF38: 0.06654444444 | AG38: 0.0590567913 | AI38: =GEOMEAN(C115:OFFSET(C115,$AI$2-1,0))-1 -> 0.09722959448 | AJ38: =GEOMEAN(D115:OFFSET(D115,$AI$2-1,0))-1 -> 0.07655771395 | AK38: =GEOMEAN(E115:OFFSET(E115,$AI$2-1,0))-1 -> 0.001369990899 | AL38: =GEOMEAN(F115:OFFSET(F115,$AI$2-1,0))-1 -> 0.02153610096 | AM38: =GEOMEAN(G115:OFFSET(G115,$AI$2-1,0))-1 -> 0.02816199202 | AN38: =GEOMEAN(H115:OFFSET(H115,$AI$2-1,0))-1 -> 0.04230163811 | AO38: =GEOMEAN(I115:OFFSET(I115,$AI$2-1,0))-1 -> 0.1095442927 | AP38: =GEOMEAN(J115:OFFSET(J115,$AI$2-1,0))-1 -> 0.1373609165 | AQ38: =GEOMEAN(K115:OFFSET(K115,$AI$2-1,0))-1 -> 0.1549456731 | AR38: =GEOMEAN(L115:OFFSET(L115,$AI$2-1,0))-1 -> 0.1493527925 | AS38: =GEOMEAN(M115:OFFSET(M115,$AI$2-1,0))-1 -> 0.1008503512 | AT38: =GEOMEAN(N115:OFFSET(N115,$AI$2-1,0))-1 -> 0.08356473593 | AU38: =GEOMEAN(O115:OFFSET(O115,$AI$2-1,0))-1 -> 0.07971197665 | AV38: =GEOMEAN(P115:OFFSET(P115,$AI$2-1,0))-1 -> 0.06595438121 | AW38: =GEOMEAN(Q115:OFFSET(Q115,$AI$2-1,0))-1 -> 0.05361674809 | AY38: 25 | AZ38: 0.09722959448 | BA38: 0.07655771395 | BB38: 0.001369990899 | BC38: 0.02153610096 | BD38: 0.02816199202 | BE38: 0.04230163811 | BF38: 0.1095442927 | BG38: 0.1373609165 | BH38: 0.1549456731 | BI38: 0.1493527925 | BJ38: 0.1008503512 | BK38: 0.08356473593 | BL38: 0.07971197665 | BM38: 0.06595438121 | BN38: 0.05361674809
B39: 1995 | C39: =VLOOKUP($B39,retdat,MATCH(C$13,Data!$A$3:$CC$3,0),0) -> 0.100284622 | D39: =VLOOKUP($B39,retdat,MATCH(D$13,Data!$A$3:$CC$3,0),0) -> 0.0759 | E39: =VLOOKUP($B39,retdat,MATCH(E$13,Data!$A$3:$CC$3,0),0) -> 0.0212599141 | F39: =VLOOKUP($B39,retdat,MATCH(F$13,Data!$A$3:$CC$3,0),0) -> 0.03069707911 | G39: =VLOOKUP($B39,retdat,MATCH(G$13,Data!$A$3:$CC$3,0),0) -> 0.02500130221 | H39: =VLOOKUP($B39,retdat,MATCH(H$13,Data!$A$3:$CC$3,0),0) -> 0.0549 | I39: =VLOOKUP($B39,retdat,MATCH(I$13,Data!$A$3:$CC$3,0),0) -> 0.2934950483 | J39: =VLOOKUP($B39,retdat,MATCH(J$13,Data!$A$3:$CC$3,0),0) -> 0.2885749035 | K39: =VLOOKUP($B39,retdat,MATCH(K$13,Data!$A$3:$CC$3,0),0) -> 0.1420799787 | L39: =VLOOKUP($B39,retdat,MATCH(L$13,Data!$A$3:$CC$3,0),0) -> 0.1681296247 | M39: =VLOOKUP($B39,retdat,MATCH(M$13,Data!$A$3:$CC$3,0),0) -> 0.09286150638 | N39: =VLOOKUP($B39,retdat,MATCH(N$13,Data!$A$3:$CC$3,0),0) -> 0.08200833333 | O39: =VLOOKUP($B39,retdat,MATCH(O$13,Data!$A$3:$CC$3,0),0) -> 0.07923333333 | P39: =VLOOKUP($B39,retdat,MATCH(P$13,Data!$A$3:$CC$3,0),0) -> 0.0658 | Q39: =VLOOKUP($B39,retdat,MATCH(Q$13,Data!$A$3:$CC$3,0),0) -> 0.09002666213 | S39: 0.1072766845 | T39: 0.07590555556 | U39: 0.0486559747 | V39: 0.02220302671 | W39: 0.02612184525 | X39: 0.04244722222 | Y39: 0.1153854788 | Z39: 0.1461107087 | AA39: 0.1175777755 | AB39: 0.1154311473 | AC39: 0.115678224 | AD39: 0.08251111111 | AE39: 0.07875555556 | AF39: 0.06511111111 | AG39: 0.1389037768 | AI39: =GEOMEAN(C116:OFFSET(C116,$AI$2-1,0))-1 -> 0.09674705905 | AJ39: =GEOMEAN(D116:OFFSET(D116,$AI$2-1,0))-1 -> 0.07480320379 | AK39: =GEOMEAN(E116:OFFSET(E116,$AI$2-1,0))-1 -> -0.03807489346 | AL39: =GEOMEAN(F116:OFFSET(F116,$AI$2-1,0))-1 -> 0.01489814727 | AM39: =GEOMEAN(G116:OFFSET(G116,$AI$2-1,0))-1 -> 0.02567103498 | AN39: =GEOMEAN(H116:OFFSET(H116,$AI$2-1,0))-1 -> 0.04556463184 | AO39: =GEOMEAN(I116:OFFSET(I116,$AI$2-1,0))-1 -> 0.1539805009 | AP39: =GEOMEAN(J116:OFFSET(J116,$AI$2-1,0))-1 -> 0.1709773965 | AQ39: =GEOMEAN(K116:OFFSET(K116,$AI$2-1,0))-1 -> 0.1646024161 | AR39: =GEOMEAN(L116:OFFSET(L116,$AI$2-1,0))-1 -> 0.1610482228 | AS39: =GEOMEAN(M116:OFFSET(M116,$AI$2-1,0))-1 -> 0.09915449634 | AT39: =GEOMEAN(N116:OFFSET(N116,$AI$2-1,0))-1 -> 0.0813449797 | AU39: =GEOMEAN(O116:OFFSET(O116,$AI$2-1,0))-1 -> 0.07799203177 | AV39: =GEOMEAN(P116:OFFSET(P116,$AI$2-1,0))-1 -> 0.06464124429 | AW39: =GEOMEAN(Q116:OFFSET(Q116,$AI$2-1,0))-1 -> 0.08881820706 | AY39: 26
B40: 1996 | C40: =VLOOKUP($B40,retdat,MATCH(C$13,Data!$A$3:$CC$3,0),0) -> 0.08798704573 | D40: =VLOOKUP($B40,retdat,MATCH(D$13,Data!$A$3:$CC$3,0),0) -> 0.0737 | E40: =VLOOKUP($B40,retdat,MATCH(E$13,Data!$A$3:$CC$3,0),0) -> -0.04876435405 | F40: =VLOOKUP($B40,retdat,MATCH(F$13,Data!$A$3:$CC$3,0),0) -> 0.02668918226 | G40: =VLOOKUP($B40,retdat,MATCH(G$13,Data!$A$3:$CC$3,0),0) -> 0.0332298945 | H40: =VLOOKUP($B40,retdat,MATCH(H$13,Data!$A$3:$CC$3,0),0) -> 0.05005833333 | I40: =VLOOKUP($B40,retdat,MATCH(I$13,Data!$A$3:$CC$3,0),0) -> 0.1845163658 | J40: =VLOOKUP($B40,retdat,MATCH(J$13,Data!$A$3:$CC$3,0),0) -> 0.2312286578 | K40: =VLOOKUP($B40,retdat,MATCH(K$13,Data!$A$3:$CC$3,0),0) -> 0.3020779551 | L40: =VLOOKUP($B40,retdat,MATCH(L$13,Data!$A$3:$CC$3,0),0) -> 0.3056709338 | M40: =VLOOKUP($B40,retdat,MATCH(M$13,Data!$A$3:$CC$3,0),0) -> 0.0809812306 | N40: =VLOOKUP($B40,retdat,MATCH(N$13,Data!$A$3:$CC$3,0),0) -> 0.08055833333 | O40: =VLOOKUP($B40,retdat,MATCH(O$13,Data!$A$3:$CC$3,0),0) -> 0.07809166667 | P40: =VLOOKUP($B40,retdat,MATCH(P$13,Data!$A$3:$CC$3,0),0) -> 0.06438333333 | Q40: =VLOOKUP($B40,retdat,MATCH(Q$13,Data!$A$3:$CC$3,0),0) -> 0.04303610858 | S40: 0.1023106529 | T40: 0.07640833333 | U40: -0.01267377612 | V40: 0.0282769371 | W40: 0.02795787577 | X40: 0.04914166667 | Y40: 0.1541662844 | Z40: 0.1803226514 | AA40: 0.1584575986 | AB40: 0.1606079052 | AC40: 0.1095250492 | AD40: 0.08293055556 | AE40: 0.08044444444 | AF40: 0.06699444444 | AG40: 0.06453155264 | AI40: =GEOMEAN(C117:OFFSET(C117,$AI$2-1,0))-1 -> 0.09444290129 | AJ40: =GEOMEAN(D117:OFFSET(D117,$AI$2-1,0))-1 -> 0.0734213058 | AK40: =GEOMEAN(E117:OFFSET(E117,$AI$2-1,0))-1 -> -0.06027584325 | AL40: =GEOMEAN(F117:OFFSET(F117,$AI$2-1,0))-1 -> 0.006607834206 | AM40: =GEOMEAN(G117:OFFSET(G117,$AI$2-1,0))-1 -> 0.02330881559 | AN40: =GEOMEAN(H117:OFFSET(H117,$AI$2-1,0))-1 -> 0.04915212082 | AO40: =GEOMEAN(I117:OFFSET(I117,$AI$2-1,0))-1 -> 0.1882344836 | AP40: =GEOMEAN(J117:OFFSET(J117,$AI$2-1,0))-1 -> 0.17523706 | AQ40: =GEOMEAN(K117:OFFSET(K117,$AI$2-1,0))-1 -> 0.07964766698 | AR40: =GEOMEAN(L117:OFFSET(L117,$AI$2-1,0))-1 -> 0.07371508025 | AS40: =GEOMEAN(M117:OFFSET(M117,$AI$2-1,0))-1 -> 0.09597330585 | AT40: =GEOMEAN(N117:OFFSET(N117,$AI$2-1,0))-1 -> 0.07992356671 | AU40: =GEOMEAN(O117:OFFSET(O117,$AI$2-1,0))-1 -> 0.07728955089 | AV40: =GEOMEAN(P117:OFFSET(P117,$AI$2-1,0))-1 -> 0.06341328305 | AW40: =GEOMEAN(Q117:OFFSET(Q117,$AI$2-1,0))-1 -> 0.07128993366 | AY40: 27
B41: 1997 | C41: =VLOOKUP($B41,retdat,MATCH(C$13,Data!$A$3:$CC$3,0),0) -> 0.07442255664 | D41: =VLOOKUP($B41,retdat,MATCH(D$13,Data!$A$3:$CC$3,0),0) -> 0.07261666667 | E41: =VLOOKUP($B41,retdat,MATCH(E$13,Data!$A$3:$CC$3,0),0) -> -0.2452700148 | F41: =VLOOKUP($B41,retdat,MATCH(F$13,Data!$A$3:$CC$3,0),0) -> -0.01797625585 | G41: =VLOOKUP($B41,retdat,MATCH(G$13,Data!$A$3:$CC$3,0),0) -> 0.01682806928 | H41: =VLOOKUP($B41,retdat,MATCH(H$13,Data!$A$3:$CC$3,0),0) -> 0.05060833333 | I41: =VLOOKUP($B41,retdat,MATCH(I$13,Data!$A$3:$CC$3,0),0) -> 0.2700895857 | J41: =VLOOKUP($B41,retdat,MATCH(J$13,Data!$A$3:$CC$3,0),0) -> 0.2040963107 | K41: =VLOOKUP($B41,retdat,MATCH(K$13,Data!$A$3:$CC$3,0),0) -> 0.1844874706 | L41: =VLOOKUP($B41,retdat,MATCH(L$13,Data!$A$3:$CC$3,0),0) -> 0.1727837401 | M41: =VLOOKUP($B41,retdat,MATCH(M$13,Data!$A$3:$CC$3,0),0) -> 0.06968827231 | N41: =VLOOKUP($B41,retdat,MATCH(N$13,Data!$A$3:$CC$3,0),0) -> 0.07865 | O41: =VLOOKUP($B41,retdat,MATCH(O$13,Data!$A$3:$CC$3,0),0) -> 0.07563333333 | P41: =VLOOKUP($B41,retdat,MATCH(P$13,Data!$A$3:$CC$3,0),0) -> 0.063525 | Q41: =VLOOKUP($B41,retdat,MATCH(Q$13,Data!$A$3:$CC$3,0),0) -> 0.0023757783 | S41: 0.08756474144 | T41: 0.07407222222 | U41: -0.09092481826 | V41: 0.01313666851 | W41: 0.02501975533 | X41: 0.05185555556 | Y41: 0.2493669999 | Z41: 0.2412999573 | AA41: 0.2095484681 | AB41: 0.2155280995 | AC41: 0.0811770031 | AD41: 0.08040555556 | AE41: 0.07765277778 | AF41: 0.06456944444 | AG41: 0.045146183 | AI41: =GEOMEAN(C118:OFFSET(C118,$AI$2-1,0))-1 -> 0.09031355028 | AJ41: =GEOMEAN(D118:OFFSET(D118,$AI$2-1,0))-1 -> 0.0715839424 | AK41: =GEOMEAN(E118:OFFSET(E118,$AI$2-1,0))-1 -> -0.06399888651 | AL41: =GEOMEAN(F118:OFFSET(F118,$AI$2-1,0))-1 -> 0.009038504059 | AM41: =GEOMEAN(G118:OFFSET(G118,$AI$2-1,0))-1 -> 0.02346235306 | AN41: =GEOMEAN(H118:OFFSET(H118,$AI$2-1,0))-1 -> 0.04993929565 | AO41: =GEOMEAN(I118:OFFSET(I118,$AI$2-1,0))-1 -> 0.2317314124 | AP41: =GEOMEAN(J118:OFFSET(J118,$AI$2-1,0))-1 -> 0.218785598 | AQ41: =GEOMEAN(K118:OFFSET(K118,$AI$2-1,0))-1 -> 0.06268206633 | AR41: =GEOMEAN(L118:OFFSET(L118,$AI$2-1,0))-1 -> 0.0572453746 | AS41: =GEOMEAN(M118:OFFSET(M118,$AI$2-1,0))-1 -> 0.08425429741 | AT41: =GEOMEAN(N118:OFFSET(N118,$AI$2-1,0))-1 -> 0.07842480021 | AU41: =GEOMEAN(O118:OFFSET(O118,$AI$2-1,0))-1 -> 0.07539800912 | AV41: =GEOMEAN(P118:OFFSET(P118,$AI$2-1,0))-1 -> 0.06053094692 | AW41: =GEOMEAN(Q118:OFFSET(Q118,$AI$2-1,0))-1 -> 0.1026779548 | AY41: 28
B42: 1998 | C42: =VLOOKUP($B42,retdat,MATCH(C$13,Data!$A$3:$CC$3,0),0) -> 0.09134845101 | D42: =VLOOKUP($B42,retdat,MATCH(D$13,Data!$A$3:$CC$3,0),0) -> 0.06531666667 | E42: =VLOOKUP($B42,retdat,MATCH(E$13,Data!$A$3:$CC$3,0),0) -> 0.01013068173 | F42: =VLOOKUP($B42,retdat,MATCH(F$13,Data!$A$3:$CC$3,0),0) -> -0.03205402629 | G42: =VLOOKUP($B42,retdat,MATCH(G$13,Data!$A$3:$CC$3,0),0) -> 0.015941478 | H42: =VLOOKUP($B42,retdat,MATCH(H$13,Data!$A$3:$CC$3,0),0) -> 0.04776666667 | I42: =VLOOKUP($B42,retdat,MATCH(I$13,Data!$A$3:$CC$3,0),0) -> 0.2364039638 | J42: =VLOOKUP($B42,retdat,MATCH(J$13,Data!$A$3:$CC$3,0),0) -> 0.1492701251 | K42: =VLOOKUP($B42,retdat,MATCH(K$13,Data!$A$3:$CC$3,0),0) -> -0.192398505 | L42: =VLOOKUP($B42,retdat,MATCH(L$13,Data!$A$3:$CC$3,0),0) -> -0.2085343985 | M42: =VLOOKUP($B42,retdat,MATCH(M$13,Data!$A$3:$CC$3,0),0) -> 0.08362248839 | N42: =VLOOKUP($B42,retdat,MATCH(N$13,Data!$A$3:$CC$3,0),0) -> 0.072225 | O42: =VLOOKUP($B42,retdat,MATCH(O$13,Data!$A$3:$CC$3,0),0) -> 0.06953333333 | P42: =VLOOKUP($B42,retdat,MATCH(P$13,Data!$A$3:$CC$3,0),0) -> 0.05264166667 | Q42: =VLOOKUP($B42,retdat,MATCH(Q$13,Data!$A$3:$CC$3,0),0) -> 0.1674663222 | S42: 0.08458601779 | T42: 0.07054444444 | U42: -0.09463456239 | V42: -0.007780366628 | W42: 0.02199981393 | X42: 0.04947777778 | Y42: 0.2303366385 | Z42: 0.1948650312 | AA42: 0.09805564023 | AB42: 0.08997342514 | AC42: 0.07809733043 | AD42: 0.07714444444 | AE42: 0.07441944444 | AF42: 0.06018333333 | AG42: 0.07095940304 | AI42: =GEOMEAN(C119:OFFSET(C119,$AI$2-1,0))-1 -> 0.0896111171 | AJ42: =GEOMEAN(D119:OFFSET(D119,$AI$2-1,0))-1 -> 0.07164867383 | AK42: =GEOMEAN(E119:OFFSET(E119,$AI$2-1,0))-1 -> -0.0758769506 | AL42: =GEOMEAN(F119:OFFSET(F119,$AI$2-1,0))-1 -> 0.01541113104 | AM42: =GEOMEAN(G119:OFFSET(G119,$AI$2-1,0))-1 -> 0.02521008855 | AN42: =GEOMEAN(H119:OFFSET(H119,$AI$2-1,0))-1 -> 0.05058875269 | AO42: =GEOMEAN(I119:OFFSET(I119,$AI$2-1,0))-1 -> 0.1437794264 | AP42: =GEOMEAN(J119:OFFSET(J119,$AI$2-1,0))-1 -> 0.143383856 | AQ42: =GEOMEAN(K119:OFFSET(K119,$AI$2-1,0))-1 -> 0.07926376063 | AR42: =GEOMEAN(L119:OFFSET(L119,$AI$2-1,0))-1 -> 0.06825652842 | AS42: =GEOMEAN(M119:OFFSET(M119,$AI$2-1,0))-1 -> 0.08441802567 | AT42: =GEOMEAN(N119:OFFSET(N119,$AI$2-1,0))-1 -> 0.07875018856 | AU42: =GEOMEAN(O119:OFFSET(O119,$AI$2-1,0))-1 -> 0.07560054356 | AV42: =GEOMEAN(P119:OFFSET(P119,$AI$2-1,0))-1 -> 0.05943245335 | AW42: =GEOMEAN(Q119:OFFSET(Q119,$AI$2-1,0))-1 -> 0.04545263039 | AY42: 29
B43: 1999 | C43: =VLOOKUP($B43,retdat,MATCH(C$13,Data!$A$3:$CC$3,0),0) -> 0.09771532174 | D43: =VLOOKUP($B43,retdat,MATCH(D$13,Data!$A$3:$CC$3,0),0) -> 0.07041666667 | E43: =VLOOKUP($B43,retdat,MATCH(E$13,Data!$A$3:$CC$3,0),0) -> -0.02996309405 | F43: =VLOOKUP($B43,retdat,MATCH(F$13,Data!$A$3:$CC$3,0),0) -> 0.03990952623 | G43: =VLOOKUP($B43,retdat,MATCH(G$13,Data!$A$3:$CC$3,0),0) -> 0.02641209954 | H43: =VLOOKUP($B43,retdat,MATCH(H$13,Data!$A$3:$CC$3,0),0) -> 0.04638333333 | I43: =VLOOKUP($B43,retdat,MATCH(I$13,Data!$A$3:$CC$3,0),0) -> 0.1783641094 | J43: =VLOOKUP($B43,retdat,MATCH(J$13,Data!$A$3:$CC$3,0),0) -> 0.2249118637 | K43: =VLOOKUP($B43,retdat,MATCH(K$13,Data!$A$3:$CC$3,0),0) -> -0.04730109056 | L43: =VLOOKUP($B43,retdat,MATCH(L$13,Data!$A$3:$CC$3,0),0) -> -0.06695151034 | M43: =VLOOKUP($B43,retdat,MATCH(M$13,Data!$A$3:$CC$3,0),0) -> 0.09430210477 | N43: =VLOOKUP($B43,retdat,MATCH(N$13,Data!$A$3:$CC$3,0),0) -> 0.07870833333 | O43: =VLOOKUP($B43,retdat,MATCH(O$13,Data!$A$3:$CC$3,0),0) -> 0.074525 | P43: =VLOOKUP($B43,retdat,MATCH(P$13,Data!$A$3:$CC$3,0),0) -> 0.05636666667 | Q43: =VLOOKUP($B43,retdat,MATCH(Q$13,Data!$A$3:$CC$3,0),0) -> 0.2252707639 | S43: 0.08782877646 | T43: 0.06945 | U43: -0.08836747572 | V43: -0.003373585303 | W43: 0.01972721561 | X43: 0.04825277778 | Y43: 0.2282858863 | Z43: 0.1927594332 | AA43: -0.01840404166 | AB43: -0.03423405624 | AC43: 0.08253762183 | AD43: 0.07652777778 | AE43: 0.07323055556 | AF43: 0.05751111111 | AG43: 0.1317042882 | AI43: =GEOMEAN(C120:OFFSET(C120,$AI$2-1,0))-1 -> 0.09038763025 | AJ43: =GEOMEAN(D120:OFFSET(D120,$AI$2-1,0))-1 -> 0.07107415671 | AK43: =GEOMEAN(E120:OFFSET(E120,$AI$2-1,0))-1 -> -0.0636079923 | AL43: =GEOMEAN(F120:OFFSET(F120,$AI$2-1,0))-1 -> -0.002625486559 | AM43: =GEOMEAN(G120:OFFSET(G120,$AI$2-1,0))-1 -> 0.02174960052 | AN43: =GEOMEAN(H120:OFFSET(H120,$AI$2-1,0))-1 -> 0.04733198954 | AO43: =GEOMEAN(I120:OFFSET(I120,$AI$2-1,0))-1 -> 0.07289869115 | AP43: =GEOMEAN(J120:OFFSET(J120,$AI$2-1,0))-1 -> 0.08012757897 | AQ43: =GEOMEAN(K120:OFFSET(K120,$AI$2-1,0))-1 -> 0.04917918886 | AR43: =GEOMEAN(L120:OFFSET(L120,$AI$2-1,0))-1 -> 0.04040626936 | AS43: =GEOMEAN(M120:OFFSET(M120,$AI$2-1,0))-1 -> 0.08625147068 | AT43: =GEOMEAN(N120:OFFSET(N120,$AI$2-1,0))-1 -> 0.07853379766 | AU43: =GEOMEAN(O120:OFFSET(O120,$AI$2-1,0))-1 -> 0.07399780852 | AV43: =GEOMEAN(P120:OFFSET(P120,$AI$2-1,0))-1 -> 0.05658877966 | AW43: =GEOMEAN(Q120:OFFSET(Q120,$AI$2-1,0))-1 -> -0.02294064755 | AY43: 30 | AZ43: 0.09038763025 | BA43: 0.07107415671 | BB43: -0.0636079923 | BC43: -0.002625486559 | BD43: 0.02174960052 | BE43: 0.04733198954 | BF43: 0.07289869115 | BG43: 0.08012757897 | BH43: 0.04917918886 | BI43: 0.04040626936 | BJ43: 0.08625147068 | BK43: 0.07853379766 | BL43: 0.07399780852 | BM43: 0.05658877966 | BN43: -0.02294064755
B44: 2000 | C44: =VLOOKUP($B44,retdat,MATCH(C$13,Data!$A$3:$CC$3,0),0) -> 0.09674490066 | D44: =VLOOKUP($B44,retdat,MATCH(D$13,Data!$A$3:$CC$3,0),0) -> 0.076225 | E44: =VLOOKUP($B44,retdat,MATCH(E$13,Data!$A$3:$CC$3,0),0) -> -0.04191625653 | F44: =VLOOKUP($B44,retdat,MATCH(F$13,Data!$A$3:$CC$3,0),0) -> 0.06365785177 | G44: =VLOOKUP($B44,retdat,MATCH(G$13,Data!$A$3:$CC$3,0),0) -> 0.03378306124 | H44: =VLOOKUP($B44,retdat,MATCH(H$13,Data!$A$3:$CC$3,0),0) -> 0.05816666667 | I44: =VLOOKUP($B44,retdat,MATCH(I$13,Data!$A$3:$CC$3,0),0) -> -0.1069082312 | J44: =VLOOKUP($B44,retdat,MATCH(J$13,Data!$A$3:$CC$3,0),0) -> -0.06366042438 | K44: =VLOOKUP($B44,retdat,MATCH(K$13,Data!$A$3:$CC$3,0),0) -> 0.2340073134 | L44: =VLOOKUP($B44,retdat,MATCH(L$13,Data!$A$3:$CC$3,0),0) -> 0.2302400099 | M44: =VLOOKUP($B44,retdat,MATCH(M$13,Data!$A$3:$CC$3,0),0) -> 0.09368689558 | N44: =VLOOKUP($B44,retdat,MATCH(N$13,Data!$A$3:$CC$3,0),0) -> 0.08364166667 | O44: =VLOOKUP($B44,retdat,MATCH(O$13,Data!$A$3:$CC$3,0),0) -> 0.08025 | P44: =VLOOKUP($B44,retdat,MATCH(P$13,Data!$A$3:$CC$3,0),0) -> 0.06029166667 | Q44: =VLOOKUP($B44,retdat,MATCH(Q$13,Data!$A$3:$CC$3,0),0) -> -0.1649442731 | S44: 0.0952695578 | T44: 0.07065277778 | U44: -0.02058288962 | V44: 0.0238377839 | W44: 0.02537887959 | X44: 0.05077222222 | Y44: 0.1026199474 | Z44: 0.1035071881 | AA44: -0.001897427395 | AB44: -0.01508196632 | AC44: 0.09053716292 | AD44: 0.07819166667 | AE44: 0.07476944444 | AF44: 0.05643333333 | AG44: 0.07593093769 | AI44: =GEOMEAN(C121:OFFSET(C121,$AI$2-1,0))-1 -> 0.09332033137 | AJ44: =GEOMEAN(D121:OFFSET(D121,$AI$2-1,0))-1 -> 0.06953193651 | AK44: =GEOMEAN(E121:OFFSET(E121,$AI$2-1,0))-1 -> 0.02481562909 | AL44: =GEOMEAN(F121:OFFSET(F121,$AI$2-1,0))-1 -> 0.008257991543 | AM44: =GEOMEAN(G121:OFFSET(G121,$AI$2-1,0))-1 -> 0.02328680335 | AN44: =GEOMEAN(H121:OFFSET(H121,$AI$2-1,0))-1 -> 0.0403442696 | AO44: =GEOMEAN(I121:OFFSET(I121,$AI$2-1,0))-1 -> -0.03857414037 | AP44: =GEOMEAN(J121:OFFSET(J121,$AI$2-1,0))-1 -> -0.0006073264185 | AQ44: =GEOMEAN(K121:OFFSET(K121,$AI$2-1,0))-1 -> 0.02174109966 | AR44: =GEOMEAN(L121:OFFSET(L121,$AI$2-1,0))-1 -> 0.01781016624 | AS44: =GEOMEAN(M121:OFFSET(M121,$AI$2-1,0))-1 -> 0.08995150594 | AT44: =GEOMEAN(N121:OFFSET(N121,$AI$2-1,0))-1 -> 0.07840711488 | AU44: =GEOMEAN(O121:OFFSET(O121,$AI$2-1,0))-1 -> 0.07187599302 | AV44: =GEOMEAN(P121:OFFSET(P121,$AI$2-1,0))-1 -> 0.0531052701 | AW44: =GEOMEAN(Q121:OFFSET(Q121,$AI$2-1,0))-1 -> -0.06430255773 | AY44: 31
B45: 2001 | C45: =VLOOKUP($B45,retdat,MATCH(C$13,Data!$A$3:$CC$3,0),0) -> 0.09186935403 | D45: =VLOOKUP($B45,retdat,MATCH(D$13,Data!$A$3:$CC$3,0),0) -> 0.070825 | E45: =VLOOKUP($B45,retdat,MATCH(E$13,Data!$A$3:$CC$3,0),0) -> 0.01607927937 | F45: =VLOOKUP($B45,retdat,MATCH(F$13,Data!$A$3:$CC$3,0),0) -> -0.06131318481 | G45: =VLOOKUP($B45,retdat,MATCH(G$13,Data!$A$3:$CC$3,0),0) -> 0.01590942647 | H45: =VLOOKUP($B45,retdat,MATCH(H$13,Data!$A$3:$CC$3,0),0) -> 0.03388333333 | I45: =VLOOKUP($B45,retdat,MATCH(I$13,Data!$A$3:$CC$3,0),0) -> -0.1397528534 | J45: =VLOOKUP($B45,retdat,MATCH(J$13,Data!$A$3:$CC$3,0),0) -> -0.07369563312 | K45: =VLOOKUP($B45,retdat,MATCH(K$13,Data!$A$3:$CC$3,0),0) -> 0.1304395681 | L45: =VLOOKUP($B45,retdat,MATCH(L$13,Data!$A$3:$CC$3,0),0) -> 0.1441178489 | M45: =VLOOKUP($B45,retdat,MATCH(M$13,Data!$A$3:$CC$3,0),0) -> 0.09015035484 | N45: =VLOOKUP($B45,retdat,MATCH(N$13,Data!$A$3:$CC$3,0),0) -> 0.079475 | O45: =VLOOKUP($B45,retdat,MATCH(O$13,Data!$A$3:$CC$3,0),0) -> 0.07008333333 | P45: =VLOOKUP($B45,retdat,MATCH(P$13,Data!$A$3:$CC$3,0),0) -> 0.050175 | Q45: =VLOOKUP($B45,retdat,MATCH(Q$13,Data!$A$3:$CC$3,0),0) -> -0.2563265516 | S45: 0.09544319214 | T45: 0.07248888889 | U45: -0.01860002374 | V45: 0.01408473106 | W45: 0.02536819575 | X45: 0.04614444444 | Y45: -0.0227656584 | Z45: 0.02918526875 | AA45: 0.1057152636 | AB45: 0.1024687828 | AC45: 0.0927131184 | AD45: 0.08060833333 | AE45: 0.07495277778 | AF45: 0.05561111111 | AG45: -0.0653333536 | AI45: =GEOMEAN(C122:OFFSET(C122,$AI$2-1,0))-1 -> 0.0922901297 | AJ45: =GEOMEAN(D122:OFFSET(D122,$AI$2-1,0))-1 -> 0.06778942254 | AK45: =GEOMEAN(E122:OFFSET(E122,$AI$2-1,0))-1 -> 0.061405574 | AL45: =GEOMEAN(F122:OFFSET(F122,$AI$2-1,0))-1 -> 0.02450116179 | AM45: =GEOMEAN(G122:OFFSET(G122,$AI$2-1,0))-1 -> 0.02413273029 | AN45: =GEOMEAN(H122:OFFSET(H122,$AI$2-1,0))-1 -> 0.03275606613 | AO45: =GEOMEAN(I122:OFFSET(I122,$AI$2-1,0))-1 -> -0.03892864061 | AP45: =GEOMEAN(J122:OFFSET(J122,$AI$2-1,0))-1 -> 0.01234811385 | AQ45: =GEOMEAN(K122:OFFSET(K122,$AI$2-1,0))-1 -> 0.1265189659 | AR45: =GEOMEAN(L122:OFFSET(L122,$AI$2-1,0))-1 -> 0.1283751455 | AS45: =GEOMEAN(M122:OFFSET(M122,$AI$2-1,0))-1 -> 0.09009233859 | AT45: =GEOMEAN(N122:OFFSET(N122,$AI$2-1,0))-1 -> 0.07748694659 | AU45: =GEOMEAN(O122:OFFSET(O122,$AI$2-1,0))-1 -> 0.06959804052 | AV45: =GEOMEAN(P122:OFFSET(P122,$AI$2-1,0))-1 -> 0.05059388699 | AW45: =GEOMEAN(Q122:OFFSET(Q122,$AI$2-1,0))-1 -> -0.0436390383 | AY45: 32
B46: 2002 | C46: =VLOOKUP($B46,retdat,MATCH(C$13,Data!$A$3:$CC$3,0),0) -> 0.08894929652 | D46: =VLOOKUP($B46,retdat,MATCH(D$13,Data!$A$3:$CC$3,0),0) -> 0.06491666667 | E46: =VLOOKUP($B46,retdat,MATCH(E$13,Data!$A$3:$CC$3,0),0) -> 0.1850367363 | F46: =VLOOKUP($B46,retdat,MATCH(F$13,Data!$A$3:$CC$3,0),0) -> 0.03678575682 | G46: =VLOOKUP($B46,retdat,MATCH(G$13,Data!$A$3:$CC$3,0),0) -> 0.02450011187 | H46: =VLOOKUP($B46,retdat,MATCH(H$13,Data!$A$3:$CC$3,0),0) -> 0.016025 | I46: =VLOOKUP($B46,retdat,MATCH(I$13,Data!$A$3:$CC$3,0),0) -> -0.2661289198 | J46: =VLOOKUP($B46,retdat,MATCH(J$13,Data!$A$3:$CC$3,0),0) -> -0.1834801312 | K46: =VLOOKUP($B46,retdat,MATCH(K$13,Data!$A$3:$CC$3,0),0) -> 0.03749604559 | L46: =VLOOKUP($B46,retdat,MATCH(L$13,Data!$A$3:$CC$3,0),0) -> 0.0508411128 | M46: =VLOOKUP($B46,retdat,MATCH(M$13,Data!$A$3:$CC$3,0),0) -> 0.0880308912 | N46: =VLOOKUP($B46,retdat,MATCH(N$13,Data!$A$3:$CC$3,0),0) -> 0.07801666667 | O46: =VLOOKUP($B46,retdat,MATCH(O$13,Data!$A$3:$CC$3,0),0) -> 0.06505 | P46: =VLOOKUP($B46,retdat,MATCH(P$13,Data!$A$3:$CC$3,0),0) -> 0.04610833333 | Q46: =VLOOKUP($B46,retdat,MATCH(Q$13,Data!$A$3:$CC$3,0),0) -> -0.1925734154 | S46: 0.09252118374 | T46: 0.07065555556 | U46: 0.05306658638 | V46: 0.01304347459 | W46: 0.02473086653 | X46: 0.036025 | Y46: -0.1709300015 | Z46: -0.1069453962 | AA46: 0.1339809757 | AB46: 0.1417329905 | AC46: 0.09062271387 | AD46: 0.08037777778 | AE46: 0.07179444444 | AF46: 0.05219166667 | AG46: -0.2046147467 | AI46: =GEOMEAN(C123:OFFSET(C123,$AI$2-1,0))-1 -> 0.09107309253 | AJ46: =GEOMEAN(D123:OFFSET(D123,$AI$2-1,0))-1 -> 0.06495468239 | AK46: =GEOMEAN(E123:OFFSET(E123,$AI$2-1,0))-1 -> 0.08500722933 | AL46: =GEOMEAN(F123:OFFSET(F123,$AI$2-1,0))-1 -> 0.03111324651 | AM46: =GEOMEAN(G123:OFFSET(G123,$AI$2-1,0))-1 -> 0.02541955488 | AN46: =GEOMEAN(H123:OFFSET(H123,$AI$2-1,0))-1 -> 0.02622575349 | AO46: =GEOMEAN(I123:OFFSET(I123,$AI$2-1,0))-1 -> -0.05447044936 | AP46: =GEOMEAN(J123:OFFSET(J123,$AI$2-1,0))-1 -> -0.02195193533 | AQ46: =GEOMEAN(K123:OFFSET(K123,$AI$2-1,0))-1 -> 0.1940163848 | AR46: =GEOMEAN(L123:OFFSET(L123,$AI$2-1,0))-1 -> 0.1992942206 | AS46: =GEOMEAN(M123:OFFSET(M123,$AI$2-1,0))-1 -> 0.09296141975 | AT46: =GEOMEAN(N123:OFFSET(N123,$AI$2-1,0))-1 -> 0.07451898681 | AU46: =GEOMEAN(O123:OFFSET(O123,$AI$2-1,0))-1 -> 0.06635998659 | AV46: =GEOMEAN(P123:OFFSET(P123,$AI$2-1,0))-1 -> 0.04786968727 | AW46: =GEOMEAN(Q123:OFFSET(Q123,$AI$2-1,0))-1 -> -0.05371940058 | AY46: 33
B47: 2003 | C47: =VLOOKUP($B47,retdat,MATCH(C$13,Data!$A$3:$CC$3,0),0) -> 0.0862164135 | D47: =VLOOKUP($B47,retdat,MATCH(D$13,Data!$A$3:$CC$3,0),0) -> 0.05666666667 | E47: =VLOOKUP($B47,retdat,MATCH(E$13,Data!$A$3:$CC$3,0),0) -> 0.2038037236 | F47: =VLOOKUP($B47,retdat,MATCH(F$13,Data!$A$3:$CC$3,0),0) -> 0.04846763554 | G47: =VLOOKUP($B47,retdat,MATCH(G$13,Data!$A$3:$CC$3,0),0) -> 0.0201477003 | H47: =VLOOKUP($B47,retdat,MATCH(H$13,Data!$A$3:$CC$3,0),0) -> 0.01010833333 | I47: =VLOOKUP($B47,retdat,MATCH(I$13,Data!$A$3:$CC$3,0),0) -> 0.2341261887 | J47: =VLOOKUP($B47,retdat,MATCH(J$13,Data!$A$3:$CC$3,0),0) -> 0.2257183868 | K47: =VLOOKUP($B47,retdat,MATCH(K$13,Data!$A$3:$CC$3,0),0) -> 0.3157862295 | L47: =VLOOKUP($B47,retdat,MATCH(L$13,Data!$A$3:$CC$3,0),0) -> 0.3254571111 | M47: =VLOOKUP($B47,retdat,MATCH(M$13,Data!$A$3:$CC$3,0),0) -> 0.0843227437 | N47: =VLOOKUP($B47,retdat,MATCH(N$13,Data!$A$3:$CC$3,0),0) -> 0.06765833333 | O47: =VLOOKUP($B47,retdat,MATCH(O$13,Data!$A$3:$CC$3,0),0) -> 0.05821666667 | P47: =VLOOKUP($B47,retdat,MATCH(P$13,Data!$A$3:$CC$3,0),0) -> 0.04015 | Q47: =VLOOKUP($B47,retdat,MATCH(Q$13,Data!$A$3:$CC$3,0),0) -> 0.3021959792 | S47: 0.08901168802 | T47: 0.06413611111 | U47: 0.1349732464 | V47: 0.007980069182 | W47: 0.02018574621 | X47: 0.02000555556 | Y47: -0.05725186151 | Z47: -0.01048579253 | AA47: 0.1612406144 | AB47: 0.1734720243 | AC47: 0.08750132991 | AD47: 0.07505 | AE47: 0.06445 | AF47: 0.04547777778 | AG47: -0.04890132927 | AI47: =GEOMEAN(C124:OFFSET(C124,$AI$2-1,0))-1 -> 0.1122496394 | AJ47: =GEOMEAN(D124:OFFSET(D124,$AI$2-1,0))-1 -> 0.06018719193 | AK47: =GEOMEAN(E124:OFFSET(E124,$AI$2-1,0))-1 -> 0.1240088159 | AL47: =GEOMEAN(F124:OFFSET(F124,$AI$2-1,0))-1 -> 0.03460354783 | AM47: =GEOMEAN(G124:OFFSET(G124,$AI$2-1,0))-1 -> 0.02523246052 | AN47: =GEOMEAN(H124:OFFSET(H124,$AI$2-1,0))-1 -> 0.02099386721 | AO47: =GEOMEAN(I124:OFFSET(I124,$AI$2-1,0))-1 -> -0.02719239225 | AP47: =GEOMEAN(J124:OFFSET(J124,$AI$2-1,0))-1 -> -0.01021105326 | AQ47: =GEOMEAN(K124:OFFSET(K124,$AI$2-1,0))-1 -> 0.1699968468 | AR47: =GEOMEAN(L124:OFFSET(L124,$AI$2-1,0))-1 -> 0.1683754154 | AS47: =GEOMEAN(M124:OFFSET(M124,$AI$2-1,0))-1 -> 0.117155075 | AT47: =GEOMEAN(N124:OFFSET(N124,$AI$2-1,0))-1 -> 0.06991848676 | AU47: =GEOMEAN(O124:OFFSET(O124,$AI$2-1,0))-1 -> 0.06207271504 | AV47: =GEOMEAN(P124:OFFSET(P124,$AI$2-1,0))-1 -> 0.04440932595 | AW47: =GEOMEAN(Q124:OFFSET(Q124,$AI$2-1,0))-1 -> 0.0004672770226 | AY47: 34
B48: 2004 | C48: =VLOOKUP($B48,retdat,MATCH(C$13,Data!$A$3:$CC$3,0),0) -> 0.09161352447 | D48: =VLOOKUP($B48,retdat,MATCH(D$13,Data!$A$3:$CC$3,0),0) -> 0.05628333333 | E48: =VLOOKUP($B48,retdat,MATCH(E$13,Data!$A$3:$CC$3,0),0) -> 0.08279089948 | F48: =VLOOKUP($B48,retdat,MATCH(F$13,Data!$A$3:$CC$3,0),0) -> 0.07390313807 | G48: =VLOOKUP($B48,retdat,MATCH(G$13,Data!$A$3:$CC$3,0),0) -> 0.032876768 | H48: =VLOOKUP($B48,retdat,MATCH(H$13,Data!$A$3:$CC$3,0),0) -> 0.01371666667 | I48: =VLOOKUP($B48,retdat,MATCH(I$13,Data!$A$3:$CC$3,0),0) -> 0.08611762807 | J48: =VLOOKUP($B48,retdat,MATCH(J$13,Data!$A$3:$CC$3,0),0) -> 0.0309947196 | K48: =VLOOKUP($B48,retdat,MATCH(K$13,Data!$A$3:$CC$3,0),0) -> 0.274425818 | L48: =VLOOKUP($B48,retdat,MATCH(L$13,Data!$A$3:$CC$3,0),0) -> 0.265509358 | M48: =VLOOKUP($B48,retdat,MATCH(M$13,Data!$A$3:$CC$3,0),0) -> 0.1087789148 | N48: =VLOOKUP($B48,retdat,MATCH(N$13,Data!$A$3:$CC$3,0),0) -> 0.06393333333 | O48: =VLOOKUP($B48,retdat,MATCH(O$13,Data!$A$3:$CC$3,0),0) -> 0.05835833333 | P48: =VLOOKUP($B48,retdat,MATCH(P$13,Data!$A$3:$CC$3,0),0) -> 0.04274166667 | Q48: =VLOOKUP($B48,retdat,MATCH(Q$13,Data!$A$3:$CC$3,0),0) -> 0.1620439453 | S48: 0.0889264115 | T48: 0.05928888889 | U48: 0.1572104531 | V48: 0.05305217681 | W48: 0.02584152673 | X48: 0.01328333333 | Y48: 0.018038299 | Z48: 0.02441099171 | AA48: 0.209236031 | AB48: 0.2139358606 | AC48: 0.0937108499 | AD48: 0.06986944444 | AE48: 0.06054166667 | AF48: 0.043 | AG48: 0.09055550304 | AI48: =GEOMEAN(C125:OFFSET(C125,$AI$2-1,0))-1 -> 0.1235384232 | AJ48: =GEOMEAN(D125:OFFSET(D125,$AI$2-1,0))-1 -> 0.05721022367 | AK48: =GEOMEAN(E125:OFFSET(E125,$AI$2-1,0))-1 -> 0.1641200161 | AL48: =GEOMEAN(F125:OFFSET(F125,$AI$2-1,0))-1 -> 0.05107474885 | AM48: =GEOMEAN(G125:OFFSET(G125,$AI$2-1,0))-1 -> 0.0270460009 | AN48: =GEOMEAN(H125:OFFSET(H125,$AI$2-1,0))-1 -> 0.02362358241 | AO48: =GEOMEAN(I125:OFFSET(I125,$AI$2-1,0))-1 -> 0.02692758839 | AP48: =GEOMEAN(J125:OFFSET(J125,$AI$2-1,0))-1 -> 0.03371127286 | AQ48: =GEOMEAN(K125:OFFSET(K125,$AI$2-1,0))-1 -> 0.2032639167 | AR48: =GEOMEAN(L125:OFFSET(L125,$AI$2-1,0))-1 -> 0.1972792484 | AS48: =GEOMEAN(M125:OFFSET(M125,$AI$2-1,0))-1 -> 0.1297218446 | AT48: =GEOMEAN(N125:OFFSET(N125,$AI$2-1,0))-1 -> 0.06699185099 | AU48: =GEOMEAN(O125:OFFSET(O125,$AI$2-1,0))-1 -> 0.06087901796 | AV48: =GEOMEAN(P125:OFFSET(P125,$AI$2-1,0))-1 -> 0.04395975215 | AW48: =GEOMEAN(Q125:OFFSET(Q125,$AI$2-1,0))-1 -> 0.1029193047 | AY48: 35 | AZ48: 0.1235384232 | BA48: 0.05721022367 | BB48: 0.1641200161 | BC48: 0.05107474885 | BD48: 0.0270460009 | BE48: 0.02362358241 | BF48: 0.02692758839 | BG48: 0.03371127286 | BH48: 0.2032639167 | BI48: 0.1972792484 | BJ48: 0.1297218446 | BK48: 0.06699185099 | BL48: 0.06087901796 | BM48: 0.04395975215 | BN48: 0.1029193047
B49: 2005 | C49: =VLOOKUP($B49,retdat,MATCH(C$13,Data!$A$3:$CC$3,0),0) -> 0.207390527 | D49: =VLOOKUP($B49,retdat,MATCH(D$13,Data!$A$3:$CC$3,0),0) -> 0.05235 | E49: =VLOOKUP($B49,retdat,MATCH(E$13,Data!$A$3:$CC$3,0),0) -> 0.1431123046 | F49: =VLOOKUP($B49,retdat,MATCH(F$13,Data!$A$3:$CC$3,0),0) -> 0.08178246148 | G49: =VLOOKUP($B49,retdat,MATCH(G$13,Data!$A$3:$CC$3,0),0) -> 0.03284030365 | H49: =VLOOKUP($B49,retdat,MATCH(H$13,Data!$A$3:$CC$3,0),0) -> 0.03146666667 | I49: =VLOOKUP($B49,retdat,MATCH(I$13,Data!$A$3:$CC$3,0),0) -> 0.02956873588 | J49: =VLOOKUP($B49,retdat,MATCH(J$13,Data!$A$3:$CC$3,0),0) -> -0.006093827795 | K49: =VLOOKUP($B49,retdat,MATCH(K$13,Data!$A$3:$CC$3,0),0) -> 0.1147815133 | L49: =VLOOKUP($B49,retdat,MATCH(L$13,Data!$A$3:$CC$3,0),0) -> 0.07962564873 | M49: =VLOOKUP($B49,retdat,MATCH(M$13,Data!$A$3:$CC$3,0),0) -> 0.2202144443 | N49: =VLOOKUP($B49,retdat,MATCH(N$13,Data!$A$3:$CC$3,0),0) -> 0.06064166667 | O49: =VLOOKUP($B49,retdat,MATCH(O$13,Data!$A$3:$CC$3,0),0) -> 0.05870833333 | P49: =VLOOKUP($B49,retdat,MATCH(P$13,Data!$A$3:$CC$3,0),0) -> 0.0429 | Q49: =VLOOKUP($B49,retdat,MATCH(Q$13,Data!$A$3:$CC$3,0),0) -> 0.1031389509 | S49: 0.1284068216 | T49: 0.0551 | U49: 0.1432356426 | V49: 0.06805107836 | W49: 0.02862159065 | X49: 0.01843055556 | Y49: 0.1166041842 | Z49: 0.08353975952 | AA49: 0.2349978536 | AB49: 0.223530706 | AC49: 0.1377720343 | AD49: 0.06407777778 | AE49: 0.05842777778 | AF49: 0.04193055556 | AG49: 0.1891262918 | AI49: =GEOMEAN(C126:OFFSET(C126,$AI$2-1,0))-1 -> 0.13382795 | AJ49: =GEOMEAN(D126:OFFSET(D126,$AI$2-1,0))-1 -> 0.05534553541 | AK49: =GEOMEAN(E126:OFFSET(E126,$AI$2-1,0))-1 -> 0.1753330652 | AL49: =GEOMEAN(F126:OFFSET(F126,$AI$2-1,0))-1 -> 0.05882408346 | AM49: =GEOMEAN(G126:OFFSET(G126,$AI$2-1,0))-1 -> 0.03018782308 | AN49: =GEOMEAN(H126:OFFSET(H126,$AI$2-1,0))-1 -> 0.02910732414 | AO49: =GEOMEAN(I126:OFFSET(I126,$AI$2-1,0))-1 -> 0.09996199129 | AP49: =GEOMEAN(J126:OFFSET(J126,$AI$2-1,0))-1 -> 0.08957852881 | AQ49: =GEOMEAN(K126:OFFSET(K126,$AI$2-1,0))-1 -> 0.1505538336 | AR49: =GEOMEAN(L126:OFFSET(L126,$AI$2-1,0))-1 -> 0.1347386601 | AS49: =GEOMEAN(M126:OFFSET(M126,$AI$2-1,0))-1 -> 0.1385686752 | AT49: =GEOMEAN(N126:OFFSET(N126,$AI$2-1,0))-1 -> 0.06436762307 | AU49: =GEOMEAN(O126:OFFSET(O126,$AI$2-1,0))-1 -> 0.06054345755 | AV49: =GEOMEAN(P126:OFFSET(P126,$AI$2-1,0))-1 -> 0.04399634094 | AW49: =GEOMEAN(Q126:OFFSET(Q126,$AI$2-1,0))-1 -> 0.1695686342 | AY49: 36
B50: 2006 | C50: =VLOOKUP($B50,retdat,MATCH(C$13,Data!$A$3:$CC$3,0),0) -> 0.1484152591 | D50: =VLOOKUP($B50,retdat,MATCH(D$13,Data!$A$3:$CC$3,0),0) -> 0.055875 | E50: =VLOOKUP($B50,retdat,MATCH(E$13,Data!$A$3:$CC$3,0),0) -> 0.2107871146 | F50: =VLOOKUP($B50,retdat,MATCH(F$13,Data!$A$3:$CC$3,0),0) -> 0.01582504114 | G50: =VLOOKUP($B50,retdat,MATCH(G$13,Data!$A$3:$CC$3,0),0) -> 0.02492651488 | H50: =VLOOKUP($B50,retdat,MATCH(H$13,Data!$A$3:$CC$3,0),0) -> 0.04726666667 | I50: =VLOOKUP($B50,retdat,MATCH(I$13,Data!$A$3:$CC$3,0),0) -> 0.1276843566 | J50: =VLOOKUP($B50,retdat,MATCH(J$13,Data!$A$3:$CC$3,0),0) -> 0.1508983709 | K50: =VLOOKUP($B50,retdat,MATCH(K$13,Data!$A$3:$CC$3,0),0) -> 0.3005539143 | L50: =VLOOKUP($B50,retdat,MATCH(L$13,Data!$A$3:$CC$3,0),0) -> 0.2928138216 | M50: =VLOOKUP($B50,retdat,MATCH(M$13,Data!$A$3:$CC$3,0),0) -> 0.1528603929 | N50: =VLOOKUP($B50,retdat,MATCH(N$13,Data!$A$3:$CC$3,0),0) -> 0.06479166667 | O50: =VLOOKUP($B50,retdat,MATCH(O$13,Data!$A$3:$CC$3,0),0) -> 0.06408333333 | P50: =VLOOKUP($B50,retdat,MATCH(P$13,Data!$A$3:$CC$3,0),0) -> 0.04791666667 | Q50: =VLOOKUP($B50,retdat,MATCH(Q$13,Data!$A$3:$CC$3,0),0) -> 0.2108393485 | S50: 0.1491397702 | T50: 0.05483611111 | U50: 0.1455634396 | V50: 0.05717021356 | W50: 0.03021452885 | X50: 0.03081666667 | Y50: 0.08112357351 | Z50: 0.05859975424 | AA50: 0.2299204152 | AB50: 0.2126496095 | AC50: 0.1606179173 | AD50: 0.06312222222 | AE50: 0.06038333333 | AF50: 0.04451944444 | AG50: 0.1586740816 | AI50: =GEOMEAN(C127:OFFSET(C127,$AI$2-1,0))-1 -> 0.1370691574 | AJ50: =GEOMEAN(D127:OFFSET(D127,$AI$2-1,0))-1 -> 0.05527561367 | AK50: =GEOMEAN(E127:OFFSET(E127,$AI$2-1,0))-1 -> 0.1361134109 | AL50: =GEOMEAN(F127:OFFSET(F127,$AI$2-1,0))-1 -> 0.0394366274 | AM50: =GEOMEAN(G127:OFFSET(G127,$AI$2-1,0))-1 -> 0.02604046755 | AN50: =GEOMEAN(H127:OFFSET(H127,$AI$2-1,0))-1 -> 0.02982797043 | AO50: =GEOMEAN(I127:OFFSET(I127,$AI$2-1,0))-1 -> -0.07675532517 | AP50: =GEOMEAN(J127:OFFSET(J127,$AI$2-1,0))-1 -> -0.0596260721 | AQ50: =GEOMEAN(K127:OFFSET(K127,$AI$2-1,0))-1 -> -0.04209068666 | AR50: =GEOMEAN(L127:OFFSET(L127,$AI$2-1,0))-1 -> -0.0572877397 | AS50: =GEOMEAN(M127:OFFSET(M127,$AI$2-1,0))-1 -> 0.1402277468 | AT50: =GEOMEAN(N127:OFFSET(N127,$AI$2-1,0))-1 -> 0.06572164346 | AU50: =GEOMEAN(O127:OFFSET(O127,$AI$2-1,0))-1 -> 0.06104575125 | AV50: =GEOMEAN(P127:OFFSET(P127,$AI$2-1,0))-1 -> 0.04329615953 | AW50: =GEOMEAN(Q127:OFFSET(Q127,$AI$2-1,0))-1 -> -0.07608086629 | AY50: 37
B51: 2007 | C51: =VLOOKUP($B51,retdat,MATCH(C$13,Data!$A$3:$CC$3,0),0) -> 0.1397347913 | D51: =VLOOKUP($B51,retdat,MATCH(D$13,Data!$A$3:$CC$3,0),0) -> 0.05555833333 | E51: =VLOOKUP($B51,retdat,MATCH(E$13,Data!$A$3:$CC$3,0),0) -> 0.2432194657 | F51: =VLOOKUP($B51,retdat,MATCH(F$13,Data!$A$3:$CC$3,0),0) -> 0.07557342649 | G51: =VLOOKUP($B51,retdat,MATCH(G$13,Data!$A$3:$CC$3,0),0) -> 0.0402664488 | H51: =VLOOKUP($B51,retdat,MATCH(H$13,Data!$A$3:$CC$3,0),0) -> 0.04353333333 | I51: =VLOOKUP($B51,retdat,MATCH(I$13,Data!$A$3:$CC$3,0),0) -> 0.03468716042 | J51: =VLOOKUP($B51,retdat,MATCH(J$13,Data!$A$3:$CC$3,0),0) -> 0.06233912756 | K51: =VLOOKUP($B51,retdat,MATCH(K$13,Data!$A$3:$CC$3,0),0) -> -0.1706903814 | L51: =VLOOKUP($B51,retdat,MATCH(L$13,Data!$A$3:$CC$3,0),0) -> -0.1964016502 | M51: =VLOOKUP($B51,retdat,MATCH(M$13,Data!$A$3:$CC$3,0),0) -> 0.1313051112 | N51: =VLOOKUP($B51,retdat,MATCH(N$13,Data!$A$3:$CC$3,0),0) -> 0.064825 | O51: =VLOOKUP($B51,retdat,MATCH(O$13,Data!$A$3:$CC$3,0),0) -> 0.06336666667 | P51: =VLOOKUP($B51,retdat,MATCH(P$13,Data!$A$3:$CC$3,0),0) -> 0.04629166667 | Q51: =VLOOKUP($B51,retdat,MATCH(Q$13,Data!$A$3:$CC$3,0),0) -> 0.08271191577 | S51: =AVERAGE(C49:C51) -> 0.1651801924 | T51: 0.05459444444 | U51: 0.1990396283 | V51: 0.05772697637 | W51: 0.03267775578 | X51: 0.04075555556 | Y51: 0.06398008429 | Z51: 0.06904789022 | AA51: 0.08154834873 | AB51: 0.05867927337 | AC51: 0.1681266495 | AD51: 0.06341944444 | AE51: 0.06205277778 | AF51: 0.04570277778 | AG51: 0.1322300717 | AI51: =GEOMEAN(C128:OFFSET(C128,$AI$2-1,0))-1 -> 0.1150383986 | AJ51: =GEOMEAN(D128:OFFSET(D128,$AI$2-1,0))-1 -> 0.05464546257 | AK51: =GEOMEAN(E128:OFFSET(E128,$AI$2-1,0))-1 -> 0.1837448983 | AL51: =GEOMEAN(F128:OFFSET(F128,$AI$2-1,0))-1 -> 0.03304057951 | AM51: =GEOMEAN(G128:OFFSET(G128,$AI$2-1,0))-1 -> 0.02502037917 | AN51: =GEOMEAN(H128:OFFSET(H128,$AI$2-1,0))-1 -> 0.02733375181 | AO51: =GEOMEAN(I128:OFFSET(I128,$AI$2-1,0))-1 -> -0.05648648539 | AP51: =GEOMEAN(J128:OFFSET(J128,$AI$2-1,0))-1 -> -0.03513404672 | AQ51: =GEOMEAN(K128:OFFSET(K128,$AI$2-1,0))-1 -> -0.04628260988 | AR51: =GEOMEAN(L128:OFFSET(L128,$AI$2-1,0))-1 -> -0.06031751698 | AS51: =GEOMEAN(M128:OFFSET(M128,$AI$2-1,0))-1 -> 0.1129798559 | AT51: =GEOMEAN(N128:OFFSET(N128,$AI$2-1,0))-1 -> 0.06752357364 | AU51: =GEOMEAN(O128:OFFSET(O128,$AI$2-1,0))-1 -> 0.05945026464 | AV51: =GEOMEAN(P128:OFFSET(P128,$AI$2-1,0))-1 -> 0.04125208336 | AW51: =GEOMEAN(Q128:OFFSET(Q128,$AI$2-1,0))-1 -> -0.06326835264 | AY51: 38
B52: 2008 | C52: =VLOOKUP($B52,retdat,MATCH(C$13,Data!$A$3:$CC$3,0),0) -> 0.1018309471 | D52: =VLOOKUP($B52,retdat,MATCH(D$13,Data!$A$3:$CC$3,0),0) -> 0.05631666667 | E52: =VLOOKUP($B52,retdat,MATCH(E$13,Data!$A$3:$CC$3,0),0) -> 0.01591960972 | F52: =VLOOKUP($B52,retdat,MATCH(F$13,Data!$A$3:$CC$3,0),0) -> -0.04407007832 | G52: =VLOOKUP($B52,retdat,MATCH(G$13,Data!$A$3:$CC$3,0),0) -> -0.0002223047334 | H52: =VLOOKUP($B52,retdat,MATCH(H$13,Data!$A$3:$CC$3,0),0) -> 0.01365 | I52: =VLOOKUP($B52,retdat,MATCH(I$13,Data!$A$3:$CC$3,0),0) -> -0.4858909696 | J52: =VLOOKUP($B52,retdat,MATCH(J$13,Data!$A$3:$CC$3,0),0) -> -0.4130502566 | K52: =VLOOKUP($B52,retdat,MATCH(K$13,Data!$A$3:$CC$3,0),0) -> -0.4736524612 | L52: =VLOOKUP($B52,retdat,MATCH(L$13,Data!$A$3:$CC$3,0),0) -> -0.4754556675 | M52: =VLOOKUP($B52,retdat,MATCH(M$13,Data!$A$3:$CC$3,0),0) -> 0.09224593487 | N52: =VLOOKUP($B52,retdat,MATCH(N$13,Data!$A$3:$CC$3,0),0) -> 0.07446666667 | O52: =VLOOKUP($B52,retdat,MATCH(O$13,Data!$A$3:$CC$3,0),0) -> 0.060725 | P52: =VLOOKUP($B52,retdat,MATCH(P$13,Data!$A$3:$CC$3,0),0) -> 0.03666666667 | Q52: =VLOOKUP($B52,retdat,MATCH(Q$13,Data!$A$3:$CC$3,0),0) -> -0.5993938687 | S52: 0.1299936658 | T52: 0.05591666667 | U52: 0.1566420633 | V52: 0.01577612977 | W52: 0.02165688632 | X52: 0.03481666667 | Y52: -0.1078398175 | Z52: -0.06660425271 | AA52: -0.1145963094 | AB52: -0.126347832 | AC52: 0.1254704797 | AD52: 0.06802777778 | AE52: 0.062725 | AF52: 0.043625 | AG52: -0.1019475348 | AI52: =GEOMEAN(C129:OFFSET(C129,$AI$2-1,0))-1 -> 0.08455004484 | AJ52: =GEOMEAN(D129:OFFSET(D129,$AI$2-1,0))-1 -> 0.05406020764 | AK52: =GEOMEAN(E129:OFFSET(E129,$AI$2-1,0))-1 -> 0.1959581818 | AL52: =GEOMEAN(F129:OFFSET(F129,$AI$2-1,0))-1 -> 0.02944728069 | AM52: =GEOMEAN(G129:OFFSET(G129,$AI$2-1,0))-1 -> 0.02130875726 | AN52: =GEOMEAN(H129:OFFSET(H129,$AI$2-1,0))-1 -> 0.02126663384 | AO52: =GEOMEAN(I129:OFFSET(I129,$AI$2-1,0))-1 -> -0.04041559034 | AP52: =GEOMEAN(J129:OFFSET(J129,$AI$2-1,0))-1 -> -0.01454642268 | AQ52: =GEOMEAN(K129:OFFSET(K129,$AI$2-1,0))-1 -> -0.02474896282 | AR52: =GEOMEAN(L129:OFFSET(L129,$AI$2-1,0))-1 -> -0.03338857567 | AS52: =GEOMEAN(M129:OFFSET(M129,$AI$2-1,0))-1 -> 0.07750625676 | AT52: =GEOMEAN(N129:OFFSET(N129,$AI$2-1,0))-1 -> 0.06747156667 | AU52: =GEOMEAN(O129:OFFSET(O129,$AI$2-1,0))-1 -> 0.05707296232 | AV52: =GEOMEAN(P129:OFFSET(P129,$AI$2-1,0))-1 -> 0.03909489692 | AW52: =GEOMEAN(Q129:OFFSET(Q129,$AI$2-1,0))-1 -> -0.0728467287 | AY52: 39
B53: 2009 | C53: =VLOOKUP($B53,retdat,MATCH(C$13,Data!$A$3:$CC$3,0),0) -> -0.01011754469 | D53: =VLOOKUP($B53,retdat,MATCH(D$13,Data!$A$3:$CC$3,0),0) -> 0.05313333333 | E53: =VLOOKUP($B53,retdat,MATCH(E$13,Data!$A$3:$CC$3,0),0) -> 0.3296176348 | F53: =VLOOKUP($B53,retdat,MATCH(F$13,Data!$A$3:$CC$3,0),0) -> 0.04126660017 | G53: =VLOOKUP($B53,retdat,MATCH(G$13,Data!$A$3:$CC$3,0),0) -> 0.02775254206 | H53: =VLOOKUP($B53,retdat,MATCH(H$13,Data!$A$3:$CC$3,0),0) -> 0.0015 | I53: =VLOOKUP($B53,retdat,MATCH(I$13,Data!$A$3:$CC$3,0),0) -> 0.2106913288 | J53: =VLOOKUP($B53,retdat,MATCH(J$13,Data!$A$3:$CC$3,0),0) -> 0.1724341295 | K53: =VLOOKUP($B53,retdat,MATCH(K$13,Data!$A$3:$CC$3,0),0) -> 0.2467836276 | L53: =VLOOKUP($B53,retdat,MATCH(L$13,Data!$A$3:$CC$3,0),0) -> 0.2453035899 | M53: =VLOOKUP($B53,retdat,MATCH(M$13,Data!$A$3:$CC$3,0),0) -> -0.01752060038 | N53: =VLOOKUP($B53,retdat,MATCH(N$13,Data!$A$3:$CC$3,0),0) -> 0.07295833333 | O53: =VLOOKUP($B53,retdat,MATCH(O$13,Data!$A$3:$CC$3,0),0) -> 0.050425 | P53: =VLOOKUP($B53,retdat,MATCH(P$13,Data!$A$3:$CC$3,0),0) -> 0.03256666667 | Q53: =VLOOKUP($B53,retdat,MATCH(Q$13,Data!$A$3:$CC$3,0),0) -> 0.2448835032 | S53: 0.0771493979 | T53: 0.05500277778 | U53: 0.1962522367 | V53: 0.02425664945 | W53: 0.02259889538 | X53: 0.01956111111 | Y53: -0.0801708268 | Z53: -0.05942566652 | AA53: -0.1325197383 | AB53: -0.1421845759 | AC53: 0.06867681524 | AD53: 0.07075 | AE53: 0.05817222222 | AF53: 0.03850833333 | AG53: -0.09059948326 | AI53: =GEOMEAN(C130:OFFSET(C130,$AI$2-1,0))-1 -> 0.07453109545 | AJ53: =GEOMEAN(D130:OFFSET(D130,$AI$2-1,0))-1 -> 0.05215996174 | AK53: =GEOMEAN(E130:OFFSET(E130,$AI$2-1,0))-1 -> 0.1867681014 | AL53: =GEOMEAN(F130:OFFSET(F130,$AI$2-1,0))-1 -> 0.03665199662 | AM53: =GEOMEAN(G130:OFFSET(G130,$AI$2-1,0))-1 -> 0.02234987632 | AN53: =GEOMEAN(H130:OFFSET(H130,$AI$2-1,0))-1 -> 0.01198313747 | AO53: =GEOMEAN(I130:OFFSET(I130,$AI$2-1,0))-1 -> -0.06320856898 | AP53: =GEOMEAN(J130:OFFSET(J130,$AI$2-1,0))-1 -> -0.03176400236 | AQ53: =GEOMEAN(K130:OFFSET(K130,$AI$2-1,0))-1 -> -0.06040199446 | AR53: =GEOMEAN(L130:OFFSET(L130,$AI$2-1,0))-1 -> -0.06918739778 | AS53: =GEOMEAN(M130:OFFSET(M130,$AI$2-1,0))-1 -> 0.06328452778 | AT53: =GEOMEAN(N130:OFFSET(N130,$AI$2-1,0))-1 -> 0.06583243812 | AU53: =GEOMEAN(O130:OFFSET(O130,$AI$2-1,0))-1 -> 0.05313801134 | AV53: =GEOMEAN(P130:OFFSET(P130,$AI$2-1,0))-1 -> 0.03508619088 | AW53: =GEOMEAN(Q130:OFFSET(Q130,$AI$2-1,0))-1 -> -0.1383138981 | AY53: 40 | AZ53: 0.07453109545 | BA53: 0.05215996174 | BB53: 0.1867681014 | BC53: 0.03665199662 | BD53: 0.02234987632 | BE53: 0.01198313747 | BF53: -0.06320856898 | BG53: -0.03176400236 | BH53: -0.06040199446 | BI53: -0.06918739778 | BJ53: 0.06328452778 | BK53: 0.06583243812 | BL53: 0.05313801134 | BM53: 0.03508619088 | BN53: -0.1383138981
B54: 2010 | C54: =VLOOKUP($B54,retdat,MATCH(C$13,Data!$A$3:$CC$3,0),0) -> 0.05110627815 | D54: =VLOOKUP($B54,retdat,MATCH(D$13,Data!$A$3:$CC$3,0),0) -> 0.04943333333 | E54: =VLOOKUP($B54,retdat,MATCH(E$13,Data!$A$3:$CC$3,0),0) -> 0.2033120602 | F54: =VLOOKUP($B54,retdat,MATCH(F$13,Data!$A$3:$CC$3,0),0) -> 0.06309868665 | G54: =VLOOKUP($B54,retdat,MATCH(G$13,Data!$A$3:$CC$3,0),0) -> 0.01427554798 | H54: =VLOOKUP($B54,retdat,MATCH(H$13,Data!$A$3:$CC$3,0),0) -> 0.001366666667 | I54: =VLOOKUP($B54,retdat,MATCH(I$13,Data!$A$3:$CC$3,0),0) -> 0.1202904579 | J54: =VLOOKUP($B54,retdat,MATCH(J$13,Data!$A$3:$CC$3,0),0) -> 0.1045651323 | K54: =VLOOKUP($B54,retdat,MATCH(K$13,Data!$A$3:$CC$3,0),0) -> 0.2464456724 | L54: =VLOOKUP($B54,retdat,MATCH(L$13,Data!$A$3:$CC$3,0),0) -> 0.2434466506 | M54: =VLOOKUP($B54,retdat,MATCH(M$13,Data!$A$3:$CC$3,0),0) -> 0.03776410526 | N54: =VLOOKUP($B54,retdat,MATCH(N$13,Data!$A$3:$CC$3,0),0) -> 0.06038333333 | O54: =VLOOKUP($B54,retdat,MATCH(O$13,Data!$A$3:$CC$3,0),0) -> 0.04688333333 | P54: =VLOOKUP($B54,retdat,MATCH(P$13,Data!$A$3:$CC$3,0),0) -> 0.03214166667 | Q54: =VLOOKUP($B54,retdat,MATCH(Q$13,Data!$A$3:$CC$3,0),0) -> 0.04788091114 | S54: 0.04760656018 | T54: 0.05296111111 | U54: 0.1829497682 | V54: 0.02009840283 | W54: 0.01393526177 | X54: 0.005505555556 | Y54: -0.05163639431 | Z54: -0.04535033161 | AA54: 0.006525612947 | AB54: 0.004431524327 | AC54: 0.03749647992 | AD54: 0.06926944444 | AE54: 0.05267777778 | AF54: 0.03379166667 | AG54: -0.1022098181 | AI54: =GEOMEAN(C131:OFFSET(C131,$AI$2-1,0))-1 -> 0.07224336801 | AJ54: =GEOMEAN(D131:OFFSET(D131,$AI$2-1,0))-1 -> 0.04838002129 | AK54: =GEOMEAN(E131:OFFSET(E131,$AI$2-1,0))-1 -> 0.1422623339 | AL54: =GEOMEAN(F131:OFFSET(F131,$AI$2-1,0))-1 -> 0.02338203536 | AM54: =GEOMEAN(G131:OFFSET(G131,$AI$2-1,0))-1 -> 0.01782371809 | AN54: =GEOMEAN(H131:OFFSET(H131,$AI$2-1,0))-1 -> 0.003567370994 | AO54: =GEOMEAN(I131:OFFSET(I131,$AI$2-1,0))-1 -> -0.04726207065 | AP54: =GEOMEAN(J131:OFFSET(J131,$AI$2-1,0))-1 -> -0.0303617827 | AQ54: =GEOMEAN(K131:OFFSET(K131,$AI$2-1,0))-1 -> 0.008236182387 | AR54: =GEOMEAN(L131:OFFSET(L131,$AI$2-1,0))-1 -> 0.005157990786 | AS54: =GEOMEAN(M131:OFFSET(M131,$AI$2-1,0))-1 -> 0.05752197715 | AT54: =GEOMEAN(N131:OFFSET(N131,$AI$2-1,0))-1 -> 0.06271634251 | AU54: =GEOMEAN(O131:OFFSET(O131,$AI$2-1,0))-1 -> 0.04775669841 | AV54: =GEOMEAN(P131:OFFSET(P131,$AI$2-1,0))-1 -> 0.02943196648 | AW54: =GEOMEAN(Q131:OFFSET(Q131,$AI$2-1,0))-1 -> -0.1313600924 | AY54: 41
B55: 2011 | C55: =VLOOKUP($B55,retdat,MATCH(C$13,Data!$A$3:$CC$3,0),0) -> 0.09634164331 | D55: =VLOOKUP($B55,retdat,MATCH(D$13,Data!$A$3:$CC$3,0),0) -> 0.04639166667 | E55: =VLOOKUP($B55,retdat,MATCH(E$13,Data!$A$3:$CC$3,0),0) -> 0.1649764392 | F55: =VLOOKUP($B55,retdat,MATCH(F$13,Data!$A$3:$CC$3,0),0) -> 0.05187298927 | G55: =VLOOKUP($B55,retdat,MATCH(G$13,Data!$A$3:$CC$3,0),0) -> 0.03016121142 | H55: =VLOOKUP($B55,retdat,MATCH(H$13,Data!$A$3:$CC$3,0),0) -> 0.000525 | I55: =VLOOKUP($B55,retdat,MATCH(I$13,Data!$A$3:$CC$3,0),0) -> -3.180610996e-05 | J55: =VLOOKUP($B55,retdat,MATCH(J$13,Data!$A$3:$CC$3,0),0) -> 0.05380983802 | K55: =VLOOKUP($B55,retdat,MATCH(K$13,Data!$A$3:$CC$3,0),0) -> 0.07958461651 | L55: =VLOOKUP($B55,retdat,MATCH(L$13,Data!$A$3:$CC$3,0),0) -> 0.07050238837 | M55: =VLOOKUP($B55,retdat,MATCH(M$13,Data!$A$3:$CC$3,0),0) -> 0.07876087658 | N55: =VLOOKUP($B55,retdat,MATCH(N$13,Data!$A$3:$CC$3,0),0) -> 0.05664166667 | O55: =VLOOKUP($B55,retdat,MATCH(O$13,Data!$A$3:$CC$3,0),0) -> 0.044425 | P55: =VLOOKUP($B55,retdat,MATCH(P$13,Data!$A$3:$CC$3,0),0) -> 0.02785833333 | Q55: =VLOOKUP($B55,retdat,MATCH(Q$13,Data!$A$3:$CC$3,0),0) -> -0.1603963996 | S55: 0.04577679226 | T55: 0.04965277778 | U55: 0.2326353781 | V55: 0.05207942536 | W55: 0.02406310049 | X55: 0.001130555556 | Y55: 0.1103166602 | Z55: 0.1102696999 | AA55: 0.1909379722 | AB55: 0.1864175429 | AC55: 0.03300146049 | AD55: 0.06332777778 | AE55: 0.04724444444 | AF55: 0.03085555556 | AG55: 0.04412267158 | AI55: =GEOMEAN(C132:OFFSET(C132,$AI$2-1,0))-1 -> 0.07610922817 | AJ55: =GEOMEAN(D132:OFFSET(D132,$AI$2-1,0))-1 -> 0.04559289585 | AK55: =GEOMEAN(E132:OFFSET(E132,$AI$2-1,0))-1 -> 0.05365757467 | AL55: =GEOMEAN(F132:OFFSET(F132,$AI$2-1,0))-1 -> 0.03315998038 | AM55: =GEOMEAN(G132:OFFSET(G132,$AI$2-1,0))-1 -> 0.02090746172 | AN55: =GEOMEAN(H132:OFFSET(H132,$AI$2-1,0))-1 -> 0.0009665869291 | AO55: =GEOMEAN(I132:OFFSET(I132,$AI$2-1,0))-1 -> 0.1396925566 | AP55: =GEOMEAN(J132:OFFSET(J132,$AI$2-1,0))-1 -> 0.1251946997 | AQ55: =GEOMEAN(K132:OFFSET(K132,$AI$2-1,0))-1 -> 0.1527089447 | AR55: =GEOMEAN(L132:OFFSET(L132,$AI$2-1,0))-1 -> 0.1488531657 | AS55: =GEOMEAN(M132:OFFSET(M132,$AI$2-1,0))-1 -> 0.05956978806 | AT55: =GEOMEAN(N132:OFFSET(N132,$AI$2-1,0))-1 -> 0.05803659811 | AU55: =GEOMEAN(O132:OFFSET(O132,$AI$2-1,0))-1 -> 0.04367849308 | AV55: =GEOMEAN(P132:OFFSET(P132,$AI$2-1,0))-1 -> 0.02680529559 | AW55: =GEOMEAN(Q132:OFFSET(Q132,$AI$2-1,0))-1 -> 0.0776809947 | AY55: 42
B56: 2012 | C56: =VLOOKUP($B56,retdat,MATCH(C$13,Data!$A$3:$CC$3,0),0) -> 0.1276535979 | D56: =VLOOKUP($B56,retdat,MATCH(D$13,Data!$A$3:$CC$3,0),0) -> 0.03673333333 | E56: =VLOOKUP($B56,retdat,MATCH(E$13,Data!$A$3:$CC$3,0),0) -> 0.02694635855 | F56: =VLOOKUP($B56,retdat,MATCH(F$13,Data!$A$3:$CC$3,0),0) -> 0.008472515172 | G56: =VLOOKUP($B56,retdat,MATCH(G$13,Data!$A$3:$CC$3,0),0) -> 0.01744204901 | H56: =VLOOKUP($B56,retdat,MATCH(H$13,Data!$A$3:$CC$3,0),0) -> 0.0008583333333 | I56: =VLOOKUP($B56,retdat,MATCH(I$13,Data!$A$3:$CC$3,0),0) -> 0.1258014103 | J56: =VLOOKUP($B56,retdat,MATCH(J$13,Data!$A$3:$CC$3,0),0) -> 0.07005394968 | K56: =VLOOKUP($B56,retdat,MATCH(K$13,Data!$A$3:$CC$3,0),0) -> 0.1798251929 | L56: =VLOOKUP($B56,retdat,MATCH(L$13,Data!$A$3:$CC$3,0),0) -> 0.1800472884 | M56: =VLOOKUP($B56,retdat,MATCH(M$13,Data!$A$3:$CC$3,0),0) -> 0.1009796334 | N56: =VLOOKUP($B56,retdat,MATCH(N$13,Data!$A$3:$CC$3,0),0) -> 0.04935 | O56: =VLOOKUP($B56,retdat,MATCH(O$13,Data!$A$3:$CC$3,0),0) -> 0.036475 | P56: =VLOOKUP($B56,retdat,MATCH(P$13,Data!$A$3:$CC$3,0),0) -> 0.018025 | Q56: =VLOOKUP($B56,retdat,MATCH(Q$13,Data!$A$3:$CC$3,0),0) -> 0.1271101622 | S56: 0.09170050645 | T56: 0.04418611111 | U56: 0.1317449527 | V56: 0.0411480637 | W56: 0.02062626947 | X56: 0.0009166666667 | Y56: 0.08202002067 | Z56: 0.07614297332 | AA56: 0.1686184939 | AB56: 0.1646654425 | AC56: 0.0725015384 | AD56: 0.05545833333 | AE56: 0.04259444444 | AF56: 0.02600833333 | AG56: 0.004864891247 | AI56: =GEOMEAN(C133:OFFSET(C133,$AI$2-1,0))-1 -> 0.09801162795 | AJ56: =GEOMEAN(D133:OFFSET(D133,$AI$2-1,0))-1 -> 0.04329765439 | AK56: =GEOMEAN(E133:OFFSET(E133,$AI$2-1,0))-1 -> -0.008157686826 | AL56: =GEOMEAN(F133:OFFSET(F133,$AI$2-1,0))-1 -> 0.01964832929 | AM56: =GEOMEAN(G133:OFFSET(G133,$AI$2-1,0))-1 -> 0.01665191499 | AN56: =GEOMEAN(H133:OFFSET(H133,$AI$2-1,0))-1 -> 0.0007316017899 | AO56: =GEOMEAN(I133:OFFSET(I133,$AI$2-1,0))-1 -> 0.1196416072 | AP56: =GEOMEAN(J133:OFFSET(J133,$AI$2-1,0))-1 -> 0.1053232002 | AQ56: =GEOMEAN(K133:OFFSET(K133,$AI$2-1,0))-1 -> 0.1527629319 | AR56: =GEOMEAN(L133:OFFSET(L133,$AI$2-1,0))-1 -> 0.1480241104 | AS56: =GEOMEAN(M133:OFFSET(M133,$AI$2-1,0))-1 -> 0.08016143631 | AT56: =GEOMEAN(N133:OFFSET(N133,$AI$2-1,0))-1 -> 0.05317673693 | AU56: =GEOMEAN(O133:OFFSET(O133,$AI$2-1,0))-1 -> 0.0419189059 | AV56: =GEOMEAN(P133:OFFSET(P133,$AI$2-1,0))-1 -> 0.02537765274 | AW56: =GEOMEAN(Q133:OFFSET(Q133,$AI$2-1,0))-1 -> 0.01524622004 | AY56: 43
B57: 2013 | C57: =VLOOKUP($B57,retdat,MATCH(C$13,Data!$A$3:$CC$3,0),0) -> 0.1218373652 | D57: =VLOOKUP($B57,retdat,MATCH(D$13,Data!$A$3:$CC$3,0),0) -> 0.04235 | E57: =VLOOKUP($B57,retdat,MATCH(E$13,Data!$A$3:$CC$3,0),0) -> -0.3215348719 | F57: =VLOOKUP($B57,retdat,MATCH(F$13,Data!$A$3:$CC$3,0),0) -> 0.002478316014 | G57: =VLOOKUP($B57,retdat,MATCH(G$13,Data!$A$3:$CC$3,0),0) -> 0.01501509087 | H57: =VLOOKUP($B57,retdat,MATCH(H$13,Data!$A$3:$CC$3,0),0) -> 0.0005833333333 | I57: =VLOOKUP($B57,retdat,MATCH(I$13,Data!$A$3:$CC$3,0),0) -> 0.2592922065 | J57: =VLOOKUP($B57,retdat,MATCH(J$13,Data!$A$3:$CC$3,0),0) -> 0.2350674711 | K57: =VLOOKUP($B57,retdat,MATCH(K$13,Data!$A$3:$CC$3,0),0) -> 0.02815719316 | L57: =VLOOKUP($B57,retdat,MATCH(L$13,Data!$A$3:$CC$3,0),0) -> 0.02313555626 | M57: =VLOOKUP($B57,retdat,MATCH(M$13,Data!$A$3:$CC$3,0),0) -> 0.1028622267 | N57: =VLOOKUP($B57,retdat,MATCH(N$13,Data!$A$3:$CC$3,0),0) -> 0.05101666667 | O57: =VLOOKUP($B57,retdat,MATCH(O$13,Data!$A$3:$CC$3,0),0) -> 0.04024166667 | P57: =VLOOKUP($B57,retdat,MATCH(P$13,Data!$A$3:$CC$3,0),0) -> 0.02350833333 | Q57: =VLOOKUP($B57,retdat,MATCH(Q$13,Data!$A$3:$CC$3,0),0) -> 0.1775241456 | S57: 0.1152775355 | T57: 0.041825 | U57: -0.0432040247 | V57: 0.02094127349 | W57: 0.02087278376 | X57: 0.0006555555556 | Y57: 0.1283539369 | Z57: 0.1196437529 | AA57: 0.09585566751 | AB57: 0.09122841101 | AC57: 0.09420091221 | AD57: 0.05233611111 | AE57: 0.04038055556 | AF57: 0.02313055556 | AG57: 0.04807930275 | AI57: =GEOMEAN(C134:OFFSET(C134,$AI$2-1,0))-1 -> 0.09788625047 | AJ57: =GEOMEAN(D134:OFFSET(D134,$AI$2-1,0))-1 -> 0.04118816367 | AK57: =GEOMEAN(E134:OFFSET(E134,$AI$2-1,0))-1 -> -0.06618329719 | AL57: =GEOMEAN(F134:OFFSET(F134,$AI$2-1,0))-1 -> -0.007478641781 | AM57: =GEOMEAN(G134:OFFSET(G134,$AI$2-1,0))-1 -> 0.01506151855 | AN57: =GEOMEAN(H134:OFFSET(H134,$AI$2-1,0))-1 -> 0.0005633186258 | AO57: =GEOMEAN(I134:OFFSET(I134,$AI$2-1,0))-1 -> 0.09289177762 | AP57: =GEOMEAN(J134:OFFSET(J134,$AI$2-1,0))-1 -> 0.07861568207 | AQ57: =GEOMEAN(K134:OFFSET(K134,$AI$2-1,0))-1 -> 0.1091548273 | AR57: =GEOMEAN(L134:OFFSET(L134,$AI$2-1,0))-1 -> 0.1034966409 | AS57: =GEOMEAN(M134:OFFSET(M134,$AI$2-1,0))-1 -> 0.0821254345 | AT57: =GEOMEAN(N134:OFFSET(N134,$AI$2-1,0))-1 -> 0.05110438887 | AU57: =GEOMEAN(O134:OFFSET(O134,$AI$2-1,0))-1 -> 0.04023146309 | AV57: =GEOMEAN(P134:OFFSET(P134,$AI$2-1,0))-1 -> 0.02322610931 | AW57: =GEOMEAN(Q134:OFFSET(Q134,$AI$2-1,0))-1 -> -0.001053473977 | AY57: 44 | AZ57: =IF(TRUNC($AY57/$AI$2)-$AY57/$AI$2 = 0,AI57,"") ->  | BA57: =IF(TRUNC($AY57/$AI$2)-$AY57/$AI$2 = 0,AJ57,"") ->  | BB57: =IF(TRUNC($AY57/$AI$2)-$AY57/$AI$2 = 0,AK57,"") ->  | BC57: =IF(TRUNC($AY57/$AI$2)-$AY57/$AI$2 = 0,AL57,"") ->  | BD57: =IF(TRUNC($AY57/$AI$2)-$AY57/$AI$2 = 0,AM57,"") ->  | BE57: =IF(TRUNC($AY57/$AI$2)-$AY57/$AI$2 = 0,AN57,"") ->  | BF57: =IF(TRUNC($AY57/$AI$2)-$AY57/$AI$2 = 0,AO57,"") ->  | BG57: =IF(TRUNC($AY57/$AI$2)-$AY57/$AI$2 = 0,AP57,"") ->  | BH57: =IF(TRUNC($AY57/$AI$2)-$AY57/$AI$2 = 0,AQ57,"") ->  | BI57: =IF(TRUNC($AY57/$AI$2)-$AY57/$AI$2 = 0,AR57,"") ->  | BJ57: =IF(TRUNC($AY57/$AI$2)-$AY57/$AI$2 = 0,AS57,"") ->  | BK57: =IF(TRUNC($AY57/$AI$2)-$AY57/$AI$2 = 0,AT57,"") ->  | BL57: =IF(TRUNC($AY57/$AI$2)-$AY57/$AI$2 = 0,AU57,"") ->  | BM57: =IF(TRUNC($AY57/$AI$2)-$AY57/$AI$2 = 0,AV57,"") ->  | BN57: =IF(TRUNC($AY57/$AI$2)-$AY57/$AI$2 = 0,AW57,"") -> 
B58: 2014 | C58: =VLOOKUP($B58,retdat,MATCH(C$13,Data!$A$3:$CC$3,0),0) -> 0.09480442722 | D58: =VLOOKUP($B58,retdat,MATCH(D$13,Data!$A$3:$CC$3,0),0) -> 0.041625 | E58: =VLOOKUP($B58,retdat,MATCH(E$13,Data!$A$3:$CC$3,0),0) -> -0.01725134562 | F58: =VLOOKUP($B58,retdat,MATCH(F$13,Data!$A$3:$CC$3,0),0) -> -0.02506396866 | G58: =VLOOKUP($B58,retdat,MATCH(G$13,Data!$A$3:$CC$3,0),0) -> 0.006509977956 | H58: =VLOOKUP($B58,retdat,MATCH(H$13,Data!$A$3:$CC$3,0),0) -> 0.000325 | I58: =VLOOKUP($B58,retdat,MATCH(I$13,Data!$A$3:$CC$3,0),0) -> 0.1078731002 | J58: =VLOOKUP($B58,retdat,MATCH(J$13,Data!$A$3:$CC$3,0),0) -> 0.07249800366 | K58: =VLOOKUP($B58,retdat,MATCH(K$13,Data!$A$3:$CC$3,0),0) -> 0.247075621 | L58: =VLOOKUP($B58,retdat,MATCH(L$13,Data!$A$3:$CC$3,0),0) -> 0.2408167829 | M58: =VLOOKUP($B58,retdat,MATCH(M$13,Data!$A$3:$CC$3,0),0) -> 0.08173021511 | N58: =VLOOKUP($B58,retdat,MATCH(N$13,Data!$A$3:$CC$3,0),0) -> 0.04854166667 | O58: =VLOOKUP($B58,retdat,MATCH(O$13,Data!$A$3:$CC$3,0),0) -> 0.0416 | P58: =VLOOKUP($B58,retdat,MATCH(P$13,Data!$A$3:$CC$3,0),0) -> 0.02540833333 | Q58: =VLOOKUP($B58,retdat,MATCH(Q$13,Data!$A$3:$CC$3,0),0) -> -0.07629244031 | S58: 0.1147651301 | T58: 0.04023611111 | U58: -0.1039466197 | V58: -0.004704379159 | W58: 0.01298903928 | X58: 0.0005888888889 | Y58: 0.164322239 | Z58: 0.1258731415 | AA58: 0.1516860023 | AB58: 0.1479998759 | AC58: 0.09519069172 | AD58: 0.04963611111 | AE58: 0.03943888889 | AF58: 0.02231388889 | AG58: 0.07611395584 | AI58: =GEOMEAN(C135:OFFSET(C135,$AI$2-1,0))-1 -> 0.08505127913 | AJ58: =GEOMEAN(D135:OFFSET(D135,$AI$2-1,0))-1 -> 0.03924392993 | AK58: =GEOMEAN(E135:OFFSET(E135,$AI$2-1,0))-1 -> -0.08139480053 | AL58: =GEOMEAN(F135:OFFSET(F135,$AI$2-1,0))-1 -> -0.01254663917 | AM58: =GEOMEAN(G135:OFFSET(G135,$AI$2-1,0))-1 -> 0.01311080619 | AN58: =GEOMEAN(H135:OFFSET(H135,$AI$2-1,0))-1 -> 0.001092778288 | AO58: =GEOMEAN(I135:OFFSET(I135,$AI$2-1,0))-1 -> 0.1121177434 | AP58: =GEOMEAN(J135:OFFSET(J135,$AI$2-1,0))-1 -> 0.09298191989 | AQ58: =GEOMEAN(K135:OFFSET(K135,$AI$2-1,0))-1 -> 0.1098086409 | AR58: =GEOMEAN(L135:OFFSET(L135,$AI$2-1,0))-1 -> 0.107408368 | AS58: =GEOMEAN(M135:OFFSET(M135,$AI$2-1,0))-1 -> 0.07273014791 | AT58: =GEOMEAN(N135:OFFSET(N135,$AI$2-1,0))-1 -> 0.0492141914 | AU58: =GEOMEAN(O135:OFFSET(O135,$AI$2-1,0))-1 -> 0.03868976343 | AV58: =GEOMEAN(P135:OFFSET(P135,$AI$2-1,0))-1 -> 0.02133934072 | AW58: =GEOMEAN(Q135:OFFSET(Q135,$AI$2-1,0))-1 -> 0.0305339731 | AY58: 45 | AZ58: 0.08505127913 | BA58: 0.03924392993 | BB58: -0.08139480053 | BC58: -0.01254663917 | BD58: 0.01311080619 | BE58: 0.001092778288 | BF58: 0.1121177434 | BG58: 0.09298191989 | BH58: 0.1098086409 | BI58: 0.107408368 | BJ58: 0.07273014791 | BK58: 0.0492141914 | BL58: 0.03868976343 | BM58: 0.02133934072 | BN58: 0.0305339731
B59: 2015 | C59: =VLOOKUP($B59,retdat,MATCH(C$13,Data!$A$3:$CC$3,0),0) -> 0.05050630746 | D59: =VLOOKUP($B59,retdat,MATCH(D$13,Data!$A$3:$CC$3,0),0) -> 0.03886666667 | E59: =VLOOKUP($B59,retdat,MATCH(E$13,Data!$A$3:$CC$3,0),0) -> -0.1098292932 | F59: =VLOOKUP($B59,retdat,MATCH(F$13,Data!$A$3:$CC$3,0),0) -> -0.07098906124 | G59: =VLOOKUP($B59,retdat,MATCH(G$13,Data!$A$3:$CC$3,0),0) -> 0.006366935496 | H59: =VLOOKUP($B59,retdat,MATCH(H$13,Data!$A$3:$CC$3,0),0) -> 0.000525 | I59: =VLOOKUP($B59,retdat,MATCH(I$13,Data!$A$3:$CC$3,0),0) -> -0.007292541897 | J59: =VLOOKUP($B59,retdat,MATCH(J$13,Data!$A$3:$CC$3,0),0) -> -0.02258600723 | K59: =VLOOKUP($B59,retdat,MATCH(K$13,Data!$A$3:$CC$3,0),0) -> 0.02786057406 | L59: =VLOOKUP($B59,retdat,MATCH(L$13,Data!$A$3:$CC$3,0),0) -> 0.02029836105 | M59: =VLOOKUP($B59,retdat,MATCH(M$13,Data!$A$3:$CC$3,0),0) -> 0.04723302364 | N59: =VLOOKUP($B59,retdat,MATCH(N$13,Data!$A$3:$CC$3,0),0) -> 0.04999166667 | O59: =VLOOKUP($B59,retdat,MATCH(O$13,Data!$A$3:$CC$3,0),0) -> 0.03843333333 | P59: =VLOOKUP($B59,retdat,MATCH(P$13,Data!$A$3:$CC$3,0),0) -> 0.02135833333 | Q59: =VLOOKUP($B59,retdat,MATCH(Q$13,Data!$A$3:$CC$3,0),0) -> -0.03357929126 | S59: =AVERAGE(C57:C59) -> 0.08904936663 | T59: =AVERAGE(D57:D59) -> 0.04094722222 | U59: =AVERAGE(E57:E59) -> -0.1495385036 | V59: =AVERAGE(F57:F59) -> -0.0311915713 | W59: =AVERAGE(G57:G59) -> 0.009297334773 | X59: =AVERAGE(H57:H59) -> 0.0004777777778 | Y59: =AVERAGE(I57:I59) -> 0.1199575883 | Z59: =AVERAGE(J57:J59) -> 0.09499315583 | AA59: =AVERAGE(K57:K59) -> 0.1010311294 | AB59: =AVERAGE(L57:L59) -> 0.0947502334 | AC59: =AVERAGE(M57:M59) -> 0.07727515514 | AD59: =AVERAGE(N57:N59) -> 0.04985 | AE59: =AVERAGE(O57:O59) -> 0.04009166667 | AF59: =AVERAGE(P57:P59) -> 0.023425 | AG59: =AVERAGE(Q57:Q59) -> 0.02255080469 | AI59: =GEOMEAN(C136:OFFSET(C136,$AI$2-1,0))-1 -> 0.0671125683 | AJ59: =GEOMEAN(D136:OFFSET(D136,$AI$2-1,0))-1 -> 0.03938423107 | AK59: =GEOMEAN(E136:OFFSET(E136,$AI$2-1,0))-1 -> -0.07063847151 | AL59: =GEOMEAN(F136:OFFSET(F136,$AI$2-1,0))-1 -> -0.006040020932 | AM59: =GEOMEAN(G136:OFFSET(G136,$AI$2-1,0))-1 -> 0.01383340069 | AN59: =GEOMEAN(H136:OFFSET(H136,$AI$2-1,0))-1 -> 0.00277749427 | AO59: =GEOMEAN(I136:OFFSET(I136,$AI$2-1,0))-1 -> 0.1221446428 | AP59: =GEOMEAN(J136:OFFSET(J136,$AI$2-1,0))-1 -> 0.1227245261 | AQ59: =GEOMEAN(K136:OFFSET(K136,$AI$2-1,0))-1 -> 0.09100017039 | AR59: =GEOMEAN(L136:OFFSET(L136,$AI$2-1,0))-1 -> 0.08974084429 | AS59: =GEOMEAN(M136:OFFSET(M136,$AI$2-1,0))-1 -> 0.05993069519 | AT59: =GEOMEAN(N136:OFFSET(N136,$AI$2-1,0))-1 -> 0.04822244645 | AU59: =GEOMEAN(O136:OFFSET(O136,$AI$2-1,0))-1 -> 0.03935366496 | AV59: =GEOMEAN(P136:OFFSET(P136,$AI$2-1,0))-1 -> 0.02239558848 | AW59: =GEOMEAN(Q136:OFFSET(Q136,$AI$2-1,0))-1 -> 0.04301782033 | AY59: 46
B60: 2016 | C60: =VLOOKUP($B60,retdat,MATCH(C$13,Data!$A$3:$CC$3,0),0) -> 0.03373803563 | D60: =VLOOKUP($B60,retdat,MATCH(D$13,Data!$A$3:$CC$3,0),0) -> 0.03665833333 | E60: =VLOOKUP($B60,retdat,MATCH(E$13,Data!$A$3:$CC$3,0),0) -> 0.07313275249 | F60: =VLOOKUP($B60,retdat,MATCH(F$13,Data!$A$3:$CC$3,0),0) -> 0.02529055966 | G60: =VLOOKUP($B60,retdat,MATCH(G$13,Data!$A$3:$CC$3,0),0) -> 0.02030053187 | H60: =VLOOKUP($B60,retdat,MATCH(H$13,Data!$A$3:$CC$3,0),0) -> 0.003175 | I60: =VLOOKUP($B60,retdat,MATCH(I$13,Data!$A$3:$CC$3,0),0) -> 0.09107409028 | J60: =VLOOKUP($B60,retdat,MATCH(J$13,Data!$A$3:$CC$3,0),0) -> 0.1258835843 | K60: =VLOOKUP($B60,retdat,MATCH(K$13,Data!$A$3:$CC$3,0),0) -> 0.08277028418 | L60: =VLOOKUP($B60,retdat,MATCH(L$13,Data!$A$3:$CC$3,0),0) -> 0.08961122226 | M60: =VLOOKUP($B60,retdat,MATCH(M$13,Data!$A$3:$CC$3,0),0) -> 0.0327366599 | N60: =VLOOKUP($B60,retdat,MATCH(N$13,Data!$A$3:$CC$3,0),0) -> 0.047175 | O60: =VLOOKUP($B60,retdat,MATCH(O$13,Data!$A$3:$CC$3,0),0) -> 0.03670833333 | P60: =VLOOKUP($B60,retdat,MATCH(P$13,Data!$A$3:$CC$3,0),0) -> 0.01841666667 | Q60: =VLOOKUP($B60,retdat,MATCH(Q$13,Data!$A$3:$CC$3,0),0) -> -0.0189872421 | S60: 0.05968292344 | T60: 0.03905 | U60: -0.01798262877 | V60: -0.02358749008 | W60: 0.01105914844 | X60: 0.001341666667 | Y60: 0.06388488285 | Z60: 0.05859852691 | AA60: 0.1192354931 | AB60: 0.1169087887 | AC60: 0.05389996622 | AD60: 0.04856944444 | AE60: 0.03891388889 | AF60: 0.02172777778 | AG60: -0.04295299122 | AI60: =GEOMEAN(C137:OFFSET(C137,$AI$2-1,0))-1 -> 0.05102066947 | AJ60: =GEOMEAN(D137:OFFSET(D137,$AI$2-1,0))-1 -> 0.0387752535 | AK60: =GEOMEAN(E137:OFFSET(E137,$AI$2-1,0))-1 -> 0.002081818159 | AL60: =GEOMEAN(F137:OFFSET(F137,$AI$2-1,0))-1 -> -0.001874580756 | AM60: =GEOMEAN(G137:OFFSET(G137,$AI$2-1,0))-1 -> 0.0147926393 | AN60: =GEOMEAN(H137:OFFSET(H137,$AI$2-1,0))-1 -> 0.006519379579 | AO60: =GEOMEAN(I137:OFFSET(I137,$AI$2-1,0))-1 -> 0.05740494096 | AP60: =GEOMEAN(J137:OFFSET(J137,$AI$2-1,0))-1 -> 0.06353032075 | AQ60: =GEOMEAN(K137:OFFSET(K137,$AI$2-1,0))-1 -> 0.07584751564 | AR60: =GEOMEAN(L137:OFFSET(L137,$AI$2-1,0))-1 -> 0.07591418861 | AS60: =GEOMEAN(M137:OFFSET(M137,$AI$2-1,0))-1 -> 0.04735501604 | AT60: =GEOMEAN(N137:OFFSET(N137,$AI$2-1,0))-1 -> 0.04762002509 | AU60: =GEOMEAN(O137:OFFSET(O137,$AI$2-1,0))-1 -> 0.04041558365 | AV60: =GEOMEAN(P137:OFFSET(P137,$AI$2-1,0))-1 -> 0.02351027272 | AW60: =GEOMEAN(Q137:OFFSET(Q137,$AI$2-1,0))-1 -> -0.0288500112 | AY60: 47 | AZ60: =IF(TRUNC($AY60/$AI$2)-$AY60/$AI$2 = 0,AI60,"") ->  | BA60: =IF(TRUNC($AY60/$AI$2)-$AY60/$AI$2 = 0,AJ60,"") ->  | BB60: =IF(TRUNC($AY60/$AI$2)-$AY60/$AI$2 = 0,AK60,"") ->  | BC60: =IF(TRUNC($AY60/$AI$2)-$AY60/$AI$2 = 0,AL60,"") ->  | BD60: =IF(TRUNC($AY60/$AI$2)-$AY60/$AI$2 = 0,AM60,"") ->  | BE60: =IF(TRUNC($AY60/$AI$2)-$AY60/$AI$2 = 0,AN60,"") ->  | BF60: =IF(TRUNC($AY60/$AI$2)-$AY60/$AI$2 = 0,AO60,"") ->  | BG60: =IF(TRUNC($AY60/$AI$2)-$AY60/$AI$2 = 0,AP60,"") ->  | BH60: =IF(TRUNC($AY60/$AI$2)-$AY60/$AI$2 = 0,AQ60,"") ->  | BI60: =IF(TRUNC($AY60/$AI$2)-$AY60/$AI$2 = 0,AR60,"") ->  | BJ60: =IF(TRUNC($AY60/$AI$2)-$AY60/$AI$2 = 0,AS60,"") ->  | BK60: =IF(TRUNC($AY60/$AI$2)-$AY60/$AI$2 = 0,AT60,"") ->  | BL60: =IF(TRUNC($AY60/$AI$2)-$AY60/$AI$2 = 0,AU60,"") ->  | BM60: =IF(TRUNC($AY60/$AI$2)-$AY60/$AI$2 = 0,AV60,"") ->  | BN60: =IF(TRUNC($AY60/$AI$2)-$AY60/$AI$2 = 0,AW60,"") -> 
B61: 2017 | C61: =VLOOKUP($B61,retdat,MATCH(C$13,Data!$A$3:$CC$3,0),0) -> 0.03747005074 | D61: =VLOOKUP($B61,retdat,MATCH(D$13,Data!$A$3:$CC$3,0),0) -> 0.03743333333 | E61: =VLOOKUP($B61,retdat,MATCH(E$13,Data!$A$3:$CC$3,0),0) -> 0.08849569569 | F61: =VLOOKUP($B61,retdat,MATCH(F$13,Data!$A$3:$CC$3,0),0) -> 0.04213887413 | G61: =VLOOKUP($B61,retdat,MATCH(G$13,Data!$A$3:$CC$3,0),0) -> 0.02107564725 | H61: =VLOOKUP($B61,retdat,MATCH(H$13,Data!$A$3:$CC$3,0),0) -> 0.009308333333 | I61: =VLOOKUP($B61,retdat,MATCH(I$13,Data!$A$3:$CC$3,0),0) -> 0.1774762111 | J61: =VLOOKUP($B61,retdat,MATCH(J$13,Data!$A$3:$CC$3,0),0) -> 0.2237898161 | K61: =VLOOKUP($B61,retdat,MATCH(K$13,Data!$A$3:$CC$3,0),0) -> 0.08318153528 | L61: =VLOOKUP($B61,retdat,MATCH(L$13,Data!$A$3:$CC$3,0),0) -> 0.08887130053 | M61: =VLOOKUP($B61,retdat,MATCH(M$13,Data!$A$3:$CC$3,0),0) -> 0.03684586747 | N61: =VLOOKUP($B61,retdat,MATCH(N$13,Data!$A$3:$CC$3,0),0) -> 0.0444 | O61: =VLOOKUP($B61,retdat,MATCH(O$13,Data!$A$3:$CC$3,0),0) -> 0.03979166667 | P61: =VLOOKUP($B61,retdat,MATCH(P$13,Data!$A$3:$CC$3,0),0) -> 0.0233 | Q61: =VLOOKUP($B61,retdat,MATCH(Q$13,Data!$A$3:$CC$3,0),0) -> 0.1970531689 | S61: =AVERAGE(C59:C61) -> 0.04057146461 | T61: =AVERAGE(D59:D61) -> 0.03765277778 | U61: =AVERAGE(E59:E61) -> 0.017266385 | V61: =AVERAGE(F59:F61) -> -0.001186542485 | W61: =AVERAGE(G59:G61) -> 0.01591437154 | X61: =AVERAGE(H59:H61) -> 0.004336111111 | Y61: =AVERAGE(I59:I61) -> 0.08708591984 | Z61: =AVERAGE(J59:J61) -> 0.1090291311 | AA61: =AVERAGE(K59:K61) -> 0.06460413117 | AB61: =AVERAGE(L59:L61) -> 0.06626029461 | AC61: =AVERAGE(M59:M61) -> 0.038938517 | AD61: =AVERAGE(N59:N61) -> 0.04718888889 | AE61: =AVERAGE(O59:O61) -> 0.03831111111 | AF61: =AVERAGE(P59:P61) -> 0.021025 | AG61: =AVERAGE(Q59:Q61) -> 0.04816221186 | AI61: =GEOMEAN(C138:OFFSET(C138,$AI$2-1,0))-1 -> 0.04075287113 | AJ61: =GEOMEAN(D138:OFFSET(D138,$AI$2-1,0))-1 -> 0.03722487309 | AK61: =GEOMEAN(E138:OFFSET(E138,$AI$2-1,0))-1 -> 0.0372956546 | AL61: =GEOMEAN(F138:OFFSET(F138,$AI$2-1,0))-1 -> 0.001190968457 | AM61: =GEOMEAN(G138:OFFSET(G138,$AI$2-1,0))-1 -> 0.01808234126 | AN61: =GEOMEAN(H138:OFFSET(H138,$AI$2-1,0))-1 -> 0.01056845762 | AO61: =GEOMEAN(I138:OFFSET(I138,$AI$2-1,0))-1 -> 0.08388154608 | AP61: =GEOMEAN(J138:OFFSET(J138,$AI$2-1,0))-1 -> 0.08798788847 | AQ61: =GEOMEAN(K138:OFFSET(K138,$AI$2-1,0))-1 -> 0.0767001952 | AR61: =GEOMEAN(L138:OFFSET(L138,$AI$2-1,0))-1 -> 0.07724011731 | AS61: =GEOMEAN(M138:OFFSET(M138,$AI$2-1,0))-1 -> 0.03947804186 | AT61: =GEOMEAN(N138:OFFSET(N138,$AI$2-1,0))-1 -> 0.04666245037 | AU61: =GEOMEAN(O138:OFFSET(O138,$AI$2-1,0))-1 -> 0.03992234385 | AV61: =GEOMEAN(P138:OFFSET(P138,$AI$2-1,0))-1 -> 0.02271717972 | AW61: =GEOMEAN(Q138:OFFSET(Q138,$AI$2-1,0))-1 -> 0.01802108695 | AY61: 48 | AZ61: =IF(TRUNC($AY61/$AI$2)-$AY61/$AI$2 = 0,AI61,"") ->  | BA61: =IF(TRUNC($AY61/$AI$2)-$AY61/$AI$2 = 0,AJ61,"") ->  | BB61: =IF(TRUNC($AY61/$AI$2)-$AY61/$AI$2 = 0,AK61,"") ->  | BC61: =IF(TRUNC($AY61/$AI$2)-$AY61/$AI$2 = 0,AL61,"") ->  | BD61: =IF(TRUNC($AY61/$AI$2)-$AY61/$AI$2 = 0,AM61,"") ->  | BE61: =IF(TRUNC($AY61/$AI$2)-$AY61/$AI$2 = 0,AN61,"") ->  | BF61: =IF(TRUNC($AY61/$AI$2)-$AY61/$AI$2 = 0,AO61,"") ->  | BG61: =IF(TRUNC($AY61/$AI$2)-$AY61/$AI$2 = 0,AP61,"") ->  | BH61: =IF(TRUNC($AY61/$AI$2)-$AY61/$AI$2 = 0,AQ61,"") ->  | BI61: =IF(TRUNC($AY61/$AI$2)-$AY61/$AI$2 = 0,AR61,"") ->  | BJ61: =IF(TRUNC($AY61/$AI$2)-$AY61/$AI$2 = 0,AS61,"") ->  | BK61: =IF(TRUNC($AY61/$AI$2)-$AY61/$AI$2 = 0,AT61,"") ->  | BL61: =IF(TRUNC($AY61/$AI$2)-$AY61/$AI$2 = 0,AU61,"") ->  | BM61: =IF(TRUNC($AY61/$AI$2)-$AY61/$AI$2 = 0,AV61,"") ->  | BN61: =IF(TRUNC($AY61/$AI$2)-$AY61/$AI$2 = 0,AW61,"") -> 
B62: 2018 | C62: =VLOOKUP($B62,retdat,MATCH(C$13,Data!$A$3:$CC$3,0),0) -> 0.03976456096 | D62: =VLOOKUP($B62,retdat,MATCH(D$13,Data!$A$3:$CC$3,0),0) -> 0.0393 | E62: =VLOOKUP($B62,retdat,MATCH(E$13,Data!$A$3:$CC$3,0),0) -> -0.0111737449 | F62: =VLOOKUP($B62,retdat,MATCH(F$13,Data!$A$3:$CC$3,0),0) -> 0.02366080678 | G62: =VLOOKUP($B62,retdat,MATCH(G$13,Data!$A$3:$CC$3,0),0) -> 0.01982596922 | H62: =VLOOKUP($B62,retdat,MATCH(H$13,Data!$A$3:$CC$3,0),0) -> 0.01939166667 | I62: =VLOOKUP($B62,retdat,MATCH(I$13,Data!$A$3:$CC$3,0),0) -> -0.06440263421 | J62: =VLOOKUP($B62,retdat,MATCH(J$13,Data!$A$3:$CC$3,0),0) -> -0.05794987128 | K62: =VLOOKUP($B62,retdat,MATCH(K$13,Data!$A$3:$CC$3,0),0) -> -0.04128608075 | L62: =VLOOKUP($B62,retdat,MATCH(L$13,Data!$A$3:$CC$3,0),0) -> -0.04014593766 | M62: =VLOOKUP($B62,retdat,MATCH(M$13,Data!$A$3:$CC$3,0),0) -> 0.03897117929 | N62: =VLOOKUP($B62,retdat,MATCH(N$13,Data!$A$3:$CC$3,0),0) -> 0.048 | O62: =VLOOKUP($B62,retdat,MATCH(O$13,Data!$A$3:$CC$3,0),0) -> 0.04556666667 | P62: =VLOOKUP($B62,retdat,MATCH(P$13,Data!$A$3:$CC$3,0),0) -> 0.0291 | Q62: =VLOOKUP($B62,retdat,MATCH(Q$13,Data!$A$3:$CC$3,0),0) -> -0.1759705638 | S62: 0.03699088245 | T62: 0.03779722222 | U62: 0.05015156776 | V62: 0.03036341352 | W62: 0.02040071611 | X62: 0.010625 | Y62: 0.0680492224 | Z62: 0.09724117637 | AA62: 0.04155524624 | AB62: 0.04611219504 | AC62: 0.03618456889 | AD62: 0.046525 | AE62: 0.04068888889 | AF62: 0.02360555556 | AG62: 0.0006984543438 | AI62: =GEOMEAN(C139:OFFSET(C139,$AI$2-1,0))-1 -> 0.03724954729 | AJ62: =GEOMEAN(D139:OFFSET(D139,$AI$2-1,0))-1 -> 0.03439391849 | AK62: =GEOMEAN(E139:OFFSET(E139,$AI$2-1,0))-1 -> 0.1062845588 | AL62: =GEOMEAN(F139:OFFSET(F139,$AI$2-1,0))-1 -> 0.01756598489 | AM62: =GEOMEAN(G139:OFFSET(G139,$AI$2-1,0))-1 -> 0.01941385273 | AN62: =GEOMEAN(H139:OFFSET(H139,$AI$2-1,0))-1 -> 0.01119894428 | AO62: =GEOMEAN(I139:OFFSET(I139,$AI$2-1,0))-1 -> 0.1163649268 | AP62: =GEOMEAN(J139:OFFSET(J139,$AI$2-1,0))-1 -> 0.1078522463 | AQ62: =GEOMEAN(K139:OFFSET(K139,$AI$2-1,0))-1 -> 0.05929526054 | AR62: =GEOMEAN(L139:OFFSET(L139,$AI$2-1,0))-1 -> 0.05935902051 | AS62: =GEOMEAN(M139:OFFSET(M139,$AI$2-1,0))-1 -> 0.03647518021 | AT62: =GEOMEAN(N139:OFFSET(N139,$AI$2-1,0))-1 -> 0.04386303923 | AU62: =GEOMEAN(O139:OFFSET(O139,$AI$2-1,0))-1 -> 0.03839065176 | AV62: =GEOMEAN(P139:OFFSET(P139,$AI$2-1,0))-1 -> 0.02021836149 | AW62: =GEOMEAN(Q139:OFFSET(Q139,$AI$2-1,0))-1 -> 0.03561472834 | AY62: 49 | AZ62: =IF(TRUNC($AY62/$AI$2)-$AY62/$AI$2 = 0,AI62,"") ->  | BA62: =IF(TRUNC($AY62/$AI$2)-$AY62/$AI$2 = 0,AJ62,"") ->  | BB62: =IF(TRUNC($AY62/$AI$2)-$AY62/$AI$2 = 0,AK62,"") ->  | BC62: =IF(TRUNC($AY62/$AI$2)-$AY62/$AI$2 = 0,AL62,"") ->  | BD62: =IF(TRUNC($AY62/$AI$2)-$AY62/$AI$2 = 0,AM62,"") ->  | BE62: =IF(TRUNC($AY62/$AI$2)-$AY62/$AI$2 = 0,AN62,"") ->  | BF62: =IF(TRUNC($AY62/$AI$2)-$AY62/$AI$2 = 0,AO62,"") ->  | BG62: =IF(TRUNC($AY62/$AI$2)-$AY62/$AI$2 = 0,AP62,"") ->  | BH62: =IF(TRUNC($AY62/$AI$2)-$AY62/$AI$2 = 0,AQ62,"") ->  | BI62: =IF(TRUNC($AY62/$AI$2)-$AY62/$AI$2 = 0,AR62,"") ->  | BJ62: =IF(TRUNC($AY62/$AI$2)-$AY62/$AI$2 = 0,AS62,"") ->  | BK62: =IF(TRUNC($AY62/$AI$2)-$AY62/$AI$2 = 0,AT62,"") ->  | BL62: =IF(TRUNC($AY62/$AI$2)-$AY62/$AI$2 = 0,AU62,"") ->  | BM62: =IF(TRUNC($AY62/$AI$2)-$AY62/$AI$2 = 0,AV62,"") ->  | BN62: =IF(TRUNC($AY62/$AI$2)-$AY62/$AI$2 = 0,AW62,"") -> 
B63: 2019 | C63: =VLOOKUP($B63,retdat,MATCH(C$13,Data!$A$3:$CC$3,0),0) -> 0.04236146665 | D63: =VLOOKUP($B63,retdat,MATCH(D$13,Data!$A$3:$CC$3,0),0) -> 0.033875 | E63: =VLOOKUP($B63,retdat,MATCH(E$13,Data!$A$3:$CC$3,0),0) -> 0.167990577 | F63: =VLOOKUP($B63,retdat,MATCH(F$13,Data!$A$3:$CC$3,0),0) -> -0.01000008333 | G63: =VLOOKUP($B63,retdat,MATCH(G$13,Data!$A$3:$CC$3,0),0) -> 0.02293035311 | H63: =VLOOKUP($B63,retdat,MATCH(H$13,Data!$A$3:$CC$3,0),0) -> 0.02060833333 | I63: =VLOOKUP($B63,retdat,MATCH(I$13,Data!$A$3:$CC$3,0),0) -> 0.2536966092 | J63: =VLOOKUP($B63,retdat,MATCH(J$13,Data!$A$3:$CC$3,0),0) -> 0.201620743 | K63: =VLOOKUP($B63,retdat,MATCH(K$13,Data!$A$3:$CC$3,0),0) -> 0.252025406 | L63: =VLOOKUP($B63,retdat,MATCH(L$13,Data!$A$3:$CC$3,0),0) -> 0.2484814029 | M63: =VLOOKUP($B63,retdat,MATCH(M$13,Data!$A$3:$CC$3,0),0) -> 0.04165996755 | N63: =VLOOKUP($B63,retdat,MATCH(N$13,Data!$A$3:$CC$3,0),0) -> 0.04375833333 | O63: =VLOOKUP($B63,retdat,MATCH(O$13,Data!$A$3:$CC$3,0),0) -> 0.03913333333 | P63: =VLOOKUP($B63,retdat,MATCH(P$13,Data!$A$3:$CC$3,0),0) -> 0.02144166667 | Q63: =VLOOKUP($B63,retdat,MATCH(Q$13,Data!$A$3:$CC$3,0),0) -> 0.1691946517 | S63: =AVERAGE(C61:C63) -> 0.03986535945 | T63: =AVERAGE(D61:D63) -> 0.03686944444 | U63: =AVERAGE(E61:E63) -> 0.08177084258 | V63: =AVERAGE(F61:F63) -> 0.01859986586 | W63: =AVERAGE(G61:G63) -> 0.02127732319 | X63: =AVERAGE(H61:H63) -> 0.01643611111 | Y63: =AVERAGE(I61:I63) -> 0.1222567287 | Z63: =AVERAGE(J61:J63) -> 0.1224868959 | AA63: =AVERAGE(K61:K63) -> 0.09797362019 | AB63: =AVERAGE(L61:L63) -> 0.09906892192 | AC63: =AVERAGE(M61:M63) -> 0.03915900477 | AD63: =AVERAGE(N61:N63) -> 0.04538611111 | AE63: 0.04149722222 | AF63: =AVERAGE(P61:P63) -> 0.02461388889 | AG63: =AVERAGE(Q61:Q63) -> 0.06342575228 | AI63: =GEOMEAN(C140:OFFSET(C140,$AI$2-1,0))-1 -> 0.04778583948 | AJ63: =GEOMEAN(D140:OFFSET(D140,$AI$2-1,0))-1 -> 0.03246594979 | AK63: =GEOMEAN(E140:OFFSET(E140,$AI$2-1,0))-1 -> 0.08252263271 | AL63: =GEOMEAN(F140:OFFSET(F140,$AI$2-1,0))-1 -> 0.04752649331 | AM63: =GEOMEAN(G140:OFFSET(G140,$AI$2-1,0))-1 -> 0.02902384108 | AN63: =GEOMEAN(H140:OFFSET(H140,$AI$2-1,0))-1 -> 0.01064730353 | AO63: =GEOMEAN(I140:OFFSET(I140,$AI$2-1,0))-1 -> 0.1449631969 | AP63: =GEOMEAN(J140:OFFSET(J140,$AI$2-1,0))-1 -> 0.1167179712 | AQ63: =GEOMEAN(K140:OFFSET(K140,$AI$2-1,0))-1 -> 0.1063681035 | AR63: =GEOMEAN(L140:OFFSET(L140,$AI$2-1,0))-1 -> 0.1035444564 | AS63: =GEOMEAN(M140:OFFSET(M140,$AI$2-1,0))-1 -> 0.04593872173 | AT63: =GEOMEAN(N140:OFFSET(N140,$AI$2-1,0))-1 -> 0.04120794827 | AU63: =GEOMEAN(O140:OFFSET(O140,$AI$2-1,0))-1 -> 0.03701814386 | AV63: =GEOMEAN(P140:OFFSET(P140,$AI$2-1,0))-1 -> 0.01941735903 | AW63: =GEOMEAN(Q140:OFFSET(Q140,$AI$2-1,0))-1 -> 0.05652898249 | AY63: 50 | AZ63: 0.04778583948 | BA63: 0.03246594979 | BB63: 0.08252263271 | BC63: 0.04752649331 | BD63: 0.02902384108 | BE63: 0.01064730353 | BF63: 0.1449631969 | BG63: 0.1167179712 | BH63: 0.1063681035 | BI63: 0.1035444564 | BJ63: 0.04593872173 | BK63: 0.04120794827 | BL63: 0.03701814386 | BM63: 0.01941735903 | BN63: 0.05652898249
B64: 2020 | C64: =VLOOKUP($B64,retdat,MATCH(C$13,Data!$A$3:$CC$3,0),0) -> 0.03294416298 | D64: =VLOOKUP($B64,retdat,MATCH(D$13,Data!$A$3:$CC$3,0),0) -> 0.02476666667 | E64: =VLOOKUP($B64,retdat,MATCH(E$13,Data!$A$3:$CC$3,0),0) -> 0.2282725873 | F64: =VLOOKUP($B64,retdat,MATCH(F$13,Data!$A$3:$CC$3,0),0) -> 0.007509422022 | G64: =VLOOKUP($B64,retdat,MATCH(G$13,Data!$A$3:$CC$3,0),0) -> 0.01296511866 | H64: =VLOOKUP($B64,retdat,MATCH(H$13,Data!$A$3:$CC$3,0),0) -> 0.00365 | I64: =VLOOKUP($B64,retdat,MATCH(I$13,Data!$A$3:$CC$3,0),0) -> 0.1506496039 | J64: =VLOOKUP($B64,retdat,MATCH(J$13,Data!$A$3:$CC$3,0),0) -> 0.06995980082 | K64: =VLOOKUP($B64,retdat,MATCH(K$13,Data!$A$3:$CC$3,0),0) -> -0.05257379013 | L64: =VLOOKUP($B64,retdat,MATCH(L$13,Data!$A$3:$CC$3,0),0) -> -0.06161633032 | M64: =VLOOKUP($B64,retdat,MATCH(M$13,Data!$A$3:$CC$3,0),0) -> 0.03219384401 | N64: =VLOOKUP($B64,retdat,MATCH(N$13,Data!$A$3:$CC$3,0),0) -> 0.036025 | O64: =VLOOKUP($B64,retdat,MATCH(O$13,Data!$A$3:$CC$3,0),0) -> 0.03080833333 | P64: =VLOOKUP($B64,retdat,MATCH(P$13,Data!$A$3:$CC$3,0),0) -> 0.008941666667 | Q64: =VLOOKUP($B64,retdat,MATCH(Q$13,Data!$A$3:$CC$3,0),0) -> 0.05286684359 | S64: =AVERAGE(C62:C64) -> 0.0383567302 | T64: =AVERAGE(D62:D64) -> 0.03264722222 | U64: =AVERAGE(E62:E64) -> 0.1283631398 | V64: =AVERAGE(F62:F64) -> 0.007056715155 | W64: =AVERAGE(G62:G64) -> 0.01857381366 | X64: =AVERAGE(H62:H64) -> 0.01455 | Y64: =AVERAGE(I62:I64) -> 0.1133145263 | Z64: =AVERAGE(J62:J64) -> 0.07121022418 | AA64: =AVERAGE(K62:K64) -> 0.05272184505 | AB64: =AVERAGE(L62:L64) -> 0.0489063783 | AC64: =AVERAGE(M62:M64) -> 0.03760833028 | AD64: =AVERAGE(N62:N64) -> 0.04259444444 | AE64: 0.03850277778 | AF64: =AVERAGE(P62:P64) -> 0.01982777778 | AG64: =AVERAGE(Q62:Q64) -> 0.01536364383 | AI64: =GEOMEAN(C141:OFFSET(C141,$AI$2-1,0))-1 -> 0.06882370284 | AJ64: =GEOMEAN(D141:OFFSET(D141,$AI$2-1,0))-1 -> 0.03312360993 | AK64: =GEOMEAN(E141:OFFSET(E141,$AI$2-1,0))-1 -> 0.06516205347 | AL64: =GEOMEAN(F141:OFFSET(F141,$AI$2-1,0))-1 -> 0.05235147821 | AM64: =GEOMEAN(G141:OFFSET(G141,$AI$2-1,0))-1 -> 0.03717129441 | AN64: =GEOMEAN(H141:OFFSET(H141,$AI$2-1,0))-1 -> 0.01282248116 | AO64: =GEOMEAN(I141:OFFSET(I141,$AI$2-1,0))-1 -> 0.05546009646 | AP64: =GEOMEAN(J141:OFFSET(J141,$AI$2-1,0))-1 -> 0.05202891225 | AQ64: =GEOMEAN(K141:OFFSET(K141,$AI$2-1,0))-1 -> 0.01760196149 | AR64: =GEOMEAN(L141:OFFSET(L141,$AI$2-1,0))-1 -> 0.01365983644 | AS64: =GEOMEAN(M141:OFFSET(M141,$AI$2-1,0))-1 -> 0.06507940466 | AT64: =GEOMEAN(N141:OFFSET(N141,$AI$2-1,0))-1 -> 0.04246603802 | AU64: =GEOMEAN(O141:OFFSET(O141,$AI$2-1,0))-1 -> 0.03997494793 | AV64: =GEOMEAN(P141:OFFSET(P141,$AI$2-1,0))-1 -> 0.02065297589 | AW64: =GEOMEAN(Q141:OFFSET(Q141,$AI$2-1,0))-1 -> -0.02136145019 | AY64: 51 | AZ64: =IF(TRUNC($AY64/$AI$2)-$AY64/$AI$2 = 0,AI64,"") ->  | BA64: =IF(TRUNC($AY64/$AI$2)-$AY64/$AI$2 = 0,AJ64,"") ->  | BB64: =IF(TRUNC($AY64/$AI$2)-$AY64/$AI$2 = 0,AK64,"") ->  | BC64: =IF(TRUNC($AY64/$AI$2)-$AY64/$AI$2 = 0,AL64,"") ->  | BD64: =IF(TRUNC($AY64/$AI$2)-$AY64/$AI$2 = 0,AM64,"") ->  | BE64: =IF(TRUNC($AY64/$AI$2)-$AY64/$AI$2 = 0,AN64,"") ->  | BN64: =IF(TRUNC($AY64/$AI$2)-$AY64/$AI$2 = 0,AW64,"") -> 
B65: 2021 | C65: =VLOOKUP($B65,retdat,MATCH(C$13,Data!$A$3:$CC$3,0),0) -> 0.08731868269 | D65: =VLOOKUP($B65,retdat,MATCH(D$13,Data!$A$3:$CC$3,0),0) -> 0.02703333333 | E65: =VLOOKUP($B65,retdat,MATCH(E$13,Data!$A$3:$CC$3,0),0) -> -0.03727084989 | F65: =VLOOKUP($B65,retdat,MATCH(F$13,Data!$A$3:$CC$3,0),0) -> 0.1853841938 | G65: =VLOOKUP($B65,retdat,MATCH(G$13,Data!$A$3:$CC$3,0),0) -> 0.06930757423 | H65: =VLOOKUP($B65,retdat,MATCH(H$13,Data!$A$3:$CC$3,0),0) -> 0.0004416666667 | I65: =VLOOKUP($B65,retdat,MATCH(I$13,Data!$A$3:$CC$3,0),0) -> 0.2381719475 | J65: =VLOOKUP($B65,retdat,MATCH(J$13,Data!$A$3:$CC$3,0),0) -> 0.1716605302 | K65: =VLOOKUP($B65,retdat,MATCH(K$13,Data!$A$3:$CC$3,0),0) -> 0.3457036042 | L65: =VLOOKUP($B65,retdat,MATCH(L$13,Data!$A$3:$CC$3,0),0) -> 0.3366105659 | M65: =VLOOKUP($B65,retdat,MATCH(M$13,Data!$A$3:$CC$3,0),0) -> 0.08075254394 | N65: =VLOOKUP($B65,retdat,MATCH(N$13,Data!$A$3:$CC$3,0),0) -> 0.033925 | O65: =VLOOKUP($B65,retdat,MATCH(O$13,Data!$A$3:$CC$3,0),0) -> 0.029875 | P65: =VLOOKUP($B65,retdat,MATCH(P$13,Data!$A$3:$CC$3,0),0) -> 0.014425 | Q65: =VLOOKUP($B65,retdat,MATCH(Q$13,Data!$A$3:$CC$3,0),0) -> 0.08415315788 | S65: =AVERAGE(C63:C65) -> 0.05420810411 | T65: =AVERAGE(D63:D65) -> 0.02855833333 | U65: =AVERAGE(E63:E65) -> 0.1196641048 | V65: =AVERAGE(F63:F65) -> 0.06096451083 | W65: =AVERAGE(G63:G65) -> 0.035067682 | X65: =AVERAGE(H63:H65) -> 0.008233333333 | Y65: =AVERAGE(I63:I65) -> 0.2141727202 | Z65: =AVERAGE(J63:J65) -> 0.1477470247 | AA65: =AVERAGE(K63:K65) -> 0.1817184067 | AB65: =AVERAGE(L63:L65) -> 0.1744918795 | AC65: =AVERAGE(M63:M65) -> 0.05153545183 | AD65: =AVERAGE(N63:N65) -> 0.03790277778 | AE65: =AVERAGE(O63:O65) -> 0.03327222222 | AF65: =AVERAGE(P63:P65) -> 0.01493611111 | AG65: =AVERAGE(Q63:Q65) -> 0.1020715511 | AI65: =GEOMEAN(C142:OFFSET(C142,$AI$2-1,0))-1 -> 0.08017985129 | AJ65: =GEOMEAN(D142:OFFSET(D142,$AI$2-1,0))-1 -> 0.03486725496 | AK65: =GEOMEAN(E142:OFFSET(E142,$AI$2-1,0))-1 -> 0.09197869865 | AL65: =GEOMEAN(F142:OFFSET(F142,$AI$2-1,0))-1 -> 0.06098811581 | AM65: =GEOMEAN(G142:OFFSET(G142,$AI$2-1,0))-1 -> 0.03977503072 | AN65: =GEOMEAN(H142:OFFSET(H142,$AI$2-1,0))-1 -> 0.0189655129 | AO65: =GEOMEAN(I142:OFFSET(I142,$AI$2-1,0))-1 -> 0.1124484343 | AP65: =GEOMEAN(J142:OFFSET(J142,$AI$2-1,0))-1 -> 0.09070485625 | AQ65: =GEOMEAN(K142:OFFSET(K142,$AI$2-1,0))-1 -> 0.04740327149 | AR65: =GEOMEAN(L142:OFFSET(L142,$AI$2-1,0))-1 -> 0.04337617977 | AS65: =GEOMEAN(M142:OFFSET(M142,$AI$2-1,0))-1 -> 0.07517702531 | AT65: =GEOMEAN(N142:OFFSET(N142,$AI$2-1,0))-1 -> 0.04456800753 | AU65: =GEOMEAN(O142:OFFSET(O142,$AI$2-1,0))-1 -> 0.044396546 | AV65: =GEOMEAN(P142:OFFSET(P142,$AI$2-1,0))-1 -> 0.02272237127 | AW65: =GEOMEAN(Q142:OFFSET(Q142,$AI$2-1,0))-1 -> 0.04428408219 | AY65: 52
B66: 2022 | C66: =VLOOKUP($B66,retdat,MATCH(C$13,Data!$A$3:$CC$3,0),0) -> 0.1458910479 | D66: =VLOOKUP($B66,retdat,MATCH(D$13,Data!$A$3:$CC$3,0),0) -> 0.04074166667 | E66: =VLOOKUP($B66,retdat,MATCH(E$13,Data!$A$3:$CC$3,0),0) -> 0.003968812171 | F66: =VLOOKUP($B66,retdat,MATCH(F$13,Data!$A$3:$CC$3,0),0) -> 0.06636183986 | G66: =VLOOKUP($B66,retdat,MATCH(G$13,Data!$A$3:$CC$3,0),0) -> 0.06214345132 | H66: =VLOOKUP($B66,retdat,MATCH(H$13,Data!$A$3:$CC$3,0),0) -> 0.02021666667 | I66: =VLOOKUP($B66,retdat,MATCH(I$13,Data!$A$3:$CC$3,0),0) -> -0.2162029957 | J66: =VLOOKUP($B66,retdat,MATCH(J$13,Data!$A$3:$CC$3,0),0) -> -0.09191252454 | K66: =VLOOKUP($B66,retdat,MATCH(K$13,Data!$A$3:$CC$3,0),0) -> -0.2869948083 | L66: =VLOOKUP($B66,retdat,MATCH(L$13,Data!$A$3:$CC$3,0),0) -> -0.2879859242 | M66: =VLOOKUP($B66,retdat,MATCH(M$13,Data!$A$3:$CC$3,0),0) -> 0.135253707 | N66: =VLOOKUP($B66,retdat,MATCH(N$13,Data!$A$3:$CC$3,0),0) -> 0.050725 | O66: =VLOOKUP($B66,retdat,MATCH(O$13,Data!$A$3:$CC$3,0),0) -> 0.0547 | P66: =VLOOKUP($B66,retdat,MATCH(P$13,Data!$A$3:$CC$3,0),0) -> 0.02951666667 | Q66: =VLOOKUP($B66,retdat,MATCH(Q$13,Data!$A$3:$CC$3,0),0) -> -0.1837598351 | S66: =AVERAGE(C64:C66) -> 0.08871796453 | T66: =AVERAGE(D64:D66) -> 0.03084722222 | U66: =AVERAGE(E64:E66) -> 0.06499018318 | V66: =AVERAGE(F64:F66) -> 0.08641848523 | W66: =AVERAGE(G64:G66) -> 0.04813871473 | X66: =AVERAGE(H64:H66) -> 0.008102777778 | Y66: =AVERAGE(I64:I66) -> 0.05753951855 | Z66: =AVERAGE(J64:J66) -> 0.04990260217 | AA66: =AVERAGE(K64:K66) -> 0.002045001918 | AB66: =AVERAGE(L64:L66) -> -0.004330562848 | AC66: =AVERAGE(M64:M66) -> 0.08273336499 | AD66: =AVERAGE(N64:N66) -> 0.040225 | AE66: =AVERAGE(O64:O66) -> 0.03846111111 | AF66: =AVERAGE(P64:P66) -> 0.01762777778 | AG66: =AVERAGE(Q64:Q66) -> -0.01557994454 | AI66: =GEOMEAN(C143:OFFSET(C143,$AI$2-1,0))-1 -> 0.08674891747 | AJ66: =GEOMEAN(D143:OFFSET(D143,$AI$2-1,0))-1 -> 0.03816271301 | AK66: =GEOMEAN(E143:OFFSET(E143,$AI$2-1,0))-1 -> 0.110009239 | AL66: =GEOMEAN(F143:OFFSET(F143,$AI$2-1,0))-1 -> 0.05630967883 | AM66: =GEOMEAN(G143:OFFSET(G143,$AI$2-1,0))-1 -> 0.04091584599 | AN66: =GEOMEAN(H143:OFFSET(H143,$AI$2-1,0))-1 -> 0.02470285125 | AO66: =GEOMEAN(I143:OFFSET(I143,$AI$2-1,0))-1 -> 0.1044962469 | AP66: =GEOMEAN(J143:OFFSET(J143,$AI$2-1,0))-1 -> 0.0756906436 | AQ66: =GEOMEAN(K143:OFFSET(K143,$AI$2-1,0))-1 -> 0.01080562856 | AR66: =GEOMEAN(L143:OFFSET(L143,$AI$2-1,0))-1 -> 0.007166011467 | AS66: =GEOMEAN(M143:OFFSET(M143,$AI$2-1,0))-1 -> 0.08015965532 | AT66: =GEOMEAN(N143:OFFSET(N143,$AI$2-1,0))-1 -> 0.04731070394 | AU66: =GEOMEAN(O143:OFFSET(O143,$AI$2-1,0))-1 -> 0.05004882814 | AV66: =GEOMEAN(P143:OFFSET(P143,$AI$2-1,0))-1 -> 0.02682286768 | AW66: =GEOMEAN(Q143:OFFSET(Q143,$AI$2-1,0))-1 -> 0.0144396096 | AY66: 53 | AZ66: =IF(TRUNC($AY66/$AI$2)-$AY66/$AI$2 = 0,AI66,"") ->  | BA66: =IF(TRUNC($AY66/$AI$2)-$AY66/$AI$2 = 0,AJ66,"") ->  | BB66: =IF(TRUNC($AY66/$AI$2)-$AY66/$AI$2 = 0,AK66,"") ->  | BC66: =IF(TRUNC($AY66/$AI$2)-$AY66/$AI$2 = 0,AL66,"") ->  | BD66: =IF(TRUNC($AY66/$AI$2)-$AY66/$AI$2 = 0,AM66,"") ->  | BE66: =IF(TRUNC($AY66/$AI$2)-$AY66/$AI$2 = 0,AN66,"") ->  | BN66: =IF(TRUNC($AY66/$AI$2)-$AY66/$AI$2 = 0,AW66,"") -> 
B67: 2023 | C67: =VLOOKUP($B67,retdat,MATCH(C$13,Data!$A$3:$CC$3,0),0) -> 0.09618786335 | D67: =VLOOKUP($B67,retdat,MATCH(D$13,Data!$A$3:$CC$3,0),0) -> 0.0481 | E67: =VLOOKUP($B67,retdat,MATCH(E$13,Data!$A$3:$CC$3,0),0) -> 0.1197276203 | F67: =VLOOKUP($B67,retdat,MATCH(F$13,Data!$A$3:$CC$3,0),0) -> 0.06636183986 | G67: =VLOOKUP($B67,retdat,MATCH(G$13,Data!$A$3:$CC$3,0),0) -> 0.03269136358 | H67: =VLOOKUP($B67,retdat,MATCH(H$13,Data!$A$3:$CC$3,0),0) -> 0.05068333333 | I67: =VLOOKUP($B67,retdat,MATCH(I$13,Data!$A$3:$CC$3,0),0) -> 0.2169685151 | J67: =VLOOKUP($B67,retdat,MATCH(J$13,Data!$A$3:$CC$3,0),0) -> 0.1284228454 | K67: =VLOOKUP($B67,retdat,MATCH(K$13,Data!$A$3:$CC$3,0),0) -> 0.1075643948 | L67: =VLOOKUP($B67,retdat,MATCH(L$13,Data!$A$3:$CC$3,0),0) -> 0.1090435484 | M67: =VLOOKUP($B67,retdat,MATCH(M$13,Data!$A$3:$CC$3,0),0) -> 0.08916441743 | N67: =VLOOKUP($B67,retdat,MATCH(N$13,Data!$A$3:$CC$3,0),0) -> 0.05860833333 | O67: =VLOOKUP($B67,retdat,MATCH(O$13,Data!$A$3:$CC$3,0),0) -> 0.06798333333 | P67: =VLOOKUP($B67,retdat,MATCH(P$13,Data!$A$3:$CC$3,0),0) -> 0.039575 | Q67: =VLOOKUP($B67,retdat,MATCH(Q$13,Data!$A$3:$CC$3,0),0) -> 0.1400513706 | S67: =AVERAGE(C65:C67) -> 0.109799198 | T67: =AVERAGE(D65:D67) -> 0.038625 | U67: =AVERAGE(E65:E67) -> 0.02880852751 | V67: =AVERAGE(F65:F67) -> 0.1060359578 | W67: =AVERAGE(G65:G67) -> 0.05471412971 | X67: =AVERAGE(H65:H67) -> 0.02378055556 | Y67: =AVERAGE(I65:I67) -> 0.07964582228 | Z67: =AVERAGE(J65:J67) -> 0.06939028371 | AA67: =AVERAGE(K65:K67) -> 0.0554243969 | AB67: =AVERAGE(L65:L67) -> 0.05255606339 | AC67: =AVERAGE(M65:M67) -> 0.1017235561 | AD67: =AVERAGE(N65:N67) -> 0.04775277778 | AE67: =AVERAGE(O65:O67) -> 0.05085277778 | AF67: =AVERAGE(P65:P67) -> 0.02783888889 | AG67: =AVERAGE(Q65:Q67) -> 0.01348156447 | AI67: =GEOMEAN(C144:OFFSET(C144,$AI$2-1,0))-1 -> 0.1006324395 | AJ67: =GEOMEAN(D144:OFFSET(D144,$AI$2-1,0))-1 -> 0.04153899772 | AK67: =GEOMEAN(E144:OFFSET(E144,$AI$2-1,0))-1 -> 0.08226733841 | AL67: =GEOMEAN(F144:OFFSET(F144,$AI$2-1,0))-1 -> 0.06887469353 | AM67: =GEOMEAN(G144:OFFSET(G144,$AI$2-1,0))-1 -> 0.04802321328 | AN67: =GEOMEAN(H144:OFFSET(H144,$AI$2-1,0))-1 -> 0.03003470716 | AO67: =GEOMEAN(I144:OFFSET(I144,$AI$2-1,0))-1 -> 0.09325011699 | AP67: =GEOMEAN(J144:OFFSET(J144,$AI$2-1,0))-1 -> 0.077128144 | AQ67: =GEOMEAN(K144:OFFSET(K144,$AI$2-1,0))-1 -> 0.0273021942 | AR67: =GEOMEAN(L144:OFFSET(L144,$AI$2-1,0))-1 -> 0.02513536577 | AS67: =GEOMEAN(M144:OFFSET(M144,$AI$2-1,0))-1 -> 0.09249541734 | AT67: =GEOMEAN(N144:OFFSET(N144,$AI$2-1,0))-1 -> 0.05015128697 | AU67: =GEOMEAN(O144:OFFSET(O144,$AI$2-1,0))-1 -> 0.05491480655 | AV67: =GEOMEAN(P144:OFFSET(P144,$AI$2-1,0))-1 -> 0.03134246644 | AW67: =GEOMEAN(Q144:OFFSET(Q144,$AI$2-1,0))-1 -> 0.005053974824 | AY67: 54 | AZ67: =IF(TRUNC($AY67/$AI$2)-$AY67/$AI$2 = 0,AI67,"") ->  | BA67: =IF(TRUNC($AY67/$AI$2)-$AY67/$AI$2 = 0,AJ67,"") ->  | BB67: =IF(TRUNC($AY67/$AI$2)-$AY67/$AI$2 = 0,AK67,"") ->  | BC67: =IF(TRUNC($AY67/$AI$2)-$AY67/$AI$2 = 0,AL67,"") ->  | BD67: =IF(TRUNC($AY67/$AI$2)-$AY67/$AI$2 = 0,AM67,"") ->  | BE67: =IF(TRUNC($AY67/$AI$2)-$AY67/$AI$2 = 0,AN67,"") -> 
B68: 2024 | C68: =VLOOKUP($B68,retdat,MATCH(C$13,Data!$A$3:$CC$3,0),0) -> 0.07444470301 | D68: =VLOOKUP($B68,retdat,MATCH(D$13,Data!$A$3:$CC$3,0),0) -> 0.05044166667 | E68: =VLOOKUP($B68,retdat,MATCH(E$13,Data!$A$3:$CC$3,0),0) -> 0.2676561676 | F68: =VLOOKUP($B68,retdat,MATCH(F$13,Data!$A$3:$CC$3,0),0) -> -0.03163550624 | G68: =VLOOKUP($B68,retdat,MATCH(G$13,Data!$A$3:$CC$3,0),0) -> 0.02855434913 | H68: =VLOOKUP($B68,retdat,MATCH(H$13,Data!$A$3:$CC$3,0),0) -> 0.04966666667 | I68: =VLOOKUP($B68,retdat,MATCH(I$13,Data!$A$3:$CC$3,0),0) -> 0.2095232695 | J68: =VLOOKUP($B68,retdat,MATCH(J$13,Data!$A$3:$CC$3,0),0) -> 0.1211614032 | K68: =VLOOKUP($B68,retdat,MATCH(K$13,Data!$A$3:$CC$3,0),0) -> 0.04804943755 | L68: =VLOOKUP($B68,retdat,MATCH(L$13,Data!$A$3:$CC$3,0),0) -> 0.04636401686 | M68: =VLOOKUP($B68,retdat,MATCH(M$13,Data!$A$3:$CC$3,0),0) -> 0.06602123493 | N68: =VLOOKUP($B68,retdat,MATCH(N$13,Data!$A$3:$CC$3,0),0) -> 0.05753333333 | O68: =VLOOKUP($B68,retdat,MATCH(O$13,Data!$A$3:$CC$3,0),0) -> 0.06755833333 | P68: =VLOOKUP($B68,retdat,MATCH(P$13,Data!$A$3:$CC$3,0),0) -> 0.04208333333 | Q68: =VLOOKUP($B68,retdat,MATCH(Q$13,Data!$A$3:$CC$3,0),0) -> 0.01140365867 | S68: =AVERAGE(C66:C68) -> 0.1055078714 | T68: =AVERAGE(D66:D68) -> 0.04642777778 | U68: =AVERAGE(E66:E68) -> 0.1304508667 | V68: =AVERAGE(F66:F68) -> 0.03369605782 | W68: =AVERAGE(G66:G68) -> 0.04112972134 | X68: =AVERAGE(H66:H68) -> 0.04018888889 | Y68: =AVERAGE(I66:I68) -> 0.07009626297 | Z68: =AVERAGE(J66:J68) -> 0.05255724138 | AA68: =AVERAGE(K66:K68) -> -0.04379365865 | AB68: =AVERAGE(L66:L68) -> -0.0441927863 | AC68: =AVERAGE(M66:M68) -> 0.09681311979 | AD68: =AVERAGE(N66:N68) -> 0.05562222222 | AE68: =AVERAGE(O66:O68) -> 0.06341388889 | AF68: =AVERAGE(P66:P68) -> 0.03705833333 | AG68: =AVERAGE(Q66:Q68) -> -0.0107682686 | AI68: ="Rolling overlap " &AI2&" year holding periods" -> Rolling overlap 5 year holding periods | AZ68: =AZ12 -> Nonoverlapping 5 year holding periods
C72: =C13 -> US Ag 32 States | D72: AAA | E72: Gold | F72: PPI | G72: CPI | H72: TBSM3M | I72: S&P500 | J72: Dow Jones | K72: Equity REITS | L72: Composite REITS | M72: US Ave Farm (all) | N72: BAA | O72: Mort30F | P72: TCM10Y | Q72: EAFE | S72: =S13 -> US Ag 32 States | T72: AAA | U72: Gold | V72: PPI | W72: CPI | X72: TBSM3M | Y72: S&P500 | Z72: Dow Jones | AA72: Equity REITS | AB72: Composite REITS | AC72: US Ave Farm (all) | AD72: BAA | AE72: Mort30F | AF72: TCM10Y | AG72: EAFE | AI72: =AI13 -> US Ag 32 States | AJ72: AAA | AK72: Gold | AL72: PPI | AM72: CPI | AN72: TBSM3M | AO72: S&P500 | AP72: Dow Jones | AQ72: Equity REITS | AR72: Composite REITS | AS72: US Ave Farm (all) | AT72: BAA | AU72: Mort30F | AV72: TCM10Y | AW72: EAFE | AZ72: =AZ13 -> US Ag 32 States | BA72: =BA13 -> AAA | BB72: Gold | BC72: PPI | BD72: CPI | BE72: TBSM3M | BF72: S&P500 | BG72: Dow Jones | BH72: Equity REITS | BI72: Composite REITS | BJ72: US Ave Farm (all) | BK72: BAA | BL72: Mort30F | BM72: TCM10Y | BN72: EAFE
B73: =TRANSPOSE(C72:Q72) -> US Ag 32 States | C73: =CORREL($C$14:$C$68,C14:C68) -> 1 | D73: =CORREL($C$14:$C$68,D14:D68) -> 0.1537203952 | E73: =CORREL($C$14:$C$68,E14:E68) -> 0.2480225001 | F73: =CORREL($C$14:$C$68,F14:F68) -> 0.557511468 | G73: =CORREL($C$14:$C$68,G14:G68) -> 0.6702626113 | H73: =CORREL($C$14:$C$68,H14:H68) -> 0.3175089093 | I73: =CORREL($C$14:$C$68,I14:I68) -> -0.2873346275 | J73: =CORREL($C$14:$C$68,J14:J68) -> -0.3571215622 | K73: =CORREL($C$14:$C$68,K14:K68) -> -0.09736998618 | L73: =CORREL($C$14:$C$68,L14:L68) -> -0.1525499062 | M73: =CORREL($C$14:$C$68,M14:M68) -> 0.9901987365 | N73: =CORREL($C$14:$C$68,N14:N68) -> 0.1304822944 | O73: =CORREL($C$14:$C$68,O14:O68) -> 0.15577904 | P73: =CORREL($C$14:$C$68,P14:P68) -> 0.202544933 | Q73: =CORREL($C$14:$C$68,Q14:Q68) -> -0.2181639343 | R73: =TRANSPOSE(S72:AG72) -> US Ag 32 States | S73: =CORREL($S$14:$S$68,S14:S68) -> 1 | T73: =CORREL($S$14:$S$68,T14:T68) -> 0.1645425552 | U73: =CORREL($S$14:$S$68,U14:U68) -> 0.4359898949 | V73: =CORREL($S$14:$S$68,V14:V68) -> 0.7119259777 | W73: =CORREL($S$14:$S$68,W14:W68) -> 0.7297000673 | X73: =CORREL($S$14:$S$68,X14:X68) -> 0.3126169281 | Y73: =CORREL($S$14:$S$68,Y14:Y68) -> -0.3049403384 | Z73: =CORREL($S$14:$S$68,Z14:Z68) -> -0.4477373512 | AA73: =CORREL($S$14:$S$68,AA14:AA68) -> 0.009390304878 | AB73: =CORREL($S$14:$S$68,AB14:AB68) -> -0.06116478142 | AC73: =CORREL($S$14:$S$68,AC14:AC68) -> 0.9931087071 | AD73: =CORREL($S$14:$S$68,AD14:AD68) -> 0.1503383869 | AE73: =CORREL($S$14:$S$68,AE14:AE68) -> 0.167458701 | AF73: =CORREL($S$14:$S$68,AF14:AF68) -> 0.2100906229 | AG73: =CORREL($S$14:$S$68,AG14:AG68) -> -0.1812383017 | AH73: =TRANSPOSE(AI72:AW72) -> US Ag 32 States | AI73: =CORREL($AI$14:$AI$67,AI14:AI67) -> 1 | AJ73: 0.1927542828 | AK73: 0.5401279508 | AL73: 0.7917137948 | AM73: 0.7405002821 | AN73: 0.3036778717 | AO73: -0.4291306549 | AP73: -0.5739476683 | AQ73: 0.04192587549 | AR73: -0.1315199548 | AS73: 0.99415102 | AT73: 0.1853803721 | AU73: 0.1773481947 | AV73: 0.2300480029 | AW73: -0.2022805532 | AZ73: =CORREL($AZ$14:$AZ$67,AZ14:AZ67) -> 1 | BA73: =CORREL($AZ$14:$AZ$67,BA14:BA67) -> 0.1892858719 | BB73: 0.5670603939 | BC73: 0.7867312833 | BD73: 0.782877849 | BE73: 0.3352651289 | BF73: -0.5969379537 | BG73: -0.721540901 | BH73: -0.04540967626 | BI73: -0.2287576075 | BJ73: 0.9951324378 | BK73: 0.1732928839 | BL73: 0.1910734252 | BM73: 0.2313184546 | BN73: -0.1539568518
B74: AAA | D74: =CORREL($D$14:$D$68,D14:D68) -> 1 | E74: =CORREL($D$14:$D$68,E14:E68) -> -0.1249626311 | F74: =CORREL($D$14:$D$68,F14:F68) -> 0.08825656388 | G74: =CORREL($D$14:$D$68,G14:G68) -> 0.4737518366 | H74: =CORREL($D$14:$D$68,H14:H68) -> 0.9043892264 | I74: =CORREL($D$14:$D$68,I14:I68) -> -0.03125433115 | J74: =CORREL($D$14:$D$68,J14:J68) -> -0.005422887792 | K74: =CORREL($D$14:$D$68,K14:K68) -> 0.131177518 | L74: =CORREL($D$14:$D$68,L14:L68) -> 0.08198105311 | M74: =CORREL($D$14:$D$68,M14:M68) -> 0.1800048125 | N74: =CORREL($D$14:$D$68,N14:N68) -> 0.9938289007 | O74: =CORREL($D$14:$D$68,O14:O68) -> 0.9226192617 | P74: =CORREL($D$14:$D$68,P14:P68) -> 0.9927787592 | Q74: =CORREL($D$14:$D$68,Q14:Q68) -> 0.1038276764 | R74: AAA | T74: =CORREL($T$14:$T$68,T14:T68) -> 1 | U74: =CORREL($T$14:$T$68,U14:U68) -> -0.08494695093 | V74: =CORREL($T$14:$T$68,V14:V68) -> 0.1270138864 | W74: =CORREL($T$14:$T$68,W14:W68) -> 0.5418388273 | X74: =CORREL($T$14:$T$68,X14:X68) -> 0.9385915526 | Y74: =CORREL($T$14:$T$68,Y14:Y68) -> 0.01973266734 | Z74: =CORREL($T$14:$T$68,Z14:Z68) -> 0.04714728435 | AA74: =CORREL($T$14:$T$68,AA14:AA68) -> 0.2766360334 | AB74: =CORREL($T$14:$T$68,AB14:AB68) -> 0.1742090691 | AC74: =CORREL($T$14:$T$68,AC14:AC68) -> 0.1949233767 | AD74: =CORREL($T$14:$T$68,AD14:AD68) -> 0.9960186093 | AE74: =CORREL($T$14:$T$68,AE14:AE68) -> 0.9811872721 | AF74: =CORREL($T$14:$T$68,AF14:AF68) -> 0.9949878393 | AG74: =CORREL($T$14:$T$68,AG14:AG68) -> 0.2967475749 | AH74: AAA | AJ74: =CORREL($AJ$14:$AJ$67,AJ14:AJ67) -> 1 | AK74: -0.1365410362 | AL74: 0.1902039841 | AM74: 0.6020480232 | AN74: 0.9582410924 | AO74: 0.06056300623 | AP74: 0.05099778259 | AQ74: 0.4150201214 | AR74: 0.2245922481 | AS74: 0.2297259915 | AT74: 0.9969066703 | AU74: 0.9883416905 | AV74: 0.9963269293 | AW74: 0.4671502145 | BA74: =CORREL($BA$14:$BA$67,BA14:BA67) -> 1 | BB74: -0.03656002875 | BC74: 0.1626753796 | BD74: 0.5761901419 | BE74: 0.9620981382 | BF74: 0.01248892605 | BG74: 0.02551484481 | BH74: 0.3088429951 | BI74: 0.1204241081 | BJ74: 0.2173367279 | BK74: 0.9965740979 | BL74: 0.9957314174 | BM74: 0.9967774454 | BN74: 0.5157403908
B75: Gold | E75: =CORREL($E$14:$E$68,E14:E68) -> 1 | F75: =CORREL($E$14:$E$68,F14:F68) -> 0.4629419015 | G75: =CORREL($E$14:$E$68,G14:G68) -> 0.3662244755 | H75: =CORREL($E$14:$E$68,H14:H68) -> 0.01814832493 | I75: =CORREL($E$14:$E$68,I14:I68) -> -0.1839622908 | J75: =CORREL($E$14:$E$68,J14:J68) -> -0.2509647325 | K75: =CORREL($E$14:$E$68,K14:K68) -> -0.07901861907 | L75: =CORREL($E$14:$E$68,L14:L68) -> -0.1871312372 | M75: =CORREL($E$14:$E$68,M14:M68) -> 0.2654035369 | N75: =CORREL($E$14:$E$68,N14:N68) -> -0.1264665932 | O75: =CORREL($E$14:$E$68,O14:O68) -> -0.0838612274 | P75: =CORREL($E$14:$E$68,P14:P68) -> -0.09852491027 | Q75: =CORREL($E$14:$E$68,Q14:Q68) -> 0.01906482548 | R75: Gold | U75: =CORREL($U$14:$U$68,U14:U68) -> 1 | V75: =CORREL($U$14:$U$68,V14:V68) -> 0.6878389528 | W75: =CORREL($U$14:$U$68,W14:W68) -> 0.4759109517 | X75: =CORREL($U$14:$U$68,X14:X68) -> 0.03095313719 | Y75: =CORREL($U$14:$U$68,Y14:Y68) -> -0.5027760366 | Z75: =CORREL($U$14:$U$68,Z14:Z68) -> -0.6324907613 | AA75: =CORREL($U$14:$U$68,AA14:AA68) -> -0.2170831354 | AB75: =CORREL($U$14:$U$68,AB14:AB68) -> -0.3117172516 | AC75: =CORREL($U$14:$U$68,AC14:AC68) -> 0.4518110844 | AD75: =CORREL($U$14:$U$68,AD14:AD68) -> -0.07467904794 | AE75: =CORREL($U$14:$U$68,AE14:AE68) -> -0.07943237935 | AF75: =CORREL($U$14:$U$68,AF14:AF68) -> -0.05333233163 | AG75: =CORREL($U$14:$U$68,AG14:AG68) -> -1.104012109e-05 | AH75: Gold | AK75: =CORREL($AK$14:$AK$67,AK14:AK67) -> 1 | AL75: 0.7520555469 | AM75: 0.4287081544 | AN75: -0.03337697093 | AO75: -0.638127494 | AP75: -0.7179072299 | AQ75: -0.2808830669 | AR75: -0.3594823838 | AS75: 0.5450225703 | AT75: -0.1113537275 | AU75: -0.1405021129 | AV75: -0.1067458253 | AW75: -0.2261938782 | BB75: =CORREL($BB$14:$BB$67,BB14:BB67) -> 1 | BC75: 0.8598341257 | BD75: 0.5264995404 | BE75: 0.04715331986 | BF75: -0.7678780695 | BG75: -0.799385276 | BH75: -0.1456498523 | BI75: -0.226318119 | BJ75: 0.5676739969 | BK75: -0.004564068744 | BL75: -0.007366316773 | BM75: 0.001689922799 | BN75: -0.2302654779
B76: PPI | F76: =CORREL($F$14:$F$68,F14:F68) -> 1 | G76: =CORREL($F$14:$F$68,G14:G68) -> 0.7667083249 | H76: =CORREL($F$14:$F$68,H14:H68) -> 0.2330472634 | I76: =CORREL($F$14:$F$68,I14:I68) -> -0.1403769761 | J76: =CORREL($F$14:$F$68,J14:J68) -> -0.1923994097 | K76: =CORREL($F$14:$F$68,K14:K68) -> 0.0122007457 | L76: =CORREL($F$14:$F$68,L14:L68) -> -0.1086689736 | M76: =CORREL($F$14:$F$68,M14:M68) -> 0.5638231196 | N76: =CORREL($F$14:$F$68,N14:N68) -> 0.07303253937 | O76: =CORREL($F$14:$F$68,O14:O68) -> 0.1221237374 | P76: =CORREL($F$14:$F$68,P14:P68) -> 0.1354332082 | Q76: =CORREL($F$14:$F$68,Q14:Q68) -> -0.0255129945 | R76: PPI | V76: =CORREL($V$14:$V$68,V14:V68) -> 1 | W76: =CORREL($V$14:$V$68,W14:W68) -> 0.8134201413 | X76: =CORREL($V$14:$V$68,X14:X68) -> 0.3038514932 | Y76: =CORREL($V$14:$V$68,Y14:Y68) -> -0.3049632775 | Z76: =CORREL($V$14:$V$68,Z14:Z68) -> -0.4475733993 | AA76: =CORREL($V$14:$V$68,AA14:AA68) -> -0.07355906335 | AB76: =CORREL($V$14:$V$68,AB14:AB68) -> -0.1796668923 | AC76: =CORREL($V$14:$V$68,AC14:AC68) -> 0.7183860849 | AD76: =CORREL($V$14:$V$68,AD14:AD68) -> 0.1314909073 | AE76: =CORREL($V$14:$V$68,AE14:AE68) -> 0.1681387185 | AF76: =CORREL($V$14:$V$68,AF14:AF68) -> 0.1789858703 | AG76: =CORREL($V$14:$V$68,AG14:AG68) -> -0.04834101812 | AH76: PPI | AL76: =CORREL($AL$14:$AL$67,AL14:AL67) -> 1 | AM76: 0.835061213 | AN76: 0.3577235135 | AO76: -0.4122374126 | AP76: -0.569670447 | AQ76: -0.05075802398 | AR76: -0.2223354945 | AS76: 0.7916415994 | AT76: 0.2039658116 | AU76: 0.2162467261 | AV76: 0.2423810779 | AW76: -0.06289792914 | BC76: =CORREL($BC$14:$BC$67,BC14:BC67) -> 1 | BD76: 0.8206511508 | BE76: 0.3246951557 | BF76: -0.5712294666 | BG76: -0.6915464157 | BH76: -0.05314579154 | BI76: -0.2388292282 | BJ76: 0.7967715144 | BK76: 0.1700185547 | BL76: 0.1957350161 | BM76: 0.2238112229 | BN76: -0.06093676391
B77: CPI | G77: =CORREL($G$14:$G$68,G14:G68) -> 1 | H77: =CORREL($G$14:$G$68,H14:H68) -> 0.641589103 | I77: =CORREL($G$14:$G$68,I14:I68) -> -0.1700903698 | J77: =CORREL($G$14:$G$68,J14:J68) -> -0.2318339167 | K77: =CORREL($G$14:$G$68,K14:K68) -> -0.009377801925 | L77: =CORREL($G$14:$G$68,L14:L68) -> -0.1178989862 | M77: =CORREL($G$14:$G$68,M14:M68) -> 0.6720024182 | N77: =CORREL($G$14:$G$68,N14:N68) -> 0.4605439698 | O77: =CORREL($G$14:$G$68,O14:O68) -> 0.4620546392 | P77: =CORREL($G$14:$G$68,P14:P68) -> 0.527035218 | Q77: =CORREL($G$14:$G$68,Q14:Q68) -> -0.06449889999 | R77: CPI | W77: =CORREL($W$14:$W$68,W14:W68) -> 1 | X77: =CORREL($W$14:$W$68,X14:X68) -> 0.7022804993 | Y77: =CORREL($W$14:$W$68,Y14:Y68) -> -0.1832084596 | Z77: =CORREL($W$14:$W$68,Z14:Z68) -> -0.3360242654 | AA77: =CORREL($W$14:$W$68,AA14:AA68) -> 0.08006910287 | AB77: =CORREL($W$14:$W$68,AB14:AB68) -> -0.04215079904 | AC77: =CORREL($W$14:$W$68,AC14:AC68) -> 0.734778213 | AD77: =CORREL($W$14:$W$68,AD14:AD68) -> 0.5424183153 | AE77: =CORREL($W$14:$W$68,AE14:AE68) -> 0.5824052295 | AF77: =CORREL($W$14:$W$68,AF14:AF68) -> 0.5925715176 | AG77: =CORREL($W$14:$W$68,AG14:AG68) -> 0.04598227615 | AH77: CPI | AM77: =CORREL($AM$14:$AM$67,AM14:AM67) -> 1 | AN77: 0.7406942325 | AO77: -0.1932618139 | AP77: -0.3650234183 | AQ77: 0.207940809 | AR77: -0.008360634263 | AS77: 0.7461178392 | AT77: 0.6091548934 | AU77: 0.6301048803 | AV77: 0.6489462656 | AW77: 0.1773167508 | BD77: =CORREL($BD$14:$BD$67,BD14:BD67) -> 1 | BE77: 0.7326351268 | BF77: -0.3510339205 | BG77: -0.5393325582 | BH77: 0.1126074822 | BI77: -0.1088272751 | BJ77: 0.7836379215 | BK77: 0.5757677561 | BL77: 0.6098956662 | BM77: 0.6276192297 | BN77: 0.1944292737
B78: TBSM3M | H78: =CORREL($H$14:$H$68,H14:H68) -> 1 | I78: =CORREL($H$14:$H$68,I14:I68) -> -0.0196406857 | J78: =CORREL($H$14:$H$68,J14:J68) -> -0.03727014639 | K78: =CORREL($H$14:$H$68,K14:K68) -> 0.03378017235 | L78: =CORREL($H$14:$H$68,L14:L68) -> -0.02813764819 | M78: =CORREL($H$14:$H$68,M14:M68) -> 0.3394559685 | N78: =CORREL($H$14:$H$68,N14:N68) -> 0.8859387527 | O78: =CORREL($H$14:$H$68,O14:O68) -> 0.8680513161 | P78: =CORREL($H$14:$H$68,P14:P68) -> 0.9346712132 | Q78: =CORREL($H$14:$H$68,Q14:Q68) -> 0.05783468561 | R78: TBSM3M | X78: =CORREL($X$14:$X$68,X14:X68) -> 1 | Y78: =CORREL($X$14:$X$68,Y14:Y68) -> 0.03134496775 | Z78: =CORREL($X$14:$X$68,Z14:Z68) -> 0.006425275623 | AA78: =CORREL($X$14:$X$68,AA14:AA68) -> 0.1536897664 | AB78: =CORREL($X$14:$X$68,AB14:AB68) -> 0.05448992324 | AC78: =CORREL($X$14:$X$68,AC14:AC68) -> 0.3431728696 | AD78: =CORREL($X$14:$X$68,AD14:AD68) -> 0.9287028552 | AE78: =CORREL($X$14:$X$68,AE14:AE68) -> 0.9535295222 | AF78: =CORREL($X$14:$X$68,AF14:AF68) -> 0.9605313714 | AG78: =CORREL($X$14:$X$68,AG14:AG68) -> 0.2499669927 | AH78: TBSM3M | AN78: =CORREL($AN$14:$AN$67,AN14:AN67) -> 1 | AO78: 0.07367826127 | AP78: 0.01773903077 | AQ78: 0.3416011781 | AR78: 0.1548212929 | AS78: 0.3407138367 | AT78: 0.9528853881 | AU78: 0.9695588826 | AV78: 0.9748635771 | AW78: 0.4478177436 | BE78: =CORREL($BE$14:$BE$67,BE14:BE67) -> 1 | BF78: 0.001157280283 | BG78: -0.06388317022 | BH78: =CORREL($BE$14:$BE$67,BH14:BH67) -> 0.3047856345 | BI78: 0.1007554356 | BJ78: 0.3610775378 | BK78: 0.9521584904 | BL78: 0.9728878485 | BM78: 0.976132464 | BN78: 0.5024140893
B79: S&P500 | I79: =CORREL($I$14:$I$68,I14:I68) -> 1 | J79: =CORREL($I$14:$I$68,J14:J68) -> 0.9533231341 | K79: =CORREL($I$14:$I$68,K14:K68) -> 0.6089425033 | L79: =CORREL($I$14:$I$68,L14:L68) -> 0.6339743822 | M79: =CORREL($I$14:$I$68,M14:M68) -> -0.2835849201 | N79: =CORREL($I$14:$I$68,N14:N68) -> -0.03927025891 | O79: =CORREL($I$14:$I$68,O14:O68) -> -0.00887585574 | P79: =CORREL($I$14:$I$68,P14:P68) -> -0.01256286258 | Q79: =CORREL($I$14:$I$68,Q14:Q68) -> 0.726315452 | R79: S&P500 | Y79: =CORREL($Y$14:$Y$68,Y14:Y68) -> 1 | Z79: =CORREL($Y$14:$Y$68,Z14:Z68) -> 0.9441889279 | AA79: =CORREL($Y$14:$Y$68,AA14:AA68) -> 0.4080604171 | AB79: =CORREL($Y$14:$Y$68,AB14:AB68) -> 0.4240257254 | AC79: =CORREL($Y$14:$Y$68,AC14:AC68) -> -0.3042857297 | AD79: =CORREL($Y$14:$Y$68,AD14:AD68) -> -0.004009078509 | AE79: =CORREL($Y$14:$Y$68,AE14:AE68) -> 0.03029659065 | AF79: =CORREL($Y$14:$Y$68,AF14:AF68) -> 0.04215423724 | AG79: =CORREL($Y$14:$Y$68,AG14:AG68) -> 0.5504167289 | AH79: S&P500 | AO79: =CORREL($AO$14:$AO$67,AO14:AO67) -> 1 | AP79: 0.961247619 | AQ79: 0.4226980059 | AR79: 0.4774190186 | AS79: -0.4286486863 | AT79: 0.03442925625 | AU79: 0.100959407 | AV79: 0.07333640195 | AW79: 0.6080513645 | BF79: =CORREL($BF$14:$BF$67,BF14:BF67) -> 1 | BG79: 0.928140516 | BH79: 0.5182621029 | BI79: 0.56111136 | BJ79: -0.5670095774 | BK79: -0.01655576158 | BL79: 0.03095519206 | BM79: 0.01521342619 | BN79: 0.6094233186
B80: Dow Jones | J80: =CORREL($J$14:$J$68,J14:J68) -> 1 | K80: =CORREL($J$14:$J$68,K14:K68) -> 0.5702664909 | L80: =CORREL($J$14:$J$68,L14:L68) -> 0.6174312133 | M80: =CORREL($J$14:$J$68,M14:M68) -> -0.3511649547 | N80: =CORREL($J$14:$J$68,N14:N68) -> -0.01138455528 | O80: =CORREL($J$14:$J$68,O14:O68) -> -0.01033130124 | P80: =CORREL($J$14:$J$68,P14:P68) -> -0.0007239606544 | Q80: =CORREL($J$14:$J$68,Q14:Q68) -> 0.709478572 | R80: Dow Jones | Z80: =CORREL($Z$14:$Z$68,Z14:Z68) -> 1 | AA80: =CORREL($Z$14:$Z$68,AA14:AA68) -> 0.3555946378 | AB80: =CORREL($Z$14:$Z$68,AB14:AB68) -> 0.3894560808 | AC80: =CORREL($Z$14:$Z$68,AC14:AC68) -> -0.4380001697 | AD80: =CORREL($Z$14:$Z$68,AD14:AD68) -> 0.02129568531 | AE80: =CORREL($Z$14:$Z$68,AE14:AE68) -> 0.03895117979 | AF80: =CORREL($Z$14:$Z$68,AF14:AF68) -> 0.05198052842 | AG80: =CORREL($Z$14:$Z$68,AG14:AG68) -> 0.5192758943 | AH80: Dow Jones | AP80: =CORREL($AP$14:$AP$67,AP14:AP67) -> 1 | AQ80: 0.3567682047 | AR80: 0.4279855704 | AS80: -0.5639226099 | AT80: 0.02055729948 | AU80: 0.07350364162 | AV80: 0.04891102643 | AW80: 0.5693628472 | BG80: =CORREL($BG$14:$BG$67,BG14:BG67) -> 1 | BH80: 0.4020444369 | BI80: 0.4499911991 | BJ80: -0.6830636816 | BK80: -0.003337212703 | BL80: 0.0161316968 | BM80: 0.009475539333 | BN80: 0.5003407528
B81: Equity REITS | K81: =CORREL($K$14:$K$68,K14:K68) -> 1 | L81: =CORREL($K$14:$K$68,L14:L68) -> 0.9602599597 | M81: =CORREL($K$14:$K$68,M14:M68) -> -0.08313791385 | N81: =CORREL($K$14:$K$68,N14:N68) -> 0.1247475791 | O81: =CORREL($K$14:$K$68,O14:O68) -> 0.125822515 | P81: =CORREL($K$14:$K$68,P14:P68) -> 0.1319853749 | Q81: =CORREL($K$14:$K$68,Q14:Q68) -> 0.491765756 | R81: Equity REITS | AA81: =CORREL($AA$14:$AA$68,AA14:AA68) -> 1 | AB81: =CORREL($AA$14:$AA$68,AB14:AB68) -> 0.9599168375 | AC81: =CORREL($AA$14:$AA$68,AC14:AC68) -> 0.02677077306 | AD81: =CORREL($AA$14:$AA$68,AD14:AD68) -> 0.2706161936 | AE81: =CORREL($AA$14:$AA$68,AE14:AE68) -> 0.2728622996 | AF81: =CORREL($AA$14:$AA$68,AF14:AF68) -> 0.270951811 | AG81: =CORREL($AA$14:$AA$68,AG14:AG68) -> 0.3978197715 | AH81: Equity REITS | AQ81: =CORREL($AQ$14:$AQ$67,AQ14:AQ67) -> 1 | AR81: 0.9378033236 | AS81: 0.0611878497 | AT81: 0.4083548849 | AU81: 0.4373774242 | AV81: 0.4082357804 | AW81: 0.5547328526 | BH81: =CORREL($BH$14:$BH$67,BH14:BH67) -> 1 | BI81: 0.9470634057 | BJ81: 0.01108198806 | BK81: 0.2922236331 | BL81: 0.3467875269 | BM81: 0.328497219 | BN81: 0.9087781882
B82: Composite REITS | L82: =CORREL($L$14:$L$68,L14:L68) -> 1 | M82: =CORREL($L$14:$L$68,M14:M68) -> -0.1435230483 | N82: =CORREL($L$14:$L$68,N14:N68) -> 0.08883461607 | O82: =CORREL($L$14:$L$68,O14:O68) -> 0.07570124247 | P82: =CORREL($L$14:$L$68,P14:P68) -> 0.07647222147 | Q82: =CORREL($L$14:$L$68,Q14:Q68) -> 0.4677635265 | R82: Composite REITS | AB82: =CORREL($AB$14:$AB$68,AB14:AB68) -> 1 | AC82: =CORREL($AB$14:$AB$68,AC14:AC68) -> -0.05020022235 | AD82: =CORREL($AB$14:$AB$68,AD14:AD68) -> 0.1757983224 | AE82: =CORREL($AB$14:$AB$68,AE14:AE68) -> 0.1730695302 | AF82: =CORREL($AB$14:$AB$68,AF14:AF68) -> 0.1622966994 | AG82: =CORREL($AB$14:$AB$68,AG14:AG68) -> 0.2895327521 | AH82: Composite REITS | AR82: =CORREL($AR$14:$AR$67,AR14:AR67) -> 1 | AS82: -0.1187387804 | AT82: 0.2213728262 | AU82: 0.2654748946 | AV82: 0.2115718938 | AW82: 0.4101656313 | BI82: =CORREL($BI$14:$BI$67,BI14:BI67) -> 1 | BJ82: -0.1807201848 | BK82: 0.1045129463 | BL82: 0.1607521527 | BM82: 0.1301731803 | BN82: 0.7914460163
B83: US Ave Farm (all) | M83: =CORREL($M$14:$M$68,M14:M68) -> 1 | N83: =CORREL($M$14:$M$68,N14:N68) -> 0.1528097631 | O83: =CORREL($M$14:$M$68,O14:O68) -> 0.1784408646 | P83: =CORREL($M$14:$M$68,P14:P68) -> 0.231077961 | Q83: =CORREL($M$14:$M$68,Q14:Q68) -> -0.1924078315 | R83: US Ave Farm (all) | AC83: =CORREL($AC$14:$AC$68,AC14:AC68) -> 1 | AD83: =CORREL($AC$14:$AC$68,AD14:AD68) -> 0.1762819318 | AE83: =CORREL($AC$14:$AC$68,AE14:AE68) -> 0.1963863325 | AF83: =CORREL($AC$14:$AC$68,AF14:AF68) -> 0.2428905107 | AG83: =CORREL($AC$14:$AC$68,AG14:AG68) -> -0.1367076281 | AH83: US Ave Farm (all) | AS83: =CORREL($AS$14:$AS$67,AS14:AS67) -> 1 | AT83: =CORREL($AS$14:$AS$67,AT14:AT67) -> 0.2183426847 | AU83: =CORREL($AS$14:$AS$67,AU14:AU67) -> 0.2135580962 | AV83: =CORREL($AS$14:$AS$67,AV14:AV67) -> 0.2686305821 | AW83: =CORREL($AS$14:$AS$67,AW14:AW67) -> -0.1666645398 | BJ83: =CORREL($BJ$14:$BJ$67,BJ14:BJ67) -> 1 | BK83: =CORREL($BJ$14:$BJ$67,BK14:BK67) -> 0.1972471159 | BL83: =CORREL($BJ$14:$BJ$67,BL14:BL67) -> 0.2189287745 | BM83: =CORREL($BJ$14:$BJ$67,BM14:BM67) -> 0.2613097087 | BN83: =CORREL($BJ$14:$BJ$67,BN14:BN67) -> -0.09949315376
B84: BAA | N84: =CORREL($N$14:$N$68,N14:N68) -> 1 | O84: =CORREL($N$14:$N$68,O14:O68) -> 0.9198919388 | P84: =CORREL($N$14:$N$68,P14:P68) -> 0.98137496 | Q84: =CORREL($N$14:$N$68,Q14:Q68) -> 0.09717201641 | R84: BAA | AD84: =CORREL($AD$14:$AD$68,AD14:AD68) -> 1 | AE84: =CORREL($AD$14:$AD$68,AE14:AE68) -> 0.9802655124 | AF84: =CORREL($AD$14:$AD$68,AF14:AF68) -> 0.9883448824 | AG84: =CORREL($AD$14:$AD$68,AG14:AG68) -> 0.2795709224 | AH84: BAA | AT84: =CORREL($AT$14:$AT$67,AT14:AT67) -> 1 | AU84: =CORREL($AT$14:$AT$67,AU14:AU67) -> 0.9888416209 | AV84: =CORREL($AT$14:$AT$67,AV14:AV67) -> 0.9921262817 | AW84: =CORREL($AT$14:$AT$67,AW14:AW67) -> 0.4561866926 | BK84: =CORREL($BK$14:$BK$67,BK14:BK67) -> 1 | BL84: =CORREL($BK$14:$BK$67,BL14:BL67) -> 0.994286284 | BM84: =CORREL($BK$14:$BK$67,BM14:BM67) -> 0.9918842677 | BN84: =CORREL($BK$14:$BK$67,BN14:BN67) -> 0.509935879
B85: Mort30F | O85: =CORREL($O$14:$O$68,O14:O68) -> 1 | P85: =CORREL($O$14:$O$68,P14:P68) -> 0.9209528594 | Q85: =CORREL($O$14:$O$68,Q14:Q68) -> 0.136990343 | R85: Mort30F | AE85: =CORREL($AE$14:$AE$68,AE14:AE68) -> 1 | AF85: =CORREL($AE$14:$AE$68,AF14:AF68) -> 0.9835987519 | AG85: =CORREL($AE$14:$AE$68,AG14:AG68) -> 0.286630496 | AH85: Mort30F | AU85: =CORREL($AU$14:$AU$67,AU14:AU67) -> 1 | AV85: =CORREL($AU$14:$AU$67,AV14:AV67) -> 0.9907786826 | AW85: =CORREL($AU$14:$AU$67,AW14:AW67) -> 0.4914944654 | BL85: =CORREL($BL$14:$BL$67,BL14:BL67) -> 1 | BM85: =CORREL($BL$14:$BL$67,BM14:BM67) -> 0.9971504547 | BN85: =CORREL($BL$14:$BL$67,BN14:BN67) -> 0.5538151421
B86: TCM10Y | P86: =CORREL($P$14:$P$68,P14:P68) -> 1 | Q86: =CORREL($P$14:$P$68,Q14:Q68) -> 0.1172120568 | R86: TCM10Y | AF86: =CORREL($AF$14:$AF$68,AF14:AF68) -> 1 | AG86: =CORREL($AF$14:$AF$68,AG14:AG68) -> 0.3176659462 | AH86: TCM10Y | AV86: =CORREL($AV$14:$AV$67,AV14:AV67) -> 1 | AW86: =CORREL($AV$14:$AV$67,AW14:AW67) -> 0.4806566309 | BM86: =CORREL($BM$14:$BM$67,BM14:BM67) -> 1 | BN86: =CORREL($BM$14:$BM$67,BN14:BN67) -> 0.532836565
B87: EAFE | Q87: =CORREL($Q$14:$Q$68,Q14:Q68) -> 1 | R87: EAFE | AG87: =CORREL($AG$14:$AG$68,AG14:AG68) -> 1 | AH87: EAFE | AW87: =CORREL($AW$14:$AW$67,AW14:AW67) -> 1 | BN87: =CORREL($BN$14:$BN$67,BN14:BN67) -> 1
AZ91: Difference
BA92: =BA73-AJ73 -> -0.003468410893 | BB92: 0.02693244317 | BC92: -0.004982511501 | BD92: 0.04237756688 | BE92: 0.03158725726 | BF92: -0.1678072988 | BG92: -0.1475932326 | BH92: =BH73-AQ73 -> -0.08733555175 | BI92: -0.09723765264 | BJ92: 0.0009814177947 | BK92: -0.01208748819 | BL92: 0.01372523048 | BM92: 0.001270451768 | BN92: 0.04832370141
B93: 1970 | C93: =1+C14 -> 1.111594035 | D93: 1.0804 | E93: 1.062546205 | F93: 1.021799228 | G93: 1.054206818 | H93: 1.063916667 | I93: 1.000977146 | J93: 1.046979907 | K93: 1 | L93: 1 | M93: 1.110252576 | N93: 1.09105 | O93: 1 | P93: 1.073483333 | Q93: 0.8615604439 | BB93: =BB74-AK74 -> 0.09998100742 | BC93: -0.02752860452 | BD93: -0.02585788132 | BE93: 0.003857045786 | BF93: -0.04807408017 | BG93: -0.02548293778 | BH93: -0.1061771263 | BI93: -0.1041681399 | BJ93: -0.01238926356 | BK93: -0.0003325724037 | BL93: 0.007389726916 | BM93: 0.000450516161 | BN93: 0.04859017634
B94: 1971 | C94: =1+C15 -> 1.110851876 | D94: 1.073866667 | E94: 1.149561411 | F94: 1.039635307 | G94: 1.032141209 | H94: 1.043325 | I94: 1.102437093 | J94: 1.059354647 | K94: 1 | L94: 1 | M94: 1.113527429 | N94: 1.085633333 | O94: 1.075511111 | P94: 1.061591667 | Q94: 1.232255284 | BC94: =BC75-AL75 -> 0.1077785788 | BD94: 0.09779138607 | BE94: 0.08053029079 | BF94: -0.1297505755 | BG94: -0.08147804605 | BH94: 0.1352332146 | BI94: 0.1331642648 | BJ94: 0.02265142657 | BK94: 0.1067896588 | BL94: 0.1331357961 | BM94: 0.1084357481 | BN94: -0.004071599688
B95: 1972 | C95: =1+C16 -> 1.142276032 | D95: 1.072133333 | E95: 1.385174781 | F95: 1.062755845 | G95: 1.033495954 | H95: 1.040725 | I95: 1.145253486 | J95: 1.13611175 | K95: 1.077056056 | L95: 1.106092404 | M95: 1.141753826 | N95: 1.08155 | O95: 1.073841667 | P95: 1.0621 | Q95: 1.287289639 | BD95: =BD76-AM76 -> -0.01441006222 | BE95: -0.03302835783 | BF95: -0.158992054 | BG95: -0.1218759687 | BH95: -0.002387767565 | BI95: -0.01649373371 | BJ95: 0.005129915037 | BK95: -0.03394725685 | BL95: -0.02051171002 | BM95: -0.01856985505 | BN95: 0.001961165229
B96: 1973 | C96: =1+C17 -> 1.18773475 | D96: 1.074408333 | E96: 1.512732739 | F96: 1.142614107 | G96: 1.085637885 | H96: 1.070316667 | I96: 0.8092568035 | J96: 0.8187367066 | K96: 0.8313546342 | L96: 0.682316893 | M96: 1.179608141 | N96: 1.082408333 | O96: 1.080725 | P96: 1.068425 | Q96: 0.815862013 | BE96: =BE77-AN77 -> -0.008059105728 | BF96: -0.1577721066 | BG96: -0.17430914 | BH96: -0.0953333268 | BI96: -0.1004666408 | BJ96: 0.03752008232 | BK96: -0.03338713733 | BL96: -0.02020921407 | BM96: -0.02132703582 | BN96: 0.01711252291
B97: 1974 | C97: =1+C18 -> 1.295024599 | D97: 1.085658333 | E97: 1.543530808 | F97: 1.189678395 | G97: 1.114176829 | H97: 1.0783 | I97: 0.6473442072 | J97: 0.6772769733 | K97: 0.7591629969 | L97: 0.4512708878 | M97: 1.286628098 | N97: 1.094966667 | O97: 1.092183333 | P97: 1.075575 | Q97: 0.7043197799 | BF97: =BF78-AO78 -> -0.07252098098 | BG97: -0.08162220099 | BH97: -0.03681554358 | BI97: -0.0540658573 | BJ97: 0.02036370108 | BK97: -0.0007268977575 | BL97: 0.003328965958 | BM97: 0.001268886887 | BN97: 0.05459634569
B98: 1975 | C98: =1+C19 -> 1.197423722 | D98: 1.088258333 | E98: 0.7228904907 | F98: 1.041031397 | G98: 1.068864411 | H98: 1.05775 | I98: 1.274209282 | J98: 1.324484314 | K98: 1.176466884 | L98: 1.309957168 | M98: 1.186989167 | N98: 1.1061 | O98: 1.090241667 | P98: 1.079875 | Q98: 1.271576575 | BG98: =BG79-AP79 -> -0.03310710299 | BH98: 0.09556409692 | BI98: 0.08369234147 | BJ98: -0.1383608911 | BK98: -0.05098501784 | BL98: -0.07000421494 | BM98: -0.05812297576 | BN98: 0.001371954122
B99: 1976 | C99: =1+C20 -> 1.224094659 | D99: 1.084341667 | E99: 0.9606873946 | F99: 1.045834536 | G99: 1.049132689 | H99: 1.049741667 | I99: 1.175200129 | J99: 1.164388368 | K99: 1.38925884 | L99: 1.398599825 | M99: 1.220286133 | N99: 1.097466667 | O99: 1.08855 | P99: 1.076116667 | Q99: 0.9964108661 | BH99: =BH80-AQ80 -> 0.04527623228 | BI99: 0.02200562868 | BJ99: =BJ80-AS80 -> -0.1191410717 | BK99: -0.02389451219 | BL99: -0.05737194482 | BM99: -0.03943548709 | BN99: -0.06902209441
B100: 1977 | C100: =1+C21 -> 1.244104281 | D100: 1.080241667 | E100: 1.180665092 | F100: 1.057513906 | G100: 1.064645536 | H100: 1.052691667 | I100: 0.8778102843 | J100: 0.8104261713 | K100: 1.202322139 | L100: 1.174595834 | M100: 1.225539205 | N100: 1.089691667 | O100: 1.088483333 | P100: 1.074191667 | Q100: 1.136395193 | BI100: =BI81-AR81 -> 0.009260082143 | BJ100: =BJ81-AS81 -> -0.05010586163 | BK100: =BK81-AT81 -> -0.1161312518 | BL100: =BL81-AU81 -> -0.0905898973 | BM100: =BM81-AV81 -> -0.07973856141 | BN100: =BN81-AW81 -> 0.3540453356
B101: 1978 | C101: =1+C22 -> 1.184992275 | D101: 1.08725 | E101: 1.258834298 | F101: 1.093660922 | G101: 1.086074609 | H101: 1.071883333 | I101: 1.010564399 | J101: 0.9679718376 | K101: 1.098355758 | L101: 0.9834587048 | M101: 1.174997807 | N101: 1.094883333 | O101: 1.0968 | P101: 1.0841 | Q101: 1.253974963 | BJ101: -0.06198140445 | BK101: -0.1168598799 | BL101: -0.1047227419 | BM101: -0.08139871348 | BN101: 0.381280385
B102: 1979 | C102: =1+C23 -> 1.23092617 | D102: 1.096291667 | E102: 1.783656562 | F102: 1.137306925 | G102: 1.124469842 | H102: 1.100691667 | I102: 1.116082148 | J102: 1.041010797 | K102: 1.306436764 | L102: 1.266402558 | M102: 1.230786598 | N102: 1.1069 | O102: 1.112491667 | P102: 1.094425 | Q102: 1.01797298 | BK102: -0.02109556885 | BL102: 0.005370678358 | BM102: -0.007320873358 | BN102: 0.06717138609
B103: 1980 | C103: =1+C24 -> 1.217132616 | D103: 1.119383333 | E103: 1.167868487 | F103: 1.117516547 | G103: 1.116481799 | H103: 1.114341667 | I103: 1.229313104 | J103: 1.139238221 | K103: 1.218083788 | L103: 1.247012076 | M103: 1.220436166 | N103: 1.136683333 | O103: 1.138416667 | P103: 1.1146 | Q103: 1.174064249 | BL103: 0.005444663072 | BM103: -0.0002420140102 | BN103: 0.05374918638
B104: 1981 | C104: =1+C25 -> 1.163722455 | D104: 1.141708333 | E104: 0.728034933 | F104: 1.051932749 | G104: 1.085370371 | H104: 1.14025 | I104: 0.897630489 | J104: 0.9031325917 | K104: 1.058276545 | L104: 1.082276839 | M104: 1.150726553 | N104: 1.160441667 | O104: 1.167166667 | P104: 1.139108333 | Q104: 0.950298504 | BM104: 0.006371772164 | BN104: 0.06232067665
B105: 1982 | C105: =1+C26 -> 1.053710397 | D105: 1.137875 | E105: 1.080573407 | F105: 1.017060123 | G105: 1.037543512 | H105: 1.106141667 | I105: 1.137684324 | J105: 1.178982656 | K105: 1.195574198 | L105: 1.27493086 | M105: 1.050224277 | N105: 1.161133333 | O105: 1.159608333 | P105: 1.130016667 | Q105: 0.9526109343 | BN105: 0.05217993408
B106: 1983 | C106: =1+C27 -> 1.015210448 | D106: 1.120416667 | E106: 0.8649311896 | F106: 1.017751945 | G106: 1.037171532 | H106: 1.086108333 | I106: 1.159317708 | J106: 1.184548729 | K106: 1.267246556 | L106: 1.226887472 | M106: 1.011633862 | N106: 1.135541667 | O106: 1.132233333 | P106: 1.11105 | Q106: 1.189906795
B107: 1984 | C107: =1+C28 -> 1.076881176 | D107: 1.127091667 | E107: 0.805001217 | F107: 1.01166194 | G107: 1.039637862 | H107: 1.095225 | I107: 1.013908765 | J107: 0.9619418081 | K107: 1.190019152 | L107: 1.138154735 | M107: 1.075475026 | N107: 1.1419 | O107: 1.1386 | P107: 1.124383333 | Q107: 1.048983137
B108: 1985 | C108: =1+C29 -> 0.9531012026 | D108: 1.113733333 | E108: 1.007358477 | F108: 1.000965717 | G108: 1.037213596 | H108: 1.074791667 | I108: 1.233754362 | J108: 1.244181829 | K108: 1.174762671 | L108: 1.05751321 | M108: 0.9591734472 | N108: 1.12715 | O108: 1.123516667 | P108: 1.106233333 | Q108: 1.425065119
B109: 1986 | C109: =1+C30 -> 0.9760301399 | D109: 1.090208333 | E109: 1.194261997 | F109: 0.9616283471 | G109: 1.011802225 | H109: 1.059783333 | I109: 1.136455691 | J109: 1.203622775 | K109: 1.175277856 | L109: 1.175429939 | M109: 0.9815069486 | N109: 1.103908333 | O109: 1.101225 | P109: 1.076825 | Q109: 1.511622832
B110: 1987 | C110: =1+C31 -> 1.006739451 | D110: 1.093758333 | E110: 1.218199394 | F110: 1.044146452 | G110: 1.042409182 | H110: 1.05775 | I110: 1.020072212 | J110: 1.022322821 | K110: 0.9629227079 | L110: 0.8871833461 | M110: 1.019489914 | N110: 1.105758333 | O110: 1.101958333 | P110: 1.083841667 | Q110: 1.208514139
B111: 1988 | C111: =1+C32 -> 1.118728414 | D111: 1.0971 | E111: 0.8512879154 | F111: 1.045035753 | G111: 1.043172172 | H111: 1.066675 | I111: 1.116901241 | J111: 1.112012573 | K111: 1.12650426 | L111: 1.107556811 | M111: 1.112454707 | N111: 1.1083 | O111: 1.103533333 | P111: 1.088458333 | Q111: 1.23635056
B112: 1989 | C112: =1+C33 -> 1.124789212 | D112: 1.092575 | E112: 0.9766780024 | F112: 1.036039936 | G112: 1.045351901 | H112: 1.081116667 | I112: 1.240987148 | J112: 1.238682073 | K112: 1.084729129 | L112: 0.9816978483 | M112: 1.125367064 | N112: 1.101775 | O112: 1.103075 | P112: 1.084983333 | Q112: 1.088197179
B113: 1990 | C113: =1+C34 -> 1.094940448 | D113: 1.093216667 | E113: 0.9174443057 | F113: 1.049211483 | G113: 1.060671195 | H113: 1.074933333 | I113: 0.9321585391 | J113: 0.9556258301 | K113: 0.8333344621 | L113: 0.8095043222 | M113: 1.086173384 | N113: 1.10355 | O113: 1.101508333 | P113: 1.0855 | Q113: 0.7162357038
B114: 1991 | C114: =1+C35 -> 1.088266537 | D114: 1.087691667 | E114: 0.9587855245 | F114: 0.9761284487 | G114: 1.029370687 | H114: 1.05375 | I114: 1.233542927 | J114: 1.184963266 | K114: 1.305248353 | L114: 1.30512217 | M114: 1.091936762 | N114: 1.098016667 | O114: 1.092166667 | P114: 1.078583333 | Q114: 1.097004834
B115: 1992 | C115: =1+C36 -> 1.076788204 | D115: 1.0814 | E115: 0.9226949968 | F115: 1.014561285 | G115: 1.029235594 | H115: 1.034316667 | I115: 1.043674859 | J115: 1.040902779 | K115: 1.136187005 | L115: 1.114893601 | M115: 1.077965736 | N115: 1.089766667 | O115: 1.084241667 | P115: 1.0701 | Q115: 0.8504857057
B116: 1993 | C116: =1+C37 -> 1.102885141 | D116: 1.072191667 | E116: 1.135224898 | F116: 1.008467451 | G116: 1.027721803 | H116: 1.029975 | I116: 1.068173949 | J116: 1.12859283 | K116: 1.179438486 | L116: 1.17014066 | M116: 1.099440755 | N116: 1.0793 | O116: 1.073025 | P116: 1.058733333 | Q116: 1.266152781
B117: 1994 | C117: =1+C38 -> 1.118660291 | D117: 1.079625 | E117: 0.9894831116 | F117: 1.02744455 | G117: 1.025642431 | H117: 1.042466667 | I117: 0.984487439 | J117: 1.021164393 | K117: 1.031214862 | L117: 1.008023157 | M117: 1.154732411 | N117: 1.086225 | O117: 1.084008333 | P117: 1.0708 | Q117: 1.060531887
B118: 1995 | C118: =1+C39 -> 1.100284622 | D118: 1.0759 | E118: 1.021259914 | F118: 1.030697079 | G118: 1.025001302 | H118: 1.0549 | I118: 1.293495048 | J118: 1.288574903 | K118: 1.142079979 | L118: 1.168129625 | M118: 1.092861506 | N118: 1.082008333 | O118: 1.079233333 | P118: 1.0658 | Q118: 1.090026662
B119: 1996 | C119: =1+C40 -> 1.087987046 | D119: 1.0737 | E119: 0.9512356459 | F119: 1.026689182 | G119: 1.033229894 | H119: 1.050058333 | I119: 1.184516366 | J119: 1.231228658 | K119: 1.302077955 | L119: 1.305670934 | M119: 1.080981231 | N119: 1.080558333 | O119: 1.078091667 | P119: 1.064383333 | Q119: 1.043036109
B120: 1997 | C120: =1+C41 -> 1.074422557 | D120: 1.072616667 | E120: 0.7547299852 | F120: 0.9820237442 | G120: 1.016828069 | H120: 1.050608333 | I120: 1.270089586 | J120: 1.204096311 | K120: 1.184487471 | L120: 1.17278374 | M120: 1.069688272 | N120: 1.07865 | O120: 1.075633333 | P120: 1.063525 | Q120: 1.002375778
B121: 1998 | C121: =1+C42 -> 1.091348451 | D121: 1.065316667 | E121: 1.010130682 | F121: 0.9679459737 | G121: 1.015941478 | H121: 1.047766667 | I121: 1.236403964 | J121: 1.149270125 | K121: 0.807601495 | L121: 0.7914656015 | M121: 1.083622488 | N121: 1.072225 | O121: 1.069533333 | P121: 1.052641667 | Q121: 1.167466322
B122: 1999 | C122: =1+C43 -> 1.097715322 | D122: 1.070416667 | E122: 0.970036906 | F122: 1.039909526 | G122: 1.0264121 | H122: 1.046383333 | I122: 1.178364109 | J122: 1.224911864 | K122: 0.9526989094 | L122: 0.9330484897 | M122: 1.094302105 | N122: 1.078708333 | O122: 1.074525 | P122: 1.056366667 | Q122: 1.225270764
B123: 2000 | C123: =1+C44 -> 1.096744901 | D123: 1.076225 | E123: 0.9580837435 | F123: 1.063657852 | G123: 1.033783061 | H123: 1.058166667 | I123: 0.8930917688 | J123: 0.9363395756 | K123: 1.234007313 | L123: 1.23024001 | M123: 1.093686896 | N123: 1.083641667 | O123: 1.08025 | P123: 1.060291667 | Q123: 0.8350557269
B124: 2001 | C124: =1+C45 -> 1.091869354 | D124: 1.070825 | E124: 1.016079279 | F124: 0.9386868152 | G124: 1.015909426 | H124: 1.033883333 | I124: 0.8602471466 | J124: 0.9263043669 | K124: 1.130439568 | L124: 1.144117849 | M124: 1.090150355 | N124: 1.079475 | O124: 1.070083333 | P124: 1.050175 | Q124: 0.7436734484
B125: 2002 | C125: =1+C46 -> 1.088949297 | D125: 1.064916667 | E125: 1.185036736 | F125: 1.036785757 | G125: 1.024500112 | H125: 1.016025 | I125: 0.7338710802 | J125: 0.8165198688 | K125: 1.037496046 | L125: 1.050841113 | M125: 1.088030891 | N125: 1.078016667 | O125: 1.06505 | P125: 1.046108333 | Q125: 0.8074265846
B126: 2003 | C126: =1+C47 -> 1.086216414 | D126: 1.056666667 | E126: 1.203803724 | F126: 1.048467636 | G126: 1.0201477 | H126: 1.010108333 | I126: 1.234126189 | J126: 1.225718387 | K126: 1.315786229 | L126: 1.325457111 | M126: 1.084322744 | N126: 1.067658333 | O126: 1.058216667 | P126: 1.04015 | Q126: 1.302195979
B127: 2004 | C127: =1+C48 -> 1.091613524 | D127: 1.056283333 | E127: 1.082790899 | F127: 1.073903138 | G127: 1.032876768 | H127: 1.013716667 | I127: 1.086117628 | J127: 1.03099472 | K127: 1.274425818 | L127: 1.265509358 | M127: 1.108778915 | N127: 1.063933333 | O127: 1.058358333 | P127: 1.042741667 | Q127: 1.162043945
B128: 2005 | C128: =1+C49 -> 1.207390527 | D128: 1.05235 | E128: 1.143112305 | F128: 1.081782461 | G128: 1.032840304 | H128: 1.031466667 | I128: 1.029568736 | J128: 0.9939061722 | K128: 1.114781513 | L128: 1.079625649 | M128: 1.220214444 | N128: 1.060641667 | O128: 1.058708333 | P128: 1.0429 | Q128: 1.103138951
B129: 2006 | C129: =1+C50 -> 1.148415259 | D129: 1.055875 | E129: 1.210787115 | F129: 1.015825041 | G129: 1.024926515 | H129: 1.047266667 | I129: 1.127684357 | J129: 1.150898371 | K129: 1.300553914 | L129: 1.292813822 | M129: 1.152860393 | N129: 1.064791667 | O129: 1.064083333 | P129: 1.047916667 | Q129: 1.210839348
B130: 2007 | C130: =1+C51 -> 1.139734791 | D130: 1.055558333 | E130: 1.243219466 | F130: 1.075573426 | G130: 1.040266449 | H130: 1.043533333 | I130: 1.03468716 | J130: 1.062339128 | K130: 0.8293096186 | L130: 0.8035983498 | M130: 1.131305111 | N130: 1.064825 | O130: 1.063366667 | P130: 1.046291667 | Q130: 1.082711916
B131: 2008 | C131: =1+C52 -> 1.101830947 | D131: 1.056316667 | E131: 1.01591961 | F131: 0.9559299217 | G131: 0.9997776953 | H131: 1.01365 | I131: 0.5141090304 | J131: 0.5869497434 | K131: 0.5263475388 | L131: 0.5245443325 | M131: 1.092245935 | N131: 1.074466667 | O131: 1.060725 | P131: 1.036666667 | Q131: 0.4006061313
B132: 2009 | C132: =1+C53 -> 0.9898824553 | D132: 1.053133333 | E132: 1.329617635 | F132: 1.0412666 | G132: 1.027752542 | H132: 1.0015 | I132: 1.210691329 | J132: 1.172434129 | K132: 1.246783628 | L132: 1.24530359 | M132: 0.9824793996 | N132: 1.072958333 | O132: 1.050425 | P132: 1.032566667 | Q132: 1.244883503
B133: 2010 | C133: =1+C54 -> 1.051106278 | D133: 1.049433333 | E133: 1.20331206 | F133: 1.063098687 | G133: 1.014275548 | H133: 1.001366667 | I133: 1.120290458 | J133: 1.104565132 | K133: 1.246445672 | L133: 1.243446651 | M133: 1.037764105 | N133: 1.060383333 | O133: 1.046883333 | P133: 1.032141667 | Q133: 1.047880911
B134: 2011 | C134: =1+C55 -> 1.096341643 | D134: 1.046391667 | E134: 1.164976439 | F134: 1.051872989 | G134: 1.030161211 | H134: 1.000525 | I134: 0.9999681939 | J134: 1.053809838 | K134: 1.079584617 | L134: 1.070502388 | M134: 1.078760877 | N134: 1.056641667 | O134: 1.044425 | P134: 1.027858333 | Q134: 0.8396036004
B135: 2012 | C135: =1+C56 -> 1.127653598 | D135: 1.036733333 | E135: 1.026946359 | F135: 1.008472515 | G135: 1.017442049 | H135: 1.000858333 | I135: 1.12580141 | J135: 1.07005395 | K135: 1.179825193 | L135: 1.180047288 | M135: 1.100979633 | N135: 1.04935 | O135: 1.036475 | P135: 1.018025 | Q135: 1.127110162
B136: 2013 | C136: =1+C57 -> 1.121837365 | D136: 1.04235 | E136: 0.6784651281 | F136: 1.002478316 | G136: 1.015015091 | H136: 1.000583333 | I136: 1.259292206 | J136: 1.235067471 | K136: 1.028157193 | L136: 1.023135556 | M136: 1.102862227 | N136: 1.051016667 | O136: 1.040241667 | P136: 1.023508333 | Q136: 1.177524146
B137: 2014 | C137: =1+C58 -> 1.094804427 | D137: 1.041625 | E137: 0.9827486544 | F137: 0.9749360313 | G137: 1.006509978 | H137: 1.000325 | I137: 1.1078731 | J137: 1.072498004 | K137: 1.247075621 | L137: 1.240816783 | M137: 1.081730215 | N137: 1.048541667 | O137: 1.0416 | P137: 1.025408333 | Q137: 0.9237075597
B138: 2015 | C138: =1+C59 -> 1.050506307 | D138: 1.038866667 | E138: 0.8901707068 | F138: 0.9290109388 | G138: 1.006366935 | H138: 1.000525 | I138: 0.9927074581 | J138: 0.9774139928 | K138: 1.027860574 | L138: 1.020298361 | M138: 1.047233024 | N138: 1.049991667 | O138: 1.038433333 | P138: 1.021358333 | Q138: 0.9664207087
B139: 2016 | C139: =1+C60 -> 1.033738036 | D139: 1.036658333 | E139: 1.073132752 | F139: 1.02529056 | G139: 1.020300532 | H139: 1.003175 | I139: 1.09107409 | J139: 1.125883584 | K139: 1.082770284 | L139: 1.089611222 | M139: 1.03273666 | N139: 1.047175 | O139: 1.036708333 | P139: 1.018416667 | Q139: 0.9810127579
B140: 2017 | C140: =1+C61 -> 1.037470051 | D140: 1.037433333 | E140: 1.088495696 | F140: 1.042138874 | G140: 1.021075647 | H140: 1.009308333 | I140: 1.177476211 | J140: 1.223789816 | K140: 1.083181535 | L140: 1.088871301 | M140: 1.036845867 | N140: 1.0444 | O140: 1.039791667 | P140: 1.0233 | Q140: 1.197053169
B141: 2018 | C141: =1+C62 -> 1.039764561 | D141: 1.0393 | E141: 0.9888262551 | F141: 1.023660807 | G141: 1.019825969 | H141: 1.019391667 | I141: 0.9355973658 | J141: 0.9420501287 | K141: 0.9587139193 | L141: 0.9598540623 | M141: 1.038971179 | N141: 1.048 | O141: 1.045566667 | P141: 1.0291 | Q141: 0.8240294362
B142: 2019 | C142: =1+C63 -> 1.042361467 | D142: 1.033875 | E142: 1.167990577 | F142: 0.9899999167 | G142: 1.022930353 | H142: 1.020608333 | I142: 1.253696609 | J142: 1.201620743 | K142: 1.252025406 | L142: 1.248481403 | M142: 1.041659968 | N142: 1.043758333 | O142: 1.039133333 | P142: 1.021441667 | Q142: 1.169194652
B143: 2020 | C143: =1+C64 -> 1.032944163 | D143: 1.024766667 | E143: 1.228272587 | F143: 1.007509422 | G143: 1.012965119 | H143: 1.00365 | I143: 1.150649604 | J143: 1.069959801 | K143: 0.9474262099 | L143: 0.9383836697 | M143: 1.032193844 | N143: 1.036025 | O143: 1.030808333 | P143: 1.008941667 | Q143: 1.052866844
B144: 2021 | C144: =1+C65 -> 1.087318683 | D144: 1.027033333 | E144: 0.9627291501 | F144: 1.185384194 | G144: 1.069307574 | H144: 1.000441667 | I144: 1.238171947 | J144: 1.17166053 | K144: 1.345703604 | L144: 1.336610566 | M144: 1.080752544 | N144: 1.033925 | O144: 1.029875 | P144: 1.014425 | Q144: 1.084153158
B145: 2022 | C145: 1.145891048 | D145: 1.040741667 | E145: 1.003968812 | F145: 1.06636184 | G145: 1.062143451 | H145: 1.020216667 | I145: 0.7837970043 | J145: 0.9080874755 | K145: 0.7130051917 | L145: 0.7120140758 | M145: 1.135253707 | N145: 1.050725 | O145: 1.0547 | P145: 1.029516667 | Q145: 0.8162401649
B146: 2023 | C146: 1.096187863 | D146: 1.0481 | E146: 1.11972762 | F146: 1.06636184 | G146: 1.032691364 | H146: 1.050683333 | I146: 1.216968515 | J146: 1.128422845 | K146: 1.107564395 | L146: 1.109043548 | M146: 1.089164417 | N146: 1.058608333 | O146: 1.067983333 | P146: 1.039575 | Q146: 1.140051371
B147: 2024 | C147: 1.074444703 | D147: 1.050441667 | E147: 1.267656168 | F147: 0.9683644938 | G147: 1.028554349 | H147: 1.049666667 | I147: 1.20952327 | J147: 1.121161403 | K147: 1.048049438 | L147: 1.046364017 | M147: 1.066021235 | N147: 1.057533333 | O147: 1.067558333 | P147: 1.042083333 | Q147: =1+Q68 -> 1.011403659
